{"text_format":"1","workbook":"xlsx","n_sheets":14,"sheets":["Hoofdmenu","Toelichting","Voorblad","Mededelingen","NAW_gegevens","Kostenverzamelstaat","Catastr kostenverzamelst","Specifieke informatie A","Specifieke informatie C","Contractinformatie","Wanbetalers","Controleoverzicht","Blad1","Parameters"],"not_rendered":{"charts":0,"images":1,"macros":1,"external_links":0,"defined_names":1044,"comments":0,"pivot_tables":0},"unopened":[],"bounds":{"document_bytes":16777216,"sheet_cells":100000,"rows_first":2000,"rows_last":500,"rows_between":2000,"halvings":0,"cell_chars":16384,"cell_head_chars":4096},"cells_cut":0,"cells_raw":0,"read":"whole","date_system":"1900"}

{"sheet":"Hoofdmenu","index":0,"n_rows":3,"n_cols":2,"rows_kept":3,"cut":false,"hidden":false,"merged":[[0,0,0,1],[1,0,1,1]]}
[" "]
[{"$f":"CONCATENATE(\"KWARTAALSTAAT ZVW \", jaar_id,\" \",kwartaal_id,\"E KWARTAAL\")","v":"KWARTAALSTAAT ZVW 2021 3E KWARTAAL"}]
["Navigatie","Afdrukken"]

{"sheet":"Toelichting","index":1,"n_rows":4,"n_cols":2,"rows_kept":4,"cut":false,"hidden":false,"merged":[]}
[]
[]
[]
[null,{"$f":"CONCATENATE(\" KWARTAALSTAAT ZVW \",jaar_id,\" \",kwartaal_id,\"E KWARTAAL (VERSIE: \",revisie_id,\")\")","v":" KWARTAALSTAAT ZVW 2021 3E KWARTAAL (VERSIE: A)"}]

{"sheet":"Voorblad","index":2,"n_rows":38,"n_cols":4,"rows_kept":38,"cut":false,"hidden":false,"merged":[[15,3,16,11],[13,3,14,11],[17,3,18,11]]}
[null,null,"VOORBLAD"]
[]
[]
[]
[]
["Pagina 1",null,null," "]
[]
[]
[]
[]
[]
[]
[]
[null,null,null,{"$f":"CONCATENATE(\"KWARTAALSTAAT ZVW \",jaar_id)","v":"KWARTAALSTAAT ZVW 2021"}]
[]
[null,null,null,{"$f":"CONCATENATE(kwartaal_id,\"E KWARTAAL\")","v":"3E KWARTAAL"}]
[]
[null,null,null,"SPECIFIEKE INFORMATIE"]
[]
[]
[]
[null,null,null,"    KOSTENVERZAMELSTAAT (SPECIFIEKE INFORMATIE A)"]
[null,null,null,"     ● Informatie risicoverevening (pagina 1 t/m 4)"]
[]
[null,null,null,"    CATASTROFE KOSTENVERZAMELSTAAT (SPECIFIEKE INFORMATIE A)"]
[null,null,null,"     ● Informatie risicoverevening (pagina 1 t/m 4)"]
[]
[null,null,null,"    SPECIFIEKE INFORMATIE A"]
[null,null,null,"     ● Informatie risicoverevening (pagina 1 t/m 4)"]
[]
[null,null,null,"    SPECIFIEKE INFORMATIE C"]
[null,null,null,"     ● Specificaties van kosten en productie (pagina 1 t/m 5)"]
[]
[null,null,null,"    CONTRACTINFORMATIE (SPECIFIEKE INFORMATIE C)"]
[null,null,null,"     ● Specificaties van kosten en productie (pagina 1 & 2)"]
[]
[null,null,null,"    WANBETALERS (SPECIFIEKE INFORMATIE C)"]
[null,null,null,"     ● Specificaties van aantallen (pagina 1)"]

{"sheet":"Mededelingen","index":3,"n_rows":49,"n_cols":12,"rows_kept":49,"cut":false,"hidden":false,"merged":[[48,3,48,4]]}
[]
[]
[]
[]
[]
["Pagina 1",null,null,{"$f":"CONCATENATE(\"KWARTAALSTAAT ZVW \", jaar_id,\" \",kwartaal_id,\"E KWARTAAL\")","v":"KWARTAALSTAAT ZVW 2021 3E KWARTAAL"}]
[null,null,null,{"$f":"IF(naw_uzovi_zorgverzekeraar<>\"0000\",CONCATENATE(UPPER(naw_naam_zorgverzekeraar),\", \",UPPER(naw_plaats_zorgverzekeraar)),\"\")","v":""},null,null,null,null,null,null,null,{"$f":"CONCATENATE(\"UZOVI: \",naw_uzovi_zorgverzekeraar)","v":"UZOVI: 0000"}]
[null,null,null,"MEDEDELINGEN :"]
[]
[]
[]
[]
[]
[]
[]
[]
[]
[]
[]
[]
[]
[]
[]
[]
[]
[]
[]
[]
[]
[]
[]
[]
[]
[]
[]
[]
[]
[]
[]
[]
[]
[]
[]
[]
[]
[]
[]
[]
[null,null,null,{"$f":"NOW()","v":"2021-09-27T12:35:01.880"},null,null,null,null,null,null,null,{"$f":"CONCATENATE(\"Mededelingen \",LOWER(A6))","v":"Mededelingen pagina 1"}]

{"sheet":"NAW_gegevens","index":4,"n_rows":40,"n_cols":6,"rows_kept":40,"cut":false,"hidden":false,"merged":[[2,1,2,2],[3,1,3,2]]}
[]
[]
[null,"NAW-GEGEVENS"]
[null,{"$f":"CONCATENATE(\"KWARTAALSTAAT ZVW \", jaar_id,\" \",kwartaal_id,\"E KWARTAAL\")","v":"KWARTAALSTAAT ZVW 2021 3E KWARTAAL"}]
[null," Selecteer uw nummer:","0000 KIES UW UZOVI-NUMMER"]
[null," Uzovi-nummer:",{"$f":"MID(keuze_uzovi_nummer,1,4)","v":"0000"}]
[null," Zorgverzekeraar:"]
[null," Plaats:"]
[null," Contactpersoon:"]
[null," Telefoonnummer:"]
[null," E-mail:"]
[]
[null,"Let op dat u het goede UZOVI-nummer invult, zie onderstaand overzicht:"]
[]
[null,"UZOVI","NAAM",null,null,"PLAATS"]
[null,"0101","N.V. UNIVÉ ZORG",null,null,"ARNHEM"]
[null,"0104","CENTRALE ZORGVERZEKERINGEN NZV N.V.",null,null,"TILBURG"]
[null,"0201","OHRA ZORGVERZEKERINGEN N.V.",null,null,"TILBURG"]
[null,"0403","ASR BASIS ZIEKTENKOSTENVERZEKERINGEN N.V. ",null,null,"UTRECHT"]
[null,"0699","IZA ZORGVERZEKERAAR N.V.",null,null,"ARNHEM"]
[null,"0736","N.V. ZORGVERZEKERAAR UMC",null,null,"ARNHEM"]
[null,"3311","ZILVEREN KRUIS ACHMEA ZORGVERZEKERINGEN N.V.",null,null,"UTRECHT"]
[null,"3313","INTERPOLIS ZORGVERZEKERINGEN N.V.",null,null,"UTRECHT"]
[null,3329,"AVÉRO ACHMEA ZORGVERZEKERINGEN N.V.",null,null,"UTRECHT"]
[null,3332,"MENZIS ZORGVERZEKERAAR NV",null,null,"WAGENINGEN"]
[null,3333,"ANDERZORG NV",null,null,"WAGENINGEN"]
[null,3343,"ONVZ ZIEKTEKOSTENVERZEKERAAR N.V.",null,null,"HOUTEN"]
[null,3347,"ENO ZORGVERZEKERAAR N.V.",null,null,"DEVENTER"]
[null,3351,"FBTO ZORGVERZEKERINGEN N.V.",null,null,"LEEUWARDEN"]
[null,3352,"IPTIQ LIFE S.A.",null,null,"AMSTELVEEN"]
[null,3358,"DE FRIESLAND ZORGVERZEKERAAR N.V.",null,null,"LEEUWARDEN"]
[null,3359,"EUCARE INSURANCE PCC LTD",null,null,"TA' XBIEX"]
[null,"7029","OWM ZORGVERZEKERAAR 'DSW' U.A.",null,null,"SCHIEDAM"]
[null,"7032","ENO ZORGVERZEKERAAR N.V.",null,null,"DEVENTER"]
[null,"7037","STAD HOLLAND ZORGVERZEKERAAR OWM U.A.",null,null,"SCHIEDAM"]
[null,"7053","OHRA ZORGVERZEKERINGEN  N.V.",null,null,"TILBURG"]
[null,"7085","OWM ZORGVERZEKERAAR ZORG EN ZEKERHEID U.A.",null,null,"LEIDEN"]
[null,"7095","VGZ ZORGVERZEKERAAR N.V.",null,null,"ARNHEM"]
[null,"7119","CZ ZORGVERZEKERINGEN N.V.",null,null,"TILBURG"]
[null,"9015","VGZ VOOR DE ZORG N.V.",null,null,"ARNHEM"]

{"sheet":"Kostenverzamelstaat","index":5,"n_rows":209,"n_cols":17,"rows_kept":209,"cut":false,"hidden":false,"merged":[[11,8,11,9],[11,10,11,11],[67,8,67,9],[67,10,67,11],[119,8,119,9],[119,10,119,11],[119,12,119,13],[120,8,121,8],[120,9,121,9],[120,10,121,10],[120,11,121,11],[120,12,121,12],[120,13,121,13],[0,2,0,14],[11,3,11,7],[12,13,13,13],[11,12,11,13],[68,8,69,8],[68,9,69,9],[68,10,69,10],[68,11,69,11],[68,12,69,12],[68,13,69,13],[67,12,67,13],[12,8,13,8],[12,9,13,9],[12,10,13,10],[12,11,13,11],[12,12,13,12]]}
[null,null,"INVULSPECIFICATIES SPECIFIEKE INFORMATIE A"]
[]
[]
[]
[]
[]
["Pagina 1",null,null,"KWARTAALSTAAT ZVW 2021 3e kwartaal"]
[null,null,null,"KOSTENVERZAMELSTAAT (SPECIFIEKE INFORMATIE A)"]
[null,null,null,{"$f":"IF(naw_uzovi_zorgverzekeraar<>\"0000\",CONCATENATE(UPPER(naw_naam_zorgverzekeraar),\", \",UPPER(naw_plaats_zorgverzekeraar)),\"\")","v":""},null,null,null,null,null,null,null,null,null,{"$f":"CONCATENATE(\"UZOVI: \",naw_uzovi_zorgverzekeraar)","v":"UZOVI: 0000"}]
[null,null,null,"SPECIFICATIES INFORMATIE RISICOVEREVENING"]
[null,null,null,"KOSTENVERZAMELSTAAT"]
[null,null,null,null,null,null,null,null,"LASTEN 2021",null,"LASTEN 2020",null,"LASTEN 2019 EN OUDER"]
[null,null,null,null,null,null,null,null,"LASTEN 2021 inclusief balanspost ","Ontvangen en geaccepteerde declaraties t/m 3e kwartaal 2021","LASTEN 2020 inclusief balanspost","Ontvangen en geaccepteerde declaraties m.b.t. 2020","LASTEN 2019 EN OUDER inclusief balanspost","Ontvangen en geaccepteerde declaraties m.b.t. 2019 en ouder"]
[null,null,null," KOSTENRUBRIEK",null,null,null,"code"]
[null,null,null," 01  HUISARTSENZORG en MDZ"]
[null,null,null," Bijzondere betalingen",null,null,null,"503   ",null,null,null,null,null,null,null,null,{"$f":"IF(OR((I16-J16)/IF(I16=0,1,I16)<-10%,(K16-L16)/IF(K16=0,1,K16)<-10%,(M16-N16)/IF(M16=0,1,M16)<-10%),\"De balans is < -10%, als dit plausibel is dan vragen wij u dit nader toe te lichten bij de opmerkingen, zo niet dan dient u uw raming aan te scherpen.\",\"\")","v":""}]
[null,null,null," Avond-, nacht- en weekenddiensten",null,null,null,"504   ",null,null,null,null,null,null,null,null,{"$f":"IF(OR((I17-J17)/IF(I17=0,1,I17)<-10%,(K17-L17)/IF(K17=0,1,K17)<-10%,(M17-N17)/IF(M17=0,1,M17)<-10%),\"De balans is < -10%, als dit plausibel is dan vragen wij u dit nader toe te lichten bij de opmerkingen, zo niet dan dient u uw raming aan te scherpen.\",\"\")","v":""}]
[null,null,null," Inschrijftarieven",null,null,null,"505   ",null,null,null,null,null,null,null,null,""]
[null,null,null," Consulttarieven",null,null,null,"506   ",null,null,null,null,null,null,null,null,""]
[null,null,null," Overige tarieven",null,null,null,"507   ",null,null,null,null,null,null,null,null,""]
[null,null,null," Multidisciplinaire zorg",null,null,null,"510   ",null,null,null,null,null,null,null,null,""]
[null,null,null," Resultaatbeloning en zorgvernieuwing huisartsen",null,null,null,"515   ",null,null,null,null,null,null,null,null,""]
[null,null,null," Resultaatbeloning en zorgvernieuwing MDZ",null,null,null,"516   ",null,null,null,null,null,null,null,null,""]
[null,null,null," Meerkosten Corona, indirect en toeslagen",null,null,null,"801   ",null,null,{"$f":"'Catastr kostenverzamelst'!K23","v":0},{"$f":"'Catastr kostenverzamelst'!L23","v":0},null,null,null,null,""]
[null,null,null," Meerkosten Corona, indirect",null,null,null,"801.1   ",null,null,null,null,null,null,null,null,""]
[null,null,null," Meerkosten Corona, toeslagen",null,null,null,"801.2   ",null,null,null,null,null,null,null,null,""]
[null,null,null," Netto continuïteitsbijdrage Corona (basisverzekering)",null,null,null,"821   ",null,null,null,null,null,null,null,null,""]
[null,null,null," TOTAAL RUBRIEK 01",null,null,null,null,{"$f":"SUM(I16:I27)","v":0},{"$f":"SUM(J16:J27)","v":0},0,0,0,{"$f":"SUM(N16:N27)","v":0}]
[null,null,null," 02 FARMACEUTISCHE ZORG"]
[null,null,null," Farmaceutische zorg",null,null,null,"520   ",null,null,null,null,null,null,null,null,{"$f":"IF(OR((I30-J30)/IF(I30=0,1,I30)<-10%,(K30-L30)/IF(K30=0,1,K30)<-10%,(M30-N30)/IF(M30=0,1,M30)<-10%),\"De balans is < -10%, als dit plausibel is dan vragen wij u dit nader toe te lichten bij de opmerkingen, zo niet dan dient u uw raming aan te scherpen.\",\"\")","v":""}]
[null,null,null," Meerkosten Corona, indirect en toeslagen",null,null,null,"802   ",null,null,{"$f":"'Catastr kostenverzamelst'!K29","v":0},{"$f":"'Catastr kostenverzamelst'!L29","v":0},null,null,null,null,{"$f":"IF(OR((I31-J31)/IF(I31=0,1,I31)<-10%,(K31-L31)/IF(K31=0,1,K31)<-10%,(M31-N31)/IF(M31=0,1,M31)<-10%),\"De balans is < -10%, als dit plausibel is dan vragen wij u dit nader toe te lichten bij de opmerkingen, zo niet dan dient u uw raming aan te scherpen.\",\"\")","v":""}]
[null,null,null," Meerkosten Corona, indirect",null,null,null,"802.1   ",null,null,null,null,null,null,null,null,""]
[null,null,null," Meerkosten Corona, toeslagen",null,null,null,"802.2   ",null,null,null,null,null,null,null,null,""]
[null,null,null," Netto continuïteitsbijdrage Corona (basisverzekering)",null,null,null,"822   ",null,null,null,null,null,null,null,null,""]
[null,null,null," TOTAAL RUBRIEK 02",null,null,null,null,{"$f":"SUM(I30:I34)","v":0},0,0,0,0,0]
[null,null,null," 03 VERPLEGING EN VERZORGING "]
[null,null,null," Kosten van verpleging en verzorging ",null,null,null,"530   "]
[null,null,null," Meerkosten Corona, indirect en toeslagen",null,null,null,"803   ",null,null,{"$f":"'Catastr kostenverzamelst'!K35","v":0},{"$f":"'Catastr kostenverzamelst'!L35","v":0}]
[null,null,null," Meerkosten Corona, indirect",null,null,null,"803.1   "]
[null,null,null," Meerkosten Corona, toeslagen",null,null,null,"803.2   "]
[null,null,null," Netto continuïteitsbijdrage Corona (basisverzekering)",null,null,null,"823   "]
[null,null,null," TOTAAL RUBRIEK 03",null,null,null,null,{"$f":"SUM(I37:I41)","v":0},{"$f":"SUM(J37:J41)","v":0},0,0,0,0]
[null,null,null," 04  MONDZORG"]
[null,null,null," Kosten mondzorg volwassen verzekerden",null,null,null,"560.1",null,null,null,null,null,null,null,null,{"$f":"IF(OR((I44-J44)/IF(I44=0,1,I44)<-10%,(K44-L44)/IF(K44=0,1,K44)<-10%,(M44-N44)/IF(M44=0,1,M44)<-10%),\"De balans is < -10%, als dit plausibel is dan vragen wij u dit nader toe te lichten bij de opmerkingen, zo niet dan dient u uw raming aan te scherpen.\",\"\")","v":""}]
[null,null,null," Kosten mondzorg jeugdige verzekerden",null,null,null,"560.2",null,null,null,null,null,null,null,null,{"$f":"IF(OR((I45-J45)/IF(I45=0,1,I45)<-10%,(K45-L45)/IF(K45=0,1,K45)<-10%,(M45-N45)/IF(M45=0,1,M45)<-10%),\"De balans is < -10%, als dit plausibel is dan vragen wij u dit nader toe te lichten bij de opmerkingen, zo niet dan dient u uw raming aan te scherpen.\",\"\")","v":""}]
[null,null,null," Kosten gebitsprothesen",null,null,null,"561   ",null,null,null,null,null,null,null,null,""]
[null,null,null," Meerkosten Corona, indirect en toeslagen",null,null,null,"804   ",null,null,{"$f":"'Catastr kostenverzamelst'!K43","v":0},{"$f":"'Catastr kostenverzamelst'!L43","v":0},null,null,null,null,""]
[null,null,null," Meerkosten Corona, indirect",null,null,null,"804.1   ",null,null,null,null,null,null,null,null,""]
[null,null,null," Meerkosten Corona, toeslagen",null,null,null,"804.2   ",null,null,null,null,null,null,null,null,""]
[null,null,null," Netto continuïteitsbijdrage Corona (basisverzekering)",null,null,null,"824   ",null,null,null,null,null,null,null,null,""]
[null,null,null," TOTAAL RUBRIEK 04",null,null,null,null,{"$f":"SUM(I44:I50)","v":0},{"$f":"SUM(J44:J50)","v":0},0,0,0,{"$f":"SUM(N44:N50)","v":0}]
[null,null,null," 05  VERLOSKUNDIGE ZORG"]
[null,null,null," Kosten verloskundige zorg door verloskundigen",null,null,null,"580   ",null,null,null,null,null,null,null,null,{"$f":"IF(OR((I53-J53)/IF(I53=0,1,I53)<-10%,(K53-L53)/IF(K53=0,1,K53)<-10%,(M53-N53)/IF(M53=0,1,M53)<-10%),\"De balans is < -10%, als dit plausibel is dan vragen wij u dit nader toe te lichten bij de opmerkingen, zo niet dan dient u uw raming aan te scherpen.\",\"\")","v":""}]
[null,null,null," Kosten Integrale geboortezorg ",null,null,null,"582   ",null,null,null,null,null,null,null,null,""]
[null,null,null," Meerkosten Corona, indirect en toeslagen",null,null,null,"805   ",null,null,{"$f":"'Catastr kostenverzamelst'!K50","v":0},{"$f":"'Catastr kostenverzamelst'!L50","v":0},null,null,null,null,""]
[null,null,null," Meerkosten Corona, indirect",null,null,null,"805.1   ",null,null,null,null,null,null,null,null,""]
[null,null,null," Meerkosten Corona, toeslagen",null,null,null,"805.2   ",null,null,null,null,null,null,null,null,""]
[null,null,null," Netto continuïteitsbijdrage Corona (basisverzekering)",null,null,null,"825   ",null,null,null,null,null,null,null,null,""]
[null,null,null," TOTAAL RUBRIEK 05",null,null,null,null,{"$f":"SUM(I53:I58)","v":0},0,0,0,0,0]
[]
[null,null,null,{"$f":"NOW()","v":"2021-09-27T12:35:01.880"},null,null,null,null,null,null,null,null,null,{"$f":"CONCATENATE(\"Specifieke informatie A, \",LOWER(A7))","v":"Specifieke informatie A, pagina 1"}]
[]
["Pagina 2",null,null,"KWARTAALSTAAT ZVW 2021 2e kwartaal"]
[null,null,null,"KOSTENVERZAMELSTAAT (SPECIFIEKE INFORMATIE A)"]
[null,null,null,{"$f":"IF(naw_uzovi_zorgverzekeraar<>\"0000\",CONCATENATE(UPPER(naw_naam_zorgverzekeraar),\", \",UPPER(naw_plaats_zorgverzekeraar)),\"\")","v":""},null,null,null,null,null,null,null,null,null,{"$f":"CONCATENATE(\"UZOVI: \",naw_uzovi_zorgverzekeraar)","v":"UZOVI: 0000"}]
[null,null,null,"SPECIFICATIES INFORMATIE RISICOVEREVENING"]
[null,null,null,"KOSTENVERZAMELSTAAT - vervolg"]
[null,null,null,null,null,null,null,null,"LASTEN 2021",null,"LASTEN 2020",null,"LASTEN 2019 EN OUDER"]
[null,null,null,null,null,null,null,null,"LASTEN 2021 inclusief balanspost ",{"$f":"J13","v":"Ontvangen en geaccepteerde declaraties t/m 3e kwartaal 2021"},"LASTEN 2020 inclusief balanspost","Ontvangen en geaccepteerde declaraties m.b.t. 2020","LASTEN 2019 EN OUDER inclusief balanspost","Ontvangen en geaccepteerde declaraties m.b.t. 2019 en ouder"]
[null,null,null," KOSTENRUBRIEK",null,null,null,"code"]
[null,null,null," 06  MEDISCH SPECIALISTISCHE ZORG"]
[null,null,null," Kosten specialisten mondziekten en kaakchirurgie",null,null,null,"545   ",null,null,null,null,null,null,null,null,{"$f":"IF(OR((I72-J72)/IF(I72=0,1,I72)<-10%,(K72-L72)/IF(K72=0,1,K72)<-10%,(M72-N72)/IF(M72=0,1,M72)<-10%),\"De balans is < -10%, als dit plausibel is dan vragen wij u dit nader toe te lichten bij de opmerkingen, zo niet dan dient u uw raming aan te scherpen.\",\"\")","v":""}]
[null,null,null," Overige kosten ziekenhuiszorg en curatieve zorg",null,null,null,"610   ",null,null,null,null,null,null,null,null,""]
[null,null,null," Overige zorgproducten",null,null,null,"611   ",null,null,null,null,null,null,null,null,""]
[null,null,null," Kosten add-ons - Dure geneesmiddelen",null,null,null,"612.1",null,null,null,null,null,null,null,null,""]
[null,null,null," Kosten add-ons - IC",null,null,null,"612.2",null,null,null,null,null,null,null,null,""]
[null,null,null," Integrale kosten van DBC-zorgproduct \n gereguleerde segment  ",null,null,null,"613.1",null,null,null,null,null,null,null,null,""]
[null,null,null," Integrale kosten DBC-zorgproduct vrije segment",null,null,null,"615.1",null,null,null,null,null,null,null,null,""]
[null,null,null," Integrale kosten extramuraal werkende \n specialisten",null,null,null,"619   ",null,null,null,null,null,null,null,null,""]
[null,null,null," Meerkosten Corona, indirect en toeslagen",null,null,null,"806   ",null,null,{"$f":"'Catastr kostenverzamelst'!K74","v":0},{"$f":"'Catastr kostenverzamelst'!L74","v":0},null,null,null,null,""]
[null,null,null," Meerkosten Corona, indirect",null,null,null,"806.1   ",null,null,null,null,null,null,null,null,""]
[null,null,null," Meerkosten Corona, toeslagen",null,null,null,"806.2   ",null,null,null,null,null,null,null,null,""]
[null,null,null," Netto continuïteitsbijdrage Corona (basisverzekering)",null,null,null,"826   ",null,null,null,null,null,null,null,null,""]
[null,null,null," TOTAAL RUBRIEK 06",null,null,null,null,{"$f":"SUM(I72:I83)","v":0},0,0,0,0,0]
[null,null,null," 07  PARAMEDISCHE ZORG"]
[null,null,null," Kosten fysiotherapie",null,null,null,"620   ",null,null,null,null,null,null,null,null,{"$f":"IF(OR((I86-J86)/IF(I86=0,1,I86)<-10%,(K86-L86)/IF(K86=0,1,K86)<-10%,(M86-N86)/IF(M86=0,1,M86)<-10%),\"De balans is < -10%, als dit plausibel is dan vragen wij u dit nader toe te lichten bij de opmerkingen, zo niet dan dient u uw raming aan te scherpen.\",\"\")","v":""}]
[null,null,null," Kosten oefentherapie Mensendieck/Cesar",null,null,null,"621   ",null,null,null,null,null,null,null,null,""]
[null,null,null," Kosten logopedie",null,null,null,"623   ",null,null,null,null,null,null,null,null,""]
[null,null,null," Kosten ergotherapie",null,null,null,"624   ",null,null,null,null,null,null,null,null,""]
[null,null,null," Kosten dieetadvisering",null,null,null,"625   ",null,null,null,null,null,null,null,null,""]
[null,null,null," Gecombineerde Leefstijl Interventie (GLI)",null,null,null,"626   ",null,null,null,null,null,null,null,null,""]
[null,null,null," Meerkosten Corona, indirect en toeslagen",null,null,null,"807   ",null,null,{"$f":"'Catastr kostenverzamelst'!K85","v":0},{"$f":"'Catastr kostenverzamelst'!L85","v":0},null,null,null,null,""]
[null,null,null," Meerkosten Corona, indirect",null,null,null,"807.1   ",null,null,null,null,null,null,null,null,""]
[null,null,null," Meerkosten Corona, toeslagen",null,null,null,"807.2   ",null,null,null,null,null,null,null,null,""]
[null,null,null," Netto continuïteitsbijdrage Corona (basisverzekering)",null,null,null,"827   ",null,null,null,null,null,null,null,null,""]
[null,null,null," TOTAAL RUBRIEK 07",null,null,null,null,{"$f":"SUM(I86:I95)","v":0},{"$f":"SUM(J86:J95)","v":0},0,0,0,{"$f":"SUM(N86:N95)","v":0}]
[null,null,null," 08  HULPMIDDELENZORG"]
[null,null,null," Hulpmiddelenzorg ",null,null,null,"640   ",null,null,null,null,null,null,null,null,{"$f":"IF(OR((I98-J98)/IF(I98=0,1,I98)<-10%,(K98-L98)/IF(K98=0,1,K98)<-10%,(M98-N98)/IF(M98=0,1,M98)<-10%),\"De balans is < -10%, als dit plausibel is dan vragen wij u dit nader toe te lichten bij de opmerkingen, zo niet dan dient u uw raming aan te scherpen.\",\"\")","v":""}]
[null,null,null," Meerkosten Corona, indirect en toeslagen",null,null,null,"808   ",null,null,{"$f":"'Catastr kostenverzamelst'!K91","v":0},{"$f":"'Catastr kostenverzamelst'!L91","v":0},null,null,null,null,""]
[null,null,null," Meerkosten Corona, indirect",null,null,null,"808.1   ",null,null,null,null,null,null,null,null,""]
[null,null,null," Meerkosten Corona, toeslagen",null,null,null,"808.2   ",null,null,null,null,null,null,null,null,""]
[null,null,null," Netto continuïteitsbijdrage Corona (basisverzekering)",null,null,null,"828   ",null,null,null,null,null,null,null,null,""]
[null,null,null," TOTAAL RUBRIEK 08",null,null,null,null,{"$f":"SUM(I98:I102)","v":0},{"$f":"SUM(J98:J102)","v":0},0,0,0,{"$f":"SUM(N98:N102)","v":0}]
[null,null,null," 09  ZIEKENVERVOER"]
[null,null,null," Kosten vervoer per ambulance/helikopter",null,null,null,"650   ",null,null,null,null,null,null,null,null,{"$f":"IF(OR((I105-J105)/IF(I105=0,1,I105)<-10%,(K105-L105)/IF(K105=0,1,K105)<-10%,(M105-N105)/IF(M105=0,1,M105)<-10%),\"De balans is < -10%, als dit plausibel is dan vragen wij u dit nader toe te lichten bij de opmerkingen, zo niet dan dient u uw raming aan te scherpen.\",\"\")","v":""}]
[null,null,null," Opbrengstenverrekeningen regionale ambulance-\n voorzieningen",null,null,null,"650.1",null,null,null,null,null,null,null,null,""]
[null,null,null," Kosten vervoer per openbaar vervoer, taxi \n en eigen auto",null,null,null,"651   ",null,null,null,null,null,null,null,null,""]
[null,null,null," Meerkosten Corona, indirect en toeslagen",null,null,null,"809   ",null,null,{"$f":"'Catastr kostenverzamelst'!K99","v":0},{"$f":"'Catastr kostenverzamelst'!L99","v":0},null,null,null,null,""]
[null,null,null," Meerkosten Corona, indirect",null,null,null,"809.1   ",null,null,null,null,null,null,null,null,""]
[null,null,null," Meerkosten Corona, toeslagen",null,null,null,"809.2   ",null,null,null,null,null,null,null,null,""]
[null,null,null," Netto continuïteitsbijdrage Corona (basisverzekering)",null,null,null,"829   ",null,null,null,null,null,null,null,null,""]
[null,null,null," TOTAAL RUBRIEK 09",null,null,null,null,{"$f":"SUM(I105:I111)","v":0},{"$f":"SUM(J105:J111)","v":0},0,0,0,0]
[null,null,null,{"$f":"NOW()","v":"2021-09-27T12:35:01.880"},null,null,null,null,null,null,null,null,null,{"$f":"CONCATENATE(\"Specifieke informatie A, \",LOWER(A63))","v":"Specifieke informatie A, pagina 2"}]
[]
["Pagina 3",null,null,"KWARTAALSTAAT ZVW 2021 2e kwartaal"]
[null,null,null,"KOSTENVERZAMELSTAAT (SPECIFIEKE INFORMATIE A)"]
[null,null,null,{"$f":"IF(naw_uzovi_zorgverzekeraar<>\"0000\",CONCATENATE(UPPER(naw_naam_zorgverzekeraar),\", \",UPPER(naw_plaats_zorgverzekeraar)),\"\")","v":""},null,null,null,null,null,null,null,null,null,{"$f":"CONCATENATE(\"UZOVI: \",naw_uzovi_zorgverzekeraar)","v":"UZOVI: 0000"}]
[null,null,null,"SPECIFICATIES INFORMATIE RISICOVEREVENING"]
[null,null,null,"KOSTENVERZAMELSTAAT - vervolg"]
[null,null,null,null,null,null,null,null,"LASTEN 2021",null,"LASTEN 2020",null,"LASTEN 2019 EN OUDER"]
[null,null,null,null,null,null,null,null,"LASTEN 2021 inclusief balanspost ",{"$f":"J13","v":"Ontvangen en geaccepteerde declaraties t/m 3e kwartaal 2021"},"LASTEN 2020 inclusief balanspost","Ontvangen en geaccepteerde declaraties m.b.t. 2020","LASTEN 2019 EN OUDER inclusief balanspost","Ontvangen en geaccepteerde declaraties m.b.t. 2019 en ouder"]
[null,null,null," KOSTENRUBRIEK",null,null,null,"code"]
[null,null,null," 10 GENEESKUNDIGE GEESTELIJKE GEZONDHEIDSZORG"]
[null,null,null," Kosten specialistische GGZ met verblijf",null,null,null,"661   ",null,null,null,null,null,null,null,null,{"$f":"IF(OR((I124-J124)/IF(I124=0,1,I124)<-10%,(K124-L124)/IF(K124=0,1,K124)<-10%,(M124-N124)/IF(M124=0,1,M124)<-10%),\"De balans is < -10%, als dit plausibel is dan vragen wij u dit nader toe te lichten bij de opmerkingen, zo niet dan dient u uw raming aan te scherpen.\",\"\")","v":""}]
[null,null,null," Kosten LGGZ (langdurige GGZ, jaar 2 en 3)",null,null,null,"661.1",null,null,null,null,null,null,null,null,""]
[null,null,null," Kosten specialistische GGZ zonder verblijf",null,null,null,"662   ",null,null,null,null,null,null,null,null,""]
[null,null,null," Generalistische basis GGZ",null,null,null,"665   ",null,null,null,null,null,null,null,null,""]
[null,null,null," Meerkosten Corona, indirect en toeslagen",null,null,null,"810   ",null,null,{"$f":"'Catastr kostenverzamelst'!K118","v":0},{"$f":"'Catastr kostenverzamelst'!L118","v":0},null,null,null,null,""]
[null,null,null," Meerkosten Corona, indirect",null,null,null,"810.1   ",null,null,null,null,null,null,null,null,""]
[null,null,null," Meerkosten Corona, toeslagen",null,null,null,"810.2   ",null,null,null,null,null,null,null,null,""]
[null,null,null," Netto continuïteitsbijdrage Corona (basisverzekering)",null,null,null,"830   ",null,null,null,null,null,null,null,null,""]
[null,null,null," TOTAAL RUBRIEK 10",null,null,null,null,{"$f":"SUM(I124:I131)","v":0},{"$f":"SUM(J124:J131)","v":0},0,0,0,{"$f":"SUM(N124:N131)","v":0}]
[null,null,null," 11  GRZ, ELV EN GZSP"]
[null,null,null," Geriatrische Revalidatiezorg (GRZ)",null,null,null,"670   ",null,null,null,null,null,null,null,null,{"$f":"IF(OR((I134-J134)/IF(I134=0,1,I134)<-10%,(K134-L134)/IF(K134=0,1,K134)<-10%,(M134-N134)/IF(M134=0,1,M134)<-10%),\"De balans is < -10%, als dit plausibel is dan vragen wij u dit nader toe te lichten bij de opmerkingen, zo niet dan dient u uw raming aan te scherpen.\",\"\")","v":""}]
[null,null,null," Meerkosten Corona, indirect en toeslagen",null,null,null,"811.1",null,null,{"$f":"'Catastr kostenverzamelst'!K124","v":0},{"$f":"'Catastr kostenverzamelst'!L124","v":0},null,null,null,null,""]
[null,null,null," Meerkosten Corona, indirect",null,null,null,"811.1.1",null,null,null,null,null,null,null,null,""]
[null,null,null," Meerkosten Corona, toeslagen",null,null,null,"811.1.2",null,null,null,null,null,null,null,null,""]
[null,null,null," Netto continuïteitsbijdrage Corona (basisverzekering)",null,null,null,"831.1",null,null,null,null,null,null,null,null,""]
[null,null,null," Eerstelijnsverblijf (ELV)",null,null,null,"671   ",null,null,null,null,null,null,null,null,""]
[null,null,null," Meerkosten Corona, indirect en toeslagen",null,null,null,"811.2",null,null,{"$f":"'Catastr kostenverzamelst'!K128","v":0},{"$f":"'Catastr kostenverzamelst'!L128","v":0},null,null,null,null,""]
[null,null,null," Meerkosten Corona, indirect",null,null,null,"811.2.1",null,null,null,null,null,null,null,null,""]
[null,null,null," Meerkosten Corona, toeslagen",null,null,null,"811.2.2",null,null,null,null,null,null,null,null,""]
[null,null,null," Netto continuïteitsbijdrage Corona (basisverzekering)",null,null,null,"831.2",null,null,null,null,null,null,null,null,""]
[null,null,null," Geneeskundige  Zorg Specifieke Patiëntgroepen (GZSP)",null,null,null,"672   ",null,null,null,null,null,null,null,null,""]
[null,null,null," Meerkosten Corona, indirect en toeslagen",null,null,null,"811.3",null,null,{"$f":"'Catastr kostenverzamelst'!K132","v":0},{"$f":"'Catastr kostenverzamelst'!L132","v":0},null,null,null,null,""]
[null,null,null," Meerkosten Corona, indirect",null,null,null,"811.3.1",null,null,null,null,null,null,null,null,""]
[null,null,null," Meerkosten Corona, toeslagen",null,null,null,"811.3.2",null,null,null,null,null,null,null,null,""]
[null,null,null," Netto continuïteitsbijdrage Corona (basisverzekering)",null,null,null,"831.3",null,null,null,null,null,null,null,null,""]
[null,null,null," TOTAAL RUBRIEK 11",null,null,null,null,{"$f":"SUM(I134:I148)","v":0},{"$f":"SUM(J134:J148)","v":0},0,0,0,{"$f":"SUM(N134:N148)","v":0}]
[null,null,null," 12  KRAAMZORG"]
[null,null,null," Kraamzorg",null,null,null,"680   ",null,null,null,null,null,null,null,null,{"$f":"IF(OR((I151-J151)/IF(I151=0,1,I151)<-10%,(K151-L151)/IF(K151=0,1,K151)<-10%,(M151-N151)/IF(M151=0,1,M151)<-10%),\"De balans is < -10%, als dit plausibel is dan vragen wij u dit nader toe te lichten bij de opmerkingen, zo niet dan dient u uw raming aan te scherpen.\",\"\")","v":""}]
[null,null,null," Meerkosten Corona, indirect en toeslagen",null,null,null,"812   ",null,null,{"$f":"'Catastr kostenverzamelst'!K138","v":0},{"$f":"'Catastr kostenverzamelst'!L138","v":0},null,null,null,null,""]
[null,null,null," Meerkosten Corona, indirect",null,null,null,"812.1   ",null,null,null,null,null,null,null,null,""]
[null,null,null," Meerkosten Corona, toeslagen",null,null,null,"812.2   ",null,null,null,null,null,null,null,null,""]
[null,null,null," Netto continuïteitsbijdrage Corona (basisverzekering)",null,null,null,"832   ",null,null,null,null,null,null,null,null,""]
[null,null,null," TOTAAL RUBRIEK 12",null,null,null,null,{"$f":"SUM(I151:I155)","v":0},{"$f":"SUM(J151:J155)","v":0},0,0,0,0]
[null,null,null," 13  DIVERSE OVERIGE KOSTEN"]
[null,null,null," Overige kosten",null,null,null,"700   ",null,null,null,null,null,null,null,null,{"$f":"IF(OR((I158-J158)/IF(I158=0,1,I158)<-10%,(K158-L158)/IF(K158=0,1,K158)<-10%,(M158-N158)/IF(M158=0,1,M158)<-10%),\"De balans is < -10%, als dit plausibel is dan vragen wij u dit nader toe te lichten bij de opmerkingen, zo niet dan dient u uw raming aan te scherpen.\",\"\")","v":""}]
[null,null,null," Overige geneeskundige zorg",null,null,null,"701   ",null,null,null,null,null,null,null,null,""]
[null,null,null," Kosten van zorg zintuiglijk gehandicapten ",null,null,null,"702   ",null,null,null,null,null,null,null,null,""]
[null,null,null," Meerkosten Corona, indirect en toeslagen",null,null,null,"813   ",null,null,{"$f":"'Catastr kostenverzamelst'!K146","v":0},{"$f":"'Catastr kostenverzamelst'!L146","v":0},null,null,null,null,""]
[null,null,null," Meerkosten Corona, indirect",null,null,null,"813.1   ",null,null,null,null,null,null,null,null,""]
[null,null,null," Meerkosten Corona, toeslagen",null,null,null,"813.2   ",null,null,null,null,null,null,null,null,""]
[null,null,null," Netto continuïteitsbijdrage Corona (basisverzekering)",null,null,null,"833   ",null,null,null,null,null,null,null,null,""]
[null,null,null," TOTAAL RUBRIEK 13",null,null,null,null,{"$f":"SUM(I158:I164)","v":0},{"$f":"SUM(J158:J164)","v":0},0,0,0,{"$f":"SUM(N158:N164)","v":0}]
[null,null,null," 15  GRENSOVERSCHRIJDENDE ZORG"]
[null,null,null," Kosten via verzekeraar",null,null,null,"720   ",null,null,null,null,null,null,null,null,{"$f":"IF(OR((I167-J167)/IF(I167=0,1,I167)<-10%,(K167-L167)/IF(K167=0,1,K167)<-10%,(M167-N167)/IF(M167=0,1,M167)<-10%),\"De balans is < -10%, als dit plausibel is dan vragen wij u dit nader toe te lichten bij de opmerkingen, zo niet dan dient u uw raming aan te scherpen.\",\"\")","v":""}]
[null,null,null," Kosten via verbindingsorgaan",null,null,null,"721   ",null,null,null,null,null,null,null,null,""]
[null,null,null," TOTAAL RUBRIEK 15",null,null,null,null,{"$f":"SUM(I167:I168)","v":0},0,0,0,0,0]
[null,null,null," 16  KWALITEITSGELDEN"]
[null,null,null," Kwaliteitsgelden",null,null,null,"730   ",null,null,null,null,null,null,null,null,{"$f":"IF(OR((I171-J171)/IF(I171=0,1,I171)<-10%,(K171-L171)/IF(K171=0,1,K171)<-10%,(M171-N171)/IF(M171=0,1,M171)<-10%),\"De balans is < -10%, als dit plausibel is dan vragen wij u dit nader toe te lichten bij de opmerkingen, zo niet dan dient u uw raming aan te scherpen.\",\"\")","v":""}]
[null,null,null," TOTAAL RUBRIEK 16",null,null,null,null,{"$f":"SUM(I171:I171)","v":0},{"$f":"SUM(J171:J171)","v":0},0,0,0,0]
[null,null,null," TOTAAL LASTEN   (bruto-schade, definitie ZIN)",null,null,null,null,{"$f":"SUM(I28,I35,I42,I51,I59,I84,I96,I103,I112,I132,I149,I156,I165,I169,I172)","v":0},0,0,0,0,0]
[null,null,null,{"$f":"NOW()","v":"2021-09-27T12:35:01.880"},null,null,null,null,null,null,null,null,null,{"$f":"CONCATENATE(\"Specifieke informatie A, \",LOWER(A115))","v":"Specifieke informatie A, pagina 3"}]
[]
["Pagina 4",null,null,"KWARTAALSTAAT ZVW 2021 2e kwartaal"]
[null,null,null,"KOSTENVERZAMELSTAAT (SPECIFIEKE INFORMATIE A)"]
[null,null,null,{"$f":"IF(naw_uzovi_zorgverzekeraar<>\"0000\",CONCATENATE(UPPER(naw_naam_zorgverzekeraar),\", \",UPPER(naw_plaats_zorgverzekeraar)),\"\")","v":""},null,null,null,null,null,null,null,null,null,{"$f":"CONCATENATE(\"UZOVI: \",naw_uzovi_zorgverzekeraar)","v":"UZOVI: 0000"}]
[null,null,null,"SPECIFICATIES INFORMATIE RISICOVEREVENING"]
[null,null,null,"KOSTENVERZAMELSTAAT - vervolg"]
[null,null,null,null,null,null,null,null,"Totale baten 2021 inclusief balanspost ","waarvan ontvangen  m.b.t. 2021","Totale baten 2020 inclusief balanspost ","waarvan ontvangen m.b.t. 2020","Totale baten 2019 inclusief balanspost ","waarvan ontvangen m.b.t. 2019 en ouder"]
[null,null,null," BATEN ZVW",null,null,null,"code"]
[null,null,null," OPBRENGSTEN VERHAAL",null,null,null,"890.1",null,null,null,null,null,null,null,null,{"$f":"IF(OR((I183-J183)/IF(I183=0,1,I183)<-10%,(K183-L183)/IF(K183=0,1,K183)<-10%,(M183-N183)/IF(M183=0,1,M183)<-10%),\"De balans is < -10%, als dit plausibel is dan vragen wij u dit nader toe te lichten bij de opmerkingen, zo niet dan dient u uw raming aan te scherpen.\",\"\")","v":""}]
[null,null,null," SCHADE T.L.V. HET VRIJWILLIG EIGEN RISICO",null,null,null,"910   ",null,null,null,null,null,null,null,null,""]
[null,null,null," SCHADE T.L.V. HET VERPLICHT EIGEN RISICO",null,null,null,"915   ",null,null,null,null,null,null,null,null,""]
[null,null,null," GEBOEKTE NETTO PREMIES",null,null,null,"940   ",null,null,null,null,null,null,null,null,""]
[]
[]
[]
[]
[]
[]
[]
[]
[]
[]
[]
[]
[]
[]
[]
[]
[]
[]
[]
[]
[]
[]
[null,null,null,{"$f":"NOW()","v":"2021-09-27T12:35:01.880"},null,null,null,null,null,null,null,null,null,{"$f":"CONCATENATE(\"Specifieke informatie A, \",LOWER(A176))","v":"Specifieke informatie A, pagina 4"}]

{"sheet":"Catastr kostenverzamelst","index":6,"n_rows":193,"n_cols":17,"rows_kept":193,"cut":false,"hidden":false,"merged":[[169,3,169,6],[170,3,170,6],[192,3,192,4],[61,8,61,11],[62,7,63,7],[62,8,63,8],[62,9,63,9],[62,10,63,10],[62,11,63,11],[109,8,109,11],[110,7,111,7],[157,3,157,4],[165,3,165,7],[165,8,166,8],[165,9,166,9],[165,10,166,10],[165,11,166,11],[166,3,166,6],[167,3,167,6],[168,3,168,6],[147,3,147,6],[149,3,149,7],[150,3,150,6],[151,3,151,6],[152,3,152,6],[153,3,153,7],[154,3,154,6],[156,3,156,7],[136,3,136,6],[137,3,137,6],[138,3,138,6],[139,3,139,6],[140,3,140,7],[141,3,141,7],[144,3,144,6],[145,3,145,6],[146,3,146,6],[148,3,148,7],[127,3,127,6],[128,3,128,6],[129,3,129,6],[130,3,130,6],[131,3,131,6],[132,3,132,6],[133,3,133,6],[134,3,134,7],[135,3,135,7],[110,11,111,11],[74,3,74,6],[75,3,75,6],[78,3,78,6],[79,3,79,6],[80,3,80,6],[81,3,81,6],[82,3,82,6],[83,3,83,6],[87,3,87,7],[88,3,88,7],[89,3,89,6],[90,3,90,6],[96,3,96,6],[101,3,101,6],[102,3,102,4],[110,8,111,8],[110,9,111,9],[110,10,111,10],[99,3,99,6],[11,10,12,10],[33,3,33,6],[30,3,30,6],[32,3,32,7],[24,3,24,6],[25,3,25,7],[35,3,35,6],[11,7,12,7],[18,3,18,6],[11,9,12,9],[11,8,12,8],[16,3,16,6],[19,3,19,6],[20,3,20,6],[15,3,15,6],[17,3,17,6],[34,3,34,6],[22,3,22,6],[21,3,21,6],[28,3,28,6],[29,3,29,6],[13,3,13,7],[10,8,10,11],[84,3,84,6],[67,3,67,6],[70,3,70,6],[48,3,48,6],[49,3,49,6],[86,3,86,6],[45,3,45,7],[46,3,46,7],[47,3,47,6],[52,3,52,7],[54,3,54,4],[68,3,68,6],[73,3,73,6],[72,3,72,6],[23,3,23,6],[26,3,26,7],[27,3,27,6],[31,3,31,6],[36,3,36,6],[37,3,37,7],[38,3,38,7],[39,3,39,6],[11,11,12,11],[120,3,120,7],[121,3,121,7],[122,3,122,6],[123,3,123,6],[124,3,124,6],[41,3,41,6],[42,3,42,6],[43,3,43,6],[44,3,44,6],[112,3,112,7],[113,3,113,6],[114,3,114,6],[115,3,115,6],[94,3,94,7],[164,8,164,11],[40,3,40,6],[14,3,14,6],[64,3,64,7],[65,3,65,6],[66,3,66,6],[50,3,50,6],[125,3,125,6],[126,3,126,6],[93,3,93,7],[51,3,51,6],[85,3,85,6],[116,3,116,6],[97,3,97,6],[98,3,98,6],[100,3,100,6],[69,3,69,6],[71,3,71,6],[117,3,117,6],[118,3,118,6],[119,3,119,6],[91,3,91,6],[92,3,92,6],[95,3,95,6]]}
[null,null,"INVULSPECIFICATIES SPECIFIEKE INFORMATIE A"]
[]
[]
[]
[]
["Pagina 1",null,null,{"$f":"CONCATENATE(\"KWARTAALSTAAT ZVW \", jaar_id,\" \",kwartaal_id,\"E KWARTAAL\")","v":"KWARTAALSTAAT ZVW 2021 3E KWARTAAL"}]
[null,null,null,"KOSTENVERZAMELSTAAT CATASTROFEREGELING (SPECIFIEKE INFORMATIE A)"]
[null,null,null,{"$f":"IF(naw_uzovi_zorgverzekeraar<>\"0000\",CONCATENATE(UPPER(naw_naam_zorgverzekeraar),\", \",UPPER(naw_plaats_zorgverzekeraar)),\"\")","v":""},null,null,null,null,null,null,null,{"$f":"CONCATENATE(\"UZOVI: \",naw_uzovi_zorgverzekeraar)","v":"UZOVI: 0000"}]
[null,null,null,"SPECIFICATIES INFORMATIE RISICOVEREVENING"]
[null,null,null,"KOSTENVERZAMELSTAAT CATASTROFEREGELING"]
[null,null,null,null,null,null,null,null,"COVID-kosten voor verzekerde zorg "]
[null,null,null,null,null,null,null,"\ncode","LASTEN 2021 inclusief balanspost ","Ontvangen en geaccepteerde declaraties t/m 3e kwartaal 2021","LASTEN 2020 inclusief balanspost","Ontvangen en geaccepteerde declaraties m.b.t. 2020"]
[null,null,null," KOSTENRUBRIEK"]
[null,null,null," 01  HUISARTSENZORG en MDZ"]
[null,null,null," Bijzondere betalingen",null,null,null,"503   ",null,null,null,null,null,null,null,null,{"$f":"IF(OR((I15-J15)/IF(I15=0,1,I15)<-10%,(K15-L15)/IF(K15=0,1,K15)<-10%,(M15-N15)/IF(M15=0,1,M15)<-10%),\"De balans is < -10%, als dit plausibel is dan vragen wij u dit nader toe te lichten bij de opmerkingen, zo niet dan dient u uw raming aan te scherpen.\",\"\")","v":""}]
[null,null,null," Avond-, nacht- en weekenddiensten",null,null,null,"504   ",null,null,null,null,null,null,null,null,{"$f":"IF(OR((I16-J16)/IF(I16=0,1,I16)<-10%,(K16-L16)/IF(K16=0,1,K16)<-10%,(M16-N16)/IF(M16=0,1,M16)<-10%),\"De balans is < -10%, als dit plausibel is dan vragen wij u dit nader toe te lichten bij de opmerkingen, zo niet dan dient u uw raming aan te scherpen.\",\"\")","v":""}]
[null,null,null," Inschrijftarieven",null,null,null,"505   ",null,null,null,null,null,null,null,null,""]
[null,null,null," Consulttarieven",null,null,null,"506   ",null,null,null,null,null,null,null,null,""]
[null,null,null," Overige tarieven",null,null,null,"507   ",null,null,null,null,null,null,null,null,""]
[null,null,null," Multidisciplinaire zorg",null,null,null,"510   ",null,null,null,null,null,null,null,null,""]
[null,null,null," Resultaatbeloning en zorgvernieuwing huisartsen",null,null,null,"515   ",null,null,null,null,null,null,null,null,""]
[null,null,null," Resultaatbeloning en zorgvernieuwing MDZ",null,null,null,"516   ",null,null,null,null,null,null,null,null,""]
[null,null,null," Meerkosten Corona, indirect en toeslagen",null,null,null,"801   ",null,null,null,null,null,null,null,null,""]
[null,null,null," Meerkosten Corona, indirect",null,null,null,"801.1   ",null,null,null,null,null,null,null,null,""]
[null,null,null," Meerkosten Corona, toeslagen",null,null,null,"801.2   ",null,null,null,null,null,null,null,null,""]
[null,null,null," TOTAAL RUBRIEK 01",null,null,null,null,{"$f":"SUM(I15:I23)","v":0},{"$f":"SUM(J15:J23)","v":0},{"$f":"SUM(K15:K23)","v":0},{"$f":"SUM(L15:L23)","v":0},null,null,null,null,""]
[null,null,null," 02 FARMACEUTISCHE ZORG",null,null,null,null,null,null,null,null,null,null,null,null,""]
[null,null,null," Farmaceutische zorg",null,null,null,"520   ",null,null,null,null,null,null,null,null,""]
[null,null,null," Meerkosten Corona, indirect en toeslagen",null,null,null,"802   ",null,null,null,null,null,null,null,null,""]
[null,null,null," Meerkosten Corona, indirect",null,null,null,"802.1   ",null,null,null,null,null,null,null,null,""]
[null,null,null," Meerkosten Corona, toeslagen",null,null,null,"802.2   ",null,null,null,null,null,null,null,null,""]
[null,null,null," TOTAAL RUBRIEK 02",null,null,null,null,{"$f":"SUM(I27:I29)","v":0},{"$f":"SUM(J27:J29)","v":0},{"$f":"SUM(K27:K29)","v":0},{"$f":"SUM(L27:L29)","v":0},null,null,null,null,""]
[null,null,null," 03 VERPLEGING EN VERZORGING ",null,null,null,null,null,null,null,null,null,null,null,null,""]
[null,null,null," Kosten van verpleging en verzorging ",null,null,null,"530   ",null,null,null,null,null,null,null,null,""]
[null,null,null," Meerkosten Corona, indirect en toeslagen",null,null,null,"803   ",null,null,null,null,null,null,null,null,""]
[null,null,null," Meerkosten Corona, indirect",null,null,null,"803.1   ",null,null,null,null,null,null,null,null,""]
[null,null,null," Meerkosten Corona, toeslagen",null,null,null,"803.2   ",null,null,null,null,null,null,null,null,""]
[null,null,null," TOTAAL RUBRIEK 03",null,null,null,null,{"$f":"SUM(I33:I35)","v":0},{"$f":"SUM(J33:J35)","v":0},{"$f":"SUM(K33:K35)","v":0},{"$f":"SUM(L33:L35)","v":0},null,null,null,null,""]
[null,null,null," 04  MONDZORG",null,null,null,null,null,null,null,null,null,null,null,null,""]
[null,null,null," Kosten mondzorg volwassen verzekerden",null,null,null,"560.1",null,null,null,null,null,null,null,null,""]
[null,null,null," Kosten mondzorg jeugdige verzekerden",null,null,null,"560.2",null,null,null,null,null,null,null,null,""]
[null,null,null," Kosten gebitsprothesen",null,null,null,"561   ",null,null,null,null,null,null,null,null,""]
[null,null,null," Meerkosten Corona, indirect en toeslagen",null,null,null,"804   ",null,null,null,null,null,null,null,null,""]
[null,null,null," Meerkosten Corona, indirect",null,null,null,"804.1   ",null,null,null,null,null,null,null,null,""]
[null,null,null," Meerkosten Corona, toeslagen",null,null,null,"804.2   ",null,null,null,null,null,null,null,null,""]
[null,null,null," TOTAAL RUBRIEK 04",null,null,null,null,{"$f":"SUM(I40:I43)","v":0},{"$f":"SUM(J40:J43)","v":0},{"$f":"SUM(K40:K43)","v":0},{"$f":"SUM(L40:L43)","v":0},null,null,null,null,""]
[null,null,null," 05  VERLOSKUNDIGE ZORG",null,null,null,null,null,null,null,null,null,null,null,null,""]
[null,null,null," Kosten verloskundige zorg door verloskundigen",null,null,null,"580   ",null,null,null,null,null,null,null,null,""]
[null,null,null," Kosten Integrale geboortezorg ",null,null,null,"582   ",null,null,null,null,null,null,null,null,""]
[null,null,null," Meerkosten Corona, indirect en toeslagen",null,null,null,"805   ",null,null,null,null,null,null,null,null,""]
[null,null,null," Meerkosten Corona, indirect",null,null,null,"805.1   ",null,null,null,null,null,null,null,null,""]
[null,null,null," Meerkosten Corona, toeslagen",null,null,null,"805.2   ",null,null,null,null,null,null,null,null,""]
[null,null,null," TOTAAL RUBRIEK 05",null,null,null,null,{"$f":"SUM(I48:I50)","v":0},{"$f":"SUM(J48:J50)","v":0},{"$f":"SUM(K48:K50)","v":0},{"$f":"SUM(L48:L50)","v":0}]
[]
[null,null,null,{"$f":"NOW()","v":"2021-09-27T12:35:01.880"},null,null,null,null,null,null,null,{"$f":"CONCATENATE(\"Specifieke informatie A, \",LOWER(A6))","v":"Specifieke informatie A, pagina 1"}]
[]
["Pagina 2",null,null,"KWARTAALSTAAT ZVW 2021 2e kwartaal"]
[null,null,null,"KOSTENVERZAMELSTAAT CATASTROFEREGELING (SPECIFIEKE INFORMATIE A)"]
[null,null,null,{"$f":"IF(naw_uzovi_zorgverzekeraar<>\"0000\",CONCATENATE(UPPER(naw_naam_zorgverzekeraar),\", \",UPPER(naw_plaats_zorgverzekeraar)),\"\")","v":""},null,null,null,null,null,null,null,{"$f":"CONCATENATE(\"UZOVI: \",naw_uzovi_zorgverzekeraar)","v":"UZOVI: 0000"}]
[null,null,null,"SPECIFICATIES INFORMATIE RISICOVEREVENING"]
[null,null,null,"KOSTENVERZAMELSTAAT CATASTROFEREGELING - vervolg"]
[null,null,null,null,null,null,null,null,"COVID-kosten voor verzekerde zorg "]
[null,null,null,null,null,null,null,"\ncode","LASTEN 2021 inclusief balanspost ","Ontvangen en geaccepteerde declaraties t/m 3e kwartaal 2021","LASTEN 2020 inclusief balanspost","Ontvangen en geaccepteerde declaraties m.b.t. 2020"]
[null,null,null," KOSTENRUBRIEK"]
[null,null,null," 06  MEDISCH SPECIALISTISCHE ZORG"]
[null,null,null," Kosten specialisten mondziekten en kaakchirurgie",null,null,null,"545   ",null,null,null,null,null,null,null,null,""]
[null,null,null," Overige kosten ziekenhuiszorg en curatieve zorg",null,null,null,"610   ",null,null,null,null,null,null,null,null,""]
[null,null,null," Overige zorgproducten",null,null,null,"611   ",null,null,null,null,null,null,null,null,""]
[null,null,null," Kosten add-ons - Dure geneesmiddelen",null,null,null,"612.1",null,null,null,null,null,null,null,null,""]
[null,null,null," Kosten add-ons - IC",null,null,null,"612.2",null,null,null,null,null,null,null,null,""]
[null,null,null," Integrale kosten van DBC-zorgproduct \n gereguleerde segment  ",null,null,null,"613.1",null,null,null,null,null,null,null,null,""]
[null,null,null," Integrale kosten DBC-zorgproduct vrije segment",null,null,null,"615.1",null,null,null,null,null,null,null,null,""]
[null,null,null," Integrale kosten extramuraal werkende \n specialisten",null,null,null,"619   ",null,null,null,null,null,null,null,null,""]
[null,null,null," Meerkosten Corona, indirect en toeslagen",null,null,null,"806   ",null,null,null,null,null,null,null,null,""]
[null,null,null," Meerkosten Corona, indirect",null,null,null,"806.1   ",null,null,null,null,null,null,null,null,""]
[null,null,null," Meerkosten Corona, toeslagen",null,null,null,"806.2   ",null,null,null,null,null,null,null,null,""]
[null,null,null," TOTAAL RUBRIEK 06",null,null,null,null,{"$f":"SUM(I66:I74)","v":0},{"$f":"SUM(J66:J74)","v":0},{"$f":"SUM(K66:K74)","v":0},{"$f":"SUM(L66:L74)","v":0}]
[null,null,null," 07  PARAMEDISCHE ZORG",null,null,null,null,null,null,null,null,null,null,null,null,""]
[null,null,null," Kosten fysiotherapie",null,null,null,"620   ",null,null,null,null,null,null,null,null,""]
[null,null,null," Kosten oefentherapie Mensendieck/Cesar",null,null,null,"621   ",null,null,null,null,null,null,null,null,{"$f":"IF(OR((I80-J80)/IF(I80=0,1,I80)<-10%,(K80-L80)/IF(K80=0,1,K80)<-10%,(M80-N80)/IF(M80=0,1,M80)<-10%),\"De balans is < -10%, als dit plausibel is dan vragen wij u dit nader toe te lichten bij de opmerkingen, zo niet dan dient u uw raming aan te scherpen.\",\"\")","v":""}]
[null,null,null," Kosten logopedie",null,null,null,"623   ",null,null,null,null,null,null,null,null,""]
[null,null,null," Kosten ergotherapie",null,null,null,"624   ",null,null,null,null,null,null,null,null,""]
[null,null,null," Kosten dieetadvisering",null,null,null,"625   ",null,null,null,null,null,null,null,null,""]
[null,null,null," Gecombineerde Leefstijl Interventie (GLI)",null,null,null,"626   ",null,null,null,null,null,null,null,null,""]
[null,null,null," Meerkosten Corona, indirect en toeslagen",null,null,null,"807   ",null,null,null,null,null,null,null,null,""]
[null,null,null," Meerkosten Corona, indirect",null,null,null,"807.1   ",null,null,null,null,null,null,null,null,""]
[null,null,null," Meerkosten Corona, toeslagen",null,null,null,"807.2   ",null,null,null,null,null,null,null,null,""]
[null,null,null," TOTAAL RUBRIEK 07",null,null,null,null,{"$f":"SUM(I79:I85)","v":0},{"$f":"SUM(J79:J85)","v":0},{"$f":"SUM(K79:K85)","v":0},{"$f":"SUM(L79:L85)","v":0}]
[null,null,null," 08  HULPMIDDELENZORG",null,null,null,null,null,null,null,null,null,null,null,null,""]
[null,null,null," Hulpmiddelenzorg ",null,null,null,"640   ",null,null,null,null,null,null,null,null,""]
[null,null,null," Meerkosten Corona, indirect en toeslagen",null,null,null,"808   ",null,null,null,null,null,null,null,null,""]
[null,null,null," Meerkosten Corona, indirect",null,null,null,"808.1   ",null,null,null,null,null,null,null,null,""]
[null,null,null," Meerkosten Corona, toeslagen",null,null,null,"808.2   ",null,null,null,null,null,null,null,null,""]
[null,null,null," TOTAAL RUBRIEK 08",null,null,null,null,{"$f":"SUM(I90:I91)","v":0},{"$f":"SUM(J90:J91)","v":0},{"$f":"SUM(K90:K91)","v":0},{"$f":"SUM(L90:L91)","v":0}]
[null,null,null," 09  ZIEKENVERVOER",null,null,null,null,null,null,null,null,null,null,null,null,""]
[null,null,null," Kosten vervoer per ambulance/helikopter",null,null,null,"650   ",null,null,null,null,null,null,null,null,""]
[null,null,null," Opbrengstenverrekeningen regionale ambulance-\n voorzieningen",null,null,null,"650.1",null,null,null,null,null,null,null,null,""]
[null,null,null," Kosten vervoer per openbaar vervoer, taxi \n en eigen auto",null,null,null,"651   ",null,null,null,null,null,null,null,null,""]
[null,null,null," Meerkosten Corona, indirect en toeslagen",null,null,null,"809   ",null,null,null,null,null,null,null,null,""]
[null,null,null," Meerkosten Corona, indirect",null,null,null,"809.1   ",null,null,null,null,null,null,null,null,""]
[null,null,null," Meerkosten Corona, toeslagen",null,null,null,"809.2   ",null,null,null,null,null,null,null,null,""]
[null,null,null," TOTAAL RUBRIEK 09",null,null,null,null,{"$f":"SUM(I96:I101)","v":0},{"$f":"SUM(J96:J101)","v":0},0,0]
[null,null,null,{"$f":"NOW()","v":"2021-09-27T12:35:01.880"},null,null,null,null,null,null,null,{"$f":"CONCATENATE(\"Specifieke informatie A, \",LOWER(A57))","v":"Specifieke informatie A, pagina 2"}]
[]
["Pagina 3",null,null,"KWARTAALSTAAT ZVW 2021 2e kwartaal"]
[null,null,null,"KOSTENVERZAMELSTAAT CATASTROFEREGELING (SPECIFIEKE INFORMATIE A)"]
[null,null,null,{"$f":"IF(naw_uzovi_zorgverzekeraar<>\"0000\",CONCATENATE(UPPER(naw_naam_zorgverzekeraar),\", \",UPPER(naw_plaats_zorgverzekeraar)),\"\")","v":""},null,null,null,null,null,null,null,{"$f":"CONCATENATE(\"UZOVI: \",naw_uzovi_zorgverzekeraar)","v":"UZOVI: 0000"}]
[null,null,null,"SPECIFICATIES INFORMATIE RISICOVEREVENING"]
[null,null,null,"KOSTENVERZAMELSTAAT CATASTROFEREGELING - vervolg"]
[null,null,null,null,null,null,null,null,"COVID-kosten voor verzekerde zorg "]
[null,null,null,null,null,null,null,"\ncode","LASTEN 2021 inclusief balanspost ","Ontvangen en geaccepteerde declaraties t/m 3e kwartaal 2021","LASTEN 2020 inclusief balanspost","Ontvangen en geaccepteerde declaraties m.b.t. 2020"]
[null,null,null," KOSTENRUBRIEK"]
[null,null,null," 10 GENEESKUNDIGE GEESTELIJKE GEZONDHEIDSZORG"]
[null,null,null," Kosten specialistische GGZ met verblijf",null,null,null,"661   ",null,null,null,null,null,null,null,null,""]
[null,null,null," Kosten LGGZ (langdurige GGZ, jaar 2 en 3)",null,null,null,"661.1",null,null,null,null,null,null,null,null,""]
[null,null,null," Kosten specialistische GGZ zonder verblijf",null,null,null,"662   ",null,null,null,null,null,null,null,null,""]
[null,null,null," Generalistische basis GGZ",null,null,null,"665   ",null,null,null,null,null,null,null,null,""]
[null,null,null," Meerkosten Corona, indirect en toeslagen",null,null,null,"810   ",null,null,null,null,null,null,null,null,""]
[null,null,null," Meerkosten Corona, indirect",null,null,null,"810.1   ",null,null,null,null,null,null,null,null,""]
[null,null,null," Meerkosten Corona, toeslagen",null,null,null,"810.2   ",null,null,null,null,null,null,null,null,""]
[null,null,null," TOTAAL RUBRIEK 10",null,null,null,null,{"$f":"SUM(I114:I118)","v":0},{"$f":"SUM(J114:J118)","v":0},{"$f":"SUM(K114:K118)","v":0},{"$f":"SUM(L114:L118)","v":0}]
[null,null,null," 11  GRZ, ELV EN GZSP"]
[null,null,null," Geriatrische Revalidatiezorg (GRZ)",null,null,null,"670   ",null,null,null,null,null,null,null,null,""]
[null,null,null," Meerkosten Corona, indirect en toeslagen",null,null,null,"811.1",null,null,null,null,null,null,null,null,""]
[null,null,null," Meerkosten Corona, indirect",null,null,null,"811.1.1",null,null,null,null,null,null,null,null,""]
[null,null,null," Meerkosten Corona, toeslagen",null,null,null,"811.1.2",null,null,null,null,null,null,null,null,""]
[null,null,null," Eerstelijnsverblijf (ELV)",null,null,null,"671   ",null,null,null,null,null,null,null,null,""]
[null,null,null," Meerkosten Corona, indirect en toeslagen",null,null,null,"811.2",null,null,null,null,null,null,null,null,""]
[null,null,null," Meerkosten Corona, indirect",null,null,null,"811.2.1",null,null,null,null,null,null,null,null,""]
[null,null,null," Meerkosten Corona, toeslagen",null,null,null,"811.2.2",null,null,null,null,null,null,null,null,""]
[null,null,null," Geneeskundige  Zorg Specifieke Patiëntgroepen (GZSP)",null,null,null,"672   ",null,null,null,null,null,null,null,null,""]
[null,null,null," Meerkosten Corona, indirect en toeslagen",null,null,null,"811.3",null,null,null,null,null,null,null,null,""]
[null,null,null," Meerkosten Corona, indirect",null,null,null,"811.3.1",null,null,null,null,null,null,null,null,""]
[null,null,null," Meerkosten Corona, toeslagen",null,null,null,"811.3.2",null,null,null,null,null,null,null,null,""]
[null,null,null," TOTAAL RUBRIEK 11",null,null,null,null,{"$f":"SUM(I123:I132)","v":0},{"$f":"SUM(J123:J132)","v":0},{"$f":"SUM(K123:K132)","v":0},{"$f":"SUM(L123:L132)","v":0}]
[null,null,null," 12  KRAAMZORG",null,null,null,null,null,null,null,null,null,null,null,null,""]
[null,null,null," Kraamzorg",null,null,null,"680   ",null,null,null,null,null,null,null,null,""]
[null,null,null," Meerkosten Corona, indirect en toeslagen",null,null,null,"812   ",null,null,null,null,null,null,null,null,""]
[null,null,null," Meerkosten Corona, indirect",null,null,null,"812.1   ",null,null,null,null,null,null,null,null,""]
[null,null,null," Meerkosten Corona, toeslagen",null,null,null,"812.2   ",null,null,null,null,null,null,null,null,""]
[null,null,null," TOTAAL RUBRIEK 12",null,null,null,null,{"$f":"SUM(I136:I138)","v":0},{"$f":"SUM(J136:J138)","v":0},{"$f":"SUM(K136:K138)","v":0},{"$f":"SUM(L136:L138)","v":0}]
[null,null,null," 13  DIVERSE OVERIGE KOSTEN",null,null,null,null,null,null,null,null,null,null,null,null,""]
[null,null,null," Overige kosten",null,null,null,"700   ",null,null,null,null,null,null,null,null,""]
[null,null,null," Overige geneeskundige zorg",null,null,null,"701   ",null,null,null,null,null,null,null,null,{"$f":"IF(OR((I144-J144)/IF(I144=0,1,I144)<-10%,(K144-L144)/IF(K144=0,1,K144)<-10%,(M144-N144)/IF(M144=0,1,M144)<-10%),\"De balans is < -10%, als dit plausibel is dan vragen wij u dit nader toe te lichten bij de opmerkingen, zo niet dan dient u uw raming aan te scherpen.\",\"\")","v":""}]
[null,null,null," Kosten van zorg zintuiglijk gehandicapten ",null,null,null,"702   ",null,null,null,null,null,null,null,null,""]
[null,null,null," Meerkosten Corona, indirect en toeslagen",null,null,null,"813   ",null,null,null,null,null,null,null,null,""]
[null,null,null," Meerkosten Corona, indirect",null,null,null,"813.1   ",null,null,null,null,null,null,null,null,""]
[null,null,null," Meerkosten Corona, toeslagen",null,null,null,"813.2   ",null,null,null,null,null,null,null,null,""]
[null,null,null," TOTAAL RUBRIEK 13",null,null,null,null,{"$f":"SUM(I145:I147)","v":0},{"$f":"SUM(J145:J147)","v":0},{"$f":"SUM(K145:K147)","v":0},{"$f":"SUM(L145:L147)","v":0}]
[null,null,null," 15  GRENSOVERSCHRIJDENDE ZORG",null,null,null,null,null,null,null,null,null,null,null,null,""]
[null,null,null," Kosten via verzekeraar",null,null,null,"720   ",null,null,null,null,null,null,null,null,""]
[null,null,null," Kosten via verbindingsorgaan",null,null,null,"721   ",null,null,null,null,null,null,null,null,""]
[null,null,null," TOTAAL RUBRIEK 15",null,null,null,null,{"$f":"SUM(I151:I152)","v":0},{"$f":"SUM(J151:J152)","v":0},{"$f":"SUM(K151:K152)","v":0},{"$f":"SUM(L151:L152)","v":0},null,null,null,null,""]
[null,null,null," 16  KWALITEITSGELDEN",null,null,null,null,null,null,null,null,null,null,null,null,""]
[null,null,null," Kwaliteitsgelden",null,null,null,"730   ",null,null,null,null,null,null,null,null,""]
[null,null,null," TOTAAL RUBRIEK 16",null,null,null,null,{"$f":"SUM(I154:I155)","v":0},{"$f":"SUM(J154:J155)","v":0},0,0]
[null,null,null," TOTAAL LASTEN   (bruto-schade, definitie ZIN)",null,null,null,null,{"$f":"SUM(I26,I32,I38,I46,I53,I77,I88,I94,I102,I121,I135,I141,I149,I153,I156)","v":0},{"$f":"SUM(J26,J32,J38,J46,J53,J77,J88,J94,J102,J121,J135,J141,J149,J153,J156)","v":0},{"$f":"SUM(K26,K32,K38,K46,K53,K77,K88,K94,K102,K121,K135,K141,K149,K153,K156)","v":0},{"$f":"SUM(L26,L32,L38,L46,L53,L77,L88,L94,L102,L121,L135,L141,L149,L153,L156)","v":0}]
[null,null,null,{"$f":"NOW()","v":"2021-09-27T12:35:01.880"},null,null,null,null,null,null,null,{"$f":"CONCATENATE(\"Specifieke informatie A, \",LOWER(A105))","v":"Specifieke informatie A, pagina 3"}]
[]
["Pagina 4",null,null,"KWARTAALSTAAT ZVW 2021 2e kwartaal"]
[null,null,null,"KOSTENVERZAMELSTAAT CATASTROFEREGELING (SPECIFIEKE INFORMATIE A)"]
[null,null,null,{"$f":"IF(naw_uzovi_zorgverzekeraar<>\"0000\",CONCATENATE(UPPER(naw_naam_zorgverzekeraar),\", \",UPPER(naw_plaats_zorgverzekeraar)),\"\")","v":""},null,null,null,null,null,null,null,{"$f":"CONCATENATE(\"UZOVI: \",naw_uzovi_zorgverzekeraar)","v":"UZOVI: 0000"}]
[null,null,null,"SPECIFICATIES INFORMATIE RISICOVEREVENING"]
[null,null,null,"KOSTENVERZAMELSTAAT CATASTROFEREGELING - vervolg"]
[null,null,null,null,null,null,null,null,"COVID-baten voor verzekerde zorg "]
[null,null,null,null,null,null,null,null,"Totale baten 2021 inclusief balanspost ","waarvan ontvangen  m.b.t. 2021","Totale baten 2020 inclusief balanspost ","waarvan ontvangen m.b.t. 2020"]
[null,null,null," BATEN ZVW",null,null,null,"code"]
[null,null,null," OPBRENGSTEN VERHAAL",null,null,null,"890.1",null,null,null,null,null,null,null,null,""]
[null,null,null," SCHADE T.L.V. HET VRIJWILLIG EIGEN RISICO",null,null,null,"910   ",null,null,null,null,null,null,null,null,""]
[null,null,null," SCHADE T.L.V. HET VERPLICHT EIGEN RISICO",null,null,null,"915   ",null,null,null,null,null,null,null,null,""]
[null,null,null," GEBOEKTE NETTO PREMIES",null,null,null,"940   ",null,null,null,null,null,null,null,null,""]
[]
[]
[]
[]
[]
[]
[]
[]
[]
[]
[]
[]
[]
[]
[]
[]
[]
[]
[]
[]
[]
[null,null,null,{"$f":"NOW()","v":"2021-09-27T12:35:01.880"},null,null,null,null,null,null,null,{"$f":"CONCATENATE(\"Specifieke informatie A, \",LOWER(A160))","v":"Specifieke informatie A, pagina 4"}]

{"sheet":"Specifieke informatie A","index":7,"n_rows":183,"n_cols":12,"rows_kept":183,"cut":false,"hidden":false,"merged":[[11,10,12,10],[11,3,12,9],[13,3,13,9],[14,3,14,9],[92,3,92,4],[86,9,88,11],[47,3,47,4],[56,11,57,11],[56,8,56,10],[56,4,57,4],[101,4,102,4],[101,8,101,10],[101,11,102,11],[131,9,133,11],[137,3,137,4],[146,4,147,4],[146,8,146,10],[146,11,147,11],[176,9,178,11],[182,3,182,4]]}
[null,null,"INVULSPECIFICATIES SPECIFIEKE INFORMATIE A"]
[]
[]
[]
[]
["Pagina 1",null,null,{"$f":"CONCATENATE(\"KWARTAALSTAAT ZVW \", jaar_id,\" \",kwartaal_id,\"E KWARTAAL\")","v":"KWARTAALSTAAT ZVW 2021 3E KWARTAAL"}]
[null,null,null,"SPECIFIEKE INFORMATIE A"]
[null,null,null,{"$f":"IF(naw_uzovi_zorgverzekeraar<>\"0000\",CONCATENATE(UPPER(naw_naam_zorgverzekeraar),\", \",UPPER(naw_plaats_zorgverzekeraar)),\"\")","v":""},null,null,null,null,null,null,null,{"$f":"CONCATENATE(\"UZOVI: \",naw_uzovi_zorgverzekeraar)","v":"UZOVI: 0000"}]
[]
[null,null,null,"SPECIFICATIES INFORMATIE RISICOVEREVENING"]
[null,null,null,"KOSTEN NAAR DEELBIJDRAGE"]
[null,null,null," KOSTEN NAAR DEELBIJDRAGE",null,null,null,null,null,null,"Lasten 2021 inclusief balanspost "]
[]
[null,null,null," Variabele zorgkosten "]
[null,null,null," Vaste zorgkosten"]
[null,null,null," Kosten geneeskundige geestelijke gezondheidszorg "]
[null,null,null," TOTAAL lasten (bruto-schade, definitie ZIN)",null,null,null,null,null,null,{"$f":"SUM(K14:K16)","v":0}]
[]
[]
[]
[]
[]
[]
[]
[]
[]
[]
[]
[]
[]
[]
[]
[]
[]
[]
[]
[]
[]
[]
[]
[]
[]
[]
[]
[]
[]
[]
[null,null,null,{"$f":"NOW()","v":"2021-09-27T12:35:01.880"},null,null,null,null,null,null,null,{"$f":"CONCATENATE(\"Specifieke informatie A, \",LOWER(A6))","v":"Specifieke informatie A, pagina 1"}]
[]
["Pagina 2",null,null,{"$f":"CONCATENATE(\"KWARTAALSTAAT ZVW \", jaar_id,\" \",kwartaal_id,\"E KWARTAAL\")","v":"KWARTAALSTAAT ZVW 2021 3E KWARTAAL"}]
[null,null,null,"SPECIFIEKE INFORMATIE A"]
[null,null,null,{"$f":"IF(naw_uzovi_zorgverzekeraar<>\"0000\",CONCATENATE(UPPER(naw_naam_zorgverzekeraar),\", \",UPPER(naw_plaats_zorgverzekeraar)),\"\")","v":""},null,null,null,null,null,null,null,{"$f":"CONCATENATE(\"UZOVI: \",naw_uzovi_zorgverzekeraar)","v":"UZOVI: 0000"}]
[]
[null,null,null,"SPECIFICATIES INFORMATIE RISICOVEREVENING"]
[null,null,null,"VERZEKERDENSTAND NAAR RISICOKLASSE",null,null,null,null,null,null,null,"Peildatum: datum van nominale premieprolongatie"]
[null,null,null,null,null,null,null,null,null,null,null,"voor de maand AUGUSTUS 2021"]
[null,null,null,null,"LEEFTIJD",null,null,null,"AANTAL NAAR GESLACHT",null,null,"TOTAAL \nAANTAL"]
[null,null,null,null,null,null,null,null,"MAN","VROUW","ONBEPAALD"]
[null,null,null,"  1a.   0  t/m   1",null,null,null,null,null,null,null,{"$f":"SUM(I59:K59)","v":0}]
[null,null,null,"  1b.   2  t/m   4",null,null,null,null,null,null,null,{"$f":"SUM(I60:K60)","v":0}]
[null,null,null,"  2.     5  t/m   9",null,null,null,null,null,null,null,0]
[null,null,null,"  3.   10  t/m 14",null,null,null,null,null,null,null,0]
[null,null,null,"  4.   15  t/m 19",null,null,null,null,null,null,null,0]
[null,null,null,"  5.   20  t/m 24",null,null,null,null,null,null,null,0]
[null,null,null,"  6.   25  t/m 29",null,null,null,null,null,null,null,0]
[null,null,null,"  7.   30  t/m 34",null,null,null,null,null,null,null,0]
[null,null,null,"  8.   35  t/m 39",null,null,null,null,null,null,null,0]
[null,null,null,"  9.   40  t/m 44",null,null,null,null,null,null,null,0]
[null,null,null," 10.  45  t/m 49",null,null,null,null,null,null,null,0]
[null,null,null," 11.  50  t/m 54",null,null,null,null,null,null,null,0]
[null,null,null," 12.  55  t/m 59",null,null,null,null,null,null,null,0]
[null,null,null," 13.  60  t/m 64",null,null,null,null,null,null,null,0]
[null,null,null," 14.  65  t/m 69",null,null,null,null,null,null,null,0]
[null,null,null," 15.  70  t/m 74",null,null,null,null,null,null,null,0]
[null,null,null," 16.  75  t/m 79",null,null,null,null,null,null,null,0]
[null,null,null," 17.  80  t/m 84",null,null,null,null,null,null,null,0]
[null,null,null," 18.  85  t/m 89",null,null,null,null,null,null,null,0]
[null,null,null," 19.  90 en ouder",null,null,null,null,null,null,null,0]
[null,null,null," TOTAAL",null,null,null,null,{"$f":"SUM(I59:I78)","v":0},{"$f":"SUM(J59:J78)","v":0},{"$f":"SUM(K59:K78)","v":0},0]
[]
[null,null,null,"VERZEKERDENSTAND NAAR NOMINALE PREMIE",null,null,null,null,null,null,null,"Peildatum: datum van nominale premieprolongatie"]
[null,null,null,null,null,null,null,null,null,null,null,"voor de maand AUGUSTUS 2021"]
[null,null,null,null,null,null,null,null,null,null,null,"AANTAL"]
[null,null,null," Verzekerden met nominale premie Zvw"]
[null,null,null," Verzekerden zonder nominale premie Zvw"]
[null,null,null," TOTAAL",null,null,null,null,null,null,null,{"$f":"SUM(L84:L85)","v":0}]
[null,null,null,null,null,null,null,null,null,{"$f":"IF(AND(ISBLANK(K78)=FALSE,ISBLANK(L84)=FALSE),IF(L84<SUM(L64:L78),\"ATTENTIE: is het juist dat het aantal verzekerden \nmet nominale premie kleiner is dan het totaal\naantal verzekerden van 20 jaar en ouder?\",\"\"),\"\")","v":""}]
[]
[]
[]
[]
[]
[null,null,null,{"$f":"NOW()","v":"2021-09-27T12:35:01.880"},null,null,null,null,null,null,null,{"$f":"CONCATENATE(\"Specifieke informatie A, \",LOWER(A50))","v":"Specifieke informatie A, pagina 2"}]
[]
["Pagina 3",null,null,{"$f":"CONCATENATE(\"KWARTAALSTAAT ZVW \", jaar_id,\" \",kwartaal_id,\"E KWARTAAL\")","v":"KWARTAALSTAAT ZVW 2021 3E KWARTAAL"}]
[null,null,null,"SPECIFIEKE INFORMATIE A"]
[null,null,null,{"$f":"IF(naw_uzovi_zorgverzekeraar<>\"0000\",CONCATENATE(UPPER(naw_naam_zorgverzekeraar),\", \",UPPER(naw_plaats_zorgverzekeraar)),\"\")","v":""},null,null,null,null,null,null,null,{"$f":"CONCATENATE(\"UZOVI: \",naw_uzovi_zorgverzekeraar)","v":"UZOVI: 0000"}]
[]
[null,null,null,"SPECIFICATIES INFORMATIE RISICOVEREVENING"]
[null,null,null,"VERZEKERDENSTAND NAAR RISICOKLASSE",null,null,null,null,null,null,null,"Peildatum: datum van nominale premieprolongatie"]
[null,null,null,null,null,null,null,null,null,null,null,"voor de maand SEPTEMBER 2021"]
[null,null,null,null,"LEEFTIJD",null,null,null,"AANTAL NAAR GESLACHT",null,null,"TOTAAL \nAANTAL"]
[null,null,null,null,null,null,null,null,"MAN","VROUW","ONBEPAALD"]
[null,null,null,"  1a.   0  t/m   1",null,null,null,null,null,null,null,{"$f":"SUM(I104:K104)","v":0}]
[null,null,null,"  1b.   2  t/m   4",null,null,null,null,null,null,null,{"$f":"SUM(I105:K105)","v":0}]
[null,null,null,"  2.     5  t/m   9",null,null,null,null,null,null,null,0]
[null,null,null,"  3.   10  t/m 14",null,null,null,null,null,null,null,0]
[null,null,null,"  4.   15  t/m 19",null,null,null,null,null,null,null,0]
[null,null,null,"  5.   20  t/m 24",null,null,null,null,null,null,null,0]
[null,null,null,"  6.   25  t/m 29",null,null,null,null,null,null,null,0]
[null,null,null,"  7.   30  t/m 34",null,null,null,null,null,null,null,0]
[null,null,null,"  8.   35  t/m 39",null,null,null,null,null,null,null,0]
[null,null,null,"  9.   40  t/m 44",null,null,null,null,null,null,null,0]
[null,null,null," 10.  45  t/m 49",null,null,null,null,null,null,null,0]
[null,null,null," 11.  50  t/m 54",null,null,null,null,null,null,null,0]
[null,null,null," 12.  55  t/m 59",null,null,null,null,null,null,null,0]
[null,null,null," 13.  60  t/m 64",null,null,null,null,null,null,null,0]
[null,null,null," 14.  65  t/m 69",null,null,null,null,null,null,null,0]
[null,null,null," 15.  70  t/m 74",null,null,null,null,null,null,null,0]
[null,null,null," 16.  75  t/m 79",null,null,null,null,null,null,null,0]
[null,null,null," 17.  80  t/m 84",null,null,null,null,null,null,null,0]
[null,null,null," 18.  85  t/m 89",null,null,null,null,null,null,null,0]
[null,null,null," 19.  90 en ouder",null,null,null,null,null,null,null,0]
[null,null,null," TOTAAL",null,null,null,null,{"$f":"SUM(I104:I123)","v":0},{"$f":"SUM(J104:J123)","v":0},{"$f":"SUM(K104:K123)","v":0},0]
[]
[null,null,null,"VERZEKERDENSTAND NAAR NOMINALE PREMIE",null,null,null,null,null,null,null,"Peildatum: datum van nominale premieprolongatie"]
[null,null,null,null,null,null,null,null,null,null,null,"voor de maand SEPTEMBER 2021"]
[null,null,null,null,null,null,null,null,null,null,null,"AANTAL"]
[null,null,null," Verzekerden met nominale premie Zvw"]
[null,null,null," Verzekerden zonder nominale premie Zvw"]
[null,null,null," TOTAAL",null,null,null,null,null,null,null,{"$f":"SUM(L129:L130)","v":0}]
[null,null,null,null,null,null,null,null,null,{"$f":"IF(AND(ISBLANK(K123)=FALSE,ISBLANK(L129)=FALSE),IF(L129<SUM(L109:L123),\"ATTENTIE: is het juist dat het aantal verzekerden \nmet nominale premie kleiner is dan het totaal\naantal verzekerden van 20 jaar en ouder?\",\"\"),\"\")","v":""}]
[]
[]
[]
[]
[]
[null,null,null,{"$f":"NOW()","v":"2021-09-27T12:35:01.880"},null,null,null,null,null,null,null,{"$f":"CONCATENATE(\"Specifieke informatie A, \",LOWER(A95))","v":"Specifieke informatie A, pagina 3"}]
[]
["Pagina 4",null,null,{"$f":"CONCATENATE(\"KWARTAALSTAAT ZVW \", jaar_id,\" \",kwartaal_id,\"E KWARTAAL\")","v":"KWARTAALSTAAT ZVW 2021 3E KWARTAAL"}]
[null,null,null,"SPECIFIEKE INFORMATIE A"]
[null,null,null,{"$f":"IF(naw_uzovi_zorgverzekeraar<>\"0000\",CONCATENATE(UPPER(naw_naam_zorgverzekeraar),\", \",UPPER(naw_plaats_zorgverzekeraar)),\"\")","v":""},null,null,null,null,null,null,null,{"$f":"CONCATENATE(\"UZOVI: \",naw_uzovi_zorgverzekeraar)","v":"UZOVI: 0000"}]
[]
[null,null,null,"SPECIFICATIES INFORMATIE RISICOVEREVENING"]
[null,null,null,"VERZEKERDENSTAND NAAR RISICOKLASSE",null,null,null,null,null,null,null,"Peildatum: datum van nominale premieprolongatie"]
[null,null,null,null,null,null,null,null,null,null,null,"voor de maand OKTOBER 2021"]
[null,null,null,null,"LEEFTIJD",null,null,null,"AANTAL NAAR GESLACHT",null,null,"TOTAAL \nAANTAL"]
[null,null,null,null,null,null,null,null,"MAN","VROUW","ONBEPAALD"]
[null,null,null,"  1a.   0  t/m   1",null,null,null,null,null,null,null,{"$f":"SUM(I149:K149)","v":0}]
[null,null,null,"  1b.   2  t/m   4",null,null,null,null,null,null,null,{"$f":"SUM(I150:K150)","v":0}]
[null,null,null,"  2.     5  t/m   9",null,null,null,null,null,null,null,0]
[null,null,null,"  3.   10  t/m 14",null,null,null,null,null,null,null,0]
[null,null,null,"  4.   15  t/m 19",null,null,null,null,null,null,null,0]
[null,null,null,"  5.   20  t/m 24",null,null,null,null,null,null,null,0]
[null,null,null,"  6.   25  t/m 29",null,null,null,null,null,null,null,0]
[null,null,null,"  7.   30  t/m 34",null,null,null,null,null,null,null,0]
[null,null,null,"  8.   35  t/m 39",null,null,null,null,null,null,null,0]
[null,null,null,"  9.   40  t/m 44",null,null,null,null,null,null,null,0]
[null,null,null," 10.  45  t/m 49",null,null,null,null,null,null,null,0]
[null,null,null," 11.  50  t/m 54",null,null,null,null,null,null,null,0]
[null,null,null," 12.  55  t/m 59",null,null,null,null,null,null,null,0]
[null,null,null," 13.  60  t/m 64",null,null,null,null,null,null,null,0]
[null,null,null," 14.  65  t/m 69",null,null,null,null,null,null,null,0]
[null,null,null," 15.  70  t/m 74",null,null,null,null,null,null,null,0]
[null,null,null," 16.  75  t/m 79",null,null,null,null,null,null,null,0]
[null,null,null," 17.  80  t/m 84",null,null,null,null,null,null,null,0]
[null,null,null," 18.  85  t/m 89",null,null,null,null,null,null,null,0]
[null,null,null," 19.  90 en ouder",null,null,null,null,null,null,null,0]
[null,null,null," TOTAAL",null,null,null,null,{"$f":"SUM(I149:I168)","v":0},{"$f":"SUM(J149:J168)","v":0},{"$f":"SUM(K149:K168)","v":0},0]
[]
[null,null,null,"VERZEKERDENSTAND NAAR NOMINALE PREMIE",null,null,null,null,null,null,null,"Peildatum: datum van nominale premieprolongatie"]
[null,null,null,null,null,null,null,null,null,null,null,"voor de maand OKTOBER 2021"]
[null,null,null,null,null,null,null,null,null,null,null,"AANTAL"]
[null,null,null," Verzekerden met nominale premie Zvw"]
[null,null,null," Verzekerden zonder nominale premie Zvw"]
[null,null,null," TOTAAL",null,null,null,null,null,null,null,{"$f":"SUM(L174:L175)","v":0}]
[null,null,null,null,null,null,null,null,null,{"$f":"IF(AND(ISBLANK(K168)=FALSE,ISBLANK(L174)=FALSE),IF(L174<SUM(L154:L168),\"ATTENTIE: is het juist dat het aantal verzekerden \nmet nominale premie kleiner is dan het totaal\naantal verzekerden van 20 jaar en ouder?\",\"\"),\"\")","v":""}]
[]
[]
[]
[]
[]
[null,null,null,{"$f":"NOW()","v":"2021-09-27T12:35:01.880"},null,null,null,null,null,null,null,{"$f":"CONCATENATE(\"Specifieke informatie A, \",LOWER(A140))","v":"Specifieke informatie A, pagina 4"}]

{"sheet":"Specifieke informatie C","index":8,"n_rows":216,"n_cols":15,"rows_kept":216,"cut":false,"hidden":false,"merged":[[140,8,141,8],[140,9,141,9],[140,10,141,10],[124,6,125,6],[124,7,125,7],[124,8,125,8],[124,9,125,9],[124,10,125,10],[146,3,146,5],[143,3,143,5],[144,3,144,5],[188,3,189,10],[199,11,200,11],[188,11,189,11],[175,3,175,4],[183,3,184,10],[183,11,184,11],[145,3,145,5],[185,3,185,10],[149,9,150,9],[148,10,148,11],[149,11,150,11],[153,3,153,5],[154,3,154,5],[155,3,155,5],[148,6,148,7],[148,3,150,5],[186,3,186,10],[215,3,215,4],[195,3,195,10],[196,3,196,10],[197,3,197,10],[199,3,200,10],[192,3,192,10],[190,3,190,10],[191,3,191,10],[201,3,201,10],[202,3,202,10],[203,3,203,10],[193,3,193,10],[194,3,194,10],[107,3,107,11],[151,3,151,5],[152,3,152,5],[108,3,108,5],[109,3,109,5],[110,3,110,5],[111,3,111,5],[112,3,112,5],[149,10,150,10],[149,6,150,6],[149,8,150,8],[148,8,148,9],[132,3,132,4],[123,6,123,7],[123,8,123,9],[123,10,123,11],[149,7,150,7],[124,11,125,11],[139,3,141,5],[139,6,139,7],[139,8,139,9],[139,10,139,11],[140,6,141,6],[140,7,141,7],[114,3,116,5],[114,6,114,7],[114,8,114,9],[114,10,114,11],[115,6,116,6],[115,7,116,7],[115,8,116,8],[115,9,116,9],[115,10,116,10],[115,11,116,11],[117,3,117,5],[118,3,118,5],[119,3,119,5],[120,3,120,5],[126,3,126,5],[127,3,127,5],[128,3,128,5],[129,3,129,5],[130,3,130,5],[123,3,125,5],[121,3,121,5],[140,11,141,11],[142,3,142,5],[104,10,104,11],[104,8,104,9],[104,3,106,5],[104,6,104,7],[105,9,106,9],[96,3,98,5],[100,3,100,5],[99,3,99,5],[96,6,96,7],[102,3,102,5],[105,11,106,11],[105,7,106,7],[105,6,106,6],[105,8,106,8],[101,3,101,5],[97,7,98,7],[96,8,96,9],[97,6,98,6],[97,9,98,9],[96,10,96,11],[97,10,98,10],[97,8,98,8],[105,10,106,10],[58,11,59,11],[60,3,60,10],[58,3,59,10],[61,3,61,10],[62,3,62,10],[97,11,98,11],[88,3,88,4],[22,3,23,4],[56,3,56,10],[54,3,54,10],[21,5,21,10],[43,3,43,10],[24,3,24,10],[31,3,31,10],[55,3,55,10],[25,3,25,10],[33,3,33,10],[40,3,40,10],[45,3,45,4],[41,3,41,10],[23,5,23,10],[34,3,34,10],[10,11,11,11],[12,3,12,10],[17,11,18,11],[17,3,18,10],[10,3,11,10],[13,3,13,10],[15,3,15,10],[14,3,14,10],[52,11,53,11],[37,11,38,11],[37,3,38,10],[32,3,32,10],[28,11,29,11],[39,3,39,10],[35,3,35,10],[30,3,30,10],[28,3,29,10],[52,3,53,10],[26,3,26,10],[42,3,42,10],[22,5,22,10],[19,3,21,4],[19,5,19,10],[20,5,20,10]]}
[" ",null,"INVULSPECIFICATIES SPECIFIEKE INFORMATIE C"]
[]
[]
[]
[]
["Pagina 1",null,null,{"$f":"CONCATENATE(\"KWARTAALSTAAT ZVW \", jaar_id,\" \",kwartaal_id,\"E KWARTAAL\")","v":"KWARTAALSTAAT ZVW 2021 3E KWARTAAL"}]
[null,null,null,"SPECIFIEKE INFORMATIE C "]
[null,null,null,{"$f":"IF(naw_uzovi_zorgverzekeraar<>\"0000\",CONCATENATE(UPPER(naw_naam_zorgverzekeraar),\", \",UPPER(naw_plaats_zorgverzekeraar)),\"\")","v":""},null,null,null,null,null,null,null,{"$f":"CONCATENATE(\"UZOVI: \",naw_uzovi_zorgverzekeraar)","v":"UZOVI: 0000"}]
[null,null,null,"SPECIFICATIES VAN KOSTEN EN PRODUCTIE"]
[null,null,null,"RUBRIEK 01 HUISARTSENZORG"]
[null,null,null,"  CODE 503 - BIJZONDERE BETALINGEN",null,null,null,null,null,null,null,"Ontvangen en geaccepteerde declaraties tot en met 3e kwartaal 2021"]
[]
[null,null,null," Module achterstandsfonds"]
[null,null,null," Module modernisering en innovatie"]
[null,null,null," Overige kosten"]
[null,null,null," TOTAAL code 503",null,null,null,null,null,null,null,{"$f":"SUM(L13:L15)","v":0}]
[]
[null,null,null,"  CODE 506 - CONSULTTARIEVEN",null,null,null,null,null,null,null,{"$f":"L11","v":"Ontvangen en geaccepteerde declaraties tot en met 3e kwartaal 2021"}]
[]
[null,null,null," Kosten consulten huisartsen",null," korter dan 5 minuten"]
[null,null,null,null,null," van 5 tot 20 minuten"]
[null,null,null,null,null," 20 minuten en langer"]
[null,null,null," Kosten visites huisartsen",null," ≤ 20 minuten"]
[null,null,null,null,null," > 20 minuten"]
[null,null,null," Kosten consulttarieven POH GGZ"]
[null,null,null," Kosten huisartsenzorg ELV en Intensieve zorg "]
[null,null,null," TOTAAL code 506",null,null,null,null,null,null,null,{"$f":"SUM(L20:L26)","v":0}]
[]
[null,null,null,"  CODE 507 - OVERIGE TARIEVEN",null,null,null,null,null,null,null,{"$f":"L11","v":"Ontvangen en geaccepteerde declaraties tot en met 3e kwartaal 2021"}]
[null,null,null,null,null,null,null,null,null,null,null,"Ontvangen en geaccepteerde declaraties mbt jaar T"]
[null,null,null," Module POH GGZ"]
[null,null,null," S1 Verrichtingen "]
[null,null,null," Vaccinaties"]
[null,null,null," Passantentarieven"]
[null,null,null," Verloskundige zorg door huisartsen"]
[null,null,null," TOTAAL code 507",null,null,null,null,null,null,null,{"$f":"SUM(L31:L35)","v":0}]
[]
[null,null,null,"  CODE 510 - MULTIDISCIPLINAIRE ZORG",null,null,null,null,null,null,null,{"$f":"L11","v":"Ontvangen en geaccepteerde declaraties tot en met 3e kwartaal 2021"}]
[null,null,null,null,null,null,null,null,null,null,null,"Ontvangen en geaccepteerde declaraties mbt jaar T"]
[null,null,null," Multidisciplinaire zorgverlening Diabetes Mellitus type 2 en multidisciplinaire zorgverlening Cardiovasculair risicomanagement \n (vergoedingscomponent te verzekeren prestatie Zvw)"]
[null,null,null," Multidisciplinaire zorgverlening COPD (vergoedingscomponent te verzekeren prestatie Zvw) "]
[null,null,null," Organisatie en infrastructuur"]
[null,null,null," Programma stoppen met roken"]
[null,null,null," TOTAAL code 510",null,null,null,null,null,null,null,{"$f":"SUM(L40:L43)","v":0}]
[]
[null,null,null,{"$f":"NOW()","v":"2021-09-27T12:35:01.880"},null,null,null,null,null,null,null,{"$f":"CONCATENATE(\"Specifieke informatie C, \",LOWER(A6))","v":"Specifieke informatie C, pagina 1"}]
[]
["Pagina 2",null,null,{"$f":"CONCATENATE(\"KWARTAALSTAAT ZVW \", jaar_id,\" \",kwartaal_id,\"E KWARTAAL\")","v":"KWARTAALSTAAT ZVW 2021 3E KWARTAAL"}]
[null,null,null,"SPECIFIEKE INFORMATIE C"]
[null,null,null,{"$f":"IF(naw_uzovi_zorgverzekeraar<>\"0000\",CONCATENATE(UPPER(naw_naam_zorgverzekeraar),\", \",UPPER(naw_plaats_zorgverzekeraar)),\"\")","v":""},null,null,null,null,null,null,null,{"$f":"CONCATENATE(\"UZOVI: \",naw_uzovi_zorgverzekeraar)","v":"UZOVI: 0000"}]
[null,null,null,"SPECIFICATIES VAN KOSTEN EN PRODUCTIE"]
[null,null,null,"RUBRIEK 01 HUISARTSENZORG - vervolg"]
[null,null,null,"  CODE 515 - RESULTAATBELONING EN ZORGVERNIEUWING HUISARTSEN",null,null,null,null,null,null,null,{"$f":"L11","v":"Ontvangen en geaccepteerde declaraties tot en met 3e kwartaal 2021"}]
[null,null,null,null,null,null,null,null,null,null,null,"Ontvangen en geaccepteerde declaraties mbt jaar T"]
[null,null,null," Kosten resultaatbeloning huisartsen"]
[null,null,null," Kosten zorgvernieuwing huisartsen"]
[null,null,null," TOTAAL code 515",null,null,null,null,null,null,null,{"$f":"SUM(L55:L56)","v":0}]
[]
[null,null,null,"  CODE 516 - RESULTAATBELONING EN ZORGVERNIEUWING MDZ",null,null,null,null,null,null,null,{"$f":"L11","v":"Ontvangen en geaccepteerde declaraties tot en met 3e kwartaal 2021"}]
[null,null,null,null,null,null,null,null,null,null,null,"Ontvangen en geaccepteerde declaraties mbt jaar T"]
[null,null,null," Kosten resultaatbeloning MDZ"]
[null,null,null," Kosten zorgvernieuwing MDZ"]
[null,null,null," TOTAAL code 516",null,null,null,null,null,null,null,{"$f":"SUM(L61:L62)","v":0}]
[]
[]
[]
[]
[]
[]
[]
[]
[]
[]
[]
[]
[]
[]
[]
[]
[]
[]
[]
[]
[]
[]
[]
[]
[]
[null,null,null,{"$f":"NOW()","v":"2021-09-27T12:35:01.880"},null,null,null,null,null,null,null,{"$f":"CONCATENATE(\"Specifieke informatie C, \",LOWER(A48))","v":"Specifieke informatie C, pagina 2"}]
[]
["Pagina 3",null,null,{"$f":"CONCATENATE(\"KWARTAALSTAAT ZVW \", jaar_id,\" \",kwartaal_id,\"E KWARTAAL\")","v":"KWARTAALSTAAT ZVW 2021 3E KWARTAAL"}]
[null,null,null,"SPECIFIEKE INFORMATIE C "]
[null,null,null,{"$f":"IF(naw_uzovi_zorgverzekeraar<>\"0000\",CONCATENATE(UPPER(naw_naam_zorgverzekeraar),\", \",UPPER(naw_plaats_zorgverzekeraar)),\"\")","v":""},null,null,null,null,null,null,null,{"$f":"CONCATENATE(\"UZOVI: \",naw_uzovi_zorgverzekeraar)","v":"UZOVI: 0000"}]
[null,null,null,"SPECIFICATIES VAN KOSTEN EN PRODUCTIE"]
[]
[null,null,null,"RUBRIEK 06 MEDISCH SPECIALISTISCHE ZORG"]
[null,null,null," CODE 610 - OVERIGE KOSTEN \n ZIEKENHUISZORG EN CURATIEVE ZORG",null,null,"Lasten 2021",null,"Lasten 2020 ",null,"Lasten 2019 en ouder"]
[null,null,null,null,null,null,"Lasten 2021 inclusief balanspost",{"$f":"L11","v":"Ontvangen en geaccepteerde declaraties tot en met 3e kwartaal 2021"},"Lasten 2020 inclusief balanspost","Ontvangen en geaccepteerde declaraties m.b.t. 2020","Lasten 2019 en ouder inclusief balanspost ","Ontvangen en geaccepteerde declaraties m.b.t. 2019 en ouder"]
[null,null,null,null,null,null,null,null,"Ontvangen en geaccepteerde declaraties mbt jaar T","Ontvangen en geaccepteerde declaraties mbt jaar T","Ontvangen en geaccepteerde declaraties mbt jaar T","Ontvangen en geaccepteerde declaraties mbt jaar T"]
[null,null,null," Kosten van eerstelijnsdiagnostiek \n aangevraagd door eerstelijnszorg-\n aanbieders geleverd door \n huisartsenlaboratoria ",null,null,null,null,null,null,null,null,null,null,{"$f":"IF(OR((G100-H100)/IF(G100=0,1,G100)<-10%,(I100-J100)/IF(I100=0,1,I100)<-10%,(K100-L100)/IF(K100=0,1,K100)<-10%),\"De balans is < -10%, als dit plausibel is dan vragen wij u dit nader toe te lichten bij de opmerkingen, zo niet dan dient u uw raming aan te scherpen.\",\"\")","v":""}]
[null,null,null," Trombosediensten ",null,null,null,null,null,null,null,null,null,null,{"$f":"IF(OR((G101-H101)/IF(G101=0,1,G101)<-10%,(I101-J101)/IF(I101=0,1,I101)<-10%,(K101-L101)/IF(K101=0,1,K101)<-10%),\"De balans is < -10%, als dit plausibel is dan vragen wij u dit nader toe te lichten bij de opmerkingen, zo niet dan dient u uw raming aan te scherpen.\",\"\")","v":""}]
[null,null,null," SKION en NTS",null,null,null,null,null,null,null,null,null,null,""]
[null,null,null," TOTAAL code 610",null,null,{"$f":"SUM(G100:G102)","v":0},0,0,0,0,0]
[]
[null,null,null,"  CODE 611 - NAAR INSTELLING",null,null,"Lasten 2021 ",null,"Lasten 2020",null,"Lasten 2019 en ouder"]
[null,null,null,null,null,null,"Lasten 2021 inclusief balanspost",{"$f":"L11","v":"Ontvangen en geaccepteerde declaraties tot en met 3e kwartaal 2021"},"Lasten 2020 inclusief balanspost","Ontvangen en geaccepteerde declaraties m.b.t. 2020","Lasten 2019 en ouder inclusief balanspost ","Ontvangen en geaccepteerde declaraties m.b.t. 2019 en ouder"]
[null,null,null,null,null,null,null,null,"Ontvangen en geaccepteerde declaraties mbt jaar T","Ontvangen en geaccepteerde declaraties mbt jaar T","Ontvangen en geaccepteerde declaraties mbt jaar T","Ontvangen en geaccepteerde declaraties mbt jaar T"]
[null,null,null," Overige zorgproducten"]
[null,null,null," Academische ziekenhuizen",null,null,null,null,null,null,null,null,null,null,{"$f":"IF(OR((G109-H109)/IF(G109=0,1,G109)<-10%,(I109-J109)/IF(I109=0,1,I109)<-10%,(K109-L109)/IF(K109=0,1,K109)<-10%),\"De balans is < -10%, als dit plausibel is dan vragen wij u dit nader toe te lichten bij de opmerkingen, zo niet dan dient u uw raming aan te scherpen.\",\"\")","v":""}]
[null,null,null," Algemene ziekenhuizen",null,null,null,null,null,null,null,null,null,null,""]
[null,null,null," Zelfstandige behandelcentra",null,null,null,null,null,null,null,null,null,null,""]
[null,null,null," Overige zorgaanbieders",null,null,null,null,null,null,null,null,null,null,""]
[null,null,null," TOTAAL code 611",null,null,{"$f":"SUM(G109:G112)","v":0},0,0,0,0,0]
[]
[null,null,null," CODE 612.1 - KOSTEN ADD-ONS DURE \n GENEESMIDDELEN NAAR INSTELLING",null,null,{"$f":"G97","v":"Lasten 2021"},null,"Lasten 2020 ",null,"Lasten 2019 en ouder"]
[null,null,null,null,null,null,"Lasten 2021 inclusief balanspost",{"$f":"L11","v":"Ontvangen en geaccepteerde declaraties tot en met 3e kwartaal 2021"},"Lasten 2020 inclusief balanspost","Ontvangen en geaccepteerde declaraties m.b.t. 2020","Lasten 2019 en ouder inclusief balanspost ","Ontvangen en geaccepteerde declaraties m.b.t. 2019 en ouder"]
[null,null,null,null,null,null,null,null,"Ontvangen en geaccepteerde declaraties mbt jaar T","Ontvangen en geaccepteerde declaraties mbt jaar T","Ontvangen en geaccepteerde declaraties mbt jaar T","Ontvangen en geaccepteerde declaraties mbt jaar T"]
[null,null,null," Academische ziekenhuizen",null,null,null,null,null,null,null,null,null,null,{"$f":"IF(OR((G118-H118)/IF(G118=0,1,G118)<-10%,(I118-J118)/IF(I118=0,1,I118)<-10%,(K118-L118)/IF(K118=0,1,K118)<-10%),\"De balans is < -10%, als dit plausibel is dan vragen wij u dit nader toe te lichten bij de opmerkingen, zo niet dan dient u uw raming aan te scherpen.\",\"\")","v":""}]
[null,null,null," Algemene ziekenhuizen",null,null,null,null,null,null,null,null,null,null,""]
[null,null,null," Zelfstandige behandelcentra",null,null,null,null,null,null,null,null,null,null,""]
[null,null,null," Overige zorgaanbieders",null,null,null,null,null,null,null,null,null,null,""]
[null,null,null," TOTAAL code 612.1",null,null,{"$f":"SUM(G118:G121)","v":0},{"$f":"SUM(H118:H121)","v":0},0,0,0,0]
[]
[null,null,null," CODE 612.2 - KOSTEN ADD-ONS IC  \n NAAR INSTELLING",null,null,{"$f":"G97","v":"Lasten 2021"},null,"Lasten 2020",null,"Lasten 2019 en ouder"]
[null,null,null,null,null,null,"Lasten 2021 inclusief balanspost",{"$f":"L11","v":"Ontvangen en geaccepteerde declaraties tot en met 3e kwartaal 2021"},"Lasten 2020 inclusief balanspost","Ontvangen en geaccepteerde declaraties m.b.t. 2020","Lasten 2019 en ouder inclusief balanspost ","Ontvangen en geaccepteerde declaraties m.b.t. 2019 en ouder"]
[null,null,null,null,null,null,null,null,"Ontvangen en geaccepteerde declaraties mbt jaar T","Ontvangen en geaccepteerde declaraties mbt jaar T","Ontvangen en geaccepteerde declaraties mbt jaar T","Ontvangen en geaccepteerde declaraties mbt jaar T"]
[null,null,null," Academische ziekenhuizen",null,null,null,null,null,null,null,null,null,null,{"$f":"IF(OR((G127-H127)/IF(G127=0,1,G127)<-10%,(I127-J127)/IF(I127=0,1,I127)<-10%,(K127-L127)/IF(K127=0,1,K127)<-10%),\"De balans is < -10%, als dit plausibel is dan vragen wij u dit nader toe te lichten bij de opmerkingen, zo niet dan dient u uw raming aan te scherpen.\",\"\")","v":""}]
[null,null,null," Algemene ziekenhuizen",null,null,null,null,null,null,null,null,null,null,""]
[null,null,null," Zelfstandige behandelcentra",null,null,null,null,null,null,null,null,null,null,""]
[null,null,null," Overige zorgaanbieders",null,null,null,null,null,null,null,null,null,null,""]
[null,null,null," TOTAAL code 612.2",null,null,{"$f":"SUM(G127:G130)","v":0},{"$f":"SUM(H127:H130)","v":0},0,0,0,0]
[]
[null,null,null,{"$f":"NOW()","v":"2021-09-27T12:35:01.880"},null,null,null,null,null,null,null,{"$f":"CONCATENATE(\"Specifieke informatie C, \",LOWER(A91))","v":"Specifieke informatie C, pagina 3"}]
[]
["Pagina 4",null,null,{"$f":"CONCATENATE(\"KWARTAALSTAAT ZVW \", jaar_id,\" \",kwartaal_id,\"E KWARTAAL\")","v":"KWARTAALSTAAT ZVW 2021 3E KWARTAAL"}]
[null,null,null,"SPECIFIEKE INFORMATIE C "]
[null,null,null,{"$f":"IF(naw_uzovi_zorgverzekeraar<>\"0000\",CONCATENATE(UPPER(naw_naam_zorgverzekeraar),\", \",UPPER(naw_plaats_zorgverzekeraar)),\"\")","v":""},null,null,null,null,null,null,null,{"$f":"CONCATENATE(\"UZOVI: \",naw_uzovi_zorgverzekeraar)","v":"UZOVI: 0000"}]
[null,null,null,"SPECIFICATIES VAN KOSTEN EN PRODUCTIE"]
[null,null,null,"RUBRIEK 06 MEDISCH SPECIALISTISCHE ZORG - vervolg"]
[null,null,null,"  CODE 613.1 - INTEGRALE KOSTEN VAN \n  DBC-ZORGPRODUCTEN GEREGULEERDE \n  SEGMENT NAAR \n  INSTELLING",null,null,{"$f":"G97","v":"Lasten 2021"},null,"Lasten 2020 ",null,"Lasten 2019 en ouder"]
[null,null,null,null,null,null,"Lasten 2021 inclusief balanspost",{"$f":"L11","v":"Ontvangen en geaccepteerde declaraties tot en met 3e kwartaal 2021"},"Lasten 2020 inclusief balanspost","Ontvangen en geaccepteerde declaraties m.b.t. 2020","Lasten 2019 en ouder inclusief balanspost ","Ontvangen en geaccepteerde declaraties m.b.t. 2019 en ouder"]
[null,null,null,null,null,"code",null,null,"Ontvangen en geaccepteerde declaraties mbt jaar T","Ontvangen en geaccepteerde declaraties mbt jaar T","Ontvangen en geaccepteerde declaraties mbt jaar T","Ontvangen en geaccepteerde declaraties mbt jaar T"]
[null,null,null," Academische ziekenhuizen",null,null,null,null,null,null,null,null,null,null,{"$f":"IF(OR((G143-H143)/IF(G143=0,1,G143)<-10%,(I143-J143)/IF(I143=0,1,I143)<-10%,(K143-L143)/IF(K143=0,1,K143)<-10%),\"De balans is < -10%, als dit plausibel is dan vragen wij u dit nader toe te lichten bij de opmerkingen, zo niet dan dient u uw raming aan te scherpen.\",\"\")","v":""}]
[null,null,null," Algemene ziekenhuizen",null,null,null,null,null,null,null,null,null,null,""]
[null,null,null," Zelfstandige behandelcentra",null,null,null,null,null,null,null,null,null,null,""]
[null,null,null," Overige zorgaanbieders",null,null,null,null,null,null,null,null,null,null,""]
[null,null,null," TOTAAL code 613.1",null,null,{"$f":"SUM(G143:G146)","v":0},{"$f":"SUM(H143:H146)","v":0},{"$f":"SUM(I143:I146)","v":0},0,0,0]
[]
[null,null,null,"  CODE 615.1 - INTEGRALE KOSTEN VAN\n  DBC-ZORGPRODUCTEN VRIJE SEGMENT\n  NAAR INSTELLING",null,null,{"$f":"G97","v":"Lasten 2021"},null,"Lasten 2020 ",null,"Lasten 2019 en ouder"]
[null,null,null,null,null,null,"Lasten 2021 inclusief balanspost",{"$f":"L11","v":"Ontvangen en geaccepteerde declaraties tot en met 3e kwartaal 2021"},"Lasten 2020 inclusief balanspost","Ontvangen en geaccepteerde declaraties m.b.t. 2020","Lasten 2019 en ouder inclusief balanspost ","Ontvangen en geaccepteerde declaraties m.b.t. 2019 en ouder"]
[null,null,null,null,null,"code",null,null,"Ontvangen en geaccepteerde declaraties mbt jaar T","Ontvangen en geaccepteerde declaraties mbt jaar T","Ontvangen en geaccepteerde declaraties mbt jaar T","Ontvangen en geaccepteerde declaraties mbt jaar T"]
[null,null,null," Academische ziekenhuizen",null,null,null,null,null,null,null,null,null,null,{"$f":"IF(OR((G152-H152)/IF(G152=0,1,G152)<-10%,(I152-J152)/IF(I152=0,1,I152)<-10%,(K152-L152)/IF(K152=0,1,K152)<-10%),\"De balans is < -10%, als dit plausibel is dan vragen wij u dit nader toe te lichten bij de opmerkingen, zo niet dan dient u uw raming aan te scherpen.\",\"\")","v":""}]
[null,null,null," Algemene ziekenhuizen",null,null,null,null,null,null,null,null,null,null,""]
[null,null,null," Zelfstandige behandelcentra",null,null,null,null,null,null,null,null,null,null,""]
[null,null,null," Overige zorgaanbieders",null,null,null,null,null,null,null,null,null,null,""]
[null,null,null," TOTAAL code 615.1",null,null,{"$f":"SUM(G152:G155)","v":0},0,0,0,0,0]
[]
[]
[]
[]
[]
[]
[]
[]
[]
[]
[]
[]
[]
[]
[]
[]
[]
[]
[]
[null,null,null,{"$f":"NOW()","v":"2021-09-27T12:35:01.880"},null,null,null,null,null,null,null,{"$f":"CONCATENATE(\"Specifieke informatie C, \",LOWER(A135))","v":"Specifieke informatie C, pagina 4"}]
[]
["Pagina 5",null,null,{"$f":"CONCATENATE(\"KWARTAALSTAAT ZVW \", jaar_id,\" \",kwartaal_id,\"E KWARTAAL\")","v":"KWARTAALSTAAT ZVW 2021 3E KWARTAAL"}]
[null,null,null,"SPECIFIEKE INFORMATIE C "]
[null,null,null,{"$f":"IF(naw_uzovi_zorgverzekeraar<>\"0000\",CONCATENATE(UPPER(naw_naam_zorgverzekeraar),\", \",UPPER(naw_plaats_zorgverzekeraar)),\"\")","v":""},null,null,null,null,null,null,null,{"$f":"CONCATENATE(\"UZOVI: \",naw_uzovi_zorgverzekeraar)","v":"UZOVI: 0000"}]
[null,null,null,"SPECIFICATIES VAN KOSTEN EN PRODUCTIE"]
[]
[null,null,null,"RUBRIEK 13 DIVERSE OVERIGE KOSTEN"]
[null,null,null," CODE 700 - OVERIGE KOSTEN",null,null,null,null,null,null,null,{"$f":"L11","v":"Ontvangen en geaccepteerde declaraties tot en met 3e kwartaal 2021"}]
[null,null,null,null,null,null,null,null,null,null,null,"Ontvangen en geaccepteerde declaraties mbt jaar T"]
[null,null,null," Kosten i.v.m. beleidsregel innovatie t.b.v. nieuwe zorgprestaties "]
[null,null,null," TOTAAL code 700",null,null,null,null,null,null,null,{"$f":"SUM(L186:L186)","v":0}]
[]
[null,null,null," CODE 701 - OVERIGE GENEESKUNDIGE ZORG",null,null,null,null,null,null,null,{"$f":"L11","v":"Ontvangen en geaccepteerde declaraties tot en met 3e kwartaal 2021"}]
[null,null,null,null,null,null,null,null,null,null,null,"Ontvangen en geaccepteerde declaraties mbt jaar T"]
[null,null,null," Geneeskundige individuele zorg bij tuberculose en infectieziekten door GGD'en"]
[null,null,null," Huidtherapie"]
[null,null,null," Orthoptie"]
[null,null,null," Optometrie"]
[null,null,null," Kosten voetzorg bij Diabetes Mellitus type 2"]
[null,null,null," Koemelkallergietest (niet horend bij Multidisciplinaire Zorg) "]
[null,null,null," Regiefunctie complexe wondzorg"]
[null,null,null," TOTAAL code 701",null,null,null,null,null,null,null,{"$f":"SUM(L191:L197)","v":0}]
[]
[null,null,null," CODE 702 - ZINTUIGLIJK GEHANDICAPTEN",null,null,null,null,null,null,null,{"$f":"L11","v":"Ontvangen en geaccepteerde declaraties tot en met 3e kwartaal 2021"}]
[null,null,null,null,null,null,null,null,null,null,null,"Ontvangen en geaccepteerde declaraties mbt jaar T"]
[null,null,null," Kosten van zorg ivm visuele beperking"]
[null,null,null," Kosten van zorg ivm auditieve en communicatieve beperking"]
[null,null,null," TOTAAL code 702",null,null,null,null,null,null,null,{"$f":"SUM(L202:L203)","v":0}]
[]
[]
[]
[]
[]
[]
[]
[]
[]
[]
[]
[null,null,null,{"$f":"NOW()","v":"2021-09-27T12:35:01.880"},null,null,null,null,null,null,null,{"$f":"CONCATENATE(\"Specifieke informatie C, \",LOWER(A178))","v":"Specifieke informatie C, pagina 5"}]

{"sheet":"Contractinformatie","index":9,"n_rows":105,"n_cols":11,"rows_kept":105,"cut":false,"hidden":false,"merged":[[30,3,30,9],[31,3,31,9],[100,3,100,9],[77,3,77,9],[76,3,76,9],[78,3,78,9],[81,3,81,9],[84,3,84,9],[79,3,79,9],[80,3,80,9],[99,3,99,9],[38,3,38,9],[39,3,39,9],[40,3,40,9],[41,3,41,9],[83,3,83,10],[102,3,102,9],[86,3,86,9],[87,3,87,9],[88,3,88,9],[89,3,89,9],[91,3,91,9],[101,3,101,9],[95,3,95,10],[90,3,90,10],[92,3,92,9],[93,3,93,9],[94,3,94,9],[104,3,104,4],[53,3,53,4],[85,3,85,10],[96,3,96,9],[97,3,97,9],[98,3,98,9],[61,3,61,9],[62,3,62,9],[63,3,63,9],[64,3,64,9],[65,3,65,9],[66,3,66,9],[69,3,69,9],[71,3,71,9],[72,3,72,9],[75,3,75,9],[10,3,10,10],[9,3,9,9],[11,3,11,9],[12,3,12,9],[13,3,13,9],[14,3,14,9],[16,3,16,9],[17,3,17,9],[18,3,18,9],[15,3,15,10],[19,3,19,9],[23,3,23,9],[26,3,26,9],[27,3,27,9],[28,3,28,9],[20,3,20,10],[21,3,21,9],[22,3,22,9],[68,3,68,9],[67,3,67,9],[44,3,44,9],[45,3,45,9],[29,3,29,9],[32,3,32,9],[33,3,33,9],[36,3,36,9],[59,3,59,9],[60,3,60,9],[42,3,42,9],[43,3,43,9],[46,3,46,9],[48,3,48,9],[49,3,49,9],[37,3,37,9]]}
[null,null,"INVULSPECIFICATIES SPECIFIEKE INFORMATIE C"]
[]
[]
[]
[]
["Pagina 1",null,null,{"$f":"CONCATENATE(\"KWARTAALSTAAT ZVW \", jaar_id,\" \",kwartaal_id,\"E KWARTAAL\")","v":"KWARTAALSTAAT ZVW 2021 3E KWARTAAL"}]
[null,null,null,"SPECIFIEKE INFORMATIE C - CONTRACTINFORMATIE"]
[null,null,null,{"$f":"IF(naw_uzovi_zorgverzekeraar<>\"0000\",CONCATENATE(UPPER(naw_naam_zorgverzekeraar),\", \",UPPER(naw_plaats_zorgverzekeraar)),\"\")","v":""},null,null,null,null,null,null,{"$f":"CONCATENATE(\"UZOVI: \",naw_uzovi_zorgverzekeraar)","v":"UZOVI: 0000"}]
[null,null,null," CONTRACTINFORMATIE HUISARTSENZORG EN MULTIDISCIPLINAIRE ZORG, rubriek 01"]
[null,null,null,null,null,null,null,null,null,null,"Lasten inclusief \nbalanspost \n2021"]
[null,null,null," Huisartsenzorg, codes 503, 504, 505, 506, 507, 515"]
[null,null,null," Gecontracteerde zorg"]
[null,null,null," Lopende onderhandelingen"]
[null,null,null," Niet gecontracteerde zorg"]
[null,null,null," Subtotaal huisartsenzorg",null,null,null,null,null,{"$f":"SUM(J12:J14)","v":0},{"$f":"SUM(K12:K14)","v":0}]
[null,null,null," Multidisciplinaire zorg, codes 510 en 516"]
[null,null,null," Gecontracteerde zorg"]
[null,null,null," Lopende onderhandelingen"]
[null,null,null," Niet gecontracteerde zorg"]
[null,null,null," Subtotaal multidisciplinaire zorg",null,null,null,null,null,{"$f":"SUM(J17:J19)","v":0},{"$f":"SUM(K17:K19)","v":0}]
[null,null,null," Huisartsenzorg en multidisciplinaire zorg"]
[null,null,null," Meerkosten (indirect en toeslagen), gecontracteerd en niet gecontracteerd"]
[null,null,null," Netto continuïteitsbijdrage Corona, gecontracteerd en niet gecontracteerd"]
[null,null,null," TOTAAL RUBRIEK 01 ",null,null,null,null,null,null,{"$f":"SUM(K15+K20+K22+K23)","v":0}]
[]
[null,null,null," CONTRACTINFORMATIE VERPLEGING EN VERZORGING, rubriek 03"]
[null,null,null,null,null,null,null,null,null,null,{"$f":"K$10","v":"Lasten inclusief \nbalanspost \n2021"}]
[null,null,null," Gecontracteerde zorg"]
[null,null,null," Lopende onderhandelingen"]
[null,null,null," Niet gecontracteerde zorg"]
[null,null,null," Meerkosten (indirect en toeslagen), gecontracteerd en niet gecontracteerd"]
[null,null,null," Netto continuïteitsbijdrage Corona, gecontracteerd en niet gecontracteerd"]
[null,null,null," PGB"]
[null,null,null," TOTAAL RUBRIEK 03",null,null,null,null,null,{"$f":"SUM(J28:J30)","v":0},{"$f":"SUM(K28:K33)","v":0}]
[]
[null,null,null," CONTRACTINFORMATIE MEDISCH SPECIALISTISCHE ZORG, rubriek 06"]
[null,null,null,null,null,null,null,null,null,null,{"$f":"K$10","v":"Lasten inclusief \nbalanspost \n2021"}]
[null,null,null," Gecontracteerde zorg: aanneemsom"]
[null,null,null," Gecontracteerde zorg: plafond"]
[null,null,null," Gecontracteerde zorg: nacalculatie bij aanneemsommen en plafondcontracten"]
[null,null,null," Gecontracteerde zorg: open einde contract"]
[null,null,null," Subtotaal gecontracteerde zorg",null,null,null,null,null,{"$f":"SUM(J38:J41)","v":0},{"$f":"SUM(K38:K41)","v":0}]
[null,null,null," Lopende onderhandelingen"]
[null,null,null," Niet gecontracteerde zorg"]
[null,null,null," Meerkosten (indirect en toeslagen), gecontracteerd en niet gecontracteerd"]
[null,null,null," Netto continuïteitsbijdrage Corona, gecontracteerd en niet gecontracteerd"]
[null,null,null," TOTAAL RUBRIEK 06 ",null,null,null,null,null,{"$f":"SUM(J42:J44)","v":0},{"$f":"SUM(K42:K46)","v":0}]
[]
[null,null,null,null,null,null,null,null,null,2020,2021]
[null,null,null," Totaal afgesproken maximumomzet plafondcontracten"]
[]
[]
[]
[null,null,null,{"$f":"NOW()","v":"2021-09-27T12:35:01.880"},null,null,null,null,null,null,{"$f":"CONCATENATE(\"Specifieke informatie C - Contractinformatie, \",LOWER(A6))","v":"Specifieke informatie C - Contractinformatie, pagina 1"}]
[]
["Pagina 2",null,null,{"$f":"CONCATENATE(\"KWARTAALSTAAT ZVW \", jaar_id,\" \",kwartaal_id,\"E KWARTAAL\")","v":"KWARTAALSTAAT ZVW 2021 3E KWARTAAL"}]
[null,null,null,"SPECIFIEKE INFORMATIE C - CONTRACTINFORMATIE"]
[null,null,null,{"$f":"IF(naw_uzovi_zorgverzekeraar<>\"0000\",CONCATENATE(UPPER(naw_naam_zorgverzekeraar),\", \",UPPER(naw_plaats_zorgverzekeraar)),\"\")","v":""},null,null,null,null,null,null,{"$f":"CONCATENATE(\"UZOVI: \",naw_uzovi_zorgverzekeraar)","v":"UZOVI: 0000"}]
[null,null,null," CONTRACTINFORMATIE GENEESKUNDIGE GEESTELIJKE GEZONDHEIDSZORG, rubriek 10"]
[null,null,null,null,null,null,null,null,null,"Lasten inclusief \nbalanspost \n2020",{"$f":"K$10","v":"Lasten inclusief \nbalanspost \n2021"}]
[null,null,null," Gecontracteerde zorg: aanneemsom"]
[null,null,null," Gecontracteerde zorg: plafond"]
[null,null,null," Gecontracteerde zorg: nacalculatie bij aanneemsommen en plafondcontracten"]
[null,null,null," Gecontracteerde zorg: open einde contract"]
[null,null,null," Subtotaal gecontracteerde zorg",null,null,null,null,null,{"$f":"SUM(J61:J64)","v":0},{"$f":"SUM(K61:K64)","v":0}]
[null,null,null," Lopende onderhandelingen"]
[null,null,null," Niet gecontracteerde zorg"]
[null,null,null," Meerkosten (indirect en toeslagen), gecontracteerd en niet gecontracteerd"]
[null,null,null," Netto continuïteitsbijdrage Corona, gecontracteerd en niet gecontracteerd"]
[null,null,null," TOTAAL RUBRIEK 10 ",null,null,null,null,null,{"$f":"SUM(J65:J67)","v":0},{"$f":"SUM(K65:K69)","v":0}]
[]
[null,null,null,null,null,null,null,null,null,2020,2021]
[null,null,null," Totaal afgesproken maximumomzet plafondcontracten"]
[]
[null,null,null," CONTRACTINFORMATIE ZINTUIGLIJK GEHANDICAPTEN, code 702 "]
[null,null,null,null,null,null,null,null,null,"Lasten inclusief \nbalanspost \n2020",{"$f":"K$10","v":"Lasten inclusief \nbalanspost \n2021"}]
[null,null,null," Gecontracteerde zorg"]
[null,null,null," Lopende onderhandelingen"]
[null,null,null," Niet gecontracteerde zorg"]
[null,null,null," Meerkosten (indirect en toeslagen), gecontracteerd en niet gecontracteerd"]
[null,null,null," Netto continuïteitsbijdrage Corona, gecontracteerd en niet gecontracteerd"]
[null,null,null," TOTAAL CODE 702",null,null,null,null,null,{"$f":"SUM(J77:J79)","v":0},{"$f":"SUM(K77:K81)","v":0}]
[]
[null,null,null," CONTRACTINFORMATIE GERIATRISCHE REVALIDATIE, EERSTELIJNSVERBLIJF EN GENEESKUNDIGE ZORG       SPECIFIEKE PATIENTGROEPEN, rubriek 11"]
[null,null,null,null,null,null,null,null,null,"Lasten inclusief \nbalanspost \n2020",{"$f":"K$10","v":"Lasten inclusief \nbalanspost \n2021"}]
[null,null,null," Geriatrische Revalidatie, code 670"]
[null,null,null," Gecontracteerde zorg"]
[null,null,null," Lopende onderhandelingen"]
[null,null,null," Niet gecontracteerde zorg"]
[null,null,null," Subtotaal Geriatrische Revalidatie zorg",null,null,null,null,null,{"$f":"SUM(J87:J89)","v":0},{"$f":"SUM(K87:K89)","v":0}]
[null,null,null," Eerstelijnsverblijf, code 671"]
[null,null,null," Gecontracteerde zorg"]
[null,null,null," Lopende onderhandelingen"]
[null,null,null," Niet gecontracteerde zorg"]
[null,null,null," Subtotaal Eerstelijnsverblijf ",null,null,null,null,null,{"$f":"SUM(J92:J94)","v":0},{"$f":"SUM(K92:K94)","v":0}]
[null,null,null," Geneeskundige Zorg Specifieke Patiëntgroepen, code 672"]
[null,null,null," Gecontracteerde zorg"]
[null,null,null," Lopende onderhandelingen"]
[null,null,null," Niet gecontracteerde zorg"]
[null,null,null," Subtotaal Geneeskundige Zorg Specifieke Patiëntgroepen",null,null,null,null,null,null,{"$f":"SUM(K97:K99)","v":0}]
[null,null,null," Meerkosten (indirect en toeslagen), gecontracteerd en niet gecontracteerd"]
[null,null,null," Netto continuïteitsbijdrage Corona, gecontracteerd en niet gecontracteerd"]
[null,null,null," TOTAAL RUBRIEK 11 ",null,null,null,null,null,{"$f":"SUM(J90+J95+J102)","v":0},{"$f":"SUM(K90+K95+K100)+SUM(K101:K102)","v":0}]
[]
[null,null,null,{"$f":"NOW()","v":"2021-09-27T12:35:01.880"},null,null,null,null,null,null,{"$f":"CONCATENATE(\"Specifieke informatie C - Contractinformatie, \",LOWER(A56))","v":"Specifieke informatie C - Contractinformatie, pagina 2"}]

{"sheet":"Wanbetalers","index":10,"n_rows":48,"n_cols":11,"rows_kept":48,"cut":false,"hidden":false,"merged":[[26,3,26,7],[47,3,47,4],[27,3,27,7],[17,3,17,7],[19,3,19,7],[20,3,20,7],[21,3,21,7],[22,3,22,7],[24,3,24,7],[25,3,25,7],[15,3,15,7],[16,3,16,7],[10,3,10,7],[11,3,11,7],[12,3,12,7],[13,3,13,7]]}
[null,null,"INVULSPECIFICATIES SPECIFIEKE INFORMATIE C"]
[]
[]
[]
[]
["Pagina 1",null,null,{"$f":"CONCATENATE(\"KWARTAALSTAAT ZVW \", jaar_id,\" \",kwartaal_id,\"E KWARTAAL\")","v":"KWARTAALSTAAT ZVW 2021 3E KWARTAAL"}]
[null,null,null,"SPECIFIEKE INFORMATIE C - WANBETALERS"]
[null,null,null,{"$f":"IF(naw_uzovi_zorgverzekeraar<>\"0000\",CONCATENATE(UPPER(naw_naam_zorgverzekeraar),\", \",UPPER(naw_plaats_zorgverzekeraar)),\"\")","v":""},null,null,null,null,null,null,{"$f":"CONCATENATE(\"UZOVI: \",naw_uzovi_zorgverzekeraar)","v":"UZOVI: 0000"}]
[]
[null,null,null,"SPECIFICATIES VAN WANBETALERS"]
[null,null,null,null,null,null,null,null,"AANTAL \njuli","AANTAL \naugutus","AANTAL \nseptember"]
[null,null,null," Verzekeringnemers die een achterstand in de premiebetaling hebben van \n twee of meer, maar minder dan vier volle maandpremies."]
[null,null,null," Verzekeringnemers die een achterstand in de premiebetaling hebben van \n vier of meer, maar minder dan zes volle maandpremies."]
[null,null,null," Verzekeringnemers die een achterstand in de premiebetaling hebben van \n zes of meer volle maandpremies."]
[]
[null,null,null,null,null,null,null,null,"AANTAL \njuli","AANTAL \naugutus","AANTAL \nseptember"]
[null,null,null," Verstuurde tweedemaandsbrieven"]
[null,null,null," Verstuurde vierdemaandsbrieven"]
[]
[null,null,null,null,null,null,null,null,"AANTAL \njuli","AANTAL \naugutus","AANTAL \nseptember"]
[null,null,null," Debiteuren met een interne betalingsregeling, al dan niet uitsluitend \n voor premiebetaling."]
[null,null,null," Debiteuren met een externe betalingsregeling, al dan niet uitsluitend \n voor premiebetaling."]
[null,null,null," Actieve stabilisatieovereenkomsten voor premiebetaling."]
[]
[null,null,null,null,null,null,null,null,"AANTAL \njuli","AANTAL \naugutus","AANTAL \nseptember"]
[null,null,null," Wanbetalers bij CAK aangemeld met een betalingsachterstand van minder \n dan € 250."]
[null,null,null," Wanbetalers bij CAK aangemeld met een betalingsachterstand van \n meer dan € 250, maar minder dan € 750."]
[null,null,null," Wanbetalers bij CAK aangemeld met een betalingsachterstand van meer \n dan € 750."]
[]
[]
[]
[]
[]
[]
[]
[]
[]
[]
[]
[]
[]
[]
[]
[]
[]
[]
[]
[null,null,null,{"$f":"NOW()","v":"2021-09-27T12:35:01.880"},null,null,null,null,null,null,{"$f":"CONCATENATE(\"Specifieke informatie C - Wanbetalers, \",LOWER(A6))","v":"Specifieke informatie C - Wanbetalers, pagina 1"}]

{"sheet":"Controleoverzicht","index":11,"n_rows":196,"n_cols":12,"rows_kept":196,"cut":false,"hidden":false,"merged":[[189,11,190,11],[175,11,176,11],[175,10,176,10],[168,3,168,8],[149,10,150,10],[134,3,135,8],[134,10,135,10],[155,3,155,8],[152,3,152,8],[151,3,151,8],[189,9,190,9],[189,10,190,10],[153,3,153,8],[154,3,154,8],[186,3,186,11],[180,3,180,8],[175,9,176,9],[185,3,185,10],[175,3,176,8],[184,3,184,10],[73,3,73,8],[80,3,80,8],[98,3,98,8],[100,3,100,8],[101,3,101,8],[149,11,150,11],[147,3,147,8],[134,11,135,11],[138,3,138,8],[137,3,137,8],[112,11,113,11],[134,9,135,9],[96,3,96,8],[112,9,113,9],[115,3,115,8],[116,3,116,8],[117,3,117,8],[125,3,125,8],[112,10,113,10],[144,3,144,8],[142,3,142,8],[9,10,10,10],[9,11,10,11],[166,11,167,11],[166,10,167,10],[166,9,167,9],[94,3,94,8],[95,3,95,8],[97,3,97,8],[169,3,169,8],[15,11,16,11],[15,9,16,9],[15,10,16,10],[47,3,47,8],[49,3,49,8],[146,3,146,8],[149,9,150,9],[140,9,141,9],[90,3,90,8],[112,3,113,8],[140,11,141,11],[140,10,141,10],[149,3,150,8],[145,3,145,8],[76,3,76,8],[71,3,71,8],[123,3,123,8],[85,3,85,8],[140,3,141,8],[143,3,143,8],[136,3,136,8],[74,3,74,8],[75,3,75,8],[77,3,77,8],[120,3,120,8],[121,3,121,8],[122,3,122,8],[107,3,107,8],[102,3,102,8],[104,3,104,8],[78,3,78,8],[103,3,103,8],[87,3,87,8],[109,3,109,8],[99,3,99,8],[118,3,118,8],[119,3,119,8],[124,3,124,8],[114,3,114,8],[9,9,10,9],[9,3,10,8],[11,3,11,8],[15,3,16,8],[12,3,12,8],[13,3,13,8],[31,3,31,8],[34,3,34,8],[28,3,28,8],[24,3,24,8],[26,3,26,8],[23,3,23,8],[25,3,25,8],[17,3,17,8],[19,3,20,8],[27,3,27,8],[22,3,22,8],[29,3,29,8],[30,3,30,8],[32,3,32,8],[33,3,33,8],[19,11,20,11],[19,9,20,9],[19,10,20,10],[21,3,21,8],[69,10,70,10],[69,9,70,9],[39,3,39,8],[48,3,48,8],[79,3,79,8],[40,3,40,8],[72,3,72,8],[43,3,43,8],[37,3,37,8],[38,3,38,8],[51,3,51,8],[52,3,52,8],[35,3,35,8],[36,3,36,8],[41,3,41,8],[42,3,42,8],[44,3,44,8],[69,11,70,11],[55,3,55,8],[53,3,53,8],[69,3,70,8],[81,3,81,8],[89,3,89,8],[91,3,91,8],[92,3,92,8],[191,3,191,8],[192,3,192,8],[45,3,45,8],[46,3,46,8],[54,3,54,8],[50,3,50,8],[105,3,105,8],[106,3,106,8],[82,3,82,8],[83,3,83,8],[86,3,86,8],[84,3,84,8],[171,3,171,8],[156,3,156,8],[93,3,93,8],[57,3,57,8],[58,3,58,8],[56,3,56,8],[88,3,88,8],[194,3,194,8],[108,3,108,8],[166,3,167,8],[189,3,190,8],[172,3,172,8],[179,3,179,8],[182,3,182,8],[181,3,181,8],[178,3,178,8],[177,3,177,8],[173,3,173,8],[170,3,170,8],[193,3,193,8]]}
[null,null,"CONTROLEOVERZICHT"]
[]
[]
[]
[]
["Pagina 1",null,null,{"$f":"CONCATENATE(\"KWARTAALSTAAT ZVW \", jaar_id,\" \",kwartaal_id,\"E KWARTAAL\")","v":"KWARTAALSTAAT ZVW 2021 3E KWARTAAL"}]
[null,null,null,"CONTROLEOVERZICHT"]
[null,null,null,{"$f":"IF(naw_uzovi_zorgverzekeraar<>\"0000\",CONCATENATE(UPPER(naw_naam_zorgverzekeraar),\", \",UPPER(naw_plaats_zorgverzekeraar)),\"\")","v":""},null,null,null,null,null,null,null,{"$f":"CONCATENATE(\"UZOVI: \",naw_uzovi_zorgverzekeraar)","v":"UZOVI: 0000"}]
[null,null,null,"SPECIFIEKE INFORMATIE A"]
[null,null,null," VERZEKERDENSTANDEN",null,null,null,null,null,"AUGUSTUS","SEPTEMBER","OKTOBER"]
[]
[null,null,null," Verzekerdenstand naar risicoklasse",null,null,null,null,null,{"$f":"'Specifieke informatie A'!L79","v":0},{"$f":"'Specifieke informatie A'!L124","v":0},{"$f":"'Specifieke informatie A'!L169","v":0}]
[null,null,null," Verzekerdenstand naar nominale premie",null,null,null,null,null,{"$f":"'Specifieke informatie A'!L86","v":0},{"$f":"'Specifieke informatie A'!L131","v":0},{"$f":"'Specifieke informatie A'!L176","v":0}]
[null,null,null," Verschil",null,null,null,null,null,{"$f":"IF(J12<>J13,J12-J13,\"\")","v":""},{"$f":"IF(K12<>K13,K12-K13,\"\")","v":""},{"$f":"IF(L12<>L13,L12-L13,\"\")","v":""}]
[]
[null,null,null," KOSTENSPECIFICATIES",null,null,null,null,null,"VOLGENS\nKOSTENVER- \nZAMELSTAAT","VOLGENS\nDETAIL- \nSPECIFICATIE ","VERSCHIL"]
[]
[null,null,null," Totaal kosten t.l.v. deelbijdragen (totaal lasten t/m rubriek 16)\n - inclusief balanspost",null,null,null,null,null,{"$f":"Kostenverzamelstaat!I173","v":0},{"$f":"'Specifieke informatie A'!K17","v":0},{"$f":"IF(J18<>K18,J18-K18,\"\")","v":""}]
[]
[null,null,null," KOSTENVERZAMELSTAAT",null,null,null,null,null,"Kosten balanspost 2019","Kosten balanspost 2020","Kosten balanspost 2021"]
[]
[null,null,null," 503 Bijzondere betalingen",null,null,null,null,null,{"$f":"Kostenverzamelstaat!M16-Kostenverzamelstaat!N16","v":0},{"$f":"Kostenverzamelstaat!K16-Kostenverzamelstaat!L16","v":0},{"$f":"Kostenverzamelstaat!I16-Kostenverzamelstaat!J16","v":0}]
[null,null,null," 504 Avond-, nacht- en weekenddiensten",null,null,null,null,null,{"$f":"Kostenverzamelstaat!M17-Kostenverzamelstaat!N17","v":0},{"$f":"Kostenverzamelstaat!K17-Kostenverzamelstaat!L17","v":0},{"$f":"Kostenverzamelstaat!I17-Kostenverzamelstaat!J17","v":0}]
[null,null,null," 505 Inschrijftarieven",null,null,null,null,null,{"$f":"Kostenverzamelstaat!M18-Kostenverzamelstaat!N18","v":0},{"$f":"Kostenverzamelstaat!K18-Kostenverzamelstaat!L18","v":0},{"$f":"Kostenverzamelstaat!I18-Kostenverzamelstaat!J18","v":0}]
[null,null,null," 506 Consulttarieven",null,null,null,null,null,{"$f":"Kostenverzamelstaat!M19-Kostenverzamelstaat!N19","v":0},{"$f":"Kostenverzamelstaat!K19-Kostenverzamelstaat!L19","v":0},{"$f":"Kostenverzamelstaat!I19-Kostenverzamelstaat!J19","v":0}]
[null,null,null," 507 Overige tarieven",null,null,null,null,null,{"$f":"Kostenverzamelstaat!M20-Kostenverzamelstaat!N20","v":0},{"$f":"Kostenverzamelstaat!K20-Kostenverzamelstaat!L20","v":0},{"$f":"Kostenverzamelstaat!I20-Kostenverzamelstaat!J20","v":0}]
[null,null,null," 510 Multidisciplinaire zorg",null,null,null,null,null,{"$f":"Kostenverzamelstaat!M21-Kostenverzamelstaat!N21","v":0},{"$f":"Kostenverzamelstaat!K21-Kostenverzamelstaat!L21","v":0},{"$f":"Kostenverzamelstaat!I21-Kostenverzamelstaat!J21","v":0}]
[null,null,null," 515 Resultaatbeloning en zorgvernieuwing huisartsen",null,null,null,null,null,{"$f":"Kostenverzamelstaat!M22-Kostenverzamelstaat!N22","v":0},{"$f":"Kostenverzamelstaat!K22-Kostenverzamelstaat!L22","v":0},{"$f":"Kostenverzamelstaat!I22-Kostenverzamelstaat!J22","v":0}]
[null,null,null," 516 Resultaatbeloning en zorgvernieuwing MDZ",null,null,null,null,null,{"$f":"Kostenverzamelstaat!M23-Kostenverzamelstaat!N23","v":0},{"$f":"Kostenverzamelstaat!K23-Kostenverzamelstaat!L23","v":0},{"$f":"Kostenverzamelstaat!I23-Kostenverzamelstaat!J23","v":0}]
[null,null,null," 801 Meerkosten Corona type 2 tm 5 (incl. som opslagen HAZ)",null,null,null,null,null,null,{"$f":"Kostenverzamelstaat!K24-Kostenverzamelstaat!L24","v":0}]
[null,null,null," 821 Netto continuïteitsbijdrage Corona (basisverzekering)",null,null,null,null,null,null,{"$f":"Kostenverzamelstaat!K27-Kostenverzamelstaat!L27","v":0},{"$f":"Kostenverzamelstaat!I27-Kostenverzamelstaat!J27","v":0}]
[null,null,null," 520 Farmaceutische zorg",null,null,null,null,null,{"$f":"Kostenverzamelstaat!M30-Kostenverzamelstaat!N30","v":0},{"$f":"Kostenverzamelstaat!K30-Kostenverzamelstaat!L30","v":0},{"$f":"Kostenverzamelstaat!I30-Kostenverzamelstaat!J30","v":0}]
[null,null,null," 802 Meerkosten Corona indirect en toeslagen",null,null,null,null,null,null,{"$f":"Kostenverzamelstaat!K31-Kostenverzamelstaat!L31","v":0}]
[null,null,null," 822 Netto continuïteitsbijdrage Corona (basisverzekering)",null,null,null,null,null,null,{"$f":"Kostenverzamelstaat!K34-Kostenverzamelstaat!L34","v":0},{"$f":"Kostenverzamelstaat!I34-Kostenverzamelstaat!J34","v":0}]
[null,null,null," 530 Kosten van verpleging en verzorging",null,null,null,null,null,{"$f":"Kostenverzamelstaat!M37-Kostenverzamelstaat!N37","v":0},{"$f":"Kostenverzamelstaat!K37-Kostenverzamelstaat!L37","v":0},{"$f":"Kostenverzamelstaat!I37-Kostenverzamelstaat!J37","v":0}]
[null,null,null," 803 Meerkosten Corona indirect en toeslagen",null,null,null,null,null,null,{"$f":"Kostenverzamelstaat!K38-Kostenverzamelstaat!L38","v":0}]
[null,null,null," 823 Netto continuïteitsbijdrage Corona (basisverzekering)",null,null,null,null,null,null,{"$f":"Kostenverzamelstaat!K41-Kostenverzamelstaat!L41","v":0},{"$f":"Kostenverzamelstaat!I41-Kostenverzamelstaat!J41","v":0}]
[null,null,null," 545 Kosten specialisten mondziekten en kaakchirurgie",null,null,null,null,null,{"$f":"Kostenverzamelstaat!M72-Kostenverzamelstaat!N72","v":0},{"$f":"Kostenverzamelstaat!K72-Kostenverzamelstaat!L72","v":0},{"$f":"Kostenverzamelstaat!I72-Kostenverzamelstaat!J72","v":0}]
[null,null,null," 560.1 Kosten mondzorg volwassen verzekerden",null,null,null,null,null,{"$f":"Kostenverzamelstaat!M44-Kostenverzamelstaat!N44","v":0},{"$f":"Kostenverzamelstaat!K44-Kostenverzamelstaat!L44","v":0},{"$f":"Kostenverzamelstaat!I44-Kostenverzamelstaat!J44","v":0}]
[null,null,null," 560.2 Kosten mondzorg jeugdige verzekerden",null,null,null,null,null,{"$f":"Kostenverzamelstaat!M45-Kostenverzamelstaat!N45","v":0},{"$f":"Kostenverzamelstaat!K45-Kostenverzamelstaat!L45","v":0},{"$f":"Kostenverzamelstaat!I45-Kostenverzamelstaat!J45","v":0}]
[null,null,null," 561 Kosten gebitsprothesen",null,null,null,null,null,{"$f":"Kostenverzamelstaat!M46-Kostenverzamelstaat!N46","v":0},{"$f":"Kostenverzamelstaat!K46-Kostenverzamelstaat!L46","v":0},{"$f":"Kostenverzamelstaat!I46-Kostenverzamelstaat!J46","v":0}]
[null,null,null," 804 Meerkosten Corona indirect en toeslagen",null,null,null,null,null,null,{"$f":"Kostenverzamelstaat!K47-Kostenverzamelstaat!L47","v":0}]
[null,null,null," 824 Netto continuïteitsbijdrage Corona (basisverzekering)",null,null,null,null,null,null,{"$f":"Kostenverzamelstaat!K50-Kostenverzamelstaat!L50","v":0},{"$f":"Kostenverzamelstaat!I50-Kostenverzamelstaat!J50","v":0}]
[null,null,null," 580 Kosten verloskundige zorg door verloskundigen",null,null,null,null,null,{"$f":"Kostenverzamelstaat!M53-Kostenverzamelstaat!N53","v":0},{"$f":"Kostenverzamelstaat!K53-Kostenverzamelstaat!L53","v":0},{"$f":"Kostenverzamelstaat!I53-Kostenverzamelstaat!J53","v":0}]
[null,null,null," 582 Kosten Integrale geboortezorg ",null,null,null,null,null,null,{"$f":"Kostenverzamelstaat!K54-Kostenverzamelstaat!L54","v":0},{"$f":"Kostenverzamelstaat!I54-Kostenverzamelstaat!J54","v":0}]
[null,null,null," 805 Meerkosten Corona indirect en toeslagen",null,null,null,null,null,null,{"$f":"Kostenverzamelstaat!K55-Kostenverzamelstaat!L55","v":0}]
[null,null,null," 825 Netto continuïteitsbijdrage Corona (basisverzekering)",null,null,null,null,null,null,{"$f":"Kostenverzamelstaat!K58-Kostenverzamelstaat!L58","v":0},{"$f":"Kostenverzamelstaat!I58-Kostenverzamelstaat!J58","v":0}]
[null,null,null," 610 Overige kosten ziekenhuiszorg en curatieve zorg",null,null,null,null,null,{"$f":"Kostenverzamelstaat!M73-Kostenverzamelstaat!N73","v":0},{"$f":"Kostenverzamelstaat!K73-Kostenverzamelstaat!L73","v":0},{"$f":"Kostenverzamelstaat!I73-Kostenverzamelstaat!J73","v":0}]
[null,null,null," 611 Overige zorgproducten",null,null,null,null,null,{"$f":"Kostenverzamelstaat!M74-Kostenverzamelstaat!N74","v":0},{"$f":"Kostenverzamelstaat!K74-Kostenverzamelstaat!L74","v":0},{"$f":"Kostenverzamelstaat!I74-Kostenverzamelstaat!J74","v":0}]
[null,null,null," 612.1 Kosten add-ons - Dure geneesmiddelen",null,null,null,null,null,{"$f":"Kostenverzamelstaat!M75-Kostenverzamelstaat!N75","v":0},{"$f":"Kostenverzamelstaat!K75-Kostenverzamelstaat!L75","v":0},{"$f":"Kostenverzamelstaat!I75-Kostenverzamelstaat!J75","v":0}]
[null,null,null," 612.2 Kosten add-ons - IC",null,null,null,null,null,{"$f":"Kostenverzamelstaat!M76-Kostenverzamelstaat!N76","v":0},{"$f":"Kostenverzamelstaat!K76-Kostenverzamelstaat!L76","v":0},{"$f":"Kostenverzamelstaat!I76-Kostenverzamelstaat!J76","v":0}]
[null,null,null," 613.1 Integrale kosten van DBC-zorgproduct gereguleerde segment ",null,null,null,null,null,{"$f":"Kostenverzamelstaat!M77-Kostenverzamelstaat!N77","v":0},{"$f":"Kostenverzamelstaat!K77-Kostenverzamelstaat!L77","v":0},{"$f":"Kostenverzamelstaat!I77-Kostenverzamelstaat!J77","v":0}]
[null,null,null," 615.1 Integrale kosten van DBC-zorgproduct vrije segment",null,null,null,null,null,{"$f":"Kostenverzamelstaat!M78-Kostenverzamelstaat!N78","v":0},{"$f":"Kostenverzamelstaat!K78-Kostenverzamelstaat!L78","v":0},{"$f":"Kostenverzamelstaat!I78-Kostenverzamelstaat!J78","v":0}]
[null,null,null," 619 Integrale kosten extramuraal werkende specialisten",null,null,null,null,null,{"$f":"Kostenverzamelstaat!M79-Kostenverzamelstaat!N79","v":0},{"$f":"Kostenverzamelstaat!K79-Kostenverzamelstaat!L79","v":0},{"$f":"Kostenverzamelstaat!I79-Kostenverzamelstaat!J79","v":0}]
[null,null,null," 806 Meerkosten Corona indirect en toeslagen",null,null,null,null,null,null,{"$f":"Kostenverzamelstaat!K80-Kostenverzamelstaat!L80","v":0}]
[null,null,null," 826 Netto continuïteitsbijdrage Corona (basisverzekering)",null,null,null,null,null,null,{"$f":"Kostenverzamelstaat!K83-Kostenverzamelstaat!L83","v":0},{"$f":"Kostenverzamelstaat!I83-Kostenverzamelstaat!J83","v":0}]
[null,null,null," 620 Kosten fysiotherapie",null,null,null,null,null,{"$f":"Kostenverzamelstaat!M86-Kostenverzamelstaat!N86","v":0},{"$f":"Kostenverzamelstaat!K86-Kostenverzamelstaat!L86","v":0},{"$f":"Kostenverzamelstaat!I86-Kostenverzamelstaat!J86","v":0}]
[null,null,null," 621 Kosten oefentherapie Mensendieck/Cesar",null,null,null,null,null,{"$f":"Kostenverzamelstaat!M87-Kostenverzamelstaat!N87","v":0},{"$f":"Kostenverzamelstaat!K87-Kostenverzamelstaat!L87","v":0},{"$f":"Kostenverzamelstaat!I87-Kostenverzamelstaat!J87","v":0}]
[null,null,null," 623 Kosten logopedie",null,null,null,null,null,{"$f":"Kostenverzamelstaat!M88-Kostenverzamelstaat!N88","v":0},{"$f":"Kostenverzamelstaat!K88-Kostenverzamelstaat!L88","v":0},{"$f":"Kostenverzamelstaat!I88-Kostenverzamelstaat!J88","v":0}]
[]
[]
[]
[]
[null,null,null,{"$f":"NOW()","v":"2021-09-27T12:35:01.880"},null,null,null,null,null,null,null,{"$f":"CONCATENATE(\"Controleoverzicht \",LOWER(A6))","v":"Controleoverzicht pagina 1"}]
[]
["Pagina 2",null,null,{"$f":"CONCATENATE(\"KWARTAALSTAAT ZVW \", jaar_id,\" \",kwartaal_id,\"E KWARTAAL\")","v":"KWARTAALSTAAT ZVW 2021 3E KWARTAAL"}]
[null,null,null,"CONTROLEOVERZICHT"]
[null,null,null,{"$f":"IF(naw_uzovi_zorgverzekeraar<>\"0000\",CONCATENATE(UPPER(naw_naam_zorgverzekeraar),\", \",UPPER(naw_plaats_zorgverzekeraar)),\"\")","v":""},null,null,null,null,null,null,null,{"$f":"CONCATENATE(\"UZOVI: \",naw_uzovi_zorgverzekeraar)","v":"UZOVI: 0000"}]
[null,null,null,"SPECIFIEKE INFORMATIE A - vervolg"]
[null,null,null," KOSTENVERZAMELSTAAT",null,null,null,null,null,"Kosten balanspost 2019","Kosten balanspost 2020","Kosten balanspost 2021"]
[]
[null,null,null," 624 Kosten ergotherapie",null,null,null,null,null,{"$f":"Kostenverzamelstaat!M89-Kostenverzamelstaat!N89","v":0},{"$f":"Kostenverzamelstaat!K89-Kostenverzamelstaat!L89","v":0},{"$f":"Kostenverzamelstaat!I89-Kostenverzamelstaat!J89","v":0}]
[null,null,null," 625 Kosten dieetadvisering ",null,null,null,null,null,{"$f":"Kostenverzamelstaat!M90-Kostenverzamelstaat!N90","v":0},{"$f":"Kostenverzamelstaat!K90-Kostenverzamelstaat!L90","v":0},{"$f":"Kostenverzamelstaat!I90-Kostenverzamelstaat!J90","v":0}]
[null,null,null," 626 Gecombineerde Leefstijl Interventie (GLI)",null,null,null,null,null,null,{"$f":"Kostenverzamelstaat!K91-Kostenverzamelstaat!L91","v":0},{"$f":"Kostenverzamelstaat!I91-Kostenverzamelstaat!J91","v":0}]
[null,null,null," 807 Meerkosten Coronaindirect en toeslagen ",null,null,null,null,null,null,{"$f":"Kostenverzamelstaat!K92-Kostenverzamelstaat!L92","v":0}]
[null,null,null," 827 Netto continuïteitsbijdrage Corona (basisverzekering)",null,null,null,null,null,null,{"$f":"Kostenverzamelstaat!K95-Kostenverzamelstaat!L95","v":0},{"$f":"Kostenverzamelstaat!I95-Kostenverzamelstaat!J95","v":0}]
[null,null,null," 640 Hulpmiddelenzorg",null,null,null,null,null,{"$f":"Kostenverzamelstaat!M98-Kostenverzamelstaat!N98","v":0},{"$f":"Kostenverzamelstaat!K98-Kostenverzamelstaat!L98","v":0},{"$f":"Kostenverzamelstaat!I98-Kostenverzamelstaat!J98","v":0}]
[null,null,null," 808 Meerkosten Corona indirect en toeslagen",null,null,null,null,null,null,{"$f":"Kostenverzamelstaat!K99-Kostenverzamelstaat!L99","v":0}]
[null,null,null," 828 Netto continuïteitsbijdrage Corona (basisverzekering)",null,null,null,null,null,null,{"$f":"Kostenverzamelstaat!K102-Kostenverzamelstaat!L102","v":0},{"$f":"Kostenverzamelstaat!I102-Kostenverzamelstaat!J102","v":0}]
[null,null,null," 650 Kosten vervoer per ambulance/helikopter",null,null,null,null,null,{"$f":"Kostenverzamelstaat!M105-Kostenverzamelstaat!N105","v":0},{"$f":"Kostenverzamelstaat!K105-Kostenverzamelstaat!L105","v":0},{"$f":"Kostenverzamelstaat!I105-Kostenverzamelstaat!J105","v":0}]
[null,null,null," 650.1 Opbrengstenverrekeningen regionale ambulance-\n voorzieningen",null,null,null,null,null,{"$f":"Kostenverzamelstaat!M106-Kostenverzamelstaat!N106","v":0},{"$f":"Kostenverzamelstaat!K106-Kostenverzamelstaat!L106","v":0},{"$f":"Kostenverzamelstaat!I106-Kostenverzamelstaat!J106","v":0}]
[null,null,null," 651 Kosten vervoer per openbaar vervoer, taxi en eigen auto",null,null,null,null,null,{"$f":"Kostenverzamelstaat!M107-Kostenverzamelstaat!N107","v":0},{"$f":"Kostenverzamelstaat!K107-Kostenverzamelstaat!L107","v":0},{"$f":"Kostenverzamelstaat!I107-Kostenverzamelstaat!J107","v":0}]
[null,null,null," 809 Meerkosten Corona indirect en toeslagen",null,null,null,null,null,null,{"$f":"Kostenverzamelstaat!K108-Kostenverzamelstaat!L108","v":0}]
[null,null,null," 829 Netto continuïteitsbijdrage Corona (basisverzekering)",null,null,null,null,null,null,{"$f":"Kostenverzamelstaat!K111-Kostenverzamelstaat!L111","v":0},{"$f":"Kostenverzamelstaat!I111-Kostenverzamelstaat!J111","v":0}]
[null,null,null," 661 Kosten specialistische GGZ met verblijf",null,null,null,null,null,{"$f":"Kostenverzamelstaat!M124-Kostenverzamelstaat!N124","v":0},{"$f":"Kostenverzamelstaat!K124-Kostenverzamelstaat!L124","v":0},{"$f":"Kostenverzamelstaat!I124-Kostenverzamelstaat!J124","v":0}]
[null,null,null," 661.1 Kosten LGGZ (langdurige GGZ, jaar 2 en 3)",null,null,null,null,null,{"$f":"Kostenverzamelstaat!M125-Kostenverzamelstaat!N125","v":0},{"$f":"Kostenverzamelstaat!K125-Kostenverzamelstaat!L125","v":0},{"$f":"Kostenverzamelstaat!I125-Kostenverzamelstaat!J125","v":0}]
[null,null,null," 662 Kosten specialistische GGZ zonder verblijf",null,null,null,null,null,{"$f":"Kostenverzamelstaat!M126-Kostenverzamelstaat!N126","v":0},{"$f":"Kostenverzamelstaat!K126-Kostenverzamelstaat!L126","v":0},{"$f":"Kostenverzamelstaat!I126-Kostenverzamelstaat!J126","v":0}]
[null,null,null," 665 Generalistische basis GGZ",null,null,null,null,null,{"$f":"Kostenverzamelstaat!M127-Kostenverzamelstaat!N127","v":0},{"$f":"Kostenverzamelstaat!K127-Kostenverzamelstaat!L127","v":0},{"$f":"Kostenverzamelstaat!I127-Kostenverzamelstaat!J127","v":0}]
[null,null,null," 810 Meerkosten Corona indirect en toeslagen ",null,null,null,null,null,null,{"$f":"Kostenverzamelstaat!K128-Kostenverzamelstaat!L128","v":0}]
[null,null,null," 830 Netto continuïteitsbijdrage Corona (basisverzekering)",null,null,null,null,null,{"$f":"Kostenverzamelstaat!M131-Kostenverzamelstaat!N131","v":0},{"$f":"Kostenverzamelstaat!K131-Kostenverzamelstaat!L131","v":0},{"$f":"Kostenverzamelstaat!I131-Kostenverzamelstaat!J131","v":0}]
[null,null,null," 670 Geriatrische revalidatiezorg",null,null,null,null,null,{"$f":"Kostenverzamelstaat!M134-Kostenverzamelstaat!N134","v":0},{"$f":"Kostenverzamelstaat!K134-Kostenverzamelstaat!L134","v":0},{"$f":"Kostenverzamelstaat!I134-Kostenverzamelstaat!J134","v":0}]
[null,null,null," 811.1 Meerkosten Corona indirect en toeslagen",null,null,null,null,null,null,{"$f":"Kostenverzamelstaat!K135-Kostenverzamelstaat!L135","v":0}]
[null,null,null," 831.1 Netto continuïteitsbijdrage Corona (basisverzekering)",null,null,null,null,null,null,{"$f":"Kostenverzamelstaat!K138-Kostenverzamelstaat!L138","v":0},{"$f":"Kostenverzamelstaat!I138-Kostenverzamelstaat!J138","v":0}]
[null,null,null," 671 Eerstelijnsverblijf (ELV)",null,null,null,null,null,{"$f":"Kostenverzamelstaat!M139-Kostenverzamelstaat!N139","v":0},{"$f":"Kostenverzamelstaat!K139-Kostenverzamelstaat!L139","v":0},{"$f":"Kostenverzamelstaat!I139-Kostenverzamelstaat!J139","v":0}]
[null,null,null," 811.2 Meerkosten Corona indirect en toeslagen ",null,null,null,null,null,null,{"$f":"Kostenverzamelstaat!K140-Kostenverzamelstaat!L140","v":0}]
[null,null,null," 831.2 Netto continuïteitsbijdrage Corona (basisverzekering)",null,null,null,null,null,null,{"$f":"Kostenverzamelstaat!K143-Kostenverzamelstaat!L143","v":0},{"$f":"Kostenverzamelstaat!I143-Kostenverzamelstaat!J143","v":0}]
[null,null,null," 672 Geneeskundige  Zorg Specifieke Patiëntgroepen (GZSP)",null,null,null,null,null,null,{"$f":"Kostenverzamelstaat!K144-Kostenverzamelstaat!L144","v":0},{"$f":"Kostenverzamelstaat!I144-Kostenverzamelstaat!J144","v":0}]
[null,null,null," 811.3 Meerkosten Corona indirect en toeslagen",null,null,null,null,null,null,{"$f":"Kostenverzamelstaat!K145-Kostenverzamelstaat!L145","v":0}]
[null,null,null," 831.3 Netto continuïteitsbijdrage Corona (basisverzekering)",null,null,null,null,null,null,{"$f":"Kostenverzamelstaat!K148-Kostenverzamelstaat!L148","v":0},{"$f":"Kostenverzamelstaat!I148-Kostenverzamelstaat!J148","v":0}]
[null,null,null," 680 Kraamzorg",null,null,null,null,null,{"$f":"Kostenverzamelstaat!M151-Kostenverzamelstaat!N151","v":0},{"$f":"Kostenverzamelstaat!K151-Kostenverzamelstaat!L151","v":0},{"$f":"Kostenverzamelstaat!I151-Kostenverzamelstaat!J151","v":0}]
[null,null,null," 812 Meerkosten Corona indirect en toeslagen",null,null,null,null,null,null,{"$f":"Kostenverzamelstaat!K152-Kostenverzamelstaat!L152","v":0}]
[null,null,null," 832 Netto continuïteitsbijdrage Corona (basisverzekering)",null,null,null,null,null,null,{"$f":"Kostenverzamelstaat!K155-Kostenverzamelstaat!L155","v":0},{"$f":"Kostenverzamelstaat!I155-Kostenverzamelstaat!J155","v":0}]
[null,null,null," 700 Overige kosten",null,null,null,null,null,{"$f":"Kostenverzamelstaat!M158-Kostenverzamelstaat!N158","v":0},{"$f":"Kostenverzamelstaat!K158-Kostenverzamelstaat!L158","v":0},{"$f":"Kostenverzamelstaat!I158-Kostenverzamelstaat!J158","v":0}]
[null,null,null," 701 Overige geneeskundige zorg",null,null,null,null,null,{"$f":"Kostenverzamelstaat!M159-Kostenverzamelstaat!N159","v":0},{"$f":"Kostenverzamelstaat!K159-Kostenverzamelstaat!L159","v":0},{"$f":"Kostenverzamelstaat!I159-Kostenverzamelstaat!J159","v":0}]
[null,null,null," 702 Kosten van zorg zintuiglijk gehandicapten ",null,null,null,null,null,{"$f":"Kostenverzamelstaat!M160-Kostenverzamelstaat!N160","v":0},{"$f":"Kostenverzamelstaat!K160-Kostenverzamelstaat!L160","v":0},{"$f":"Kostenverzamelstaat!I160-Kostenverzamelstaat!J160","v":0}]
[null,null,null," 813 Meerkosten Corona indirect en toeslagen",null,null,null,null,null,null,{"$f":"Kostenverzamelstaat!K161-Kostenverzamelstaat!L161","v":0}]
[null,null,null," 833 Netto continuïteitsbijdrage Corona (basisverzekering)",null,null,null,null,null,null,{"$f":"Kostenverzamelstaat!K164-Kostenverzamelstaat!L164","v":0},{"$f":"Kostenverzamelstaat!I164-Kostenverzamelstaat!J164","v":0}]
[null,null,null," 720 Kosten via verzekeraar",null,null,null,null,null,{"$f":"Kostenverzamelstaat!M167-Kostenverzamelstaat!N167","v":0},{"$f":"Kostenverzamelstaat!K167-Kostenverzamelstaat!L167","v":0},{"$f":"Kostenverzamelstaat!I167-Kostenverzamelstaat!J167","v":0}]
[null,null,null," 721 Kosten via verbindingsorgaan",null,null,null,null,null,{"$f":"Kostenverzamelstaat!M168-Kostenverzamelstaat!N168","v":0},{"$f":"Kostenverzamelstaat!K168-Kostenverzamelstaat!L168","v":0},{"$f":"Kostenverzamelstaat!I168-Kostenverzamelstaat!J168","v":0}]
[null,null,null," 730 Kwaliteitsgelden",null,null,null,null,null,{"$f":"Kostenverzamelstaat!M171-Kostenverzamelstaat!N171","v":0},{"$f":"Kostenverzamelstaat!K171-Kostenverzamelstaat!L171","v":0},{"$f":"Kostenverzamelstaat!I171-Kostenverzamelstaat!J171","v":0}]
[]
[null,null,null,"VERGELIJKING SPECIFIEKE INFORMATIE A EN C"]
[null,null,null,"KOSTEN PER CODENUMMER\n(ONTVANGEN EN GEACCEPTEERDE DECLARATIES \nT/M 3e kwartaal 2021)",null,null,null,null,null,"Spec. inform. A\nkostenver-\nzamelstaat","Spec. inform. C\ndetail-\ninformatie","VERSCHIL"]
[]
[null,null,null," 503 Bijzondere betalingen",null,null,null,null,null,{"$f":"Kostenverzamelstaat!J16","v":0},{"$f":"'Specifieke informatie C'!L16","v":0},{"$f":"J115-K115","v":0}]
[null,null,null," 506 Consulttarieven",null,null,null,null,null,{"$f":"Kostenverzamelstaat!J19","v":0},{"$f":"'Specifieke informatie C'!L27","v":0},{"$f":"J116-K116","v":0}]
[null,null,null," 507 Overige tarieven",null,null,null,null,null,{"$f":"Kostenverzamelstaat!J20","v":0},{"$f":"'Specifieke informatie C'!L36","v":0},0]
[null,null,null," 510 Multidisciplinaire zorg",null,null,null,null,null,{"$f":"Kostenverzamelstaat!J21","v":0},{"$f":"'Specifieke informatie C'!L44","v":0},0]
[null,null,null," 515 Resultaatbeloning en zorgvernieuwing huisartsen",null,null,null,null,null,{"$f":"Kostenverzamelstaat!J22","v":0},{"$f":"'Specifieke informatie C'!L57","v":0},0]
[null,null,null," 516 Resultaatbeloning en zorgvernieuwing MDZ",null,null,null,null,null,{"$f":"Kostenverzamelstaat!J23","v":0},{"$f":"'Specifieke informatie C'!L63","v":0},0]
[null,null,null," 610 Overige kosten ziekenhuiszorg en curatieve zorg",null,null,null,null,null,{"$f":"Kostenverzamelstaat!J73","v":0},{"$f":"'Specifieke informatie C'!H103","v":0},{"$f":"J121-K121","v":0}]
[null,null,null," 611 Overige zorgproducten (naar instelling)",null,null,null,null,null,{"$f":"Kostenverzamelstaat!J74","v":0},{"$f":"'Specifieke informatie C'!H113","v":0},0]
[null,null,null," 612.1 Kosten add-ons - Dure geneesmiddelen",null,null,null,null,null,{"$f":"Kostenverzamelstaat!J75","v":0},{"$f":"'Specifieke informatie C'!H122","v":0},0]
[null,null,null," 612.2  Kosten add-ons - IC",null,null,null,null,null,{"$f":"Kostenverzamelstaat!J76","v":0},{"$f":"'Specifieke informatie C'!H131","v":0},0]
[null,null,null," 613.1 Integrale kosten DBC-zorgproduct gereguleerd segment",null,null,null,null,null,{"$f":"Kostenverzamelstaat!J77","v":0},{"$f":"'Specifieke informatie C'!H147","v":0},0]
[null,null,null," 615.1 Integrale kosten DBC-zorgproduct vrije segment",null,null,null,null,null,{"$f":"Kostenverzamelstaat!J78","v":0},{"$f":"'Specifieke informatie C'!H156","v":0},0]
[]
[null,null,null,{"$f":"NOW()","v":"2021-09-27T12:35:01.880"},null,null,null,null,null,null,null,{"$f":"CONCATENATE(\"Controleoverzicht \",LOWER(A66))","v":"Controleoverzicht pagina 2"}]
[]
["Pagina 3",null,null,{"$f":"CONCATENATE(\"KWARTAALSTAAT ZVW \", jaar_id,\" \",kwartaal_id,\"E KWARTAAL\")","v":"KWARTAALSTAAT ZVW 2021 3E KWARTAAL"}]
[null,null,null,"CONTROLEOVERZICHT"]
[null,null,null,{"$f":"IF(naw_uzovi_zorgverzekeraar<>\"0000\",CONCATENATE(UPPER(naw_naam_zorgverzekeraar),\", \",UPPER(naw_plaats_zorgverzekeraar)),\"\")","v":""},null,null,null,null,null,null,null,{"$f":"CONCATENATE(\"UZOVI: \",naw_uzovi_zorgverzekeraar)","v":"UZOVI: 0000"}]
[]
[null,null,null,"VERGELIJKING SPECIFIEKE INFORMATIE A EN C - vervolg"]
[null,null,null,"KOSTEN PER CODENUMMER \n(ONTVANGEN EN GEACCEPTEERDE DECLARATIES \n T/M 3e kwartaal 2021)",null,null,null,null,null,"Spec. inform. A\nkostenver-\nzamelstaat","Spec. inform. C\ndetail-\ninformatie","VERSCHIL"]
[]
[null,null,null," 700 Overige kosten",null,null,null,null,null,{"$f":"Kostenverzamelstaat!J158","v":0},{"$f":"'Specifieke informatie C'!L187","v":0},{"$f":"J137-K137","v":0}]
[null,null,null," 701 Overige geneeskundige zorg",null,null,null,null,null,{"$f":"Kostenverzamelstaat!J159","v":0},{"$f":"'Specifieke informatie C'!L198","v":0},{"$f":"J138-K138","v":0}]
[null,null,null," 702 Kosten van zorg zintuiglijk gehandicapten ",null,null,null,null,null,{"$f":"Kostenverzamelstaat!J160","v":0},{"$f":"'Specifieke informatie C'!L204","v":0},0]
[]
[null,null,null," KOSTEN PER CODENUMMER (KOSTEN INCLUSIEF BALANSPOST) 2021",null,null,null,null,null,"Spec. inform. A\nkostenver-\nzamelstaat","Spec. inform. C\ndetail-\ninformatie","VERSCHIL"]
[]
[null,null,null," 610 Overige kosten ziekenhuiszorg en curatieve zorg",null,null,null,null,null,{"$f":"Kostenverzamelstaat!I73","v":0},{"$f":"'Specifieke informatie C'!G103","v":0},{"$f":"J143-K143","v":0}]
[null,null,null," 611 Overige zorgproducten (naar instelling)",null,null,null,null,null,{"$f":"Kostenverzamelstaat!I74","v":0},{"$f":"'Specifieke informatie C'!G113","v":0},0]
[null,null,null," 612.1 Kosten add-ons - Dure geneesmiddelen",null,null,null,null,null,{"$f":"Kostenverzamelstaat!I75","v":0},{"$f":"'Specifieke informatie C'!G122","v":0},0]
[null,null,null," 612.2  Kosten add-ons - IC",null,null,null,null,null,{"$f":"Kostenverzamelstaat!I76","v":0},{"$f":"'Specifieke informatie C'!G131","v":0},0]
[null,null,null," 613.1 Integrale kosten DBC-zorgproduct gereguleerd segment",null,null,null,null,null,{"$f":"Kostenverzamelstaat!I77","v":0},{"$f":"'Specifieke informatie C'!G147","v":0},0]
[null,null,null," 615.1 Integrale kosten DBC-zorgproduct vrije segment",null,null,null,null,null,{"$f":"Kostenverzamelstaat!I78","v":0},{"$f":"'Specifieke informatie C'!G156","v":0},0]
[]
[null,null,null," KOSTEN PER CODENUMMER (KOSTEN INCLUSIEF BALANSPOST) 2020",null,null,null,null,null,"Spec. inform. A\nkostenver-\nzamelstaat","Spec. inform. C\ndetail-\ninformatie","VERSCHIL"]
[]
[null,null,null," 610 Overige kosten ziekenhuiszorg en curatieve zorg",null,null,null,null,null,{"$f":"Kostenverzamelstaat!K73","v":0},{"$f":"'Specifieke informatie C'!I103","v":0},{"$f":"J152-K152","v":0}]
[null,null,null," 611 Overige zorgproducten (naar instelling)",null,null,null,null,null,{"$f":"Kostenverzamelstaat!K74","v":0},{"$f":"'Specifieke informatie C'!I113","v":0},0]
[null,null,null," 612.1 Kosten add-ons - Dure geneesmiddelen",null,null,null,null,null,{"$f":"Kostenverzamelstaat!K75","v":0},{"$f":"'Specifieke informatie C'!I122","v":0},0]
[null,null,null," 612.2  Kosten add-ons - IC",null,null,null,null,null,{"$f":"Kostenverzamelstaat!K76","v":0},{"$f":"'Specifieke informatie C'!I131","v":0},0]
[null,null,null," 613.1 Integrale kosten DBC-zorgproduct gereguleerd segment",null,null,null,null,null,{"$f":"Kostenverzamelstaat!K77","v":0},{"$f":"'Specifieke informatie C'!I147","v":0},0]
[null,null,null," 615.1 Integrale kosten DBC-zorgproduct vrije segment",null,null,null,null,null,{"$f":"Kostenverzamelstaat!K78","v":0},{"$f":"'Specifieke informatie C'!I156","v":0},0]
[]
[null,null,null,{"$f":"NOW()","v":"2021-09-27T12:35:01.880"},null,null,null,null,null,null,null,{"$f":"CONCATENATE(\"Controleoverzicht \",LOWER(A130))","v":"Controleoverzicht pagina 3"}]
[]
["Pagina 4",null,null,{"$f":"CONCATENATE(\"KWARTAALSTAAT ZVW \", jaar_id,\" \",kwartaal_id,\"E KWARTAAL\")","v":"KWARTAALSTAAT ZVW 2021 3E KWARTAAL"}]
[null,null,null,"CONTROLEOVERZICHT"]
[null,null,null,{"$f":"IF(naw_uzovi_zorgverzekeraar<>\"0000\",CONCATENATE(UPPER(naw_naam_zorgverzekeraar),\", \",UPPER(naw_plaats_zorgverzekeraar)),\"\")","v":""},null,null,null,null,null,null,null,{"$f":"CONCATENATE(\"UZOVI: \",naw_uzovi_zorgverzekeraar)","v":"UZOVI: 0000"}]
[]
[]
[null,null,null,"VERGELIJKING SPECIFIEKE INFORMATIE A EN C - vervolg"]
[null,null,null," KOSTEN PER CODENUMMER \n (KOSTEN INCLUSIEF BALANSPOST) 2019 EN OUDER",null,null,null,null,null,"Spec. inform. A\nkostenver-\nzamelstaat","Spec. inform. C\ndetail-\ninformatie","VERSCHIL"]
[]
[null,null,null," 610 Overige kosten ziekenhuiszorg en curatieve zorg",null,null,null,null,null,{"$f":"Kostenverzamelstaat!M73","v":0},{"$f":"'Specifieke informatie C'!K103","v":0},{"$f":"J169-K169","v":0}]
[null,null,null," 611 Overige zorgproducten (naar instelling)",null,null,null,null,null,{"$f":"Kostenverzamelstaat!M74","v":0},{"$f":"'Specifieke informatie C'!K113","v":0},0]
[null,null,null," 612.1 Kosten add-ons - Dure geneesmiddelen",null,null,null,null,null,{"$f":"Kostenverzamelstaat!M75","v":0},{"$f":"'Specifieke informatie C'!K122","v":0},{"$f":"J171-K171","v":0}]
[null,null,null," 612.2  Kosten add-ons - IC",null,null,null,null,null,{"$f":"Kostenverzamelstaat!M76","v":0},{"$f":"'Specifieke informatie C'!K131","v":0},0]
[null,null,null," 613.1 Integrale kosten DBC-zorgproduct gereguleerd segment",null,null,null,null,null,{"$f":"Kostenverzamelstaat!M77","v":0},{"$f":"'Specifieke informatie C'!K147","v":0},0]
[null,null,null," 615.1 Integrale kosten DBC-zorgproduct vrije segment",null,null,null,null,null,{"$f":"Kostenverzamelstaat!M78","v":0},{"$f":"'Specifieke informatie C'!K156","v":0},0]
[]
[null,null,null,"KOSTEN PER CODENUMMER \n(ONTVANGEN EN GEACCEPTEERDE DECLARATIES \n M.B.T. 2019 EN OUDER)",null,null,null,null,null,"Spec. inform. A\nkostenver-\nzamelstaat","Spec. inform. C\ndetail-\ninformatie","VERSCHIL"]
[]
[null,null,null," 610 Overige kosten ziekenhuiszorg en curatieve zorg",null,null,null,null,null,{"$f":"Kostenverzamelstaat!N73","v":0},{"$f":"'Specifieke informatie C'!L103","v":0},{"$f":"J178-K178","v":0}]
[null,null,null," 611 Overige zorgproducten (naar instelling)",null,null,null,null,null,{"$f":"Kostenverzamelstaat!N74","v":0},{"$f":"'Specifieke informatie C'!L113","v":0},0]
[null,null,null," 612.1 Kosten add-ons - Dure geneesmiddelen",null,null,null,null,null,{"$f":"Kostenverzamelstaat!N75","v":0},{"$f":"'Specifieke informatie C'!L122","v":0},0]
[null,null,null," 612.2  Kosten add-ons - IC",null,null,null,null,null,{"$f":"Kostenverzamelstaat!N76","v":0},{"$f":"'Specifieke informatie C'!L131","v":0},0]
[null,null,null," 613.1 Integrale kosten DBC-zorgproduct gereguleerd segment",null,null,null,null,null,{"$f":"Kostenverzamelstaat!N77","v":0},{"$f":"'Specifieke informatie C'!L147","v":0},0]
[null,null,null," 615.1 Integrale kosten DBC-zorgproduct vrije segment",null,null,null,null,null,{"$f":"Kostenverzamelstaat!N78","v":0},{"$f":"'Specifieke informatie C'!L156","v":0},0]
[]
[null,null,null," Controle code 505 kostenverzamelstaat",null,null,null,null,null,null,null,{"$f":"Kostenverzamelstaat!I18","v":0}]
[null,null,null," Kosten per verzekerde o.b.v. laatst bekende verzekerdenstand (in hele euro's)",null,null,null,null,null,null,null,{"$f":"IF(L185<>0,(L185/J12),0)","v":0}]
[null,null,null,{"$f":"IF(OR(L186>kwartaal_id*112),\"Attentiebericht: Kosten per verzekerde liggen buiten het verwachte bereik. Controleer de kostenverzamelstaat!\",\"\")","v":""}]
[]
[null,null,null,"VERGELIJKING SPECIFIEKE INFORMATIE A EN C (Contractinformatie)"]
[null,null,null," KOSTEN PER RUBRIEK OF CODENUMMER \n (KOSTEN INCLUSIEF BALANSPOST) 2021",null,null,null,null,null,"Spec. inform. A\nkostenver-\nzamelstaat","Spec. inform. C\ncontract-\ninformatie","VERSCHIL"]
[]
[null,null,null," Huisartsenzorg en Multidisciplinaire zorg, rubriek 01",null,null,null,null,null,{"$f":"Kostenverzamelstaat!I28","v":0},{"$f":"Contractinformatie!K24","v":0},{"$f":"J192-K192","v":0}]
[null,null,null," Medisch Specialistische zorg, rubriek 06",null,null,null,null,null,{"$f":"Kostenverzamelstaat!I84","v":0},{"$f":"Contractinformatie!K47","v":0},{"$f":"J193-K193","v":0}]
[null,null,null," Geriatrische Revalidatie, Eerstelijnsverblijf en Geneeskundige zorg specifieke patinetgroepen, rubriek 11",null,null,null,null,null,{"$f":"Kostenverzamelstaat!I149","v":0},{"$f":"Contractinformatie!K103","v":0},0]
[null,null,null," Zintuiglijk Gehandicapten, code 702",null,null,null,null,null,{"$f":"Kostenverzamelstaat!I160","v":0},{"$f":"Contractinformatie!K82","v":0},0]
[null,null,null,{"$f":"NOW()","v":"2021-09-27T12:35:01.880"},null,null,null,null,null,null,null,{"$f":"CONCATENATE(\"Controleoverzicht \",LOWER(A161))","v":"Controleoverzicht pagina 4"}]

{"sheet":"Blad1","index":12,"n_rows":991,"n_cols":17,"rows_kept":991,"cut":false,"hidden":true,"merged":[]}
[]
[]
[]
[]
[]
[]
[]
[]
[]
[]
[]
[null,null,null,null,"vcd_spec_idvar","vcd_waarde_flt","vcd_waarde_txt","vcd_toelichting_txt","vcd_spec1_idvar","vcd_spec2_idvar","vcd_spec3_idvar","vcd_attrib_idvar","vcd_eenheid_txt","vcd_dsnorder_flt","vcd_datatype_txt","vcd_format_txt","vcd_eenheid_flt"]
[null,null,null,null,"xstaat_kdrwet_id_","*=0","ZVQ3","Excel numeriek om te zetten sleutel kdrwet via waarden","xstaat","kdrwet","id","","",null,"C",""]
[null,null,null,null,"xstaat_kdrwet_idjmd_","*=0",20210930,"Excel numeriek om te zetten sleutel kdrwet periode","xstaat","kdrwet","idjmd","","",null,"C",""]
[null,null,null,null,"xstaat_uzovi_filename_","*=0","*=CEL(\"bestandsnaam\")","Excel numeriek filenaam bevat ook sleutels","xstaat","uzovi","filename","","",null,"C",""]
[null,null,null,null,"xstaat_uzovi_id_","*=0","*=NUMERIEKE.WAARDE(NAW_gegevens!$C$6)","Excel numeriek om te zetten sleutel uzovi","xstaat","uzovi","id","","",null,"C",""]
[null,null,null,null,"xstaat_uzovi_idvrs_","*=0","01","Excel numeriek om te zetten sleutel uzovi versie levering","xstaat","uzovi","idvrs","","",null,"C",""]
[null,null,null,null,"zvkx01_c503__TY0V01","*=Kostenverzamelstaat!$I$16","","Huisartsen- bijz betalingen- incl balans","zvkx01","c503","","TY0V01","Euro's",null,"N","",1]
[null,null,null,null,"zvkx01_a503__TY0V01","*=Kostenverzamelstaat!$J$16","","Huisartsen- bijz betalingen- geaccepteerd","zvkx01","a503","","TY0V01","Euro's",null,"N","",1]
[null,null,null,null,"zvkx01_c503__TY1V01","*=Kostenverzamelstaat!$K$16","","Huisartsen- bijz betalingen- incl balans","zvkx01","c503","","TY1V01","Euro's",null,"N","",1]
[null,null,null,null,"zvkx01_a503__TY1V01","*=Kostenverzamelstaat!$L$16","","Huisartsen- bijz betalingen- geaccepteerd","zvkx01","a503","","TY1V01","Euro's",null,"N","",1]
[null,null,null,null,"zvkx01_c503__TY2V01","*=Kostenverzamelstaat!$M$16","","Huisartsen- bijz betalingen- incl balans","zvkx01","c503","","TY2V01","Euro's",null,"N","",1]
[null,null,null,null,"zvkx01_a503__TY2V01","*=Kostenverzamelstaat!$N$16","","Huisartsen- bijz betalingen- geaccepteerd","zvkx01","a503","","TY2V01","Euro's",null,"N","",1]
[null,null,null,null,"zvkx01_c504__TY0V01","*=Kostenverzamelstaat!$I$17","","Huisartsen- bijz diensttijden- incl balans","zvkx01","c504","","TY0V01","Euro's",null,"N","",1]
[null,null,null,null,"zvkx01_a504__TY0V01","*=Kostenverzamelstaat!$J$17","","Huisartsen- bijz diensttijden- geaccepteerd","zvkx01","a504","","TY0V01","Euro's",null,"N","",1]
[null,null,null,null,"zvkx01_c504__TY1V01","*=Kostenverzamelstaat!$K$17","","Huisartsen- bijz diensttijden- incl balans","zvkx01","c504","","TY1V01","Euro's",null,"N","",1]
[null,null,null,null,"zvkx01_a504__TY1V01","*=Kostenverzamelstaat!$L$17","","Huisartsen- bijz diensttijden- geaccepteerd","zvkx01","a504","","TY1V01","Euro's",null,"N","",1]
[null,null,null,null,"zvkx01_c504__TY2V01","*=Kostenverzamelstaat!$M$17","","Huisartsen- bijz diensttijden- incl balans","zvkx01","c504","","TY2V01","Euro's",null,"N","",1]
[null,null,null,null,"zvkx01_a504__TY2V01","*=Kostenverzamelstaat!$N$17","","Huisartsen- bijz diensttijden- geaccepteerd","zvkx01","a504","","TY2V01","Euro's",null,"N","",1]
[null,null,null,null,"zvkx01_c505__TY0V01","*=Kostenverzamelstaat!$I$18","","Huisartsen- Inschrijvingen- incl balans","zvkx01","c505","","TY0V01","Euro's",null,"N","",1]
[null,null,null,null,"zvkx01_a505__TY0V01","*=Kostenverzamelstaat!$J$18","","Huisartsen- Inschrijvingen- geaccepteerd","zvkx01","a505","","TY0V01","Euro's",null,"N","",1]
[null,null,null,null,"zvkx01_c505__TY1V01","*=Kostenverzamelstaat!$K$18","","Huisartsen- Inschrijvingen- incl balans","zvkx01","c505","","TY1V01","Euro's",null,"N","",1]
[null,null,null,null,"zvkx01_a505__TY1V01","*=Kostenverzamelstaat!$L$18","","Huisartsen- Inschrijvingen- geaccepteerd","zvkx01","a505","","TY1V01","Euro's",null,"N","",1]
[null,null,null,null,"zvkx01_c505__TY2V01","*=Kostenverzamelstaat!$M$18","","Huisartsen- Inschrijvingen- incl balans","zvkx01","c505","","TY2V01","Euro's",null,"N","",1]
[null,null,null,null,"zvkx01_a505__TY2V01","*=Kostenverzamelstaat!$N$18","","Huisartsen- Inschrijvingen- geaccepteerd","zvkx01","a505","","TY2V01","Euro's",null,"N","",1]
[null,null,null,null,"zvkx01_c506__TY0V01","*=Kostenverzamelstaat!$I$19","","Huisartsen- Consult- incl balans","zvkx01","c506","","TY0V01","Euro's",null,"N","",1]
[null,null,null,null,"zvkx01_a506__TY0V01","*=Kostenverzamelstaat!$J$19","","Huisartsen- Consult- geaccepteerd","zvkx01","a506","","TY0V01","Euro's",null,"N","",1]
[null,null,null,null,"zvkx01_c506__TY1V01","*=Kostenverzamelstaat!$K$19","","Huisartsen- Consult- incl balans","zvkx01","c506","","TY1V01","Euro's",null,"N","",1]
[null,null,null,null,"zvkx01_a506__TY1V01","*=Kostenverzamelstaat!$L$19","","Huisartsen- Consult- geaccepteerd","zvkx01","a506","","TY1V01","Euro's",null,"N","",1]
[null,null,null,null,"zvkx01_c506__TY2V01","*=Kostenverzamelstaat!$M$19","","Huisartsen- Consult- incl balans","zvkx01","c506","","TY2V01","Euro's",null,"N","",1]
[null,null,null,null,"zvkx01_a506__TY2V01","*=Kostenverzamelstaat!$N$19","","Huisartsen- Consult- geaccepteerd","zvkx01","a506","","TY2V01","Euro's",null,"N","",1]
[null,null,null,null,"zvkx01_c507__TY0V01","*=Kostenverzamelstaat!$I$20","","Huisartsen- Overige- incl balans","zvkx01","c507","","TY0V01","Euro's",null,"N","",1]
[null,null,null,null,"zvkx01_a507__TY0V01","*=Kostenverzamelstaat!$J$20","","Huisartsen- Overige- geaccepteerd","zvkx01","a507","","TY0V01","Euro's",null,"N","",1]
[null,null,null,null,"zvkx01_c507__TY1V01","*=Kostenverzamelstaat!$K$20","","Huisartsen- Overige- incl balans","zvkx01","c507","","TY1V01","Euro's",null,"N","",1]
[null,null,null,null,"zvkx01_a507__TY1V01","*=Kostenverzamelstaat!$L$20","","Huisartsen- Overige- geaccepteerd","zvkx01","a507","","TY1V01","Euro's",null,"N","",1]
[null,null,null,null,"zvkx01_c507__TY2V01","*=Kostenverzamelstaat!$M$20","","Huisartsen- Overige- incl balans","zvkx01","c507","","TY2V01","Euro's",null,"N","",1]
[null,null,null,null,"zvkx01_a507__TY2V01","*=Kostenverzamelstaat!$N$20","","Huisartsen- Overige- geaccepteerd","zvkx01","a507","","TY2V01","Euro's",null,"N","",1]
[null,null,null,null,"zvkx01_c510__TY0V01","*=Kostenverzamelstaat!$I$21","","Huisartsen- MDZ- incl balans","zvkx01","c510","","TY0V01","Euro's",null,"N","",1]
[null,null,null,null,"zvkx01_a510__TY0V01","*=Kostenverzamelstaat!$J$21","","Huisartsen- MDZ- geaccepteerd","zvkx01","a510","","TY0V01","Euro's",null,"N","",1]
[null,null,null,null,"zvkx01_c510__TY1V01","*=Kostenverzamelstaat!$K$21","","Huisartsen- MDZ- incl balans","zvkx01","c510","","TY1V01","Euro's",null,"N","",1]
[null,null,null,null,"zvkx01_a510__TY1V01","*=Kostenverzamelstaat!$L$21","","Huisartsen- MDZ- geaccepteerd","zvkx01","a510","","TY1V01","Euro's",null,"N","",1]
[null,null,null,null,"zvkx01_c510__TY2V01","*=Kostenverzamelstaat!$M$21","","Huisartsen- MDZ- incl balans","zvkx01","c510","","TY2V01","Euro's",null,"N","",1]
[null,null,null,null,"zvkx01_a510__TY2V01","*=Kostenverzamelstaat!$N$21","","Huisartsen- MDZ- geaccepteerd","zvkx01","a510","","TY2V01","Euro's",null,"N","",1]
[null,null,null,null,"zvkx01_c515__TY0V01","*=Kostenverzamelstaat!$I$22","","Huisartsen- Resultaatbel. huisartsen- incl balans","zvkx01","c515","","TY0V01","Euro's",null,"N","",1]
[null,null,null,null,"zvkx01_a515__TY0V01","*=Kostenverzamelstaat!$J$22","","Huisartsen- Resultaatbel. huisartsen- geaccepteerd","zvkx01","a515","","TY0V01","Euro's",null,"N","",1]
[null,null,null,null,"zvkx01_c515__TY1V01","*=Kostenverzamelstaat!$K$22","","Huisartsen- Resultaatbel. huisartsen- incl balans","zvkx01","c515","","TY1V01","Euro's",null,"N","",1]
[null,null,null,null,"zvkx01_a515__TY1V01","*=Kostenverzamelstaat!$L$22","","Huisartsen- Resultaatbel. huisartsen- geaccepteerd","zvkx01","a515","","TY1V01","Euro's",null,"N","",1]
[null,null,null,null,"zvkx01_c515__TY2V01","*=Kostenverzamelstaat!$M$22","","Huisartsen- Resultaatbel. huisartsen- incl balans","zvkx01","c515","","TY2V01","Euro's",null,"N","",1]
[null,null,null,null,"zvkx01_a515__TY2V01","*=Kostenverzamelstaat!$N$22","","Huisartsen- Resultaatbel. huisartsen- geaccepteerd","zvkx01","a515","","TY2V01","Euro's",null,"N","",1]
[null,null,null,null,"zvkx01_c516__TY0V01","*=Kostenverzamelstaat!$I$23","","Huisartsen- Resultaatbel. MDZ- incl balans","zvkx01","c516","","TY0V01","Euro's",null,"N","",1]
[null,null,null,null,"zvkx01_a516__TY0V01","*=Kostenverzamelstaat!$J$23","","Huisartsen- Resultaatbel. MDZ- geaccepteerd","zvkx01","a516","","TY0V01","Euro's",null,"N","",1]
[null,null,null,null,"zvkx01_c516__TY1V01","*=Kostenverzamelstaat!$K$23","","Huisartsen- Resultaatbel. MDZ- incl balans","zvkx01","c516","","TY1V01","Euro's",null,"N","",1]
[null,null,null,null,"zvkx01_a516__TY1V01","*=Kostenverzamelstaat!$L$23","","Huisartsen- Resultaatbel. MDZ- geaccepteerd","zvkx01","a516","","TY1V01","Euro's",null,"N","",1]
[null,null,null,null,"zvkx01_c516__TY2V01","*=Kostenverzamelstaat!$M$23","","Huisartsen- Resultaatbel. MDZ- incl balans","zvkx01","c516","","TY2V01","Euro's",null,"N","",1]
[null,null,null,null,"zvkx01_a516__TY2V01","*=Kostenverzamelstaat!$N$23","","Huisartsen- Resultaatbel. MDZ- geaccepteerd","zvkx01","a516","","TY2V01","Euro's",null,"N","",1]
[null,null,null,null,"zvkx01_c821__TY0V01","*=Kostenverzamelstaat!$I$27",null,"Huisartsen- Netto continuïteitsbijdrage Corona (basisverzekering)-  incl balans","zvkx01","c821",null,"TY0V01","Euro's",null,"N","",1]
[null,null,null,null,"zvkx01_a821__TY0V01","*=Kostenverzamelstaat!$J$27",null,"Huisartsen- Netto continuïteitsbijdrage Corona (basisverzekering)- geaccepteerd","zvkx01","a821",null,"TY0V01","Euro's",null,"N","",1]
[null,null,null,null,"zvkx01_c821__TY1V01","*=Kostenverzamelstaat!$K$27",null,"Huisartsen- Netto continuïteitsbijdrage Corona (basisverzekering)-  incl balans","zvkx01","c821",null,"TY1V01","Euro's",null,"N","",1]
[null,null,null,null,"zvkx01_a821__TY1V01","*=Kostenverzamelstaat!$L$27",null,"Huisartsen- Netto continuïteitsbijdrage Corona (basisverzekering)- geaccepteerd","zvkx01","a821",null,"TY1V01","Euro's",null,"N","",1]
[null,null,null,null,"zvkx01_c801__TY1V01","*=Kostenverzamelstaat!$K$24",null,"Huisartsen- Meerkosten Corona indirect en toeslagen- incl balans","zvkx01","c801",null,"TY1V01","Euro's",null,"N","",1]
[null,null,null,null,"zvkx01_a801__TY1V01","*=Kostenverzamelstaat!$L$24",null,"Huisartsen- Meerkosten Corona indirect en toeslagen- geaccepteerd","zvkx01","a801",null,"TY1V01","Euro's",null,"N","",1]
[null,null,null,null,"zvkx01_c__TY0V01","*=Kostenverzamelstaat!$I$28"]
[null,null,null,null,"zvkx01_a__TY0V01","*=Kostenverzamelstaat!$J$28"]
[null,null,null,null,"zvkx01_c__TY1V01","*=Kostenverzamelstaat!$K$28"]
[null,null,null,null,"zvkx01_a__TY1V01","*=Kostenverzamelstaat!$L$28"]
[null,null,null,null,"zvkx01_c__TY2V01","*=Kostenverzamelstaat!$M$28"]
[null,null,null,null,"zvkx01_a__TY2V01","*=Kostenverzamelstaat!$N$28"]
[null,null,null,null,"zvkx02_c520__TY0V01","*=Kostenverzamelstaat!$I$30","","Farmaceutische hulp- incl balans","zvkx02","c520","","TY0V01","Euro's",null,"N","",1]
[null,null,null,null,"zvkx02_a520__TY0V01","*=Kostenverzamelstaat!$J$30","","Farmaceutische hulp- geaccepteerd","zvkx02","a520","","TY0V01","Euro's",null,"N","",1]
[null,null,null,null,"zvkx02_c520__TY1V01","*=Kostenverzamelstaat!$K$30","","Farmaceutische hulp- incl balans","zvkx02","c520","","TY1V01","Euro's",null,"N","",1]
[null,null,null,null,"zvkx02_a520__TY1V01","*=Kostenverzamelstaat!$L$30","","Farmaceutische hulp- geaccepteerd","zvkx02","a520","","TY1V01","Euro's",null,"N","",1]
[null,null,null,null,"zvkx02_c520__TY2V01","*=Kostenverzamelstaat!$M$30","","Farmaceutische hulp- incl balans","zvkx02","c520","","TY2V01","Euro's",null,"N","",1]
[null,null,null,null,"zvkx02_a520__TY2V01","*=Kostenverzamelstaat!$N$30","","Farmaceutische hulp- geaccepteerd","zvkx02","a520","","TY2V01","Euro's",null,"N","",1]
[null,null,null,null,"zvkx02_c822__TY0V01","*=Kostenverzamelstaat!$I$34",null,"Farmaceutische hulp-  Netto continuïteitsbijdrage Corona (basisverzekering)- incl balans","zvkx02","c822","","TY0V01","Euro's",null,"N","",1]
[null,null,null,null,"zvkx02_a822__TY0V01","*=Kostenverzamelstaat!$J$34",null,"Farmaceutische hulp-  Netto continuïteitsbijdrage Corona (basisverzekering)- geaccepteerd","zvkx02","a822","","TY0V01","Euro's",null,"N","",1]
[null,null,null,null,"zvkx02_c822__TY1V01","*=Kostenverzamelstaat!$K$34",null,"Farmaceutische hulp-  Netto continuïteitsbijdrage Corona (basisverzekering)- incl balans","zvkx02","c822","","TY1V01","Euro's",null,"N","",1]
[null,null,null,null,"zvkx02_a822__TY1V01","*=Kostenverzamelstaat!$L$34",null,"Farmaceutische hulp-  Netto continuïteitsbijdrage Corona (basisverzekering)- geaccepteerd","zvkx02","a822","","TY1V01","Euro's",null,"N","",1]
[null,null,null,null,"zvkx02_c802__TY1V01","*=Kostenverzamelstaat!$K$31",null,"Farmaceutische hulp- Meerkosten Corona indirect en toeslagen- incl balans","zvkx02","c802","","TY1V01","Euro's",null,"N","",1]
[null,null,null,null,"zvkx02_a802__TY1V01","*=Kostenverzamelstaat!$L$31",null,"Farmaceutische hulp- Meerkosten Corona indirect en toeslagen- incl balans","zvkx02","a802","","TY1V01","Euro's",null,"N","",1]
[null,null,null,null,"zvkx02_c__TY0V01","*=Kostenverzamelstaat!$I$35"]
[null,null,null,null,"zvkx02_a__TY0V01","*=Kostenverzamelstaat!$J$35"]
[null,null,null,null,"zvkx02_c__TY1V01","*=Kostenverzamelstaat!$K$35"]
[null,null,null,null,"zvkx02_a__TY1V01","*=Kostenverzamelstaat!$L$35"]
[null,null,null,null,"zvkx02_a__TY2V01","*=Kostenverzamelstaat!$M$35"]
[null,null,null,null,"zvkx02_c__TY2V01","*=Kostenverzamelstaat!$N$35"]
[null,null,null,null,"zvkx03_c530__TY0V01","*=Kostenverzamelstaat!$I$37","","Verpleging en verzorging- incl balans","zvkx03","c530","","TY0V01","Euro's",null,"N","",1]
[null,null,null,null,"zvkx03_a530__TY0V01","*=Kostenverzamelstaat!$J$37","","Verpleging en verzorging- geaccepteerd","zvkx03","a530","","TY0V01","Euro's",null,"N","",1]
[null,null,null,null,"zvkx03_c530__TY1V01","*=Kostenverzamelstaat!$K$37","","Verpleging en verzorging- incl balans","zvkx03","c530","","TY1V01","Euro's",null,"N","",1]
[null,null,null,null,"zvkx03_a530__TY1V01","*=Kostenverzamelstaat!$L$37","","Verpleging en verzorging- geaccepteerd","zvkx03","a530","","TY1V01","Euro's",null,"N","",1]
[null,null,null,null,"zvkx03_c530__TY2V01","*=Kostenverzamelstaat!$M$37","","Verpleging en verzorging- incl balans","zvkx03","c530","","TY2V01","Euro's",null,"N","",1]
[null,null,null,null,"zvkx03_a530__TY2V01","*=Kostenverzamelstaat!$N$37","","Verpleging en verzorging- geaccepteerd","zvkx03","a530","","TY2V01","Euro's",null,"N","",1]
[null,null,null,null,"zvkx03_c823__TY0V01","*=Kostenverzamelstaat!$I$41",null,"Verpleging en verzorging- Netto continuïteitsbijdrage Corona (basisverzekering)- incl balans","zvkx03","c823","","TY0V01","Euro's",null,"N","",1]
[null,null,null,null,"zvkx03_a823__TY0V01","*=Kostenverzamelstaat!$J$41",null,"Verpleging en verzorging- Netto continuïteitsbijdrage Corona (basisverzekering)- geaccepteerd","zvkx03","a823","","TY0V01","Euro's",null,"N","",1]
[null,null,null,null,"zvkx03_c823__TY1V01","*=Kostenverzamelstaat!$K$41",null,"Verpleging en verzorging- Netto continuïteitsbijdrage Corona (basisverzekering)- incl balans","zvkx03","c823","","TY1V01","Euro's",null,"N","",1]
[null,null,null,null,"zvkx03_a823__TY1V01","*=Kostenverzamelstaat!$L$41",null,"Verpleging en verzorging- Netto continuïteitsbijdrage Corona (basisverzekering)- geaccepteerd","zvkx03","a823","","TY1V01","Euro's",null,"N","",1]
[null,null,null,null,"zvkx03_c803__TY1V01","*=Kostenverzamelstaat!$K$38",null,"Verpleging en verzorging- Meerkosten Corona indirect en toeslagen- incl balans","zvkx03","c803","","TY1V01","Euro's",null,"N","",1]
[null,null,null,null,"zvkx03_a803__TY1V01","*=Kostenverzamelstaat!$L$38",null,"Verpleging en verzorging- Meerkosten Corona indirect en toeslagen- geaccepteerd","zvkx03","a803","","TY1V01","Euro's",null,"N","",1]
[null,null,null,null,"zvkx03_c__TY0V01","*=Kostenverzamelstaat!$I$42"]
[null,null,null,null,"zvkx03_a__TY0V01","*=Kostenverzamelstaat!$J$42"]
[null,null,null,null,"zvkx03_c__TY1V01","*=Kostenverzamelstaat!$K$42"]
[null,null,null,null,"zvkx03_a__TY1V01","*=Kostenverzamelstaat!$L$42"]
[null,null,null,null,"zvkx03_a__TY2V01","*=Kostenverzamelstaat!$N$42"]
[null,null,null,null,"zvkx03_c__TY1V01","*=Kostenverzamelstaat!$M$42"]
[null,null,null,null,"zvkx04_c5601__TY0V01","*=Kostenverzamelstaat!$I$44","","Mondzorg- volwassen verzekerden- incl balans","zvkx04","c5601","","TY0V01","Euro's",null,"N","",1]
[null,null,null,null,"zvkx04_a5601__TY0V01","*=Kostenverzamelstaat!$J$44","","Mondzorg- volwassen verzekerden- geaccepteerd","zvkx04","a5601","","TY0V01","Euro's",null,"N","",1]
[null,null,null,null,"zvkx04_c5601__TY1V01","*=Kostenverzamelstaat!$K$44","","Mondzorg- volwassen verzekerden- incl balans","zvkx04","c5601","","TY1V01","Euro's",null,"N","",1]
[null,null,null,null,"zvkx04_a5601__TY1V01","*=Kostenverzamelstaat!$L$44","","Mondzorg- volwassen verzekerden- geaccepteerd","zvkx04","a5601","","TY1V01","Euro's",null,"N","",1]
[null,null,null,null,"zvkx04_c5601__TY2V01","*=Kostenverzamelstaat!$M$44","","Mondzorg- volwassen verzekerden- incl balans","zvkx04","c5601","","TY2V01","Euro's",null,"N","",1]
[null,null,null,null,"zvkx04_a5601__TY2V01","*=Kostenverzamelstaat!$N$44","","Mondzorg- volwassen verzekerden- geaccepteerd","zvkx04","a5601","","TY2V01","Euro's",null,"N","",1]
[null,null,null,null,"zvkx04_c5602__TY0V01","*=Kostenverzamelstaat!$I$45","","Mondzorg- jeugdige verzekerden- incl balans","zvkx04","c5602","","TY0V01","Euro's",null,"N","",1]
[null,null,null,null,"zvkx04_a5602__TY0V01","*=Kostenverzamelstaat!$J$45","","Mondzorg- jeugdige verzekerden- geaccepteerd","zvkx04","a5602","","TY0V01","Euro's",null,"N","",1]
[null,null,null,null,"zvkx04_c5602__TY1V01","*=Kostenverzamelstaat!$K$45","","Mondzorg- jeugdige verzekerden- incl balans","zvkx04","c5602","","TY1V01","Euro's",null,"N","",1]
[null,null,null,null,"zvkx04_a5602__TY1V01","*=Kostenverzamelstaat!$L$45","","Mondzorg- jeugdige verzekerden- geaccepteerd","zvkx04","a5602","","TY1V01","Euro's",null,"N","",1]
[null,null,null,null,"zvkx04_c5602__TY2V01","*=Kostenverzamelstaat!$M$45","","Mondzorg- jeugdige verzekerden- incl balans","zvkx04","c5602","","TY2V01","Euro's",null,"N","",1]
[null,null,null,null,"zvkx04_a5602__TY2V01","*=Kostenverzamelstaat!$N$45","","Mondzorg- jeugdige verzekerden- geaccepteerd","zvkx04","a5602","","TY2V01","Euro's",null,"N","",1]
[null,null,null,null,"zvkx04_c561__TY0V01","*=Kostenverzamelstaat!$I$46","","Mondzorg- gebitsprothesen- incl balans","zvkx04","c561","","TY0V01","Euro's",null,"N","",1]
[null,null,null,null,"zvkx04_a561__TY0V01","*=Kostenverzamelstaat!$J$46","","Mondzorg- gebitsprothesen- geaccepteerd","zvkx04","a561","","TY0V01","Euro's",null,"N","",1]
[null,null,null,null,"zvkx04_c561__TY1V01","*=Kostenverzamelstaat!$K$46","","Mondzorg- gebitsprothesen- incl balans","zvkx04","c561","","TY1V01","Euro's",null,"N","",1]
[null,null,null,null,"zvkx04_a561__TY1V01","*=Kostenverzamelstaat!$L$46","","Mondzorg- gebitsprothesen- geaccepteerd","zvkx04","a561","","TY1V01","Euro's",null,"N","",1]
[null,null,null,null,"zvkx04_c561__TY2V01","*=Kostenverzamelstaat!$M$46","","Mondzorg- gebitsprothesen- incl balans","zvkx04","c561","","TY2V01","Euro's",null,"N","",1]
[null,null,null,null,"zvkx04_a561__TY2V01","*=Kostenverzamelstaat!$N$46","","Mondzorg- gebitsprothesen- geaccepteerd","zvkx04","a561","","TY2V01","Euro's",null,"N","",1]
[null,null,null,null,"zvkx04_c824__TY1V01","*=Kostenverzamelstaat!$I$50",null,"Mondzorg- Netto continuïteitsbijdrage Corona (basisverzekering)- incl balans","zvkx04","c824",null,"TY1V01","Euro's",null,"N","",1]
[null,null,null,null,"zvkx04_c804__TY1V01","*=Kostenverzamelstaat!$K$47",null,"Mondzorg- Meerkosten Corona indirect en toeslagen- incl balans","zvkx04","c804",null,"TY1V01","Euro's",null,"N","",1]
[null,null,null,null,"zvkx04_a804__TY1V01","*=Kostenverzamelstaat!$L$47",null,"Mondzorg- Meerkosten Corona indirect en toeslagen- geaccepteerd","zvkx04","a804",null,"TY1V01","Euro's",null,"N","",1]
[null,null,null,null,"zvkx04_c824__TY0V01","*=Kostenverzamelstaat!$I$50",null,"Mondzorg- Netto continuïteitsbijdrage Corona (basisverzekering)- incl balans","zvkx04","c824",null,"TY0V01","Euro's",null,"N","",1]
[null,null,null,null,"zvkx04_a824__TY0V01","*=Kostenverzamelstaat!$J$50",null,"Mondzorg- Netto continuïteitsbijdrage Corona (basisverzekering)- geaccepteerd","zvkx04","a824",null,"TY0V01","Euro's",null,"N","",1]
[null,null,null,null,"zvkx04_c824__TY1V01","*=Kostenverzamelstaat!$K$50",null,"Mondzorg- Netto continuïteitsbijdrage Corona (basisverzekering)- geaccepteerd","zvkx04","a824",null,"TY1V01","Euro's",null,"N","",1]
[null,null,null,null,"zvkx04_a824__TY1V01","*=Kostenverzamelstaat!$L$50",null,"Mondzorg- Netto continuïteitsbijdrage Corona (basisverzekering)- geaccepteerd","zvkx04","a824",null,"TY1V01","Euro's",null,"N","",1]
[null,null,null,null,"zvkx04_c__TY0V01","*=Kostenverzamelstaat!$I$51"]
[null,null,null,null,"zvkx04_a__TY0V01","*=Kostenverzamelstaat!$J$51"]
[null,null,null,null,"zvkx04_c__TY1V01","*=Kostenverzamelstaat!$K$51"]
[null,null,null,null,"zvkx04_a__TY1V01","*=Kostenverzamelstaat!$L$51"]
[null,null,null,null,"zvkx04_c__TY2V01","*=Kostenverzamelstaat!$M$51"]
[null,null,null,null,"zvkx04_a__TY2V01","*=Kostenverzamelstaat!$N$51"]
[null,null,null,null,"zvkx05_c580__TY0V01","*=Kostenverzamelstaat!$I$53","","Verloskundige hulp- door verloskundigen- incl balans","zvkx05","c580","","TY0V01","Euro's",null,"N","",1]
[null,null,null,null,"zvkx05_a580__TY0V01","*=Kostenverzamelstaat!$J$53","","Verloskundige hulp- door verloskundigen- geaccepteerd","zvkx05","a580","","TY0V01","Euro's",null,"N","",1]
[null,null,null,null,"zvkx05_c580__TY1V01","*=Kostenverzamelstaat!$K$53","","Verloskundige hulp- door verloskundigen- incl balans","zvkx05","c580","","TY1V01","Euro's",null,"N","",1]
[null,null,null,null,"zvkx05_a580__TY1V01","*=Kostenverzamelstaat!$L$53","","Verloskundige hulp- door verloskundigen- geaccepteerd","zvkx05","a580","","TY1V01","Euro's",null,"N","",1]
[null,null,null,null,"zvkx05_c580__TY2V01","*=Kostenverzamelstaat!$M$53","","Verloskundige hulp- door verloskundigen- incl balans","zvkx05","c580","","TY2V01","Euro's",null,"N","",1]
[null,null,null,null,"zvkx05_a580__TY2V01","*=Kostenverzamelstaat!$N$53","","Verloskundige hulp- door verloskundigen- geaccepteerd","zvkx05","a580","","TY2V01","Euro's",null,"N","",1]
[null,null,null,null,"zvkx05_c582__TY0V01","*=Kostenverzamelstaat!$I$54","","Verloskundige hulp- Integrale geboortezorg-  incl balans","zvkx05","a582","","TY0V01","Euro's",null,"N","",1]
[null,null,null,null,"zvkx05_a582__TY0V01","*=Kostenverzamelstaat!$J$54","","Verloskundige hulp- Integrale geboortezorg- geaccepteerd","zvkx05","a582","","TY0V01","Euro's",null,"N","",1]
[null,null,null,null,"zvkx05_c582__TY1V01","*=Kostenverzamelstaat!$K$54","","Verloskundige hulp- Integrale geboortezorg-  incl balans","zvkx05","a582","","TY1V01","Euro's",null,"N","",1]
[null,null,null,null,"zvkx05_a582__TY1V01","*=Kostenverzamelstaat!$L$54","","Verloskundige hulp- Integrale geboortezorg- geaccepteerd","zvkx05","a582","","TY1V01","Euro's",null,"N","",1]
[null,null,null,null,"zvkx05_c805__TY1V01","*=Kostenverzamelstaat!$K$55",null,"Verloskundige hulp- Meerkosten Corona indirect en toeslagen- incl balans","zvkx05","c805",null,"TY1V01","Euro's",null,"N","",1]
[null,null,null,null,"zvkx05_a805__TY1V01","*=Kostenverzamelstaat!$L$55",null,"Verloskundige hulp- Meerkosten Corona indirect en toeslagen- geaccepteerd","zvkx05","a805",null,"TY1V01","Euro's",null,"N","",1]
[null,null,null,null,"zvkx05_c825__TY0V01","*=Kostenverzamelstaat!$I$58",null,"Verloskundige hulp- Netto continuïteitsbijdrage Corona (basisverzekering)- incl balans","zvkx05","c825",null,"TY0V01","Euro's",null,"N","",1]
[null,null,null,null,"zvkx05_a825__TY0V01","*=Kostenverzamelstaat!$J$58",null,"Verloskundige hulp- Netto continuïteitsbijdrage Corona (basisverzekering)- geaccepteerd","zvkx05","a825",null,"TY0V01","Euro's",null,"N","",1]
[null,null,null,null,"zvkx05_c825__TY1V01","*=Kostenverzamelstaat!$K$58",null,"Verloskundige hulp- Netto continuïteitsbijdrage Corona (basisverzekering)- incl balans","zvkx05","c825",null,"TY1V01","Euro's",null,"N","",1]
[null,null,null,null,"zvkx05_a825__TY1V01","*=Kostenverzamelstaat!$L$58",null,"Verloskundige hulp- Netto continuïteitsbijdrage Corona (basisverzekering)- geaccepteerd","zvkx05","a825",null,"TY1V01","Euro's",null,"N","",1]
[null,null,null,null,"zvkx05_c__TY0V01","*=Kostenverzamelstaat!$I$59"]
[null,null,null,null,"zvkx05_a__TY0V01","*=Kostenverzamelstaat!$J$59"]
[null,null,null,null,"zvkx05_c__TY1V01","*=Kostenverzamelstaat!$K$59"]
[null,null,null,null,"zvkx05_a__TY1V01","*=Kostenverzamelstaat!$L$59"]
[null,null,null,null,"zvkx05_c__TY2V01","*=Kostenverzamelstaat!$M$59"]
[null,null,null,null,"zvkx05_a__TY2V01","*=Kostenverzamelstaat!$N$59"]
[null,null,null,null,"zvkx06_c545__TY0V01","*=Kostenverzamelstaat!$I$72","","Medisch specialistische hulp- mondziekten en kaakchirurgie- incl balans","zvkx06","c545","","TY0V01","Euro's",null,"N","",1]
[null,null,null,null,"zvkx06_a545__TY0V01","*=Kostenverzamelstaat!$J$72","","Medisch specialistische hulp- mondziekten en kaakchirurgie- geaccepteerd","zvkx06","a545","","TY0V01","Euro's",null,"N","",1]
[null,null,null,null,"zvkx06_c545__TY1V01","*=Kostenverzamelstaat!$K$72","","Medisch specialistische hulp- mondziekten en kaakchirurgie- incl balans","zvkx06","c545","","TY1V01","Euro's",null,"N","",1]
[null,null,null,null,"zvkx06_a545__TY1V01","*=Kostenverzamelstaat!$L$72","","Medisch specialistische hulp- mondziekten en kaakchirurgie- geaccepteerd","zvkx06","a545","","TY1V01","Euro's",null,"N","",1]
[null,null,null,null,"zvkx06_c545__TY2V01","*=Kostenverzamelstaat!$M$72","","Medisch specialistische hulp- mondziekten en kaakchirurgie- incl balans","zvkx06","c545","","TY2V01","Euro's",null,"N","",1]
[null,null,null,null,"zvkx06_a545__TY2V01","*=Kostenverzamelstaat!$N$72","","Medisch specialistische hulp- mondziekten en kaakchirurgie- geaccepteerd","zvkx06","a545","","TY2V01","Euro's",null,"N","",1]
[null,null,null,null,"zvkx06_c610__TY0V01","*=Kostenverzamelstaat!$I$73","","Medisch specialistische hulp- Overige ziekenhuiszorg,curatief- incl balans","zvkx06","c610","","TY0V01","Euro's",null,"N","",1]
[null,null,null,null,"zvkx06_a610__TY0V01","*=Kostenverzamelstaat!$J$73","","Medisch specialistische hulp- Overige ziekenhuiszorg,curatief- geaccepteerd","zvkx06","a610","","TY0V01","Euro's",null,"N","",1]
[null,null,null,null,"zvkx06_c610__TY1V01","*=Kostenverzamelstaat!$K$73","","Medisch specialistische hulp- Overige ziekenhuiszorg,curatief- incl balans","zvkx06","c610","","TY1V01","Euro's",null,"N","",1]
[null,null,null,null,"zvkx06_a610__TY1V01","*=Kostenverzamelstaat!$L$73","","Medisch specialistische hulp- Overige ziekenhuiszorg,curatief- geaccepteerd","zvkx06","a610","","TY1V01","Euro's",null,"N","",1]
[null,null,null,null,"zvkx06_c610__TY2V01","*=Kostenverzamelstaat!$M$73","","Medisch specialistische hulp- Overige ziekenhuiszorg,curatief- incl balans","zvkx06","c610","","TY2V01","Euro's",null,"N","",1]
[null,null,null,null,"zvkx06_a610__TY2V01","*=Kostenverzamelstaat!$N$73","","Medisch specialistische hulp- Overige ziekenhuiszorg,curatief- geaccepteerd","zvkx06","a610","","TY2V01","Euro's",null,"N","",1]
[null,null,null,null,"zvkx06_c611__TY0V01","*=Kostenverzamelstaat!$I$74","","Medisch specialistische hulp- Overige zorg- incl balans","zvkx06","c611","","TY0V01","Euro's",null,"N","",1]
[null,null,null,null,"zvkx06_a611__TY0V01","*=Kostenverzamelstaat!$J$74","","Medisch specialistische hulp- Overige zorg- geaccepteerd","zvkx06","a611","","TY0V01","Euro's",null,"N","",1]
[null,null,null,null,"zvkx06_c611__TY1V01","*=Kostenverzamelstaat!$K$74","","Medisch specialistische hulp- Overige zorg- incl balans","zvkx06","c611","","TY1V01","Euro's",null,"N","",1]
[null,null,null,null,"zvkx06_a611__TY1V01","*=Kostenverzamelstaat!$L$74","","Medisch specialistische hulp- Overige zorg- geaccepteerd","zvkx06","a611","","TY1V01","Euro's",null,"N","",1]
[null,null,null,null,"zvkx06_c611__TY2V01","*=Kostenverzamelstaat!$M$74","","Medisch specialistische hulp- Overige zorg- incl balans","zvkx06","c611","","TY2V01","Euro's",null,"N","",1]
[null,null,null,null,"zvkx06_a611__TY2V01","*=Kostenverzamelstaat!$N$74","","Medisch specialistische hulp- Overige zorg- geaccepteerd","zvkx06","a611","","TY2V01","Euro's",null,"N","",1]
[null,null,null,null,"zvkx06_c6121__TY0V01","*=Kostenverzamelstaat!$I$75","","Medisch specialistische hulp- add-on's Dure geneesmiddelen- incl balans","zvkx06","c6121","","TY0V01","Euro's",null,"N","",1]
[null,null,null,null,"zvkx06_a6121__TY0V01","*=Kostenverzamelstaat!$J$75","","Medisch specialistische hulp- add-on's Dure geneesmiddelen- geaccepteerd","zvkx06","a6121","","TY0V01","Euro's",null,"N","",1]
[null,null,null,null,"zvkx06_c6121__TY1V01","*=Kostenverzamelstaat!$K$75","","Medisch specialistische hulp- add-on's Dure geneesmiddelen- incl balans","zvkx06","c6121","","TY1V01","Euro's",null,"N","",1]
[null,null,null,null,"zvkx06_a6121__TY1V01","*=Kostenverzamelstaat!$L75","","Medisch specialistische hulp- add-on's Dure geneesmiddelen- geaccepteerd","zvkx06","a6121","","TY1V01","Euro's",null,"N","",1]
[null,null,null,null,"zvkx06_c6121__TY2V01","*=Kostenverzamelstaat!$M$75","","Medisch specialistische hulp- add-on's Dure geneesmiddelen- incl balans","zvkx06","c6121","","TY2V01","Euro's",null,"N","",1]
[null,null,null,null,"zvkx06_a6121__TY2V01","*=Kostenverzamelstaat!$N$75","","Medisch specialistische hulp- add-on's Dure geneesmiddelen- geaccepteerd","zvkx06","a6121","","TY2V01","Euro's",null,"N","",1]
[null,null,null,null,"zvkx06_c6122__TY0V01","*=Kostenverzamelstaat!$I$76","","Medisch specialistische hulp- IC- incl balans","zvkx06","c6122","","TY0V01","Euro's",null,"N","",1]
[null,null,null,null,"zvkx06_a6122__TY0V01","*=Kostenverzamelstaat!$J$76","","Medisch specialistische hulp- IC- geaccepteerd","zvkx06","a6122","","TY0V01","Euro's",null,"N","",1]
[null,null,null,null,"zvkx06_c6122__TY1V01","*=Kostenverzamelstaat!$K$76","","Medisch specialistische hulp- IC- incl balans","zvkx06","c6122","","TY1V01","Euro's",null,"N","",1]
[null,null,null,null,"zvkx06_a6122__TY1V01","*=Kostenverzamelstaat!$L$76","","Medisch specialistische hulp- IC- geaccepteerd","zvkx06","a6122","","TY1V01","Euro's",null,"N","",1]
[null,null,null,null,"zvkx06_c6122__TY2V01","*=Kostenverzamelstaat!$M$76","","Medisch specialistische hulp- IC- incl balans","zvkx06","c6122","","TY2V01","Euro's",null,"N","",1]
[null,null,null,null,"zvkx06_a6122__TY2V01","*=Kostenverzamelstaat!$N$76","","Medisch specialistische hulp- IC- geaccepteerd","zvkx06","a6122","","TY2V01","Euro's",null,"N","",1]
[null,null,null,null,"zvkx06_c6131__TY0V01","*=Kostenverzamelstaat!$I$77","","Medisch specialistische hulp- Integraal DBC-zorgproduct gereguleerd- incl balans","zvkx06","c6131","","TY0V01","Euro's",null,"N","",1]
[null,null,null,null,"zvkx06_a6131__TY0V01","*=Kostenverzamelstaat!$J$77","","Medisch specialistische hulp- Integraal DBC-zorgproduct gereguleerd- geaccepteerd","zvkx06","a6131","","TY0V01","Euro's",null,"N","",1]
[null,null,null,null,"zvkx06_c6131__TY1V01","*=Kostenverzamelstaat!$K$77","","Medisch specialistische hulp- Integraal DBC-zorgproduct gereguleerd- incl balans","zvkx06","c6131","","TY1V01","Euro's",null,"N","",1]
[null,null,null,null,"zvkx06_a6131__TY1V01","*=Kostenverzamelstaat!$L$77","","Medisch specialistische hulp- Integraal DBC-zorgproduct gereguleerd- geaccepteerd","zvkx06","a6131","","TY1V01","Euro's",null,"N","",1]
[null,null,null,null,"zvkx06_c6131__TY2V01","*=Kostenverzamelstaat!$M$77","","Medisch specialistische hulp- Integraal DBC-zorgproduct gereguleerd- incl balans","zvkx06","c6131","","TY2V01","Euro's",null,"N","",1]
[null,null,null,null,"zvkx06_a6131__TY2V01","*=Kostenverzamelstaat!$N$77","","Medisch specialistische hulp- Integraal DBC-zorgproduct gereguleerd- geaccepteerd","zvkx06","a6131","","TY2V01","Euro's",null,"N","",1]
[null,null,null,null,"zvkx06_c6151__TY0V01","*=Kostenverzamelstaat!$I$78","","Medisch specialistische hulp- Integraal DBC-zorgproduct vrije segment- incl balans","zvkx06","c6151","","TY0V01","Euro's",null,"N","",1]
[null,null,null,null,"zvkx06_a6151__TY0V01","*=Kostenverzamelstaat!$J$78","","Medisch specialistische hulp- Integraal DBC-zorgproduct vrije segment- geaccepteerd","zvkx06","a6151","","TY0V01","Euro's",null,"N","",1]
[null,null,null,null,"zvkx06_c6151__TY1V01","*=Kostenverzamelstaat!$K$78","","Medisch specialistische hulp- Integraal DBC-zorgproduct vrije segment- incl balans","zvkx06","c6151","","TY1V01","Euro's",null,"N","",1]
[null,null,null,null,"zvkx06_a6151__TY1V01","*=Kostenverzamelstaat!$L$78","","Medisch specialistische hulp- Integraal DBC-zorgproduct vrije segment- geaccepteerd","zvkx06","a6151","","TY1V01","Euro's",null,"N","",1]
[null,null,null,null,"zvkx06_c6151__TY2V01","*=Kostenverzamelstaat!$M$78","","Medisch specialistische hulp- Integraal DBC-zorgproduct vrije segment- incl balans","zvkx06","c6151","","TY2V01","Euro's",null,"N","",1]
[null,null,null,null,"zvkx06_a6151__TY2V01","*=Kostenverzamelstaat!$N$78","","Medisch specialistische hulp- Integraal DBC-zorgproduct vrije segment- geaccepteerd","zvkx06","a6151","","TY2V01","Euro's",null,"N","",1]
[null,null,null,null,"zvkx06_c619__TY0V01","*=Kostenverzamelstaat!$I$79","","Medisch specialistische hulp- honoraria extramuraal- incl balans","zvkx06","c619","","TY0V01","Euro's",null,"N","",1]
[null,null,null,null,"zvkx06_a619__TY0V01","*=Kostenverzamelstaat!$J$79","","Medisch specialistische hulp- honoraria extramuraal- geaccepteerd","zvkx06","a619","","TY0V01","Euro's",null,"N","",1]
[null,null,null,null,"zvkx06_c619__TY1V01","*=Kostenverzamelstaat!$K$79","","Medisch specialistische hulp- honoraria extramuraal- incl balans","zvkx06","c619","","TY1V01","Euro's",null,"N","",1]
[null,null,null,null,"zvkx06_a619__TY1V01","*=Kostenverzamelstaat!$L$79","","Medisch specialistische hulp- honoraria extramuraal- geaccepteerd","zvkx06","a619","","TY1V01","Euro's",null,"N","",1]
[null,null,null,null,"zvkx06_c619__TY2V01","*=Kostenverzamelstaat!$M$79","","Medisch specialistische hulp- honoraria extramuraal- incl balans","zvkx06","c619","","TY2V01","Euro's",null,"N","",1]
[null,null,null,null,"zvkx06_a619__TY2V01","*=Kostenverzamelstaat!$N$79","","Medisch specialistische hulp- honoraria extramuraal- geaccepteerd","zvkx06","a619","","TY2V01","Euro's",null,"N","",1]
[null,null,null,null,"zvkx06_c806__TY1V01","*=Kostenverzamelstaat!$K$80",null,"Medisch specialistische hulp- Meerkosten Corona indirect en toeslagen- incl balans","zvkx06","c806",null,"TY1V01","Euro's",null,"N","",1]
[null,null,null,null,"zvkx06_a806__TY1V01","*=Kostenverzamelstaat!$L$80",null,"Medisch specialistische hulp- Meerkosten Corona indirect en toeslagen- geaccepteerd","zvkx06","a086",null,"TY1V01","Euro's",null,"N","",1]
[null,null,null,null,"zvkx06_c826__TY0V01","*=Kostenverzamelstaat!$I$83",null,"Medisch specialistische hulp- Netto continuïteitsbijdrage Corona (basisverzekering)- incl balans","zvkx06","c826",null,"TY0V01","Euro's",null,"N","",1]
[null,null,null,null,"zvkx06_a826__TY0V01","*=Kostenverzamelstaat!$J$83",null,"Medisch specialistische hulp- Netto continuïteitsbijdrage Corona (basisverzekering)- geaccepteerd","zvkx06","a826",null,"TY0V01","Euro's",null,"N","",1]
[null,null,null,null,"zvkx06_a826__TY1V01","*=Kostenverzamelstaat!$K$83",null,"Medisch specialistische hulp- Netto continuïteitsbijdrage Corona (basisverzekering)- geaccepteerd","zvkx06","a826",null,"TY1V01","Euro's",null,"N","",1]
[null,null,null,null,"zvkx06_c826__TY1V01","*=Kostenverzamelstaat!$L$83",null,"Medisch specialistische hulp- Netto continuïteitsbijdrage Corona (basisverzekering)- incl balans","zvkx06","c826",null,"TY1V01","Euro's",null,"N","",1]
[null,null,null,null,"zvkx06_c__TY0V01","*=Kostenverzamelstaat!$I$84"]
[null,null,null,null,"zvkx06_a__TY0V01","*=Kostenverzamelstaat!$J$84"]
[null,null,null,null,"zvkx06_c__TY1V01","*=Kostenverzamelstaat!$K$84"]
[null,null,null,null,"zvkx06_a__TY1V01","*=Kostenverzamelstaat!$L$84"]
[null,null,null,null,"zvkx06_c__TY2V01","*=Kostenverzamelstaat!$M$84"]
[null,null,null,null,"zvkx06_a__TY2V01","*=Kostenverzamelstaat!$N$84"]
[null,null,null,null,"zvkx07_c620__TY0V01","*=Kostenverzamelstaat!$I$86","","Paramedische hulp- fysiotherapie- incl balans","zvkx07","c620","","TY0V01","Euro's",null,"N","",1]
[null,null,null,null,"zvkx07_a620__TY0V01","*=Kostenverzamelstaat!$J$86","","Paramedische hulp- fysiotherapie- geaccepteerd","zvkx07","a620","","TY0V01","Euro's",null,"N","",1]
[null,null,null,null,"zvkx07_c620__TY1V01","*=Kostenverzamelstaat!$K$86","","Paramedische hulp- fysiotherapie- incl balans","zvkx07","c620","","TY1V01","Euro's",null,"N","",1]
[null,null,null,null,"zvkx07_a620__TY1V01","*=Kostenverzamelstaat!$L$86","","Paramedische hulp- fysiotherapie- geaccepteerd","zvkx07","a620","","TY1V01","Euro's",null,"N","",1]
[null,null,null,null,"zvkx07_c620__TY2V01","*=Kostenverzamelstaat!$M$86","","Paramedische hulp- fysiotherapie- incl balans","zvkx07","c620","","TY2V01","Euro's",null,"N","",1]
[null,null,null,null,"zvkx07_a620__TY2V01","*=Kostenverzamelstaat!$N$86","","Paramedische hulp- fysiotherapie- geaccepteerd","zvkx07","a620","","TY2V01","Euro's",null,"N","",1]
[null,null,null,null,"zvkx07_c621__TY0V01","*=Kostenverzamelstaat!$I$87","","Paramedische hulp- Mensendieck/Cesar- incl balans","zvkx07","c621","","TY0V01","Euro's",null,"N","",1]
[null,null,null,null,"zvkx07_a621__TY0V01","*=Kostenverzamelstaat!$J$87","","Paramedische hulp- Mensendieck/Cesar- geaccepteerd","zvkx07","a621","","TY0V01","Euro's",null,"N","",1]
[null,null,null,null,"zvkx07_c621__TY1V01","*=Kostenverzamelstaat!$K$87","","Paramedische hulp- Mensendieck/Cesar- incl balans","zvkx07","c621","","TY1V01","Euro's",null,"N","",1]
[null,null,null,null,"zvkx07_a621__TY1V01","*=Kostenverzamelstaat!$L$87","","Paramedische hulp- Mensendieck/Cesar- geaccepteerd","zvkx07","a621","","TY1V01","Euro's",null,"N","",1]
[null,null,null,null,"zvkx07_c621__TY2V01","*=Kostenverzamelstaat!$M$87","","Paramedische hulp- Mensendieck/Cesar- incl balans","zvkx07","c621","","TY2V01","Euro's",null,"N","",1]
[null,null,null,null,"zvkx07_a621__TY2V01","*=Kostenverzamelstaat!$N$87","","Paramedische hulp- Mensendieck/Cesar- geaccepteerd","zvkx07","a621","","TY2V01","Euro's",null,"N","",1]
[null,null,null,null,"zvkx07_c623__TY0V01","*=Kostenverzamelstaat!$I$88","","Paramedische hulp- logopedie- incl balans","zvkx07","c623","","TY0V01","Euro's",null,"N","",1]
[null,null,null,null,"zvkx07_a623__TY0V01","*=Kostenverzamelstaat!$J$88","","Paramedische hulp- logopedie- geaccepteerd","zvkx07","a623","","TY0V01","Euro's",null,"N","",1]
[null,null,null,null,"zvkx07_c623__TY1V01","*=Kostenverzamelstaat!$K$88","","Paramedische hulp- logopedie- incl balans","zvkx07","c623","","TY1V01","Euro's",null,"N","",1]
[null,null,null,null,"zvkx07_a623__TY1V01","*=Kostenverzamelstaat!$L$88","","Paramedische hulp- logopedie- geaccepteerd","zvkx07","a623","","TY1V01","Euro's",null,"N","",1]
[null,null,null,null,"zvkx07_c623__TY2V01","*=Kostenverzamelstaat!$M$88","","Paramedische hulp- logopedie- incl balans","zvkx07","c623","","TY2V01","Euro's",null,"N","",1]
[null,null,null,null,"zvkx07_a623__TY2V01","*=Kostenverzamelstaat!$N$88","","Paramedische hulp- logopedie- geaccepteerd","zvkx07","a623","","TY2V01","Euro's",null,"N","",1]
[null,null,null,null,"zvkx07_c624__TY0V01","*=Kostenverzamelstaat!$I$89","","Paramedische hulp- ergotherapie- incl balans","zvkx07","c624","","TY0V01","Euro's",null,"N","",1]
[null,null,null,null,"zvkx07_a624__TY0V01","*=Kostenverzamelstaat!$J$89","","Paramedische hulp- ergotherapie- geaccepteerd","zvkx07","a624","","TY0V01","Euro's",null,"N","",1]
[null,null,null,null,"zvkx07_c624__TY1V01","*=Kostenverzamelstaat!$K$89","","Paramedische hulp- ergotherapie- incl balans","zvkx07","c624","","TY1V01","Euro's",null,"N","",1]
[null,null,null,null,"zvkx07_a624__TY1V01","*=Kostenverzamelstaat!$L$89","","Paramedische hulp- ergotherapie- geaccepteerd","zvkx07","a624","","TY1V01","Euro's",null,"N","",1]
[null,null,null,null,"zvkx07_c624__TY2V01","*=Kostenverzamelstaat!$M$89","","Paramedische hulp- ergotherapie- incl balans","zvkx07","c624","","TY2V01","Euro's",null,"N","",1]
[null,null,null,null,"zvkx07_a624__TY2V01","*=Kostenverzamelstaat!$N$89","","Paramedische hulp- ergotherapie- geaccepteerd","zvkx07","a624","","TY2V01","Euro's",null,"N","",1]
[null,null,null,null,"zvkx07_c625__TY0V01","*=Kostenverzamelstaat!$I$90","","Paramedische hulp- dieetadvisering- incl balans","zvkx07","c625","","TY0V01","Euro's",null,"N","",1]
[null,null,null,null,"zvkx07_a625__TY0V01","*=Kostenverzamelstaat!$J$90","","Paramedische hulp- dieetadvisering- geaccepteerd","zvkx07","a625","","TY0V01","Euro's",null,"N","",1]
[null,null,null,null,"zvkx07_c625__TY1V01","*=Kostenverzamelstaat!$K$90","","Paramedische hulp- dieetadvisering- incl balans","zvkx07","c625","","TY1V01","Euro's",null,"N","",1]
[null,null,null,null,"zvkx07_a625__TY1V01","*=Kostenverzamelstaat!$L$90","","Paramedische hulp- dieetadvisering- geaccepteerd","zvkx07","a625","","TY1V01","Euro's",null,"N","",1]
[null,null,null,null,"zvkx07_c625__TY2V01","*=Kostenverzamelstaat!$M$90","","Paramedische hulp- dieetadvisering- incl balans","zvkx07","c625","","TY2V01","Euro's",null,"N","",1]
[null,null,null,null,"zvkx07_a625__TY2V01","*=Kostenverzamelstaat!$N$90","","Paramedische hulp- dieetadvisering- geaccepteerd","zvkx07","a625","","TY2V01","Euro's",null,"N","",1]
[null,null,null,null,"zvkx07_c626__TY0V01","*=Kostenverzamelstaat!$I$91","","Paramedische hulp- GLI-  incl balans","zvkx07","c626","","TY0V01","Euro's",null,"N","",1]
[null,null,null,null,"zvkx07_a626__TY0V01","*=Kostenverzamelstaat!$J$91","","Paramedische hulp- GLI- geaccepteerd","zvkx07","a625","","TY0V01","Euro's",null,"N","",1]
[null,null,null,null,"zvkx07_c626__TY1V01","*=Kostenverzamelstaat!$K$91","","Paramedische hulp- GLI-  incl balans","zvkx07","a625","","TY1V01","Euro's",null,"N","",1]
[null,null,null,null,"zvkx07_a626__TY1V01","*=Kostenverzamelstaat!$L$91","","Paramedische hulp- GLI- geaccepteerd","zvkx07","a625","","TY1V01","Euro's",null,"N","",1]
[null,null,null,null,"zvkx07_c827__TY0V01","*=Kostenverzamelstaat!$I$95",null,"Paramedische hulp-Netto continuïteitsbijdrage Corona (basisverzekering)- incl balans","zvkx07","c827",null,"TY0V01","Euro's",null,"N","",1]
[null,null,null,null,"zvkx07_a827__TY0V01","*=Kostenverzamelstaat!$J$95",null,"Paramedische hulp-Netto continuïteitsbijdrage Corona (basisverzekering)- geaccepteerd","zvkx07","a827",null,"TY0V01","Euro's",null,"N","",1]
[null,null,null,null,"zvkx07_c827__TY1V01","*=Kostenverzamelstaat!$K$95",null,"Paramedische hulp-Netto continuïteitsbijdrage Corona (basisverzekering)- incl balans","zvkx07","c827",null,"TY1V01","Euro's",null,"N","",1]
[null,null,null,null,"zvkx07_a827__TY1V01","*=Kostenverzamelstaat!$L$95",null,"Paramedische hulp-Netto continuïteitsbijdrage Corona (basisverzekering)- geaccepteerd","zvkx07","a827",null,"TY1V01","Euro's",null,"N","",1]
[null,null,null,null,"zvkx07_c807__TY1V01","*=Kostenverzamelstaat!$K$92",null,"Paramedische hulp-  Meerkosten Corona indirect en toeslagen- incl balans","zvkx07","c807",null,"TY1V01","Euro's",null,"N","",1]
[null,null,null,null,"zvkx07_a807__TY1V01","*=Kostenverzamelstaat!$L$92",null,"Paramedische hulp-  Meerkosten Corona indirect en toeslagen- geaccepteerd","zvkx07","a807",null,"TY1V01","Euro's",null,"N","",1]
[null,null,null,null,"zvkx07_c__TY0V01","*=Kostenverzamelstaat!$I$96"]
[null,null,null,null,"zvkx07_a__TY0V01","*=Kostenverzamelstaat!$J$96"]
[null,null,null,null,"zvkx07_c__TY1V01","*=Kostenverzamelstaat!$K$96"]
[null,null,null,null,"zvkx07_a__TY1V01","*=Kostenverzamelstaat!$L$96"]
[null,null,null,null,"zvkx07_c__TY2V01","*=Kostenverzamelstaat!$M$96"]
[null,null,null,null,"zvkx07_a__TY2V01","*=Kostenverzamelstaat!$N$96"]
[null,null,null,null,"zvkx08_c640__TY0V01","*=Kostenverzamelstaat!$I$98","","Hulpmiddelen-- incl balans","zvkx08","c640","","TY0V01","Euro's",null,"N","",1]
[null,null,null,null,"zvkx08_a640__TY0V01","*=Kostenverzamelstaat!$J$98","","Hulpmiddelen-- geaccepteerd","zvkx08","a640","","TY0V01","Euro's",null,"N","",1]
[null,null,null,null,"zvkx08_c640__TY1V01","*=Kostenverzamelstaat!$K$98","","Hulpmiddelen-- incl balans","zvkx08","c640","","TY1V01","Euro's",null,"N","",1]
[null,null,null,null,"zvkx08_a640__TY1V01","*=Kostenverzamelstaat!$L$98","","Hulpmiddelen-- geaccepteerd","zvkx08","a640","","TY1V01","Euro's",null,"N","",1]
[null,null,null,null,"zvkx08_c640__TY2V01","*=Kostenverzamelstaat!$M$98","","Hulpmiddelen-- incl balans","zvkx08","c640","","TY2V01","Euro's",null,"N","",1]
[null,null,null,null,"zvkx08_a640__TY2V01","*=Kostenverzamelstaat!$N$98","","Hulpmiddelen-- geaccepteerd","zvkx08","a640","","TY2V01","Euro's",null,"N","",1]
[null,null,null,null,"zvkx08_c808__TY1V01","*=Kostenverzamelstaat!$K$99",null,"Hulpmiddelen- Meerkosten Corona indirect en toeslagen- incl balans","zvkx08","c808",null,"TY1V01","Euro's",null,"N","",1]
[null,null,null,null,"zvkx08_a808__TY1V01","*=Kostenverzamelstaat!$L$99",null,"Hulpmiddelen- Meerkosten Corona indirect en toeslagen- geaccepteerd","zvkx08","a808",null,"TY1V01","Euro's",null,"N","",1]
[null,null,null,null,"zvkx08_c828__TY0V01","*=Kostenverzamelstaat!$I$102",null,"Hulpmiddelen- Netto continuïteitsbijdrage Corona (basisverzekering)- incl balans","zvkx08","c828",null,"TY0V01","Euro's",null,"N","",1]
[null,null,null,null,"zvkx08_a828__TY0V01","*=Kostenverzamelstaat!$J$102",null,"Hulpmiddelen- Netto continuïteitsbijdrage Corona (basisverzekering)- geaccepteerd","zvkx08","a828",null,"TY0V01","Euro's",null,"N","",1]
[null,null,null,null,"zvkx08_c828__TY1V01","*=Kostenverzamelstaat!$K$102",null,"Hulpmiddelen- Netto continuïteitsbijdrage Corona (basisverzekering)- incl balans","zvkx08","c828",null,"TY1V01","Euro's",null,"N","",1]
[null,null,null,null,"zvkx08_a828__TY1V01","*=Kostenverzamelstaat!$L$102",null,"Hulpmiddelen- Netto continuïteitsbijdrage Corona (basisverzekering)- geaccepteerd","zvkx08","a828",null,"TY1V01","Euro's",null,"N","",1]
[null,null,null,null,"zvkx08_c__TY0V01","*=Kostenverzamelstaat!$I$103"]
[null,null,null,null,"zvkx08_a__TY0V01","*=Kostenverzamelstaat!$J$103"]
[null,null,null,null,"zvkx08_c__TY1V01","*=Kostenverzamelstaat!$K$103"]
[null,null,null,null,"zvkx08_a__TY1V01","*=Kostenverzamelstaat!$L$103"]
[null,null,null,null,"zvkx08_c__TY2V01","*=Kostenverzamelstaat!$M$103"]
[null,null,null,null,"zvkx08_a__TY2V01","*=Kostenverzamelstaat!$N$103"]
[null,null,null,null,"zvkx09_c650__TY0V01","*=Kostenverzamelstaat!$I$105","","Ziekenvervoer- ambulance/helicopter- incl balans","zvkx09","c650","","TY0V01","Euro's",null,"N","",1]
[null,null,null,null,"zvkx09_a650__TY0V01","*=Kostenverzamelstaat!$J$105","","Ziekenvervoer- ambulance/helicopter- geaccepteerd","zvkx09","a650","","TY0V01","Euro's",null,"N","",1]
[null,null,null,null,"zvkx09_c650__TY1V01","*=Kostenverzamelstaat!$K$105","","Ziekenvervoer- ambulance/helicopter- incl balans","zvkx09","c650","","TY1V01","Euro's",null,"N","",1]
[null,null,null,null,"zvkx09_a650__TY1V01","*=Kostenverzamelstaat!$L$105","","Ziekenvervoer- ambulance/helicopter- geaccepteerd","zvkx09","a650","","TY1V01","Euro's",null,"N","",1]
[null,null,null,null,"zvkx09_c650__TY2V01","*=Kostenverzamelstaat!$M$105","","Ziekenvervoer- ambulance/helicopter- incl balans","zvkx09","c650","","TY2V01","Euro's",null,"N","",1]
[null,null,null,null,"zvkx09_a650__TY2V01","*=Kostenverzamelstaat!$N$105","","Ziekenvervoer- ambulance/helicopter- geaccepteerd","zvkx09","a650","","TY2V01","Euro's",null,"N","",1]
[null,null,null,null,"zvkx09_c6501__TY0V01","*=Kostenverzamelstaat!$I$106","","Ziekenvervoer- regionale ambulance- incl balans","zvkx09","c6501","","TY0V01","Euro's",null,"N","",1]
[null,null,null,null,"zvkx09_a6501__TY0V01","*=Kostenverzamelstaat!$J$106","","Ziekenvervoer- regionale ambulance- geaccepteerd","zvkx09","a6501","","TY0V01","Euro's",null,"N","",1]
[null,null,null,null,"zvkx09_c6501__TY1V01","*=Kostenverzamelstaat!$K$106","","Ziekenvervoer- regionale ambulance- incl balans","zvkx09","c6501","","TY1V01","Euro's",null,"N","",1]
[null,null,null,null,"zvkx09_a6501__TY1V01","*=Kostenverzamelstaat!$L$106","","Ziekenvervoer- regionale ambulance- geaccepteerd","zvkx09","a6501","","TY1V01","Euro's",null,"N","",1]
[null,null,null,null,"zvkx09_a6501__TY2V01","*=Kostenverzamelstaat!$M$106","","Ziekenvervoer- regionale ambulance- geaccepteerd","zvkx09","a6501","","TY2V01","Euro's",null,"N","",1]
[null,null,null,null,"zvkx09_c6501__TY2V01","*=Kostenverzamelstaat!$N$106","","Ziekenvervoer- regionale ambulance- incl balans","zvkx09","c6501","","TY2V01","Euro's",null,"N","",1]
[null,null,null,null,"zvkx09_c651__TY0V01","*=Kostenverzamelstaat!$I$107","","Ziekenvervoer- ov, taxi en eigen auto- incl balans","zvkx09","c651","","TY0V01","Euro's",null,"N","",1]
[null,null,null,null,"zvkx09_a651__TY0V01","*=Kostenverzamelstaat!$J$107","","Ziekenvervoer- ov, taxi en eigen auto- geaccepteerd","zvkx09","a651","","TY0V01","Euro's",null,"N","",1]
[null,null,null,null,"zvkx09_c651__TY1V01","*=Kostenverzamelstaat!$K$107","","Ziekenvervoer- ov, taxi en eigen auto- incl balans","zvkx09","c651","","TY1V01","Euro's",null,"N","",1]
[null,null,null,null,"zvkx09_a651__TY1V01","*=Kostenverzamelstaat!$L$107","","Ziekenvervoer- ov, taxi en eigen auto- geaccepteerd","zvkx09","a651","","TY1V01","Euro's",null,"N","",1]
[null,null,null,null,"zvkx09_c651__TY2V01","*=Kostenverzamelstaat!$M$107","","Ziekenvervoer- ov, taxi en eigen auto- incl balans","zvkx09","c651","","TY2V01","Euro's",null,"N","",1]
[null,null,null,null,"zvkx09_a651__TY2V01","*=Kostenverzamelstaat!$N$107","","Ziekenvervoer- ov, taxi en eigen auto- geaccepteerd","zvkx09","a651","","TY2V01","Euro's",null,"N","",1]
[null,null,null,null,"zvkx09_c809__TY0V01","*=Kostenverzamelstaat!$K$108",null,"Ziekenvervoer- Meerkosten Corona indirect en toeslagen-  incl balans","zvkx09","c809",null,"TY1V01","Euro's",null,"N","",1]
[null,null,null,null,"zvkx09_a809__TY0V01","*=Kostenverzamelstaat!$L$108",null,"Ziekenvervoer- Meerkosten Corona indirect en toeslagen- geaccepteerd","zvkx09","a0809",null,"TY1V01","Euro's",null,"N","",1]
[null,null,null,null,"zvkx09_c829__TY0V01","*=Kostenverzamelstaat!$I$111",null,"Ziekenvervoer- Netto continuïteitsbijdrage Corona (basisverzekering)-  incl balans","zvkx09","c829",null,"TY0V01","Euro's",null,"N","",1]
[null,null,null,null,"zvkx09_a829__TY0V01","*=Kostenverzamelstaat!$J$111",null,"Ziekenvervoer- Netto continuïteitsbijdrage Corona (basisverzekering)- geaccepteerd","zvkx09","a829",null,"TY0V01","Euro's",null,"N","",1]
[null,null,null,null,"zvkx09_c829__TY1V01","*=Kostenverzamelstaat!$K$111",null,"Ziekenvervoer- Netto continuïteitsbijdrage Corona (basisverzekering)-  incl balans","zvkx09","c829",null,"TY1V01","Euro's",null,"N","",1]
[null,null,null,null,"zvkx09_a829__TY1V01","*=Kostenverzamelstaat!$L$111",null,"Ziekenvervoer- Netto continuïteitsbijdrage Corona (basisverzekering)- geaccepteerd","zvkx09","a829",null,"TY1V01","Euro's",null,"N","",1]
[null,null,null,null,"zvkx09_c__TY0V01","*=Kostenverzamelstaat!$I$112"]
[null,null,null,null,"zvkx09_a__TY0V01","*=Kostenverzamelstaat!$J$112"]
[null,null,null,null,"zvkx09_c__TY1V01","*=Kostenverzamelstaat!$K$112"]
[null,null,null,null,"zvkx09_a__TY1V01","*=Kostenverzamelstaat!$L$112"]
[null,null,null,null,"zvkx09_c__TY2V01","*=Kostenverzamelstaat!$M$112"]
[null,null,null,null,"zvkx09_a__TY2V01","*=Kostenverzamelstaat!$N$112"]
[null,null,null,null,"zvkx10_c661__TY0V01","*=Kostenverzamelstaat!$I$124","","Geneeskundige GGZ- GGZ met verblijf- incl balans","zvkx10","c661","","TY0V01","Euro's",null,"N","",1]
[null,null,null,null,"zvkx10_a661__TY0V01","*=Kostenverzamelstaat!$J$124","","Geneeskundige GGZ- GGZ met verblijf- geaccepteerd","zvkx10","a661","","TY0V01","Euro's",null,"N","",1]
[null,null,null,null,"zvkx10_c661__TY1V01","*=Kostenverzamelstaat!$K$124","","Geneeskundige GGZ- GGZ met verblijf- incl balans","zvkx10","c661","","TY1V01","Euro's",null,"N","",1]
[null,null,null,null,"zvkx10_a661__TY1V01","*=Kostenverzamelstaat!$L$124","","Geneeskundige GGZ- GGZ met verblijf- geaccepteerd","zvkx10","a661","","TY1V01","Euro's",null,"N","",1]
[null,null,null,null,"zvkx10_c661__TY2V01","*=Kostenverzamelstaat!$M$124","","Geneeskundige GGZ- GGZ met verblijf- incl balans","zvkx10","c661","","TY2V01","Euro's",null,"N","",1]
[null,null,null,null,"zvkx10_a661__TY2V01","*=Kostenverzamelstaat!$N$124","","Geneeskundige GGZ- GGZ met verblijf- geaccepteerd","zvkx10","a661","","TY2V01","Euro's",null,"N","",1]
[null,null,null,null,"zvkx10_c6611__TY0V01","*=Kostenverzamelstaat!$I$125","","Geneeskundige GGZ- GGZ jaar 2 en 3- incl balans","zvkx10","c6611","","TY0V01","Euro's",null,"N","",1]
[null,null,null,null,"zvkx10_a6611__TY0V01","*=Kostenverzamelstaat!$J$125","","Geneeskundige GGZ- GGZ jaar 2 en 3- geaccepteerd","zvkx10","a6611","","TY0V01","Euro's",null,"N","",1]
[null,null,null,null,"zvkx10_c6611__TY1V01","*=Kostenverzamelstaat!$K$125","","Geneeskundige GGZ- GGZ jaar 2 en 3- incl balans","zvkx10","c6611","","TY1V01","Euro's",null,"N","",1]
[null,null,null,null,"zvkx10_a6611__TY1V01","*=Kostenverzamelstaat!$L$125","","Geneeskundige GGZ- GGZ jaar 2 en 3- geaccepteerd","zvkx10","a6611","","TY1V01","Euro's",null,"N","",1]
[null,null,null,null,"zvkx10_c6611__TY2V01","*=Kostenverzamelstaat!$M$125","","Geneeskundige GGZ- GGZ jaar 2 en 3- incl balans","zvkx10","c6611","","TY2V01","Euro's",null,"N","",1]
[null,null,null,null,"zvkx10_a6611__TY2V01","*=Kostenverzamelstaat!$N$125","","Geneeskundige GGZ- GGZ jaar 2 en 3- geaccepteerd","zvkx10","a6611","","TY2V01","Euro's",null,"N","",1]
[null,null,null,null,"zvkx10_c662__TY0V01","*=Kostenverzamelstaat!$I$126","","Geneeskundige GGZ- GGZ zonder verblijf- incl balans","zvkx10","c662","","TY0V01","Euro's",null,"N","",1]
[null,null,null,null,"zvkx10_a662__TY0V01","*=Kostenverzamelstaat!$J$126","","Geneeskundige GGZ- GGZ zonder verblijf- geaccepteerd","zvkx10","a662","","TY0V01","Euro's",null,"N","",1]
[null,null,null,null,"zvkx10_c662__TY1V01","*=Kostenverzamelstaat!$K$126","","Geneeskundige GGZ- GGZ zonder verblijf- incl balans","zvkx10","c662","","TY1V01","Euro's",null,"N","",1]
[null,null,null,null,"zvkx10_a662__TY1V01","*=Kostenverzamelstaat!$L$126","","Geneeskundige GGZ- GGZ zonder verblijf- geaccepteerd","zvkx10","a662","","TY1V01","Euro's",null,"N","",1]
[null,null,null,null,"zvkx10_c662__TY2V01","*=Kostenverzamelstaat!$M$126","","Geneeskundige GGZ- GGZ zonder verblijf- incl balans","zvkx10","c662","","TY2V01","Euro's",null,"N","",1]
[null,null,null,null,"zvkx10_a662__TY2V01","*=Kostenverzamelstaat!$N$126","","Geneeskundige GGZ- GGZ zonder verblijf- geaccepteerd","zvkx10","a662","","TY2V01","Euro's",null,"N","",1]
[null,null,null,null,"zvkx10_c665__TY0V01","*=Kostenverzamelstaat!$I$127","","Geneeskundige GGZ- basis GGZ- incl balans","zvkx10","c665","","TY0V01","Euro's",null,"N","",1]
[null,null,null,null,"zvkx10_a665__TY0V01","*=Kostenverzamelstaat!$J$127","","Geneeskundige GGZ- basis GGZ- geaccepteerd","zvkx10","a665","","TY0V01","Euro's",null,"N","",1]
[null,null,null,null,"zvkx10_c665__TY1V01","*=Kostenverzamelstaat!$K$127","","Geneeskundige GGZ- basis GGZ- incl balans","zvkx10","c665","","TY1V01","Euro's",null,"N","",1]
[null,null,null,null,"zvkx10_a665__TY1V01","*=Kostenverzamelstaat!$L$127","","Geneeskundige GGZ- basis GGZ- geaccepteerd","zvkx10","a665","","TY1V01","Euro's",null,"N","",1]
[null,null,null,null,"zvkx10_c665__TY2V01","*=Kostenverzamelstaat!$M$127","","Geneeskundige GGZ- basis GGZ- incl balans","zvkx10","c665","","TY2V01","Euro's",null,"N","",1]
[null,null,null,null,"zvkx10_a665__TY2V01","*=Kostenverzamelstaat!$N$127","","Geneeskundige GGZ- basis GGZ- geaccepteerd","zvkx10","a665","","TY2V01","Euro's",null,"N","",1]
[null,null,null,null,"zvkx10_c810__TY0V01","*=Kostenverzamelstaat!$K$128",null,"Geneeskundige GGZ- Meerkosten Corona indirect en toeslagen- incl balans","zvkx10","c810",null,"TY1V01","Euro's",null,"N","",1]
[null,null,null,null,"zvkx10_a810__TY0V01","*=Kostenverzamelstaat!$L$128",null,"Geneeskundige GGZ- Meerkosten Corona indirect en toeslagen- geaccepteerd","zvkx10","a810",null,"TY1V01","Euro's",null,"N","",1]
[null,null,null,null,"zvkx10_c830__TY0V01","*=Kostenverzamelstaat!$I$131",null,"Geneeskundige GGZ- Netto continuïteitsbijdrage Corona (basisverzekering)- incl balans","zvkx10","c830",null,"TY0V01","Euro's",null,"N","",1]
[null,null,null,null,"zvkx10_a830__TY0V01","*=Kostenverzamelstaat!$J$131",null,"Geneeskundige GGZ- Netto continuïteitsbijdrage Corona (basisverzekering)- geaccepteerd","zvkx10","a830",null,"TY0V01","Euro's",null,"N","",1]
[null,null,null,null,"zvkx10_c830__TY1V01","*=Kostenverzamelstaat!$K$131",null,"Geneeskundige GGZ- Netto continuïteitsbijdrage Corona (basisverzekering)- incl balans","zvkx10","c830",null,"TY1V01","Euro's",null,"N","",1]
[null,null,null,null,"zvkx10_a830__TY1V01","*=Kostenverzamelstaat!$L$131",null,"Geneeskundige GGZ- Netto continuïteitsbijdrage Corona (basisverzekering)- geaccepteerd","zvkx10","a830",null,"TY1V01","Euro's",null,"N","",1]
[null,null,null,null,"zvkx10_c830__TY2V01","*=Kostenverzamelstaat!$M$131",null,"Geneeskundige GGZ- Netto continuïteitsbijdrage Corona (basisverzekering)- incl balans","zvkx10","c830",null,"TY2V01","Euro's",null,"N","",1]
[null,null,null,null,"zvkx10_a830__TY2V01","*=Kostenverzamelstaat!$N$131",null,"Geneeskundige GGZ- Netto continuïteitsbijdrage Corona (basisverzekering)- geaccepteerd","zvkx10","a830",null,"TY2V01","Euro's",null,"N","",1]
[null,null,null,null,"zvkx10_c__TY0V01","*=Kostenverzamelstaat!$I$132"]
[null,null,null,null,"zvkx10_a__TY0V01","*=Kostenverzamelstaat!$J$132"]
[null,null,null,null,"zvkx10_c__TY1V01","*=Kostenverzamelstaat!$K$132"]
[null,null,null,null,"zvkx10_a__TY1V01","*=Kostenverzamelstaat!$L$132"]
[null,null,null,null,"zvkx10_c__TY2V01","*=Kostenverzamelstaat!$M$132"]
[null,null,null,null,"zvkx10_a__TY2V01","*=Kostenverzamelstaat!$N$132"]
[null,null,null,null,"zvkx11_c670__TY0V01","*=Kostenverzamelstaat!$I$134","","Geriatische revalidatiezorg- incl balans","zvkx11","c670","","TY0V01","Euro's",null,"N","",1]
[null,null,null,null,"zvkx11_a670__TY0V01","*=Kostenverzamelstaat!$J$134","","Geriatische revalidatiezorg-- geaccepteerd","zvkx11","a670","","TY0V01","Euro's",null,"N","",1]
[null,null,null,null,"zvkx11_c670__TY1V01","*=Kostenverzamelstaat!$K$134","","Geriatische revalidatiezorg- incl balans","zvkx11","c670","","TY1V01","Euro's",null,"N","",1]
[null,null,null,null,"zvkx11_a670__TY1V01","*=Kostenverzamelstaat!$L$134","","Geriatische revalidatiezorg-- geaccepteerd","zvkx11","a670","","TY1V01","Euro's",null,"N","",1]
[null,null,null,null,"zvkx11_c670__TY2V01","*=Kostenverzamelstaat!$M$134","","Geriatische revalidatiezorg- incl balans","zvkx11","c670","","TY2V01","Euro's",null,"N","",1]
[null,null,null,null,"zvkx11_a670__TY2V01","*=Kostenverzamelstaat!$N$134","","Geriatische revalidatiezorg-- geaccepteerd","zvkx11","a670","","TY2V01","Euro's",null,"N","",1]
[null,null,null,null,"zvkx11_c8111__TY1V01","*=Kostenverzamelstaat!$K$135",null,"Geriatische revalidatiezorg- GRZ-  Meerkosten Corona indirect en toeslagen- incl balans","zvkx11","c8111",null,"TY1V01","Euro's",null,"N","",1]
[null,null,null,null,"zvkx11_a8111__TY1V01","*=Kostenverzamelstaat!$L$135",null,"Geriatische revalidatiezorg- GRZ-  Meerkosten Corona indirect en toeslagen- geaccepteerd","zvkx11","a8111",null,"TY1V01","Euro's",null,"N","",1]
[null,null,null,null,"zvkx11_c8311__TY0V01","*=Kostenverzamelstaat!$I$138",null,"Geriatische revalidatiezorg- GRZ- Netto continuïteitsbijdrage Corona (basisverzekering)- incl balans","zvkx11","c8311",null,"TY0V01","Euro's",null,"N","",1]
[null,null,null,null,"zvkx11_a8311__TY0V01","*=Kostenverzamelstaat!$J$138",null,"Geriatische revalidatiezorg- GRZ- Netto continuïteitsbijdrage Corona (basisverzekering)- geaccepteerd","zvkx11","a8311",null,"TY0V01","Euro's",null,"N","",1]
[null,null,null,null,"zvkx11_c8311__TY1V01","*=Kostenverzamelstaat!$K$138",null,"Geriatische revalidatiezorg- GRZ- Netto continuïteitsbijdrage Corona (basisverzekering)- incl balans","zvkx11","c8311",null,"TY1V01","Euro's",null,"N","",1]
[null,null,null,null,"zvkx11_a8311__TY1V01","*=Kostenverzamelstaat!$L$138",null,"Geriatische revalidatiezorg- GRZ- Netto continuïteitsbijdrage Corona (basisverzekering)- geaccepteerd","zvkx11","a8311",null,"TY1V01","Euro's",null,"N","",1]
[null,null,null,null,"zvkx11_c671__TY0V01","*=Kostenverzamelstaat!$I$139","","Geriatische revalidatiezorg- Eerstelijnsverblijf- incl balans","zvkx11","c671","","TY0V01","Euro's",null,"N","",1]
[null,null,null,null,"zvkx11_a671__TY0V01","*=Kostenverzamelstaat!$J$139","","Geriatische revalidatiezorg- Eerstelijnsverblijf- geaccepteerd","zvkx11","a671","","TY0V01","Euro's",null,"N","",1]
[null,null,null,null,"zvkx11_c671__TY1V01","*=Kostenverzamelstaat!$K$139","","Geriatische revalidatiezorg- Eerstelijnsverblijf- incl balans","zvkx11","c671","","TY1V01","Euro's",null,"N","",1]
[null,null,null,null,"zvkx11_a671__TY1V01","*=Kostenverzamelstaat!$L$139","","Geriatische revalidatiezorg- Eerstelijnsverblijf- geaccepteerd","zvkx11","a671","","TY1V01","Euro's",null,"N","",1]
[null,null,null,null,"zvkx11_c671__TY2V01","*=Kostenverzamelstaat!$M$139","","Geriatische revalidatiezorg- Eerstelijnsverblijf- incl balans","zvkx11","c671","","TY2V01","Euro's",null,"N","",1]
[null,null,null,null,"zvkx11_a671__TY2V01","*=Kostenverzamelstaat!$N$139","","Geriatische revalidatiezorg- Eerstelijnsverblijf- geaccepteerd","zvkx11","a671","","TY2V01","Euro's",null,"N","",1]
[null,null,null,null,"zvkx11_c8112__TY1V01","*=Kostenverzamelstaat!$K$140",null,"Geriatische revalidatiezorg- Eerstelijnsverblijf-  Meerkosten Corona indirect en toeslagen- incl balans","zvkx11","c8112",null,"TY1V01","Euro's",null,"N","",1]
[null,null,null,null,"zvkx11_a8112__TY1V01","*=Kostenverzamelstaat!$L$140",null,"Geriatische revalidatiezorg- Eerstelijnsverblijf- Meerkosten Corona indirect en toeslagen-geaccepteerd","zvkx11","a8112",null,"TY1V01","Euro's",null,"N","",1]
[null,null,null,null,"zvkx11_c8312__TY0V01","*=Kostenverzamelstaat!$I$143",null,"Geriatische revalidatiezorg- Eerstelijnsverblijf- Netto continuïteitsbijdrage Corona (basisverzekering)- incl balans","zvkx11","c8312",null,"TY0V01","Euro's",null,"N","",1]
[null,null,null,null,"zvkx11_a8312__TY0V01","*=Kostenverzamelstaat!$J$143",null,"Geriatische revalidatiezorg- Eerstelijnsverblijf- Netto continuïteitsbijdrage Corona (basisverzekering)-  geaccepteerd","zvkx11","a8312",null,"TY0V01","Euro's",null,"N","",1]
[null,null,null,null,"zvkx11_c8312__TY1V01","*=Kostenverzamelstaat!$K$143",null,"Geriatische revalidatiezorg- Eerstelijnsverblijf- Netto continuïteitsbijdrage Corona (basisverzekering)- incl balans","zvkx11","c8312",null,"TY1V01","Euro's",null,"N","",1]
[null,null,null,null,"zvkx11_a8312__TY1V01","*=Kostenverzamelstaat!$L$143",null,"Geriatische revalidatiezorg- Eerstelijnsverblijf- Netto continuïteitsbijdrage Corona (basisverzekering)-  geaccepteerd","zvkx11","a8312",null,"TY1V01","Euro's",null,"N","",1]
[null,null,null,null,"zvkx11_c672__TY0V01","*=Kostenverzamelstaat!$I$144",null,"Geriatische revalidatiezorg- GZSP- incl balans","zvkx11","c672","","TY0V01","Euro's",null,"N","",1]
[null,null,null,null,"zvkx11_a672__TY0V01","*=Kostenverzamelstaat!$J$144",null,"Geriatische revalidatiezorg- GZSP- geaccepteerd","zvkx11","a672","","TY0V01","Euro's",null,"N","",1]
[null,null,null,null,"zvkx11_c672__TY1V01","*=Kostenverzamelstaat!$K$144",null,"Geriatische revalidatiezorg- GZSP- incl balans","zvkx11","a672","","TY1V01","Euro's",null,"N","",1]
[null,null,null,null,"zvkx11_a672__TY1V01","*=Kostenverzamelstaat!$L$144",null,"Geriatische revalidatiezorg- GZSP- geaccepteerd","zvkx11","a672","","TY1V01","Euro's",null,"N","",1]
[null,null,null,null,"zvkx11_c8113__TY1V01","*=Kostenverzamelstaat!$K$145",null,"Geriatische revalidatiezorg- GZSP- Meerkosten Corona indirect en toeslagen- incl balans","zvkx11","c8113",null,"TY1V01","Euro's",null,"N","",1]
[null,null,null,null,"zvkx11_a8113__TY1V01","*=Kostenverzamelstaat!$L$145",null,"Geriatische revalidatiezorg- GZSP-  Meerkosten Corona indirect en toeslagen- geaccepteerd","zvkx11","a8113",null,"TY1V01","Euro's",null,"N","",1]
[null,null,null,null,"zvkx11_c8313__TY0V01","*=Kostenverzamelstaat!$I$148",null,"Geriatische revalidatiezorg- GZSP- Netto continuïteitsbijdrage Corona (basisverzekering)- incl balans","zvkx11","c8313",null,"TY0V01","Euro's",null,"N","",1]
[null,null,null,null,"zvkx11_a8313__TY0V01","*=Kostenverzamelstaat!$J$148",null,"Geriatische revalidatiezorg- GZSP- Netto continuïteitsbijdrage Corona (basisverzekering)- geaccepteerd","zvkx11","a8313",null,"TY0V01","Euro's",null,"N","",1]
[null,null,null,null,"zvkx11_c8313__TY1V01","*=Kostenverzamelstaat!$K$148",null,"Geriatische revalidatiezorg- GZSP- Netto continuïteitsbijdrage Corona (basisverzekering)- incl balans","zvkx11","c8313",null,"TY1V01","Euro's",null,"N","",1]
[null,null,null,null,"zvkx11_a8313__TY1V01","*=Kostenverzamelstaat!$L$148",null,"Geriatische revalidatiezorg- GZSP- Netto continuïteitsbijdrage Corona (basisverzekering)- geaccepteerd","zvkx11","a8313",null,"TY1V01","Euro's",null,"N","",1]
[null,null,null,null,"zvkx11_c__TY0V01","*=Kostenverzamelstaat!$I$149"]
[null,null,null,null,"zvkx11_a__TY0V01","*=Kostenverzamelstaat!$J$149"]
[null,null,null,null,"zvkx11_c__TY1V01","*=Kostenverzamelstaat!$K$149"]
[null,null,null,null,"zvkx11_a__TY1V01","*=Kostenverzamelstaat!$L$149"]
[null,null,null,null,"zvkx11_c__TY2V01","*=Kostenverzamelstaat!$M$149"]
[null,null,null,null,"zvkx11_a__TY2V01","*=Kostenverzamelstaat!$N$149"]
[null,null,null,null,"zvkx12_c680__TY0V01","*=Kostenverzamelstaat!$I$151","","Kraamzorg-- incl balans","zvkx12","c680","","TY0V01","Euro's",null,"N","",1]
[null,null,null,null,"zvkx12_a680__TY0V01","*=Kostenverzamelstaat!$J$151","","Kraamzorg-- geaccepteerd","zvkx12","a680","","TY0V01","Euro's",null,"N","",1]
[null,null,null,null,"zvkx12_c680__TY1V01","*=Kostenverzamelstaat!$K$151","","Kraamzorg-- incl balans","zvkx12","c680","","TY1V01","Euro's",null,"N","",1]
[null,null,null,null,"zvkx12_a680__TY1V01","*=Kostenverzamelstaat!$L$151","","Kraamzorg-- geaccepteerd","zvkx12","a680","","TY1V01","Euro's",null,"N","",1]
[null,null,null,null,"zvkx12_c680__TY2V01","*=Kostenverzamelstaat!$M$151","","Kraamzorg-- incl balans","zvkx12","c680","","TY2V01","Euro's",null,"N","",1]
[null,null,null,null,"zvkx12_a680__TY2V01","*=Kostenverzamelstaat!$N$151","","Kraamzorg-- geaccepteerd","zvkx12","a680","","TY2V01","Euro's",null,"N","",1]
[null,null,null,null,"zvkx12_c812__TY1V01","*=Kostenverzamelstaat!$K$152",null,"Kraamzorg- Meerkosten Corona indirect en toeslagen- incl balans","zvkx12","c812",null,"TY1V01","Euro's",null,"N","",1]
[null,null,null,null,"zvkx12_a812__TY1V01","*=Kostenverzamelstaat!$L$152",null,"Kraamzorg- Meerkosten Corona indirect en toeslagen- geaccepteerd","zvkx12","a812",null,"TY1V01","Euro's",null,"N","",1]
[null,null,null,null,"zvkx12_c832__TY0V01","*=Kostenverzamelstaat!$I$155",null,"Kraamzorg- Netto continuïteitsbijdrage Corona (basisverzekering)- incl balans","zvkx12","c832",null,"TY0V01","Euro's",null,"N","",1]
[null,null,null,null,"zvkx12_a832__TY0V01","*=Kostenverzamelstaat!$J$155",null,"Kraamzorg- Netto continuïteitsbijdrage Corona (basisverzekering)- geaccepteerd","zvkx12","a832",null,"TY0V01","Euro's",null,"N","",1]
[null,null,null,null,"zvkx12_c832__TY1V01","*=Kostenverzamelstaat!$K$155",null,"Kraamzorg- Netto continuïteitsbijdrage Corona (basisverzekering)- incl balans","zvkx12","c832",null,"TY1V01","Euro's",null,"N","",1]
[null,null,null,null,"zvkx12_a832__TY1V01","*=Kostenverzamelstaat!$L$155",null,"Kraamzorg- Netto continuïteitsbijdrage Corona (basisverzekering)- geaccepteerd","zvkx12","a832",null,"TY1V01","Euro's",null,"N","",1]
[null,null,null,null,"zvkx12_c__TY0V01","*=Kostenverzamelstaat!$I$156"]
[null,null,null,null,"zvkx12_a__TY0V01","*=Kostenverzamelstaat!$J$156"]
[null,null,null,null,"zvkx12_c__TY1V01","*=Kostenverzamelstaat!$K$156"]
[null,null,null,null,"zvkx12_a__TY1V01","*=Kostenverzamelstaat!$L$156"]
[null,null,null,null,"zvkx12_c__TY2V01","*=Kostenverzamelstaat!$M$156"]
[null,null,null,null,"zvkx12_a__TY2V01","*=Kostenverzamelstaat!$N$156"]
[null,null,null,null,"zvkx13_c700__TY0V01","*=Kostenverzamelstaat!$I$158","","Overige kosten-- incl balans","zvkx13","c700","","TY0V01","Euro's",null,"N","",1]
[null,null,null,null,"zvkx13_a700__TY0V01","*=Kostenverzamelstaat!$J$158","","Overige kosten- geaccepteerd","zvkx13","a700","","TY0V01","Euro's",null,"N","",1]
[null,null,null,null,"zvkx13_c700__TY1V01","*=Kostenverzamelstaat!$K$158","","Overige kosten-- incl balans","zvkx13","c700","","TY1V01","Euro's",null,"N","",1]
[null,null,null,null,"zvkx13_a700__TY1V01","*=Kostenverzamelstaat!$L$158","","Overige kosten-- geaccepteerd","zvkx13","a700","","TY1V01","Euro's",null,"N","",1]
[null,null,null,null,"zvkx13_c700__TY2V01","*=Kostenverzamelstaat!$M$158","","Overige kosten-- incl balans","zvkx13","c700","","TY2V01","Euro's",null,"N","",1]
[null,null,null,null,"zvkx13_a700__TY2V01","*=Kostenverzamelstaat!$N$158","","Overige kosten-- geaccepteerd","zvkx13","a700","","TY2V01","Euro's",null,"N","",1]
[null,null,null,null,"zvkx13_c701__TY0V01","*=Kostenverzamelstaat!$I$159","","Overige kosten- geneeskundige zorg- incl balans","zvkx13","c701","","TY0V01","Euro's",null,"N","",1]
[null,null,null,null,"zvkx13_a701__TY0V01","*=Kostenverzamelstaat!$J$159","","Overige kosten- geneeskundige zorg-geaccepteerd","zvkx13","a701","","TY0V01","Euro's",null,"N","",1]
[null,null,null,null,"zvkx13_c701__TY1V01","*=Kostenverzamelstaat!$K$159","","Overige kosten- geneeskundige zorg- incl balans","zvkx13","c701","","TY1V01","Euro's",null,"N","",1]
[null,null,null,null,"zvkx13_a701__TY1V01","*=Kostenverzamelstaat!$L$159","","Overige kosten- geneeskundige zorg- geaccepteerd","zvkx13","a701","","TY1V01","Euro's",null,"N","",1]
[null,null,null,null,"zvkx13_c701__TY2V01","*=Kostenverzamelstaat!$M$159","","Overige kosten- geneeskundige zorg- incl balans","zvkx13","c701","","TY2V01","Euro's",null,"N","",1]
[null,null,null,null,"zvkx13_a701__TY2V01","*=Kostenverzamelstaat!$N$159","","Overige kosten- geneeskundige zorg- geaccepteerd","zvkx13","a701","","TY2V01","Euro's",null,"N","",1]
[null,null,null,null,"zvkx13_c702__TY0V01","*=Kostenverzamelstaat!$I$160","","Overige kosten- zintuiglijk gehandicapten- incl balans","zvkx13","c702","","TY0V01","Euro's",null,"N","",1]
[null,null,null,null,"zvkx13_a702__TY0V01","*=Kostenverzamelstaat!$J$160","","Overige kosten- zintuiglijk gehandicapten- geaccepteerd","zvkx13","a702","","TY0V01","Euro's",null,"N","",1]
[null,null,null,null,"zvkx13_c702__TY1V01","*=Kostenverzamelstaat!$K$160","","Overige kosten- zintuiglijk gehandicapten- incl balans","zvkx13","c702","","TY1V01","Euro's",null,"N","",1]
[null,null,null,null,"zvkx13_a702__TY1V01","*=Kostenverzamelstaat!$L$160","","Overige kosten- zintuiglijk gehandicapten- geaccepteerd","zvkx13","a702","","TY1V01","Euro's",null,"N","",1]
[null,null,null,null,"zvkx13_c702__TY2V01","*=Kostenverzamelstaat!$M$160","","Overige kosten- zintuiglijk gehandicapten- incl balans","zvkx13","c702","","TY2V01","Euro's",null,"N","",1]
[null,null,null,null,"zvkx13_a702__TY2V01","*=Kostenverzamelstaat!$N$160","","Overige kosten- zintuiglijk gehandicapten- geaccepteerd","zvkx13","a702","","TY2V01","Euro's",null,"N","",1]
[null,null,null,null,"zvkx13_c813__TY1V01","*=Kostenverzamelstaat!$K$161",null,"Overige kosten- Meerkosten Corona indirect en toeslagen- incl balans","zvkx13","c813",null,"TY1V01","Euro's",null,"N","",1]
[null,null,null,null,"zvkx13_a813__TY1V01","*=Kostenverzamelstaat!$L$161",null,"Overige kosten-Meerkosten Corona indirect en toeslagen- geaccepteerd","zvkx13","a813",null,"TY1V01","Euro's",null,"N","",1]
[null,null,null,null,"zvkx13_c833__TY0V01","*=Kostenverzamelstaat!$I$164",null,"Overige kosten- Netto continuïteitsbijdrage Corona (basisverzekering)- incl balans","zvkx13","c833",null,"TY0V01","Euro's",null,"N","",1]
[null,null,null,null,"zvkx13_a833__TY0V01","*=Kostenverzamelstaat!$J$164",null,"Overige kosten-Netto continuïteitsbijdrage Corona (basisverzekering)- geaccepteerd","zvkx13","a833",null,"TY0V01","Euro's",null,"N","",1]
[null,null,null,null,"zvkx13_c833__TY1V01","*=Kostenverzamelstaat!$K$164",null,"Overige kosten- Netto continuïteitsbijdrage Corona (basisverzekering)- incl balans","zvkx13","c833",null,"TY1V01","Euro's",null,"N","",1]
[null,null,null,null,"zvkx13_a833__TY1V01","*=Kostenverzamelstaat!$L$164",null,"Overige kosten-Netto continuïteitsbijdrage Corona (basisverzekering)- geaccepteerd","zvkx13","a833",null,"TY1V01","Euro's",null,"N","",1]
[null,null,null,null,"zvkx13_c__TY0V01","*=Kostenverzamelstaat!$I$165"]
[null,null,null,null,"zvkx13_a__TY0V01","*=Kostenverzamelstaat!$J$165"]
[null,null,null,null,"zvkx13_c__TY1V01","*=Kostenverzamelstaat!$K$165"]
[null,null,null,null,"zvkx13_a__TY1V01","*=Kostenverzamelstaat!$L$165"]
[null,null,null,null,"zvkx13_c__TY2V01","*=Kostenverzamelstaat!$M$165"]
[null,null,null,null,"zvkx13_a__TY2V01","*=Kostenverzamelstaat!$N$165"]
[null,null,null,null,"zvkx15_c720__TY0V01","*=Kostenverzamelstaat!$I$167","","Grensoverschrijdende zorg- via verzekeraar- incl balans","zvkx15","c720","","TY0V01","Euro's",null,"N","",1]
[null,null,null,null,"zvkx15_a720__TY0V01","*=Kostenverzamelstaat!$J$167","","Grensoverschrijdende zorg- via verzekeraar- geaccepteerd","zvkx15","a720","","TY0V01","Euro's",null,"N","",1]
[null,null,null,null,"zvkx15_c720__TY1V01","*=Kostenverzamelstaat!$K$167","","Grensoverschrijdende zorg- via verzekeraar- incl balans","zvkx15","c720","","TY1V01","Euro's",null,"N","",1]
[null,null,null,null,"zvkx15_a720__TY1V01","*=Kostenverzamelstaat!$L$167","","Grensoverschrijdende zorg- via verzekeraar- geaccepteerd","zvkx15","a720","","TY1V01","Euro's",null,"N","",1]
[null,null,null,null,"zvkx15_c720__TY2V01","*=Kostenverzamelstaat!$M$167","","Grensoverschrijdende zorg- via verzekeraar- incl balans","zvkx15","c720","","TY2V01","Euro's",null,"N","",1]
[null,null,null,null,"zvkx15_a720__TY2V01","*=Kostenverzamelstaat!$N$167","","Grensoverschrijdende zorg- via verzekeraar- geaccepteerd","zvkx15","a720","","TY2V01","Euro's",null,"N","",1]
[null,null,null,null,"zvkx15_c721__TY0V01","*=Kostenverzamelstaat!$I$168","","Grensoverschrijdende zorg- via verbindingsorgaan- incl balans","zvkx15","c721","","TY0V01","Euro's",null,"N","",1]
[null,null,null,null,"zvkx15_a721__TY0V01","*=Kostenverzamelstaat!$J$168","","Grensoverschrijdende zorg- via verbindingsorgaan- geaccepteerd","zvkx15","a721","","TY0V01","Euro's",null,"N","",1]
[null,null,null,null,"zvkx15_c721__TY1V01","*=Kostenverzamelstaat!$K$168","","Grensoverschrijdende zorg- via verbindingsorgaan- incl balans","zvkx15","c721","","TY1V01","Euro's",null,"N","",1]
[null,null,null,null,"zvkx15_a721__TY1V01","*=Kostenverzamelstaat!$L$168","","Grensoverschrijdende zorg- via verbindingsorgaan- geaccepteerd","zvkx15","a721","","TY1V01","Euro's",null,"N","",1]
[null,null,null,null,"zvkx15_c721__TY2V01","*=Kostenverzamelstaat!$M$168","","Grensoverschrijdende zorg- via verbindingsorgaan- incl balans","zvkx15","c721","","TY2V01","Euro's",null,"N","",1]
[null,null,null,null,"zvkx15_a721__TY2V01","*=Kostenverzamelstaat!$N$168","","Grensoverschrijdende zorg- via verbindingsorgaan- geaccepteerd","zvkx15","a721","","TY2V01","Euro's",null,"N","",1]
[null,null,null,null,"zvkx15_c__TY0V01","*=Kostenverzamelstaat!$I$169"]
[null,null,null,null,"zvkx15_a__TY0V01","*=Kostenverzamelstaat!$J$169"]
[null,null,null,null,"zvkx15_c__TY1V01","*=Kostenverzamelstaat!$K$169"]
[null,null,null,null,"zvkx15_a__TY1V01","*=Kostenverzamelstaat!$L$169"]
[null,null,null,null,"zvkx15_c__TY2V01","*=Kostenverzamelstaat!$M$169"]
[null,null,null,null,"zvkx15_a__TY2V01","*=Kostenverzamelstaat!$N$169"]
[null,null,null,null,"zvkx16_c730__TY0V01","*=Kostenverzamelstaat!$I$171","","Kwaliteitsgelden-- incl balans","zvkx16","c730","","TY0V01","Euro's",null,"N","",1]
[null,null,null,null,"zvkx16_a730__TY0V01","*=Kostenverzamelstaat!$J$171","","Kwaliteitsgelden-- geaccepteerd","zvkx16","a730","","TY0V01","Euro's",null,"N","",1]
[null,null,null,null,"zvkx16_c730__TY1V01","*=Kostenverzamelstaat!$K$171","","Kwaliteitsgelden-- incl balans","zvkx16","c730","","TY1V01","Euro's",null,"N","",1]
[null,null,null,null,"zvkx16_a730__TY1V01","*=Kostenverzamelstaat!$L$171","","Kwaliteitsgelden-- geaccepteerd","zvkx16","a730","","TY1V01","Euro's",null,"N","",1]
[null,null,null,null,"zvkx16_c730__TY2V01","*=Kostenverzamelstaat!$M$171","","Kwaliteitsgelden-- incl balans","zvkx16","c730","","TY2V01","Euro's",null,"N","",1]
[null,null,null,null,"zvkx16_a730__TY2V01","*=Kostenverzamelstaat!$N$171","","Kwaliteitsgelden-- geaccepteerd","zvkx16","a730","","TY2V01","Euro's",null,"N","",1]
[null,null,null,null,"zvkx16_c__TY0V01","*=Kostenverzamelstaat!$I$172"]
[null,null,null,null,"zvkx16_a__TY0V01","*=Kostenverzamelstaat!$J$172"]
[null,null,null,null,"zvkx16_c__TY1V01","*=Kostenverzamelstaat!$K$172"]
[null,null,null,null,"zvkx16_a__TY1V01","*=Kostenverzamelstaat!$L$172"]
[null,null,null,null,"zvkx16_c__TY2V01","*=Kostenverzamelstaat!$M$172"]
[null,null,null,null,"zvkx16_a__TY2V01","*=Kostenverzamelstaat!$N$172"]
[null,null,null,null,"zvkx_c__TY0V01","*=Kostenverzamelstaat!$I$173"]
[null,null,null,null,"zvkx_a__TY0V01","*=Kostenverzamelstaat!$J$173"]
[null,null,null,null,"zvkx_c__TY1V01","*=Kostenverzamelstaat!$K$173"]
[null,null,null,null,"zvkx_a__TY1V01","*=Kostenverzamelstaat!$L$173"]
[null,null,null,null,"zvkx_c__TY2V01","*=Kostenverzamelstaat!$M$173"]
[null,null,null,null,"zvkx_a__TY2V01","*=Kostenverzamelstaat!$N$173"]
[null,null,null,null,"zvkxdnb_c8901__TY0V01","*=Kostenverzamelstaat!$I$183","","Verschilposten DNB- Opbrengsten verhaal- incl balans","zvkxdnb","c8901","","TY0V01","Euro's",null,"N","",1]
[null,null,null,null,"zvkxdnb_a8901__TY0V01","*=Kostenverzamelstaat!$J$183","","Verschilposten DNB- Opbrengsten verhaal- geaccepteerd","zvkxdnb","a8901","","TY0V01","Euro's",null,"N","",1]
[null,null,null,null,"zvkxdnb_c8901__TY1V01","*=Kostenverzamelstaat!$K$183","","Verschilposten DNB- Opbrengsten verhaal- incl balans","zvkxdnb","c8901","","TY1V01","Euro's",null,"N","",1]
[null,null,null,null,"zvkxdnb_a8901__TY1V01","*=Kostenverzamelstaat!$L$183","","Verschilposten DNB- Opbrengsten verhaal- geaccepteerd","zvkxdnb","a8901","","TY1V01","Euro's",null,"N","",1]
[null,null,null,null,"zvkxdnb_c8901__TY2V01","*=Kostenverzamelstaat!$M$183","","Verschilposten DNB- Opbrengsten verhaal- incl balans","zvkxdnb","c8901","","TY2V01","Euro's",null,"N","",1]
[null,null,null,null,"zvkxdnb_a8901__TY2V01","*=Kostenverzamelstaat!$N$183","","Verschilposten DNB- Opbrengsten verhaal- geaccepteerd","zvkxdnb","a8901","","TY2V01","Euro's",null,"N","",1]
[null,null,null,null,"zvkxdnb_c910__TY0V01","*=Kostenverzamelstaat!$I$184","","Verschilposten DNB- Schade tlv het vrijwillig eigen risico- incl balans","zvkxdnb","c910","","TY0V01","Euro's",null,"N","",1]
[null,null,null,null,"zvkxdnb_a910__TY0V01","*=Kostenverzamelstaat!$J$184","","Verschilposten DNB- Schade tlv het vrijwillig eigen risico- geaccepteerd","zvkxdnb","a910","","TY0V01","Euro's",null,"N","",1]
[null,null,null,null,"zvkxdnb_c910__TY1V01","*=Kostenverzamelstaat!$K$184","","Verschilposten DNB- Schade tlv het vrijwillig eigen risico- incl balans","zvkxdnb","c910","","TY1V01","Euro's",null,"N","",1]
[null,null,null,null,"zvkxdnb_a910__TY1V01","*=Kostenverzamelstaat!$L$184","","Verschilposten DNB- Schade tlv het vrijwillig eigen risico- geaccepteerd","zvkxdnb","a910","","TY1V01","Euro's",null,"N","",1]
[null,null,null,null,"zvkxdnb_c910__TY2V01","*=Kostenverzamelstaat!$M$184","","Verschilposten DNB- Schade tlv het vrijwillig eigen risico- incl balans","zvkxdnb","c910","","TY2V01","Euro's",null,"N","",1]
[null,null,null,null,"zvkxdnb_a910__TY2V01","*=Kostenverzamelstaat!$N$184","","Verschilposten DNB- Schade tlv het vrijwillig eigen risico- geaccepteerd","zvkxdnb","a910","","TY2V01","Euro's",null,"N","",1]
[null,null,null,null,"zvkxdnb_c915__TY0V01","*=Kostenverzamelstaat!$I$185","","Verschilposten DNB- Schade tlv het verplicht eigen risico- incl balans","zvkxdnb","c915","","TY0V01","Euro's",null,"N","",1]
[null,null,null,null,"zvkxdnb_a915__TY0V01","*=Kostenverzamelstaat!$J$185","","Verschilposten DNB- Schade tlv het verplicht eigen risico- geaccepteerd","zvkxdnb","a915","","TY0V01","Euro's",null,"N","",1]
[null,null,null,null,"zvkxdnb_c915__TY1V01","*=Kostenverzamelstaat!$K$185","","Verschilposten DNB- Schade tlv het verplicht eigen risico- incl balans","zvkxdnb","c915","","TY1V01","Euro's",null,"N","",1]
[null,null,null,null,"zvkxdnb_a915__TY1V01","*=Kostenverzamelstaat!$L$185","","Verschilposten DNB- Schade tlv het verplicht eigen risico- geaccepteerd","zvkxdnb","a915","","TY1V01","Euro's",null,"N","",1]
[null,null,null,null,"zvkxdnb_c915__TY2V01","*=Kostenverzamelstaat!$M$185","","Verschilposten DNB- Schade tlv het verplicht eigen risico- incl balans","zvkxdnb","c915","","TY2V01","Euro's",null,"N","",1]
[null,null,null,null,"zvkxdnb_a915__TY2V01","*=Kostenverzamelstaat!$N$185","","Verschilposten DNB- Schade tlv het verplicht eigen risico- geaccepteerd","zvkxdnb","a915","","TY2V01","Euro's",null,"N","",1]
[null,null,null,null,"zvkxdnb_c940__TY0V01","*=Kostenverzamelstaat!$I$186","","Verschilposten DNB- Netto Premieopbrengsten- incl balans","zvkxdnb","c940","","TY0V01","Euro's",null,"N","",1]
[null,null,null,null,"zvkxdnb_a940__TY0V01","*=Kostenverzamelstaat!$J$186","","Verschilposten DNB- Netto Premieopbrengsten- geaccepteerd","zvkxdnb","a940","","TY0V01","Euro's",null,"N","",1]
[null,null,null,null,"zvkxdnb_c940__TY1V01","*=Kostenverzamelstaat!$K$186","","Verschilposten DNB- Netto Premieopbrengsten- incl balans","zvkxdnb","c940","","TY1V01","Euro's",null,"N","",1]
[null,null,null,null,"zvkxdnb_a940__TY1V01","*=Kostenverzamelstaat!$L$186","","Verschilposten DNB- Netto Premieopbrengsten- geaccepteerd","zvkxdnb","a940","","TY1V01","Euro's",null,"N","",1]
[null,null,null,null,"zvkxdnb_c940__TY2V01","*=Kostenverzamelstaat!$M$186","","Verschilposten DNB- Netto Premieopbrengsten- incl balans","zvkxdnb","c940","","TY2V01","Euro's",null,"N","",1]
[null,null,null,null,"zvkxdnb_a940__TY2V01","*=Kostenverzamelstaat!$N$186","","Verschilposten DNB- Netto Premieopbrengsten- geaccepteerd","zvkxdnb","a940","","TY2V01","Euro's",null,"N","",1]
[null,null,null,null,"zvkx01_cc504__TY0V01","*='Catastr kostenverzamelst'!I16","","Huisartsen- bijz diensttijden- kst Corona- incl balans","zvkx01","cc504","","TY0V01","Euro's",null,"N","",1]
[null,null,null,null,"zvkx01_ac504__TY0V01","*='Catastr kostenverzamelst'!J16","","Huisartsen- bijz diensttijden- kst Corona- geaccepteerd","zvkx01","ac504","","TY0V01","Euro's",null,"N","",1]
[null,null,null,null,"zvkx01_cc504__TY1V01","*='Catastr kostenverzamelst'!$K$16","","Huisartsen- bijz diensttijden- kst Corona- incl balans","zvkx01","cc504","","TY1V01","Euro's",null,"N","",1]
[null,null,null,null,"zvkx01_ac504__TY1V01","*='Catastr kostenverzamelst'!$L$16","","Huisartsen- bijz diensttijden- kst Corona- geaccepteerd","zvkx01","ac504","","TY1V01","Euro's",null,"N","",1]
[null,null,null,null,"zvkx01_cc506__TY0V01","*='Catastr kostenverzamelst'!$I$18","","Huisartsen- Consult- kst Corona- incl balans","zvkx01","cc506","","TY0V01","Euro's",null,"N","",1]
[null,null,null,null,"zvkx01_ac506__TY0V01","*='Catastr kostenverzamelst'!$J$18","","Huisartsen- Consult- kst Corona- geaccepteerd","zvkx01","ac506","","TY0V01","Euro's",null,"N","",1]
[null,null,null,null,"zvkx01_cc506__TY1V01","*='Catastr kostenverzamelst'!$K$18","","Huisartsen- Consult- kst Corona- incl balans","zvkx01","cc506","","TY1V01","Euro's",null,"N","",1]
[null,null,null,null,"zvkx01_ac506__TY1V01","*='Catastr kostenverzamelst'!$L$18","","Huisartsen- Consult- kst Corona- geaccepteerd","zvkx01","ac506","","TY1V01","Euro's",null,"N","",1]
[null,null,null,null,"zvkx01_cc507__TY0V01","*='Catastr kostenverzamelst'!$I$19","","Huisartsen- Overige- kst Corona- incl balans","zvkx01","cc507","","TY0V01","Euro's",null,"N","",1]
[null,null,null,null,"zvkx01_ac507__TY0V01","*='Catastr kostenverzamelst'!$J$19","","Huisartsen- Overige- kst Corona- geaccepteerd","zvkx01","ac507","","TY0V01","Euro's",null,"N","",1]
[null,null,null,null,"zvkx01_cc507__TY1V01","*='Catastr kostenverzamelst'!$K$19","","Huisartsen- Overige- kst Corona- incl balans","zvkx01","cc507","","TY1V01","Euro's",null,"N","",1]
[null,null,null,null,"zvkx01_ac507__TY1V01","*='Catastr kostenverzamelst'!$L$19","","Huisartsen- Overige- kst Corona- geaccepteerd","zvkx01","ac507","","TY1V01","Euro's",null,"N","",1]
[null,null,null,null,"zvkx01_cc515__TY0V01","*='Catastr kostenverzamelst'!$I$21","","Huisartsen- Resultaatbel. huisartsen- kst Corona- incl balans","zvkx01","cc515","","TY0V01","Euro's",null,"N","",1]
[null,null,null,null,"zvkx01_ac515__TY0V01","*='Catastr kostenverzamelst'!$J$21","","Huisartsen- Resultaatbel. huisartsen- kst Corona- geaccepteerd","zvkx01","ac515","","TY0V01","Euro's",null,"N","",1]
[null,null,null,null,"zvkx01_cc515__TY1V01","*='Catastr kostenverzamelst'!$K$21","","Huisartsen- Resultaatbel. huisartsen- kst Corona- incl balans","zvkx01","cc515","","TY1V01","Euro's",null,"N","",1]
[null,null,null,null,"zvkx01_ac515__TY1V01","*='Catastr kostenverzamelst'!$L$21","","Huisartsen- Resultaatbel. huisartsen- kst Corona- geaccepteerd","zvkx01","ac515","","TY1V01","Euro's",null,"N","",1]
[null,null,null,null,"zvkx01_cc801__TY0V01","*='Catastr kostenverzamelst'!$I$23",null,"Huisartsen- Meerkosten Corona type 2 tm 5 (incl. som opslagen HAZ)- kst Corona- incl balans","zvkx01","cc801",null,"TY0V01","Euro's",null,"N","",1]
[null,null,null,null,"zvkx01_ac801__TY0V01","*='Catastr kostenverzamelst'!$J$23",null,"Huisartsen- Meerkosten Corona type 2 tm 5 (incl. som opslagen HAZ)- kst Corona- geaccepteerd","zvkx01","ac801",null,"TY0V01","Euro's",null,"N","",1]
[null,null,null,null,"zvkx01_cc801__TY1V01","*='Catastr kostenverzamelst'!$K$23",null,"Huisartsen- Meerkosten Corona type 2 tm 5 (incl. som opslagen HAZ)- kst Corona- incl balans","zvkx01","cc801",null,"TY1V01","Euro's",null,"N","",1]
[null,null,null,null,"zvkx01_ac801__TY1V01","*='Catastr kostenverzamelst'!$L$23",null,"Huisartsen- Meerkosten Corona type 2 tm 5 (incl. som opslagen HAZ)- kst Corona- geaccepteerd","zvkx01","ac801",null,"TY1V01","Euro's",null,"N","",1]
[null,null,null,null,"zvkx02_cc802__TY0V01","*='Catastr kostenverzamelst'!$I$29",null,"Farmaceutische hulp- Meerkosten Corona type 2 tm 5- kst Corona- incl balans","zvkx02","cc802","","TY0V01","Euro's",null,"N","",1]
[null,null,null,null,"zvkx02_ac802__TY0V01","*='Catastr kostenverzamelst'!$J$29",null,"Farmaceutische hulp- Meerkosten Corona type 2 tm 5- kst Corona- geaccepteerd","zvkx02","ac802","","TY0V01","Euro's",null,"N","",1]
[null,null,null,null,"zvkx02_cc802__TY1V01","*='Catastr kostenverzamelst'!$K$29",null,"Farmaceutische hulp- Meerkosten Corona type 2 tm 5- kst Corona- incl balans","zvkx02","cc802","","TY1V01","Euro's",null,"N","",1]
[null,null,null,null,"zvkx02_ac802__TY1V01","*='Catastr kostenverzamelst'!$L$29",null,"Farmaceutische hulp- Meerkosten Corona type 2 tm 5- kst Corona- geaccepteerd","zvkx02","ac802","","TY1V01","Euro's",null,"N","",1]
[null,null,null,null,"zvkx03_cc803__TY0V01","*='Catastr kostenverzamelst'!$I$35",null,"Verpleging en verzorging- Meerkosten Corona type 2 tm 5- kst Corona- incl balans","zvkx03","cc803","","TY0V01","Euro's",null,"N","",1]
[null,null,null,null,"zvkx03_ac803__TY0V01","*='Catastr kostenverzamelst'!$J$35",null,"Verpleging en verzorging- Meerkosten Corona type 2 tm 5- kst Corona- geaccepteerd","zvkx03","ac803","","TY0V01","Euro's",null,"N","",1]
[null,null,null,null,"zvkx03_cc803__TY1V01","*='Catastr kostenverzamelst'!$K$35",null,"Verpleging en verzorging- Meerkosten Corona type 2 tm 5- kst Corona- incl balans","zvkx03","cc803","","TY1V01","Euro's",null,"N","",1]
[null,null,null,null,"zvkx03_ac803__TY1V01","*='Catastr kostenverzamelst'!$L$35",null,"Verpleging en verzorging- Meerkosten Corona type 2 tm 5- kst Corona- geaccepteerd","zvkx03","ac803","","TY1V01","Euro's",null,"N","",1]
[null,null,null,null,"zvkx04_cc804__TY0V01","*='Catastr kostenverzamelst'!$I$43",null,"Mondzorg- Meerkosten Corona type 2 tm 5- kst Corona- incl balans","zvkx04","cc804",null,"TY0V01","Euro's",null,"N","",1]
[null,null,null,null,"zvkx04_ac804__TY0V01","*='Catastr kostenverzamelst'!$J$43",null,"Mondzorg- Meerkosten Corona type 2 tm 5- kst Corona- geaccepteerd","zvkx04","ac804",null,"TY0V01","Euro's",null,"N","",1]
[null,null,null,null,"zvkx04_cc804__TY1V01","*='Catastr kostenverzamelst'!$K$43",null,"Mondzorg- Meerkosten Corona type 2 tm 5- kst Corona- incl balans","zvkx04","cc804",null,"TY1V01","Euro's",null,"N","",1]
[null,null,null,null,"zvkx04_ac804__TY1V01","*='Catastr kostenverzamelst'!$L$43",null,"Mondzorg- Meerkosten Corona type 2 tm 5- kst Corona- geaccepteerd","zvkx04","ac804",null,"TY1V01","Euro's",null,"N","",1]
[null,null,null,null,"zvkx05_cc805__TY0V01","*='Catastr kostenverzamelst'!$I$50",null,"Verloskundige hulp- Meerkosten Corona type 2 tm 5- kst Corona- incl balans","zvkx05","cc805",null,"TY0V01","Euro's",null,"N","",1]
[null,null,null,null,"zvkx05_ac805__TY0V01","*='Catastr kostenverzamelst'!$J$50",null,"Verloskundige hulp- Meerkosten Corona type 2 tm 5- kst Corona- geaccepteerd","zvkx05","ac805",null,"TY0V01","Euro's",null,"N","",1]
[null,null,null,null,"zvkx05_cc805__TY1V01","*='Catastr kostenverzamelst'!$K$50",null,"Verloskundige hulp- Meerkosten Corona type 2 tm 5- kst Corona- incl balans","zvkx05","cc805",null,"TY1V01","Euro's",null,"N","",1]
[null,null,null,null,"zvkx05_ac805__TY1V01","*='Catastr kostenverzamelst'!$L$50",null,"Verloskundige hulp- Meerkosten Corona type 2 tm 5- kst Corona- geaccepteerd","zvkx05","ac805",null,"TY1V01","Euro's",null,"N","",1]
[null,null,null,null,"zvkx06_cc6122__TY0V01","*='Catastr kostenverzamelst'!$I$70","","Medisch specialistische hulp-IC- kst Corona- incl balans","zvkx06","cc6122","","TY0V01","Euro's",null,"N","",1]
[null,null,null,null,"zvkx06_ac6122__TY0V01","*='Catastr kostenverzamelst'!$J$70","","Medisch specialistische hulp-IC- kst Corona- geaccepteerd","zvkx06","ac6122","","TY0V01","Euro's",null,"N","",1]
[null,null,null,null,"zvkx06_cc6122__TY1V01","*='Catastr kostenverzamelst'!$K$70","","Medisch specialistische hulp-IC- kst Corona- incl balans","zvkx06","cc6122","","TY1V01","Euro's",null,"N","",1]
[null,null,null,null,"zvkx06_ac6122__TY1V01","*='Catastr kostenverzamelst'!$L$70","","Medisch specialistische hulp-IC- kst Corona- geaccepteerd","zvkx06","ac6122","","TY1V01","Euro's",null,"N","",1]
[null,null,null,null,"zvkx06_cc6131__TY0V01","*='Catastr kostenverzamelst'!$I$71","","Medisch specialistische hulp- Integraal DBC-zorgproduct gereguleerd- kst Corona- incl balans","zvkx06","cc6131","","TY0V01","Euro's",null,"N","",1]
[null,null,null,null,"zvkx06_ac6131__TY0V01","*='Catastr kostenverzamelst'!$J$71","","Medisch specialistische hulp- Integraal DBC-zorgproduct gereguleerd- kst Corona- geaccepteerd","zvkx06","ac6131","","TY0V01","Euro's",null,"N","",1]
[null,null,null,null,"zvkx06_cc6131__TY1V01","*='Catastr kostenverzamelst'!$K$71","","Medisch specialistische hulp- Integraal DBC-zorgproduct gereguleerd- kst Corona- incl balans","zvkx06","cc6131","","TY1V01","Euro's",null,"N","",1]
[null,null,null,null,"zvkx06_ac6131__TY1V01","*='Catastr kostenverzamelst'!$L$71","","Medisch specialistische hulp- Integraal DBC-zorgproduct gereguleerd- kst Corona- geaccepteerd","zvkx06","ac6131","","TY1V01","Euro's",null,"N","",1]
[null,null,null,null,"zvkx06_cc6151__TY0V01","*='Catastr kostenverzamelst'!$I$72","","Medisch specialistische hulp- Integraal DBC-zorgproduct vrije segment- kst Corona- incl balans","zvkx06","cc6151","","TY0V01","Euro's",null,"N","",1]
[null,null,null,null,"zvkx06_ac6151__TY0V01","*='Catastr kostenverzamelst'!$J$72","","Medisch specialistische hulp- Integraal DBC-zorgproduct vrije segment- kst Corona- geaccepteerd","zvkx06","ac6151","","TY0V01","Euro's",null,"N","",1]
[null,null,null,null,"zvkx06_cc6151__TY1V01","*='Catastr kostenverzamelst'!$K$72","","Medisch specialistische hulp- Integraal DBC-zorgproduct vrije segment- kst Corona- incl balans","zvkx06","cc6151","","TY1V01","Euro's",null,"N","",1]
[null,null,null,null,"zvkx06_ac6151__TY1V01","*='Catastr kostenverzamelst'!$L$72","","Medisch specialistische hulp- Integraal DBC-zorgproduct vrije segment- kst Corona- geaccepteerd","zvkx06","ac6151","","TY1V01","Euro's",null,"N","",1]
[null,null,null,null,"zvkx06_cc806__TY0V01","*='Catastr kostenverzamelst'!$I$74",null,"Medisch specialistische hulp- Meerkosten Corona type 2 tm 5- kst Corona- incl balans","zvkx06","cc806",null,"TY0V01","Euro's",null,"N","",1]
[null,null,null,null,"zvkx06_ac806__TY0V01","*='Catastr kostenverzamelst'!$J$74",null,"Medisch specialistische hulp- Meerkosten Corona type 2 tm 5- kst Corona- geaccepteerd","zvkx06","ac086",null,"TY0V01","Euro's",null,"N","",1]
[null,null,null,null,"zvkx06_cc806__TY1V01","*='Catastr kostenverzamelst'!$K$74",null,"Medisch specialistische hulp- Meerkosten Corona type 2 tm 5- kst Corona- incl balans","zvkx06","cc806",null,"TY1V01","Euro's",null,"N","",1]
[null,null,null,null,"zvkx06_ac806__TY1V01","*='Catastr kostenverzamelst'!$L$74",null,"Medisch specialistische hulp- Meerkosten Corona type 2 tm 5- kst Corona- geaccepteerd","zvkx06","ac086",null,"TY1V01","Euro's",null,"N","",1]
[null,null,null,null,"zvkx07_cc620__TY0V01","*='Catastr kostenverzamelst'!$I$79","","Paramedische hulp- fysiotherapie- kst Corona- incl balans","zvkx07","cc620","","TY0V01","Euro's",null,"N","",1]
[null,null,null,null,"zvkx07_ac620__TY0V01","*='Catastr kostenverzamelst'!$J$79","","Paramedische hulp- fysiotherapie- kst Corona- geaccepteerd","zvkx07","ac620","","TY0V01","Euro's",null,"N","",1]
[null,null,null,null,"zvkx07_cc620__TY1V01","*='Catastr kostenverzamelst'!$K$79","","Paramedische hulp- fysiotherapie- kst Corona- incl balans","zvkx07","cc620","","TY1V01","Euro's",null,"N","",1]
[null,null,null,null,"zvkx07_ac620__TY1V01","*='Catastr kostenverzamelst'!$L$79","","Paramedische hulp- fysiotherapie- kst Corona- geaccepteerd","zvkx07","ac620","","TY1V01","Euro's",null,"N","",1]
[null,null,null,null,"zvkx07_cc621__TY0V01","*='Catastr kostenverzamelst'!$I$80","","Paramedische hulp- Mensendieck/Cesar- kst Corona- incl balans","zvkx07","cc621","","TY0V01","Euro's",null,"N","",1]
[null,null,null,null,"zvkx07_ac621__TY0V01","*='Catastr kostenverzamelst'!$J$80","","Paramedische hulp- Mensendieck/Cesar- kst Corona- geaccepteerd","zvkx07","ac621","","TY0V01","Euro's",null,"N","",1]
[null,null,null,null,"zvkx07_cc621__TY1V01","*='Catastr kostenverzamelst'!$K$80","","Paramedische hulp- Mensendieck/Cesar- kst Corona- incl balans","zvkx07","cc621","","TY1V01","Euro's",null,"N","",1]
[null,null,null,null,"zvkx07_ac621__TY1V01","*='Catastr kostenverzamelst'!$L$80","","Paramedische hulp- Mensendieck/Cesar- kst Corona- geaccepteerd","zvkx07","ac621","","TY1V01","Euro's",null,"N","",1]
[null,null,null,null,"zvkx07_cc623__TY0V01","*='Catastr kostenverzamelst'!$I$81","","Paramedische hulp- logopedie- kst Corona- incl balans","zvkx07","cc623","","TY0V01","Euro's",null,"N","",1]
[null,null,null,null,"zvkx07_ac623__TY0V01","*='Catastr kostenverzamelst'!$J$81","","Paramedische hulp- logopedie- kst Corona- geaccepteerd","zvkx07","ac623","","TY0V01","Euro's",null,"N","",1]
[null,null,null,null,"zvkx07_cc623__TY1V01","*='Catastr kostenverzamelst'!$K$81","","Paramedische hulp- logopedie- kst Corona- incl balans","zvkx07","cc623","","TY1V01","Euro's",null,"N","",1]
[null,null,null,null,"zvkx07_ac623__TY1V01","*='Catastr kostenverzamelst'!$L$81","","Paramedische hulp- logopedie- kst Corona- geaccepteerd","zvkx07","ac623","","TY1V01","Euro's",null,"N","",1]
[null,null,null,null,"zvkx07_cc624__TY0V01","*='Catastr kostenverzamelst'!$I$82","","Paramedische hulp- ergotherapie- kst Corona- incl balans","zvkx07","cc624","","TY0V01","Euro's",null,"N","",1]
[null,null,null,null,"zvkx07_ac624__TY0V01","*='Catastr kostenverzamelst'!$J$82","","Paramedische hulp- ergotherapie- kst Corona- geaccepteerd","zvkx07","ac624","","TY0V01","Euro's",null,"N","",1]
[null,null,null,null,"zvkx07_cc624__TY1V01","*='Catastr kostenverzamelst'!$K$82","","Paramedische hulp- ergotherapie- kst Corona- incl balans","zvkx07","cc624","","TY1V01","Euro's",null,"N","",1]
[null,null,null,null,"zvkx07_ac624__TY1V01","*='Catastr kostenverzamelst'!$L$82","","Paramedische hulp- ergotherapie- kst Corona- geaccepteerd","zvkx07","ac624","","TY1V01","Euro's",null,"N","",1]
[null,null,null,null,"zvkx07_cc625__TY0V01","*='Catastr kostenverzamelst'!$I$83","","Paramedische hulp- dieetadvisering- kst Corona- incl balans","zvkx07","cc625","","TY0V01","Euro's",null,"N","",1]
[null,null,null,null,"zvkx07_ac625__TY0V01","*='Catastr kostenverzamelst'!$J$83","","Paramedische hulp- dieetadvisering- kst Corona- geaccepteerd","zvkx07","ac625","","TY0V01","Euro's",null,"N","",1]
[null,null,null,null,"zvkx07_cc625__TY1V01","*='Catastr kostenverzamelst'!$K$83","","Paramedische hulp- dieetadvisering- kst Corona- incl balans","zvkx07","cc625","","TY1V01","Euro's",null,"N","",1]
[null,null,null,null,"zvkx07_ac625__TY1V01","*='Catastr kostenverzamelst'!$L$83","","Paramedische hulp- dieetadvisering- kst Corona- geaccepteerd","zvkx07","ac625","","TY1V01","Euro's",null,"N","",1]
[null,null,null,null,"zvkx07_cc626__TY0V01","*='Catastr kostenverzamelst'!$I$83","","Paramedische hulp-  GLI- kst Corona- incl balans","zvkx07","cc626","","TY0V01","Euro's",null,"N","",1]
[null,null,null,null,"zvkx07_cc626__TY0V01","*='Catastr kostenverzamelst'!$J$83","","Paramedische hulp-  GLI- kst Corona- geaccepteerd","zvkx07","ac626","","TY0V01","Euro's",null,"N","",1]
[null,null,null,null,"zvkx07_ac626__TY1V01","*='Catastr kostenverzamelst'!$K$83","","Paramedische hulp-  GLI- kst Corona- incl balans","zvkx07","cc626","","TY1V01","Euro's",null,"N","",1]
[null,null,null,null,"zvkx07_ac626__TY1V01","*='Catastr kostenverzamelst'!$L$83","","Paramedische hulp-  GLI- kst Corona- geaccepteerd","zvkx07","ac626","","TY1V01","Euro's",null,"N","",1]
[null,null,null,null,"zvkx07_cc807__TY0V01","*='Catastr kostenverzamelst'!$I$85",null,"Paramedische hulp-  Meerkosten Corona type 2 tm 5- kst Corona- incl balans","zvkx07","cc807",null,"TY0V01","Euro's",null,"N","",1]
[null,null,null,null,"zvkx07_ac807__TY0V01","*='Catastr kostenverzamelst'!$J$85",null,"Paramedische hulp-  Meerkosten Corona type 2 tm 5- kst Corona- geaccepteerd","zvkx07","ac807",null,"TY0V01","Euro's",null,"N","",1]
[null,null,null,null,"zvkx07_cc807__TY1V01","*='Catastr kostenverzamelst'!$K$85",null,"Paramedische hulp-  Meerkosten Corona type 2 tm 5- kst Corona- incl balans","zvkx07","cc807",null,"TY1V01","Euro's",null,"N","",1]
[null,null,null,null,"zvkx07_ac807__TY1V01","*='Catastr kostenverzamelst'!$L$85",null,"Paramedische hulp-  Meerkosten Corona type 2 tm 5- kst Corona- geaccepteerd","zvkx07","ac807",null,"TY1V01","Euro's",null,"N","",1]
[null,null,null,null,"zvkx08_cc640__TY0V01","*='Catastr kostenverzamelst'!$I$90","","Hulpmiddelen- kst Corona- incl balans","zvkx08","cc640","","TY0V01","Euro's",null,"N","",1]
[null,null,null,null,"zvkx08_ac640__TY0V01","*='Catastr kostenverzamelst'!$J$90","","Hulpmiddelen- kst Corona- geaccepteerd","zvkx08","ac640","","TY0V01","Euro's",null,"N","",1]
[null,null,null,null,"zvkx08_cc640__TY1V01","*='Catastr kostenverzamelst'!$K$90","","Hulpmiddelen- kst Corona- incl balans","zvkx08","cc640","","TY1V01","Euro's",null,"N","",1]
[null,null,null,null,"zvkx08_ac640__TY1V01","*='Catastr kostenverzamelst'!$L$90","","Hulpmiddelen- kst Corona- geaccepteerd","zvkx08","ac640","","TY1V01","Euro's",null,"N","",1]
[null,null,null,null,"zvkx08_cc808__TY0V01","*='Catastr kostenverzamelst'!$I$91",null,"Hulpmiddelen- Meerkosten Corona type 2 tm 5- kst Corona incl balans","zvkx08","cc808",null,"TY0V01","Euro's",null,"N","",1]
[null,null,null,null,"zvkx08_ac808__TY0V01","*='Catastr kostenverzamelst'!$J$91",null,"Hulpmiddelen- Meerkosten Corona type 2 tm 5- kst Corona geaccepteerd","zvkx08","ac808",null,"TY0V01","Euro's",null,"N","",1]
[null,null,null,null,"zvkx08_cc808__TY1V01","*='Catastr kostenverzamelst'!$K$91",null,"Hulpmiddelen- Meerkosten Corona type 2 tm 5- kst Corona incl balans","zvkx08","cc808",null,"TY1V01","Euro's",null,"N","",1]
[null,null,null,null,"zvkx08_ac808__TY1V01","*='Catastr kostenverzamelst'!$L$91",null,"Hulpmiddelen- Meerkosten Corona type 2 tm 5- kst Corona geaccepteerd","zvkx08","ac808",null,"TY1V01","Euro's",null,"N","",1]
[null,null,null,null,"zvkx09_cc809__TY0V01","*='Catastr kostenverzamelst'!$I$99",null,"Ziekenvervoer- Meerkosten Corona type 2 tm 5-  kst Corona- incl balans","zvkx09","cc809",null,"TY0V01","Euro's",null,"N","",1]
[null,null,null,null,"zvkx09_ac809__TY0V01","*='Catastr kostenverzamelst'!$J$99",null,"Ziekenvervoer- Meerkosten Corona type 2 tm 5- kst Corona- geaccepteerd","zvkx09","ac0809",null,"TY0V01","Euro's",null,"N","",1]
[null,null,null,null,"zvkx09_cc809__TY1V01","*='Catastr kostenverzamelst'!$K$99",null,"Ziekenvervoer- Meerkosten Corona type 2 tm 5-  kst Corona- incl balans","zvkx09","cc809",null,"TY1V01","Euro's",null,"N","",1]
[null,null,null,null,"zvkx09_ac809__TY1V01","*='Catastr kostenverzamelst'!$L$99",null,"Ziekenvervoer- Meerkosten Corona type 2 tm 5- kst Corona- geaccepteerd","zvkx09","ac0809",null,"TY1V01","Euro's",null,"N","",1]
[null,null,null,null,"zvkx10_cc810__TY0V01","*='Catastr kostenverzamelst'!$I$118",null,"Geneeskundige GGZ- Meerkosten Corona type 2 tm 5- kst Corona- incl balans","zvkx10","cc810",null,"TY0V01","Euro's",null,"N","",1]
[null,null,null,null,"zvkx10_ac810__TY0V01","*='Catastr kostenverzamelst'!$J$118",null,"Geneeskundige GGZ- Meerkosten Corona type 2 tm 5- kst Corona- geaccepteerd","zvkx10","ac810",null,"TY0V01","Euro's",null,"N","",1]
[null,null,null,null,"zvkx10_cc810__TY1V01","*='Catastr kostenverzamelst'!$I$118",null,"Geneeskundige GGZ- Meerkosten Corona type 2 tm 5- kst Corona- incl balans","zvkx10","cc810",null,"TY1V01","Euro's",null,"N","",1]
[null,null,null,null,"zvkx10_ac810__TY1V01","*='Catastr kostenverzamelst'!$L$118",null,"Geneeskundige GGZ- Meerkosten Corona type 2 tm 5- kst Corona- geaccepteerd","zvkx10","ac810",null,"TY1V01","Euro's",null,"N","",1]
[null,null,null,null,"zvkx11_cc670__TY0V01","*='Catastr kostenverzamelst'!$I$123","","Geriatische revalidatiezorg- kst Corona- incl balans","zvkx11","cc670","","TY0V01","Euro's",null,"N","",1]
[null,null,null,null,"zvkx11_ac670__TY0V01","*='Catastr kostenverzamelst'!$J$123","","Geriatische revalidatiezorg- kst Corona- geaccepteerd","zvkx11","ac670","","TY0V01","Euro's",null,"N","",1]
[null,null,null,null,"zvkx11_cc670__TY1V01","*='Catastr kostenverzamelst'!$K$123","","Geriatische revalidatiezorg- kst Corona- incl balans","zvkx11","cc670","","TY1V01","Euro's",null,"N","",1]
[null,null,null,null,"zvkx11_ac670__TY1V01","*='Catastr kostenverzamelst'!$L$123","","Geriatische revalidatiezorg- kst Corona- geaccepteerd","zvkx11","ac670","","TY1V01","Euro's",null,"N","",1]
[null,null,null,null,"zvkx11_cc8111__TY0V01","*='Catastr kostenverzamelst'!$I$124",null,"Geriatische revalidatiezorg- GZSP-  Meerkosten Corona type 2 tm 5- kst Corona- geaccepteerd","zvkx11","cc8111",null,"TY0V01","Euro's",null,"N","",1]
[null,null,null,null,"zvkx11_ac8111__TY0V01","*='Catastr kostenverzamelst'!$J$124",null,"Geriatische revalidatiezorg- Meerkosten Corona type 2 tm 5- kst Corona geaccepteerd","zvkx11","ac8111",null,"TY0V01","Euro's",null,"N","",1]
[null,null,null,null,"zvkx11_cc8111__TY1V01","*='Catastr kostenverzamelst'!$K$124",null,"Geriatische revalidatiezorg- GZSP-  Meerkosten Corona type 2 tm 5- kst Corona- geaccepteerd","zvkx11","cc8111",null,"TY1V01","Euro's",null,"N","",1]
[null,null,null,null,"zvkx11_ac8111__TY1V01","*='Catastr kostenverzamelst'!$L$124",null,"Geriatische revalidatiezorg- Meerkosten Corona type 2 tm 5- kst Corona geaccepteerd","zvkx11","ac8111",null,"TY1V01","Euro's",null,"N","",1]
[null,null,null,null,"zvkx11_cc671__TY0V01","*='Catastr kostenverzamelst'!$I$127","","Geriatische revalidatiezorg- Eerstelijnsverblijf- kst Corona- incl balans","zvkx11","cc671","","TY0V01","Euro's",null,"N","",1]
[null,null,null,null,"zvkx11_ac671__TY0V01","*='Catastr kostenverzamelst'!$J$127","","Geriatische revalidatiezorg- Eerstelijnsverblijf- kst Corona- geaccepteerd","zvkx11","ac671","","TY0V01","Euro's",null,"N","",1]
[null,null,null,null,"zvkx11_cc671__TY1V01","*='Catastr kostenverzamelst'!$K$127","","Geriatische revalidatiezorg- Eerstelijnsverblijf- kst Corona- incl balans","zvkx11","cc671","","TY1V01","Euro's",null,"N","",1]
[null,null,null,null,"zvkx11_ac671__TY1V01","*='Catastr kostenverzamelst'!$L$127","","Geriatische revalidatiezorg- Eerstelijnsverblijf- kst Corona- geaccepteerd","zvkx11","ac671","","TY1V01","Euro's",null,"N","",1]
[null,null,null,null,"zvkx11_cc8112__TY0V01","*='Catastr kostenverzamelst'!$I$128",null,"Geriatische revalidatiezorg- Eerstelijnsverblijf-  Meerkosten Corona type 2 tm 5- kst Corona- incl balans","zvkx11","cc8112",null,"TY0V01","Euro's",null,"N","",1]
[null,null,null,null,"zvkx11_ac8112__TY0V01","*='Catastr kostenverzamelst'!$J$128",null,"Geriatische revalidatiezorg- Eerstelijnsverblijf- Meerkosten Corona type 2 tm 5- kst Corona- geaccepteerd","zvkx11","ac8112",null,"TY0V01","Euro's",null,"N","",1]
[null,null,null,null,"zvkx11_cc8112__TY1V01","*='Catastr kostenverzamelst'!$K$128",null,"Geriatische revalidatiezorg- Eerstelijnsverblijf-  Meerkosten Corona type 2 tm 5- kst Corona- incl balans","zvkx11","cc8112",null,"TY1V01","Euro's",null,"N","",1]
[null,null,null,null,"zvkx11_ac8112__TY1V01","*='Catastr kostenverzamelst'!$L$128",null,"Geriatische revalidatiezorg- Eerstelijnsverblijf- Meerkosten Corona type 2 tm 5- kst Corona- geaccepteerd","zvkx11","ac8112",null,"TY1V01","Euro's",null,"N","",1]
[null,null,null,null,"zvkx11_cc8113__TY0V01","*='Catastr kostenverzamelst'!$I$132",null,"Geriatische revalidatiezorg- GZSP- Meerkosten Corona type 2 tm 5- kst Corona- incl balans","zvkx11","cc8113",null,"TY0V01","Euro's",null,"N","",1]
[null,null,null,null,"zvkx11_ac8113__TY0V01","*='Catastr kostenverzamelst'!$J$132",null,"Geriatische revalidatiezorg- GZSP-  Meerkosten Corona type 2 tm 5- kst Corona- geaccepteerd","zvkx11","ac8113",null,"TY0V01","Euro's",null,"N","",1]
[null,null,null,null,"zvkx11_cc8113__TY1V01","*='Catastr kostenverzamelst'!$K$132",null,"Geriatische revalidatiezorg- GZSP- Meerkosten Corona type 2 tm 5- kst Corona- incl balans","zvkx11","cc8113",null,"TY1V01","Euro's",null,"N","",1]
[null,null,null,null,"zvkx11_ac8113__TY1V01","*='Catastr kostenverzamelst'!$L$132",null,"Geriatische revalidatiezorg- GZSP-  Meerkosten Corona type 2 tm 5- kst Corona- geaccepteerd","zvkx11","ac8113",null,"TY1V01","Euro's",null,"N","",1]
[null,null,null,null,"zvkx12_cc812__TY0V01","*='Catastr kostenverzamelst'!$I$138",null,"Kraamzorg- Meerkosten Corona type 2 tm 5- kst Corona- incl balans","zvkx12","cc812",null,"TY0V01","Euro's",null,"N","",1]
[null,null,null,null,"zvkx12_ac812__TY0V01","*='Catastr kostenverzamelst'!$J$138",null,"Kraamzorg- Meerkosten Corona type 2 tm 5- kst Corona- geaccepteerd","zvkx12","ac812",null,"TY0V01","Euro's",null,"N","",1]
[null,null,null,null,"zvkx12_cc812__TY1V01","*='Catastr kostenverzamelst'!$K$138",null,"Kraamzorg- Meerkosten Corona type 2 tm 5- kst Corona- incl balans","zvkx12","cc812",null,"TY1V01","Euro's",null,"N","",1]
[null,null,null,null,"zvkx12_ac812__TY1V01","*='Catastr kostenverzamelst'!$L$138",null,"Kraamzorg- Meerkosten Corona type 2 tm 5- kst Corona- geaccepteerd","zvkx12","ac812",null,"TY1V01","Euro's",null,"N","",1]
[null,null,null,null,"zvkx13_cc813__TY0V01","*='Catastr kostenverzamelst'!$I$146",null,"Overige kosten- Meerkosten Corona type 2 tm 5-  kst Corona- incl balans","zvkx13","cc813",null,"TY0V01","Euro's",null,"N","",1]
[null,null,null,null,"zvkx13_ac813__TY0V01","*='Catastr kostenverzamelst'!$J$146",null,"Overige kosten-Meerkosten Corona type 2 tm 5- kst Corona- geaccepteerd","zvkx13","ac813",null,"TY0V01","Euro's",null,"N","",1]
[null,null,null,null,"zvkx13_cc813__TY1V01","*='Catastr kostenverzamelst'!$K$146",null,"Overige kosten- Meerkosten Corona type 2 tm 5-  kst Corona- incl balans","zvkx13","cc813",null,"TY1V01","Euro's",null,"N","",1]
[null,null,null,null,"zvkx13_ac813__TY1V01","*='Catastr kostenverzamelst'!$L$146",null,"Overige kosten-Meerkosten Corona type 2 tm 5- kst Corona- geaccepteerd","zvkx13","ac813",null,"TY1V01","Euro's",null,"N","",1]
[null,null,null,null,"zvkxdnb_cc915__TY0V01","*='Catastr kostenverzamelst'!$I$169","","Verschilposten DNB- Schade tlv het verplicht eigen risico- kst Corona- incl balans","zvkxdnb","cc915","","TY0V01","Euro's",null,"N","",1]
[null,null,null,null,"zvkxdnb_ac915__TY0V01","*='Catastr kostenverzamelst'!$J$169","","Verschilposten DNB- Schade tlv het verplicht eigen risico- kst Corona- geaccepteerd","zvkxdnb","ac915","","TY0V01","Euro's",null,"N","",1]
[null,null,null,null,"zvkxdnb_cc915__TY1V01","*='Catastr kostenverzamelst'!$K$169","","Verschilposten DNB- Schade tlv het verplicht eigen risico- kst Corona- incl balans","zvkxdnb","cc915","","TY1V01","Euro's",null,"N","",1]
[null,null,null,null,"zvkxdnb_ac915__TY1V01","*='Catastr kostenverzamelst'!$L$169","","Verschilposten DNB- Schade tlv het verplicht eigen risico- kst Corona- geaccepteerd","zvkxdnb","ac915","","TY1V01","Euro's",null,"N","",1]
[null,null,null,null,"zvpxlft_m981_lft01a_m08V01","*='Specifieke informatie A'!$I$59","","Verzekerden risicoklasse- 00 t/m 01- man","zvpxlft","m981","lft01a","m11V01","Verzekerden",null,"N",""]
[null,null,null,null,"zvpxlft_m981_lft01b_m08V01","*='Specifieke informatie A'!$I$60","","Verzekerden risicoklasse- 02 t/m 04- man","zvpxlft","m981","lft01b","m11V01","Verzekerden",null,"N",""]
[null,null,null,null,"zvpxlft_m981_lft02_m08V01","*='Specifieke informatie A'!$I$61","","Verzekerden risicoklasse- 05 t/m 09- man","zvpxlft","m981","lft02","m11V01","Verzekerden",null,"N",""]
[null,null,null,null,"zvpxlft_m981_lft03_m08V01","*='Specifieke informatie A'!$I$62","","Verzekerden risicoklasse- 10 t/m 14- man","zvpxlft","m981","lft03","m11V01","Verzekerden",null,"N",""]
[null,null,null,null,"zvpxlft_m981_lft04_m08V01","*='Specifieke informatie A'!$I$63","","Verzekerden risicoklasse- 15 t/m 19- man","zvpxlft","m981","lft04","m11V01","Verzekerden",null,"N",""]
[null,null,null,null,"zvpxlft_m981_lft05_m08V01","*='Specifieke informatie A'!$I$64","","Verzekerden risicoklasse- 20 t/m 24- man","zvpxlft","m981","lft05","m11V01","Verzekerden",null,"N",""]
[null,null,null,null,"zvpxlft_m981_lft06_m08V01","*='Specifieke informatie A'!$I$65","","Verzekerden risicoklasse- 25 t/m 29- man","zvpxlft","m981","lft06","m11V01","Verzekerden",null,"N",""]
[null,null,null,null,"zvpxlft_m981_lft07_m08V01","*='Specifieke informatie A'!$I$66","","Verzekerden risicoklasse- 30 t/m 34- man","zvpxlft","m981","lft07","m11V01","Verzekerden",null,"N",""]
[null,null,null,null,"zvpxlft_m981_lft08_m08V01","*='Specifieke informatie A'!$I$67","","Verzekerden risicoklasse- 35 t/m 39- man","zvpxlft","m981","lft08","m11V01","Verzekerden",null,"N",""]
[null,null,null,null,"zvpxlft_m981_lft09_m08V01","*='Specifieke informatie A'!$I$68","","Verzekerden risicoklasse- 40 t/m 44- man","zvpxlft","m981","lft09","m11V01","Verzekerden",null,"N",""]
[null,null,null,null,"zvpxlft_m981_lft10_m08V01","*='Specifieke informatie A'!$I$69","","Verzekerden risicoklasse- 45 t/m 49- man","zvpxlft","m981","lft10","m11V01","Verzekerden",null,"N",""]
[null,null,null,null,"zvpxlft_m981_lft11_m08V01","*='Specifieke informatie A'!$I$70","","Verzekerden risicoklasse- 50 t/m 54- man","zvpxlft","m981","lft11","m11V01","Verzekerden",null,"N",""]
[null,null,null,null,"zvpxlft_m981_lft12_m08V01","*='Specifieke informatie A'!$I$71","","Verzekerden risicoklasse- 55 t/m 59- man","zvpxlft","m981","lft12","m11V01","Verzekerden",null,"N",""]
[null,null,null,null,"zvpxlft_m981_lft13_m08V01","*='Specifieke informatie A'!$I$72","","Verzekerden risicoklasse- 60 t/m 64- man","zvpxlft","m981","lft13","m11V01","Verzekerden",null,"N",""]
[null,null,null,null,"zvpxlft_m981_lft14_m08V01","*='Specifieke informatie A'!$I$73","","Verzekerden risicoklasse- 65 t/m 69- man","zvpxlft","m981","lft14","m11V01","Verzekerden",null,"N",""]
[null,null,null,null,"zvpxlft_m981_lft15_m08V01","*='Specifieke informatie A'!$I$74","","Verzekerden risicoklasse- 70 t/m 74- man","zvpxlft","m981","lft15","m11V01","Verzekerden",null,"N",""]
[null,null,null,null,"zvpxlft_m981_lft16_m08V01","*='Specifieke informatie A'!$I$75","","Verzekerden risicoklasse- 75 t/m 79- man","zvpxlft","m981","lft16","m11V01","Verzekerden",null,"N",""]
[null,null,null,null,"zvpxlft_m981_lft17_m08V01","*='Specifieke informatie A'!$I$76","","Verzekerden risicoklasse- 80 t/m 84- man","zvpxlft","m981","lft17","m11V01","Verzekerden",null,"N",""]
[null,null,null,null,"zvpxlft_m981_lft18_m08V01","*='Specifieke informatie A'!$I$77","","Verzekerden risicoklasse- 85 t/m 89- man","zvpxlft","m981","lft18","m11V01","Verzekerden",null,"N",""]
[null,null,null,null,"zvpxlft_m981_lft19_m08V01","*='Specifieke informatie A'!$I$78","","Verzekerden risicoklasse- 90 en ouder- man","zvpxlft","m981","lft19","m11V01","Verzekerden",null,"N",""]
[null,null,null,null,"zvpxlft_o981_lft01a_m08V01","*='Specifieke informatie A'!$K$59","","Verzekerden risicoklasse- 00 t/m 01- onbepaald","zvpxlft","v981","lft01a","m11V01","Verzekerden",null,"N",""]
[null,null,null,null,"zvpxlft_o981_lft01b_m08V01","*='Specifieke informatie A'!$K$60","","Verzekerden risicoklasse- 02 t/m 04- onbepaald","zvpxlft","v981","lft01b","m11V01","Verzekerden",null,"N",""]
[null,null,null,null,"zvpxlft_o981_lft02_m08V01","*='Specifieke informatie A'!$K$61","","Verzekerden risicoklasse- 05 t/m 09- onbepaald","zvpxlft","v981","lft02","m11V01","Verzekerden",null,"N",""]
[null,null,null,null,"zvpxlft_o981_lft03_m08V01","*='Specifieke informatie A'!$K$62","","Verzekerden risicoklasse- 10 t/m 14- onbepaald","zvpxlft","v981","lft03","m11V01","Verzekerden",null,"N",""]
[null,null,null,null,"zvpxlft_o981_lft04_m08V01","*='Specifieke informatie A'!$K$63","","Verzekerden risicoklasse- 15 t/m 19- onbepaald","zvpxlft","v981","lft04","m11V01","Verzekerden",null,"N",""]
[null,null,null,null,"zvpxlft_o981_lft05_m08V01","*='Specifieke informatie A'!$K$64","","Verzekerden risicoklasse- 20 t/m 24- onbepaald","zvpxlft","v981","lft05","m11V01","Verzekerden",null,"N",""]
[null,null,null,null,"zvpxlft_o981_lft06_m08V01","*='Specifieke informatie A'!$K$65","","Verzekerden risicoklasse- 25 t/m 29- onbepaald","zvpxlft","v981","lft06","m11V01","Verzekerden",null,"N",""]
[null,null,null,null,"zvpxlft_o981_lft07_m08V01","*='Specifieke informatie A'!$K$66","","Verzekerden risicoklasse- 30 t/m 34- onbepaald","zvpxlft","v981","lft07","m11V01","Verzekerden",null,"N",""]
[null,null,null,null,"zvpxlft_o981_lft08_m08V01","*='Specifieke informatie A'!$K$67","","Verzekerden risicoklasse- 35 t/m 39- onbepaald","zvpxlft","v981","lft08","m11V01","Verzekerden",null,"N",""]
[null,null,null,null,"zvpxlft_o981_lft09_m08V01","*='Specifieke informatie A'!$K$68","","Verzekerden risicoklasse- 40 t/m 44- onbepaald","zvpxlft","v981","lft09","m11V01","Verzekerden",null,"N",""]
[null,null,null,null,"zvpxlft_o981_lft10_m08V01","*='Specifieke informatie A'!$K$69","","Verzekerden risicoklasse- 45 t/m 49- onbepaald","zvpxlft","v981","lft10","m11V01","Verzekerden",null,"N",""]
[null,null,null,null,"zvpxlft_o981_lft11_m08V01","*='Specifieke informatie A'!$K$70","","Verzekerden risicoklasse- 50 t/m 54- onbepaald","zvpxlft","v981","lft11","m11V01","Verzekerden",null,"N",""]
[null,null,null,null,"zvpxlft_o981_lft12_m08V01","*='Specifieke informatie A'!$K$71","","Verzekerden risicoklasse- 55 t/m 59- onbepaald","zvpxlft","v981","lft12","m11V01","Verzekerden",null,"N",""]
[null,null,null,null,"zvpxlft_o981_lft13_m08V01","*='Specifieke informatie A'!$K$72","","Verzekerden risicoklasse- 60 t/m 64- onbepaald","zvpxlft","v981","lft13","m11V01","Verzekerden",null,"N",""]
[null,null,null,null,"zvpxlft_o981_lft14_m08V01","*='Specifieke informatie A'!$K$73","","Verzekerden risicoklasse- 65 t/m 69- onbepaald","zvpxlft","v981","lft14","m11V01","Verzekerden",null,"N",""]
[null,null,null,null,"zvpxlft_o981_lft15_m08V01","*='Specifieke informatie A'!$K$74","","Verzekerden risicoklasse- 70 t/m 74- onbepaald","zvpxlft","v981","lft15","m11V01","Verzekerden",null,"N",""]
[null,null,null,null,"zvpxlft_o981_lft16_m08V01","*='Specifieke informatie A'!$K$75","","Verzekerden risicoklasse- 75 t/m 79- onbepaald","zvpxlft","v981","lft16","m11V01","Verzekerden",null,"N",""]
[null,null,null,null,"zvpxlft_o981_lft17_m08V01","*='Specifieke informatie A'!$K$76","","Verzekerden risicoklasse- 80 t/m 84- onbepaald","zvpxlft","v981","lft17","m11V01","Verzekerden",null,"N",""]
[null,null,null,null,"zvpxlft_o981_lft18_m08V01","*='Specifieke informatie A'!$K$77","","Verzekerden risicoklasse- 85 t/m 89- onbepaald","zvpxlft","v981","lft18","m11V01","Verzekerden",null,"N",""]
[null,null,null,null,"zvpxlft_o981_lft19_m08V01","*='Specifieke informatie A'!$K$78","","Verzekerden risicoklasse- 90 en ouder- onbepaald","zvpxlft","v981","lft19","m11V01","Verzekerden",null,"N",""]
[null,null,null,null,"zvpxlft_v981_lft01a_m08V01","*='Specifieke informatie A'!$J$59","","Verzekerden risicoklasse- 00 t/m 01- vrouw","zvpxlft","v981","lft01a","m11V01","Verzekerden",null,"N",""]
[null,null,null,null,"zvpxlft_v981_lft01b_m08V01","*='Specifieke informatie A'!$J$60","","Verzekerden risicoklasse- 02 t/m 04- vrouw","zvpxlft","v981","lft01b","m11V01","Verzekerden",null,"N",""]
[null,null,null,null,"zvpxlft_v981_lft02_m08V01","*='Specifieke informatie A'!$J$61","","Verzekerden risicoklasse- 05 t/m 09- vrouw","zvpxlft","v981","lft02","m11V01","Verzekerden",null,"N",""]
[null,null,null,null,"zvpxlft_v981_lft03_m08V01","*='Specifieke informatie A'!$J$62","","Verzekerden risicoklasse- 10 t/m 14- vrouw","zvpxlft","v981","lft03","m11V01","Verzekerden",null,"N",""]
[null,null,null,null,"zvpxlft_v981_lft04_m08V01","*='Specifieke informatie A'!$J$63","","Verzekerden risicoklasse- 15 t/m 19- vrouw","zvpxlft","v981","lft04","m11V01","Verzekerden",null,"N",""]
[null,null,null,null,"zvpxlft_v981_lft05_m08V01","*='Specifieke informatie A'!$J$64","","Verzekerden risicoklasse- 20 t/m 24- vrouw","zvpxlft","v981","lft05","m11V01","Verzekerden",null,"N",""]
[null,null,null,null,"zvpxlft_v981_lft06_m08V01","*='Specifieke informatie A'!$J$65","","Verzekerden risicoklasse- 25 t/m 29- vrouw","zvpxlft","v981","lft06","m11V01","Verzekerden",null,"N",""]
[null,null,null,null,"zvpxlft_v981_lft07_m08V01","*='Specifieke informatie A'!$J$66","","Verzekerden risicoklasse- 30 t/m 34- vrouw","zvpxlft","v981","lft07","m11V01","Verzekerden",null,"N",""]
[null,null,null,null,"zvpxlft_v981_lft08_m08V01","*='Specifieke informatie A'!$J$67","","Verzekerden risicoklasse- 35 t/m 39- vrouw","zvpxlft","v981","lft08","m11V01","Verzekerden",null,"N",""]
[null,null,null,null,"zvpxlft_v981_lft09_m08V01","*='Specifieke informatie A'!$J$68","","Verzekerden risicoklasse- 40 t/m 44- vrouw","zvpxlft","v981","lft09","m11V01","Verzekerden",null,"N",""]
[null,null,null,null,"zvpxlft_v981_lft10_m08V01","*='Specifieke informatie A'!$J$69","","Verzekerden risicoklasse- 45 t/m 49- vrouw","zvpxlft","v981","lft10","m11V01","Verzekerden",null,"N",""]
[null,null,null,null,"zvpxlft_v981_lft11_m08V01","*='Specifieke informatie A'!$J$70","","Verzekerden risicoklasse- 50 t/m 54- vrouw","zvpxlft","v981","lft11","m11V01","Verzekerden",null,"N",""]
[null,null,null,null,"zvpxlft_v981_lft12_m08V01","*='Specifieke informatie A'!$J$71","","Verzekerden risicoklasse- 55 t/m 59- vrouw","zvpxlft","v981","lft12","m11V01","Verzekerden",null,"N",""]
[null,null,null,null,"zvpxlft_v981_lft13_m08V01","*='Specifieke informatie A'!$J$72","","Verzekerden risicoklasse- 60 t/m 64- vrouw","zvpxlft","v981","lft13","m11V01","Verzekerden",null,"N",""]
[null,null,null,null,"zvpxlft_v981_lft14_m08V01","*='Specifieke informatie A'!$J$73","","Verzekerden risicoklasse- 65 t/m 69- vrouw","zvpxlft","v981","lft14","m11V01","Verzekerden",null,"N",""]
[null,null,null,null,"zvpxlft_v981_lft15_m08V01","*='Specifieke informatie A'!$J$74","","Verzekerden risicoklasse- 70 t/m 74- vrouw","zvpxlft","v981","lft15","m11V01","Verzekerden",null,"N",""]
[null,null,null,null,"zvpxlft_v981_lft16_m08V01","*='Specifieke informatie A'!$J$75","","Verzekerden risicoklasse- 75 t/m 79- vrouw","zvpxlft","v981","lft16","m11V01","Verzekerden",null,"N",""]
[null,null,null,null,"zvpxlft_v981_lft17_m08V01","*='Specifieke informatie A'!$J$76","","Verzekerden risicoklasse- 80 t/m 84- vrouw","zvpxlft","v981","lft17","m11V01","Verzekerden",null,"N",""]
[null,null,null,null,"zvpxlft_v981_lft18_m08V01","*='Specifieke informatie A'!$J$77","","Verzekerden risicoklasse- 85 t/m 89- vrouw","zvpxlft","v981","lft18","m11V01","Verzekerden",null,"N",""]
[null,null,null,null,"zvpxlft_v981_lft19_m08V01","*='Specifieke informatie A'!$J$78","","Verzekerden risicoklasse- 90 en ouder- vrouw","zvpxlft","v981","lft19","m11V01","Verzekerden",null,"N",""]
[null,null,null,null,"zvpxprm_s981_nomy_m08V01","*='Specifieke informatie A'!$L$84","","Verzekerden premiekenmerk- met nominale premie ZVW","zvpxprm","s981","nomy","m11V01","Verzekerden",null,"N",""]
[null,null,null,null,"zvpxprm_s981_nomn_m08V01","*='Specifieke informatie A'!$L$85","","Verzekerden premiekenmerk- zonder nominale premie ZVW","zvpxprm","s981","nomn","m11V01","Verzekerden",null,"N",""]
[null,null,null,null,"zvpxlft_m981_lft01a_m09V01","*='Specifieke informatie A'!$I$104","","Verzekerden risicoklasse- 00 t/m 01- man"]
[null,null,null,null,"zvpxlft_m981_lft01b_m09V01","*='Specifieke informatie A'!$I$105","","Verzekerden risicoklasse- 02 t/m 04- man"]
[null,null,null,null,"zvpxlft_m981_lft02_m09V01","*='Specifieke informatie A'!$I$106","","Verzekerden risicoklasse- 05 t/m 09- man"]
[null,null,null,null,"zvpxlft_m981_lft03_m09V01","*='Specifieke informatie A'!$I$107","","Verzekerden risicoklasse- 10 t/m 14- man"]
[null,null,null,null,"zvpxlft_m981_lft04_m09V01","*='Specifieke informatie A'!$I$108","","Verzekerden risicoklasse- 15 t/m 19- man"]
[null,null,null,null,"zvpxlft_m981_lft05_m09V01","*='Specifieke informatie A'!$I$109","","Verzekerden risicoklasse- 20 t/m 24- man"]
[null,null,null,null,"zvpxlft_m981_lft06_m09V01","*='Specifieke informatie A'!$I$110","","Verzekerden risicoklasse- 25 t/m 29- man"]
[null,null,null,null,"zvpxlft_m981_lft07_m09V01","*='Specifieke informatie A'!$I$111","","Verzekerden risicoklasse- 30 t/m 34- man"]
[null,null,null,null,"zvpxlft_m981_lft08_m09V01","*='Specifieke informatie A'!$I$112","","Verzekerden risicoklasse- 35 t/m 39- man"]
[null,null,null,null,"zvpxlft_m981_lft09_m09V01","*='Specifieke informatie A'!$I$113","","Verzekerden risicoklasse- 40 t/m 44- man"]
[null,null,null,null,"zvpxlft_m981_lft10_m09V01","*='Specifieke informatie A'!$I$114","","Verzekerden risicoklasse- 45 t/m 49- man"]
[null,null,null,null,"zvpxlft_m981_lft11_m09V01","*='Specifieke informatie A'!$I$115","","Verzekerden risicoklasse- 50 t/m 54- man"]
[null,null,null,null,"zvpxlft_m981_lft12_m09V01","*='Specifieke informatie A'!$I$116","","Verzekerden risicoklasse- 55 t/m 59- man"]
[null,null,null,null,"zvpxlft_m981_lft13_m09V01","*='Specifieke informatie A'!$I$117","","Verzekerden risicoklasse- 60 t/m 64- man"]
[null,null,null,null,"zvpxlft_m981_lft14_m09V01","*='Specifieke informatie A'!$I$118","","Verzekerden risicoklasse- 65 t/m 69- man"]
[null,null,null,null,"zvpxlft_m981_lft15_m09V01","*='Specifieke informatie A'!$I$119","","Verzekerden risicoklasse- 70 t/m 74- man"]
[null,null,null,null,"zvpxlft_m981_lft16_m09V01","*='Specifieke informatie A'!$I$120","","Verzekerden risicoklasse- 75 t/m 79- man"]
[null,null,null,null,"zvpxlft_m981_lft17_m09V01","*='Specifieke informatie A'!$I$121","","Verzekerden risicoklasse- 80 t/m 84- man"]
[null,null,null,null,"zvpxlft_m981_lft18_m09V01","*='Specifieke informatie A'!$I$122","","Verzekerden risicoklasse- 85 t/m 89- man"]
[null,null,null,null,"zvpxlft_m981_lft19_m09V01","*='Specifieke informatie A'!$I$123","","Verzekerden risicoklasse- 90 en ouder- man"]
[null,null,null,null,"zvpxlft_v981_lft01a_m09V01","*='Specifieke informatie A'!$J$104","","Verzekerden risicoklasse- 00 t/m 01- vrouw"]
[null,null,null,null,"zvpxlft_v981_lft01b_m09V01","*='Specifieke informatie A'!$J$105","","Verzekerden risicoklasse- 02 t/m 04- vrouw"]
[null,null,null,null,"zvpxlft_v981_lft02_m09V01","*='Specifieke informatie A'!$J$106","","Verzekerden risicoklasse- 05 t/m 09- vrouw"]
[null,null,null,null,"zvpxlft_v981_lft03_m09V01","*='Specifieke informatie A'!$J$107","","Verzekerden risicoklasse- 10 t/m 14- vrouw"]
[null,null,null,null,"zvpxlft_v981_lft04_m09V01","*='Specifieke informatie A'!$J$108","","Verzekerden risicoklasse- 15 t/m 19- vrouw"]
[null,null,null,null,"zvpxlft_v981_lft05_m09V01","*='Specifieke informatie A'!$J$109","","Verzekerden risicoklasse- 20 t/m 24- vrouw"]
[null,null,null,null,"zvpxlft_v981_lft06_m09V01","*='Specifieke informatie A'!$J$110","","Verzekerden risicoklasse- 25 t/m 29- vrouw"]
[null,null,null,null,"zvpxlft_v981_lft07_m09V01","*='Specifieke informatie A'!$J$111","","Verzekerden risicoklasse- 30 t/m 34- vrouw"]
[null,null,null,null,"zvpxlft_v981_lft08_m09V01","*='Specifieke informatie A'!$J$112","","Verzekerden risicoklasse- 35 t/m 39- vrouw"]
[null,null,null,null,"zvpxlft_v981_lft09_m09V01","*='Specifieke informatie A'!$J$113","","Verzekerden risicoklasse- 40 t/m 44- vrouw"]
[null,null,null,null,"zvpxlft_v981_lft10_m09V01","*='Specifieke informatie A'!$J$114","","Verzekerden risicoklasse- 45 t/m 49- vrouw"]
[null,null,null,null,"zvpxlft_v981_lft11_m09V01","*='Specifieke informatie A'!$J$115","","Verzekerden risicoklasse- 50 t/m 54- vrouw"]
[null,null,null,null,"zvpxlft_v981_lft12_m09V01","*='Specifieke informatie A'!$J$116","","Verzekerden risicoklasse- 55 t/m 59- vrouw"]
[null,null,null,null,"zvpxlft_v981_lft13_m09V01","*='Specifieke informatie A'!$J$117","","Verzekerden risicoklasse- 60 t/m 64- vrouw"]
[null,null,null,null,"zvpxlft_v981_lft14_m09V01","*='Specifieke informatie A'!$J$118","","Verzekerden risicoklasse- 65 t/m 69- vrouw"]
[null,null,null,null,"zvpxlft_v981_lft15_m09V01","*='Specifieke informatie A'!$J$119","","Verzekerden risicoklasse- 70 t/m 74- vrouw"]
[null,null,null,null,"zvpxlft_v981_lft16_m09V01","*='Specifieke informatie A'!$J$120","","Verzekerden risicoklasse- 75 t/m 79- vrouw"]
[null,null,null,null,"zvpxlft_v981_lft17_m09V01","*='Specifieke informatie A'!$J$121","","Verzekerden risicoklasse- 80 t/m 84- vrouw"]
[null,null,null,null,"zvpxlft_v981_lft18_m09V01","*='Specifieke informatie A'!$J$122","","Verzekerden risicoklasse- 85 t/m 89- vrouw"]
[null,null,null,null,"zvpxlft_v981_lft19_m09V01","*='Specifieke informatie A'!$J$123","","Verzekerden risicoklasse- 90 en ouder- vrouw"]
[null,null,null,null,"zvpxlft_o981_lft01a_m09V01","*='Specifieke informatie A'!$K$104","","Verzekerden risicoklasse- 00 t/m 01- onbepaald"]
[null,null,null,null,"zvpxlft_o981_lft01b_m09V01","*='Specifieke informatie A'!$K$105","","Verzekerden risicoklasse- 02 t/m 04- onbepaald"]
[null,null,null,null,"zvpxlft_o981_lft02_m09V01","*='Specifieke informatie A'!$K$106","","Verzekerden risicoklasse- 05 t/m 09- onbepaald"]
[null,null,null,null,"zvpxlft_o981_lft03_m09V01","*='Specifieke informatie A'!$K$107","","Verzekerden risicoklasse- 10 t/m 14- onbepaald"]
[null,null,null,null,"zvpxlft_o981_lft04_m09V01","*='Specifieke informatie A'!$K$108","","Verzekerden risicoklasse- 15 t/m 19- onbepaald"]
[null,null,null,null,"zvpxlft_o981_lft05_m09V01","*='Specifieke informatie A'!$K$109","","Verzekerden risicoklasse- 20 t/m 24- onbepaald"]
[null,null,null,null,"zvpxlft_o981_lft06_m09V01","*='Specifieke informatie A'!$K$110","","Verzekerden risicoklasse- 25 t/m 29- onbepaald"]
[null,null,null,null,"zvpxlft_o981_lft07_m09V01","*='Specifieke informatie A'!$K$111","","Verzekerden risicoklasse- 30 t/m 34- onbepaald"]
[null,null,null,null,"zvpxlft_o981_lft08_m09V01","*='Specifieke informatie A'!$K$112","","Verzekerden risicoklasse- 35 t/m 39- onbepaald"]
[null,null,null,null,"zvpxlft_o981_lft09_m09V01","*='Specifieke informatie A'!$K$113","","Verzekerden risicoklasse- 40 t/m 44- onbepaald"]
[null,null,null,null,"zvpxlft_o981_lft10_m09V01","*='Specifieke informatie A'!$K$114","","Verzekerden risicoklasse- 45 t/m 49- onbepaald"]
[null,null,null,null,"zvpxlft_o981_lft11_m09V01","*='Specifieke informatie A'!$K$115","","Verzekerden risicoklasse- 50 t/m 54- onbepaald"]
[null,null,null,null,"zvpxlft_o981_lft12_m09V01","*='Specifieke informatie A'!$K$116","","Verzekerden risicoklasse- 55 t/m 59- onbepaald"]
[null,null,null,null,"zvpxlft_o981_lft13_m09V01","*='Specifieke informatie A'!$K$117","","Verzekerden risicoklasse- 60 t/m 64- onbepaald"]
[null,null,null,null,"zvpxlft_o981_lft14_m09V01","*='Specifieke informatie A'!$K$118","","Verzekerden risicoklasse- 65 t/m 69- onbepaald"]
[null,null,null,null,"zvpxlft_o981_lft15_m09V01","*='Specifieke informatie A'!$K$119","","Verzekerden risicoklasse- 70 t/m 74- onbepaald"]
[null,null,null,null,"zvpxlft_o981_lft16_m09V01","*='Specifieke informatie A'!$K$120","","Verzekerden risicoklasse- 75 t/m 79- onbepaald"]
[null,null,null,null,"zvpxlft_o981_lft17_m09V01","*='Specifieke informatie A'!$K$121","","Verzekerden risicoklasse- 80 t/m 84- onbepaald"]
[null,null,null,null,"zvpxlft_o981_lft18_m09V01","*='Specifieke informatie A'!$K$122","","Verzekerden risicoklasse- 85 t/m 89- onbepaald"]
[null,null,null,null,"zvpxlft_o981_lft19_m09V01","*='Specifieke informatie A'!$K$123","","Verzekerden risicoklasse- 90 en ouder- onbepaald"]
[null,null,null,null,"zvpxprm_s981_nomy_m09V01","*='Specifieke informatie A'!$L$129","","Verzekerden premiekenmerk- met nominale premie ZVW"]
[null,null,null,null,"zvpxprm_s981_nomn_m09V01","*='Specifieke informatie A'!$L$130","","Verzekerden premiekenmerk- zonder nominale premie ZVW"]
[null,null,null,null,"zvpxlft_m981_lft01a_m10V01","*='Specifieke informatie A'!$I$149","","Verzekerden risicoklasse- 00 t/m 01- man"]
[null,null,null,null,"zvpxlft_m981_lft01b_m10V01","*='Specifieke informatie A'!$I$150","","Verzekerden risicoklasse- 02 t/m 04- man"]
[null,null,null,null,"zvpxlft_m981_lft02_m10V01","*='Specifieke informatie A'!$I$151","","Verzekerden risicoklasse- 05 t/m 09- man"]
[null,null,null,null,"zvpxlft_m981_lft03_m10V01","*='Specifieke informatie A'!$I$152","","Verzekerden risicoklasse- 10 t/m 14- man"]
[null,null,null,null,"zvpxlft_m981_lft04_m10V01","*='Specifieke informatie A'!$I$153","","Verzekerden risicoklasse- 15 t/m 19- man"]
[null,null,null,null,"zvpxlft_m981_lft05_m10V01","*='Specifieke informatie A'!$I$154","","Verzekerden risicoklasse- 20 t/m 24- man"]
[null,null,null,null,"zvpxlft_m981_lft06_m10V01","*='Specifieke informatie A'!$I$155","","Verzekerden risicoklasse- 25 t/m 29- man"]
[null,null,null,null,"zvpxlft_m981_lft07_m10V01","*='Specifieke informatie A'!$I$156","","Verzekerden risicoklasse- 30 t/m 34- man"]
[null,null,null,null,"zvpxlft_m981_lft08_m10V01","*='Specifieke informatie A'!$I$157","","Verzekerden risicoklasse- 35 t/m 39- man"]
[null,null,null,null,"zvpxlft_m981_lft09_m10V01","*='Specifieke informatie A'!$I$158","","Verzekerden risicoklasse- 40 t/m 44- man"]
[null,null,null,null,"zvpxlft_m981_lft10_m10V01","*='Specifieke informatie A'!$I$159","","Verzekerden risicoklasse- 45 t/m 49- man"]
[null,null,null,null,"zvpxlft_m981_lft11_m10V01","*='Specifieke informatie A'!$I$160","","Verzekerden risicoklasse- 50 t/m 54- man"]
[null,null,null,null,"zvpxlft_m981_lft12_m10V01","*='Specifieke informatie A'!$I$161","","Verzekerden risicoklasse- 55 t/m 59- man"]
[null,null,null,null,"zvpxlft_m981_lft13_m10V01","*='Specifieke informatie A'!$I$162","","Verzekerden risicoklasse- 60 t/m 64- man"]
[null,null,null,null,"zvpxlft_m981_lft14_m10V01","*='Specifieke informatie A'!$I$163","","Verzekerden risicoklasse- 65 t/m 69- man"]
[null,null,null,null,"zvpxlft_m981_lft15_m10V01","*='Specifieke informatie A'!$I$164","","Verzekerden risicoklasse- 70 t/m 74- man"]
[null,null,null,null,"zvpxlft_m981_lft16_m10V01","*='Specifieke informatie A'!$I$165","","Verzekerden risicoklasse- 75 t/m 79- man"]
[null,null,null,null,"zvpxlft_m981_lft17_m10V01","*='Specifieke informatie A'!$I$166","","Verzekerden risicoklasse- 80 t/m 84- man"]
[null,null,null,null,"zvpxlft_m981_lft18_m10V01","*='Specifieke informatie A'!$I$167","","Verzekerden risicoklasse- 85 t/m 89- man"]
[null,null,null,null,"zvpxlft_m981_lft19_m10V01","*='Specifieke informatie A'!$I$168","","Verzekerden risicoklasse- 90 en ouder- man"]
[null,null,null,null,"zvpxlft_o981_lft01a_m10V01","*='Specifieke informatie A'!$K$149","","Verzekerden risicoklasse- 00 t/m 01- onbepaald"]
[null,null,null,null,"zvpxlft_o981_lft01b_m10V01","*='Specifieke informatie A'!$K$150","","Verzekerden risicoklasse- 02 t/m 04- onbepaald"]
[null,null,null,null,"zvpxlft_o981_lft02_m10V01","*='Specifieke informatie A'!$K$151","","Verzekerden risicoklasse- 05 t/m 09- onbepaald"]
[null,null,null,null,"zvpxlft_o981_lft03_m10V01","*='Specifieke informatie A'!$K$152","","Verzekerden risicoklasse- 10 t/m 14- onbepaald"]
[null,null,null,null,"zvpxlft_o981_lft04_m10V01","*='Specifieke informatie A'!$K$153","","Verzekerden risicoklasse- 15 t/m 19- onbepaald"]
[null,null,null,null,"zvpxlft_o981_lft05_m10V01","*='Specifieke informatie A'!$K$154","","Verzekerden risicoklasse- 20 t/m 24- onbepaald"]
[null,null,null,null,"zvpxlft_o981_lft06_m10V01","*='Specifieke informatie A'!$K$155","","Verzekerden risicoklasse- 25 t/m 29- onbepaald"]
[null,null,null,null,"zvpxlft_o981_lft07_m10V01","*='Specifieke informatie A'!$K$156","","Verzekerden risicoklasse- 30 t/m 34- onbepaald"]
[null,null,null,null,"zvpxlft_o981_lft08_m10V01","*='Specifieke informatie A'!$K$157","","Verzekerden risicoklasse- 35 t/m 39- onbepaald"]
[null,null,null,null,"zvpxlft_o981_lft09_m10V01","*='Specifieke informatie A'!$K$158","","Verzekerden risicoklasse- 40 t/m 44- onbepaald"]
[null,null,null,null,"zvpxlft_o981_lft10_m10V01","*='Specifieke informatie A'!$K$159","","Verzekerden risicoklasse- 45 t/m 49- onbepaald"]
[null,null,null,null,"zvpxlft_o981_lft11_m10V01","*='Specifieke informatie A'!$K$160","","Verzekerden risicoklasse- 50 t/m 54- onbepaald"]
[null,null,null,null,"zvpxlft_o981_lft12_m10V01","*='Specifieke informatie A'!$K$161","","Verzekerden risicoklasse- 55 t/m 59- onbepaald"]
[null,null,null,null,"zvpxlft_o981_lft13_m10V01","*='Specifieke informatie A'!$K$162","","Verzekerden risicoklasse- 60 t/m 64- onbepaald"]
[null,null,null,null,"zvpxlft_o981_lft14_m10V01","*='Specifieke informatie A'!$K$163","","Verzekerden risicoklasse- 65 t/m 69- onbepaald"]
[null,null,null,null,"zvpxlft_o981_lft15_m10V01","*='Specifieke informatie A'!$K$164","","Verzekerden risicoklasse- 70 t/m 74- onbepaald"]
[null,null,null,null,"zvpxlft_o981_lft16_m10V01","*='Specifieke informatie A'!$K$165","","Verzekerden risicoklasse- 75 t/m 79- onbepaald"]
[null,null,null,null,"zvpxlft_o981_lft17_m10V01","*='Specifieke informatie A'!$K$166","","Verzekerden risicoklasse- 80 t/m 84- onbepaald"]
[null,null,null,null,"zvpxlft_o981_lft18_m10V01","*='Specifieke informatie A'!$K$167","","Verzekerden risicoklasse- 85 t/m 89- onbepaald"]
[null,null,null,null,"zvpxlft_o981_lft19_m10V01","*='Specifieke informatie A'!$K$168","","Verzekerden risicoklasse- 90 en ouder- onbepaald"]
[null,null,null,null,"zvpxlft_v981_lft01a_m10V01","*='Specifieke informatie A'!$J$149","","Verzekerden risicoklasse- 00 t/m 01- vrouw"]
[null,null,null,null,"zvpxlft_v981_lft01b_m10V01","*='Specifieke informatie A'!$J$150","","Verzekerden risicoklasse- 02 t/m 04- vrouw"]
[null,null,null,null,"zvpxlft_v981_lft02_m10V01","*='Specifieke informatie A'!$J$151","","Verzekerden risicoklasse- 05 t/m 09- vrouw"]
[null,null,null,null,"zvpxlft_v981_lft03_m10V01","*='Specifieke informatie A'!$J$152","","Verzekerden risicoklasse- 10 t/m 14- vrouw"]
[null,null,null,null,"zvpxlft_v981_lft04_m10V01","*='Specifieke informatie A'!$J$153","","Verzekerden risicoklasse- 15 t/m 19- vrouw"]
[null,null,null,null,"zvpxlft_v981_lft05_m10V01","*='Specifieke informatie A'!$J$154","","Verzekerden risicoklasse- 20 t/m 24- vrouw"]
[null,null,null,null,"zvpxlft_v981_lft06_m10V01","*='Specifieke informatie A'!$J$155","","Verzekerden risicoklasse- 25 t/m 29- vrouw"]
[null,null,null,null,"zvpxlft_v981_lft07_m10V01","*='Specifieke informatie A'!$J$156","","Verzekerden risicoklasse- 30 t/m 34- vrouw"]
[null,null,null,null,"zvpxlft_v981_lft08_m10V01","*='Specifieke informatie A'!$J$157","","Verzekerden risicoklasse- 35 t/m 39- vrouw"]
[null,null,null,null,"zvpxlft_v981_lft09_m10V01","*='Specifieke informatie A'!$J$158","","Verzekerden risicoklasse- 40 t/m 44- vrouw"]
[null,null,null,null,"zvpxlft_v981_lft10_m10V01","*='Specifieke informatie A'!$J$159","","Verzekerden risicoklasse- 45 t/m 49- vrouw"]
[null,null,null,null,"zvpxlft_v981_lft11_m10V01","*='Specifieke informatie A'!$J$160","","Verzekerden risicoklasse- 50 t/m 54- vrouw"]
[null,null,null,null,"zvpxlft_v981_lft12_m10V01","*='Specifieke informatie A'!$J$161","","Verzekerden risicoklasse- 55 t/m 59- vrouw"]
[null,null,null,null,"zvpxlft_v981_lft13_m10V01","*='Specifieke informatie A'!$J$162","","Verzekerden risicoklasse- 60 t/m 64- vrouw"]
[null,null,null,null,"zvpxlft_v981_lft14_m10V01","*='Specifieke informatie A'!$J$163","","Verzekerden risicoklasse- 65 t/m 69- vrouw"]
[null,null,null,null,"zvpxlft_v981_lft15_m10V01","*='Specifieke informatie A'!$J$164","","Verzekerden risicoklasse- 70 t/m 74- vrouw"]
[null,null,null,null,"zvpxlft_v981_lft16_m10V01","*='Specifieke informatie A'!$J$165","","Verzekerden risicoklasse- 75 t/m 79- vrouw"]
[null,null,null,null,"zvpxlft_v981_lft17_m10V01","*='Specifieke informatie A'!$J$166","","Verzekerden risicoklasse- 80 t/m 84- vrouw"]
[null,null,null,null,"zvpxlft_v981_lft18_m10V01","*='Specifieke informatie A'!$J$167","","Verzekerden risicoklasse- 85 t/m 89- vrouw"]
[null,null,null,null,"zvpxlft_v981_lft19_m10V01","*='Specifieke informatie A'!$J$168","","Verzekerden risicoklasse- 90 en ouder- vrouw"]
[null,null,null,null,"zvpxprm_s981_nomy_m10V01","*='Specifieke informatie A'!$L$174","","Verzekerden premiekenmerk- met nominale premie ZVW"]
[null,null,null,null,"zvpxprm_s981_nomn_m10V01","*='Specifieke informatie A'!$L$175","","Verzekerden premiekenmerk- zonder nominale premie ZVW"]
[null,null,null,null,"zvpxwnb_s982_d2m_m07V01","*=Wanbetalers!$I$12","","Wanbetalers- achterstand 2 of 3 maanden","zvpxwnb","s982","d2m","m10V01","Wanbetalers",null,"N",""]
[null,null,null,null,"zvpxwnb_s982_d2m_m08V01","*=Wanbetalers!$J$12","","Wanbetalers- achterstand 2 of 3 maanden","zvpxwnb","s982","d2m","m11V01","Wanbetalers",null,"N",""]
[null,null,null,null,"zvpxwnb_s982_d2m_m09V01","*=Wanbetalers!$K$12","","Wanbetalers- achterstand 2 of 3 maanden","zvpxwnb","s982","d2m","m12V01","Wanbetalers",null,"N",""]
[null,null,null,null,"zvpxwnb_s982_d4m_m07V01","*=Wanbetalers!$I$13","","Wanbetalers- achterstand 4 of 5 maanden","zvpxwnb","s982","d4m","m10V01","Wanbetalers",null,"N",""]
[null,null,null,null,"zvpxwnb_s982_d4m_m08V01","*=Wanbetalers!$J$13","","Wanbetalers- achterstand 4 of 5 maanden","zvpxwnb","s982","d4m","m11V01","Wanbetalers",null,"N",""]
[null,null,null,null,"zvpxwnb_s982_d4m_m09V01","*=Wanbetalers!$K$13","","Wanbetalers- achterstand 4 of 5 maanden","zvpxwnb","s982","d4m","m12V01","Wanbetalers",null,"N",""]
[null,null,null,null,"zvpxwnb_s982_d6m_m07V01","*=Wanbetalers!$I$14","","Wanbetalers- achterstand 6 of meer maanden","zvpxwnb","s982","d6m","m10V01","Wanbetalers",null,"N",""]
[null,null,null,null,"zvpxwnb_s982_d6m_m08V01","*=Wanbetalers!$J$14","","Wanbetalers- achterstand 6 of meer maanden","zvpxwnb","s982","d6m","m11V01","Wanbetalers",null,"N",""]
[null,null,null,null,"zvpxwnb_s982_d6m_m09V01","*=Wanbetalers!$K$14","","Wanbetalers- achterstand 6 of meer maanden","zvpxwnb","s982","d6m","m12V01","Wanbetalers",null,"N",""]
[null,null,null,null,"zvpxwnb_s982_dm2b_m07V01","*=Wanbetalers!$I$17","","Wanbetalers- tweedemaandsbrieven","zvpxwnb","s982","dm2b","m10V01","Wanbetalers",null,"N",""]
[null,null,null,null,"zvpxwnb_s982_dm2b_m08V01","*=Wanbetalers!$J$17","","Wanbetalers- tweedemaandsbrieven","zvpxwnb","s982","dm2b","m11V01","Wanbetalers",null,"N",""]
[null,null,null,null,"zvpxwnb_s982_dm2b_m09V01","*=Wanbetalers!$K$17","","Wanbetalers- tweedemaandsbrieven","zvpxwnb","s982","dm2b","m12V01","Wanbetalers",null,"N",""]
[null,null,null,null,"zvpxwnb_s982_dm4b_m07V01","*=Wanbetalers!$I$18","","Wanbetalers- vierdemaandsbrieven","zvpxwnb","s982","dm4b","m10V01","Wanbetalers",null,"N",""]
[null,null,null,null,"zvpxwnb_s982_dm4b_m08V01","*=Wanbetalers!$J$18","","Wanbetalers- vierdemaandsbrieven","zvpxwnb","s982","dm4b","m11V01","Wanbetalers",null,"N",""]
[null,null,null,null,"zvpxwnb_s982_dm4b_m09V01","*=Wanbetalers!$K$18","","Wanbetalers- vierdemaandsbrieven","zvpxwnb","s982","dm4b","m12V01","Wanbetalers",null,"N",""]
[null,null,null,null,"zvpxwnb_s982_dr0i_m07V01","*=Wanbetalers!$I$21","","Wanbetalers- interne betalingsregeling","zvpxwnb","s982","dr0i","m10V01","Wanbetalers",null,"N",""]
[null,null,null,null,"zvpxwnb_s982_dr0i_m08V01","*=Wanbetalers!$J$21","","Wanbetalers- interne betalingsregeling","zvpxwnb","s982","dr0i","m11V01","Wanbetalers",null,"N",""]
[null,null,null,null,"zvpxwnb_s982_dr0i_m09V01","*=Wanbetalers!$K$21","","Wanbetalers- interne betalingsregeling","zvpxwnb","s982","dr0i","m12V01","Wanbetalers",null,"N",""]
[null,null,null,null,"zvpxwnb_s982_dr0e_m0701","*=Wanbetalers!$I$22","","Wanbetalers- externe betalingsregeling","zvpxwnb","s982","dr0e","m10V01","Wanbetalers",null,"N",""]
[null,null,null,null,"zvpxwnb_s982_dr0e_m08V01","*=Wanbetalers!$J$22","","Wanbetalers- externe betalingsregeling","zvpxwnb","s982","dr0e","m11V01","Wanbetalers",null,"N",""]
[null,null,null,null,"zvpxwnb_s982_dr0e_m09V01","*=Wanbetalers!$K$22","","Wanbetalers- externe betalingsregeling","zvpxwnb","s982","dr0e","m12V01","Wanbetalers",null,"N",""]
[null,null,null,null,"zvpxwnb_s982_dr0s_m07V01","*=Wanbetalers!$I$23","","Wanbetalers- stabilisatieovereenkomst","zvpxwnb","s982","dr0s","m10V01","Wanbetalers",null,"N",""]
[null,null,null,null,"zvpxwnb_s982_dr0s_m08V01","*=Wanbetalers!$J$23","","Wanbetalers- stabilisatieovereenkomst","zvpxwnb","s982","dr0s","m11V01","Wanbetalers",null,"N",""]
[null,null,null,null,"zvpxwnb_s982_dr0s_m09V01","*=Wanbetalers!$K$23","","Wanbetalers- stabilisatieovereenkomst","zvpxwnb","s982","dr0s","m12V01","Wanbetalers",null,"N",""]
[null,null,null,null,"zvpxwnb_s982_dr81_m07V01","*=Wanbetalers!$I$26","","Wanbetalers- cak bdr < 250","zvpxwnb","s982","dr81","m10V01","Wanbetalers",null,"N",""]
[null,null,null,null,"zvpxwnb_s982_dr81_m08V01","*=Wanbetalers!$J$26","","Wanbetalers- cak bdr < 250","zvpxwnb","s982","dr81","m11V01","Wanbetalers",null,"N",""]
[null,null,null,null,"zvpxwnb_s982_dr81_m09V01","*=Wanbetalers!$K$26","","Wanbetalers- cak bdr < 250","zvpxwnb","s982","dr81","m12V01","Wanbetalers",null,"N",""]
[null,null,null,null,"zvpxwnb_s982_dr82_m07V01","*=Wanbetalers!$I$27","","Wanbetalers- cak 250 < bdr < 750","zvpxwnb","s982","dr82","m10V01","Wanbetalers",null,"N",""]
[null,null,null,null,"zvpxwnb_s982_dr82_m08V01","*=Wanbetalers!$J$27","","Wanbetalers- cak 250 < bdr < 750","zvpxwnb","s982","dr82","m11V01","Wanbetalers",null,"N",""]
[null,null,null,null,"zvpxwnb_s982_dr82_m09V01","*=Wanbetalers!$K$27","","Wanbetalers- cak 250 < bdr < 750","zvpxwnb","s982","dr82","m12V01","Wanbetalers",null,"N",""]
[null,null,null,null,"zvpxwnb_s982_dr83_m07V01","*=Wanbetalers!$I$28","","Wanbetalers- cak 750 < bdr","zvpxwnb","s982","dr83","m10V01","Wanbetalers",null,"N",""]
[null,null,null,null,"zvpxwnb_s982_dr83_m08V01","*=Wanbetalers!$J$28","","Wanbetalers- cak 750 < bdr","zvpxwnb","s982","dr83","m11V01","Wanbetalers",null,"N",""]
[null,null,null,null,"zvpxwnb_s982_dr83_m09V01","*=Wanbetalers!$K$28","","Wanbetalers- cak 750 < bdr","zvpxwnb","s982","dr83","m12V01","Wanbetalers",null,"N",""]
[null,null,null,null,"zvsx06k_c610_d1l_TY0V01","*='Specifieke informatie C'!$G$100","","C610 Overige kosten ziekenhuiszorg en curatieve zorg- eerstelijnsdiagnostiek eerstelijnszorgaanbieders - huisartslab- incl balans","zvsx06k","c610","d1l","TY0V01"]
[null,null,null,null,"zvsx06k_a610_d1l_TY0V01","*='Specifieke informatie C'!$H$100","","C610 Overige kosten ziekenhuiszorg en curatieve zorg- eerstelijnsdiagnostiek eerstelijnszorgaanbieders - huisartslab- geaccepteerd","zvsx06k","a610","d1l","TY0V01"]
[null,null,null,null,"zvsx06k_c610_d1l_TY1V01","*='Specifieke informatie C'!$I$100","","C610 Overige kosten ziekenhuiszorg en curatieve zorg- eerstelijnsdiagnostiek eerstelijnszorgaanbieders - huisartslab- incl balans","zvsx06k","c610","d1l","TY1V01"]
[null,null,null,null,"zvsx06k_a610_d1l_TY1V01","*='Specifieke informatie C'!$J$100","","C610 Overige kosten ziekenhuiszorg en curatieve zorg- eerstelijnsdiagnostiek eerstelijnszorgaanbieders - huisartslab- geaccepteerd","zvsx06k","a610","d1l","TY1V01"]
[null,null,null,null,"zvsx06k_c610_d1l_TY2V01","*='Specifieke informatie C'!$K$100","","C610 Overige kosten ziekenhuiszorg en curatieve zorg- eerstelijnsdiagnostiek eerstelijnszorgaanbieders - huisartslab- incl balans","zvsx06k","c610","d1l","TY2V01"]
[null,null,null,null,"zvsx06k_a610_d1l_TY2V01","*='Specifieke informatie C'!$L$100","","C610 Overige kosten ziekenhuiszorg en curatieve zorg- eerstelijnsdiagnostiek eerstelijnszorgaanbieders - huisartslab- geaccepteerd","zvsx06k","a610","d1l","TY2V01"]
[null,null,null,null,"zvsx06k_c610_trmb_TY0V01","*='Specifieke informatie C'!$G$101","","C610 Overige kosten ziekenhuiszorg en curatieve zorg- Trombosediensten- incl balans","zvsx06k","c610","trmb","TY0V01"]
[null,null,null,null,"zvsx06k_a610_trmb_TY0V01","*='Specifieke informatie C'!$H$101","","C610 Overige kosten ziekenhuiszorg en curatieve zorg- Trombosediensten- geaccepteerd","zvsx06k","a610","trmb","TY0V01"]
[null,null,null,null,"zvsx06k_c610_trmb_TY1V01","*='Specifieke informatie C'!$I$101","","C610 Overige kosten ziekenhuiszorg en curatieve zorg- Trombosediensten- incl balans","zvsx06k","c610","trmb","TY1V01"]
[null,null,null,null,"zvsx06k_a610_trmb_TY1V01","*='Specifieke informatie C'!$J$101","","C610 Overige kosten ziekenhuiszorg en curatieve zorg- Trombosediensten- geaccepteerd","zvsx06k","a610","trmb","TY1V01"]
[null,null,null,null,"zvsx06k_c610_trmb_TY2V01","*='Specifieke informatie C'!$K$101","","C610 Overige kosten ziekenhuiszorg en curatieve zorg- Trombosediensten- incl balans","zvsx06k","c610","trmb","TY2V01"]
[null,null,null,null,"zvsx06k_a610_trmb_TY2V01","*='Specifieke informatie C'!$L$101","","C610 Overige kosten ziekenhuiszorg en curatieve zorg- Trombosediensten- geaccepteerd","zvsx06k","a610","trmb","TY2V01"]
[null,null,null,null,"zvsx06k_c610_sknt_TY0V01","*='Specifieke informatie C'!$G$102","","C610 Overige kosten ziekenhuiszorg en curatieve zorg- SKION en NTS- incl balans","zvsx06k","c610","sknt","TY0V01"]
[null,null,null,null,"zvsx06k_a610_sknt_TY0V01","*='Specifieke informatie C'!$H$102","","C610 Overige kosten ziekenhuiszorg en curatieve zorg- SKION en NTS- geaccepteerd","zvsx06k","a610","sknt","TY0V01"]
[null,null,null,null,"zvsx06k_c610_sknt_TY1V01","*='Specifieke informatie C'!$I$102","","C610 Overige kosten ziekenhuiszorg en curatieve zorg- SKION en NTS- incl balans","zvsx06k","c610","sknt","TY1V01"]
[null,null,null,null,"zvsx06k_a610_sknt_TY1V01","*='Specifieke informatie C'!$J$102","","C610 Overige kosten ziekenhuiszorg en curatieve zorg- SKION en NTS- geaccepteerd","zvsx06k","a610","sknt","TY1V01"]
[null,null,null,null,"zvsx06k_c610_sknt_TY2V01","*='Specifieke informatie C'!$K$102","","C610 Overige kosten ziekenhuiszorg en curatieve zorg- SKION en NTS- incl balans","zvsx06k","c610","sknt","TY2V01"]
[null,null,null,null,"zvsx06k_a610_sknt_TY2V01","*='Specifieke informatie C'!$L$102","","C610 Overige kosten ziekenhuiszorg en curatieve zorg- SKION en NTS- geaccepteerd","zvsx06k","a610","sknt","TY2V01"]
[null,null,null,null,"zvsx06k_c611_az_TY0V01","*='Specifieke informatie C'!$G$109","","C611 Naar Instelling- Academische ziekenhuizen- incl balans","zvsx06k","c611","az","TY0V01"]
[null,null,null,null,"zvsx06k_a611_az_TY0V01","*='Specifieke informatie C'!$H$109","","C611 Naar Instelling- Academische ziekenhuizen- geaccepteerd","zvsx06k","a611","az","TY0V01"]
[null,null,null,null,"zvsx06k_c611_az_TY1V01","*='Specifieke informatie C'!$I$109","","C611 Naar Instelling- Academische ziekenhuizen- incl balans","zvsx06k","c611","az","TY1V01"]
[null,null,null,null,"zvsx06k_a611_az_TY1V01","*='Specifieke informatie C'!$J$109","","C611 Naar Instelling- Academische ziekenhuizen- geaccepteerd","zvsx06k","a611","az","TY1V01"]
[null,null,null,null,"zvsx06k_c611_az_TY2V01","*='Specifieke informatie C'!$K$109","","C611 Naar Instelling- Academische ziekenhuizen- incl balans","zvsx06k","c611","az","TY2V01"]
[null,null,null,null,"zvsx06k_a611_az_TY2V01","*='Specifieke informatie C'!$L$109","","C611 Naar Instelling- Academische ziekenhuizen- geaccepteerd","zvsx06k","a611","az","TY2V01"]
[null,null,null,null,"zvsx06k_c611_sz_TY0V01","*='Specifieke informatie C'!$G$110","","C611 Naar Instelling- Algemene ziekenhuizen- incl balans","zvsx06k","c611","sz","TY0V01"]
[null,null,null,null,"zvsx06k_a611_sz_TY0V01","*='Specifieke informatie C'!$H$110","","C611 Naar Instelling- Algemene ziekenhuizen- geaccepteerd","zvsx06k","a611","sz","TY0V01"]
[null,null,null,null,"zvsx06k_c611_sz_TY1V01","*='Specifieke informatie C'!$I$110","","C611 Naar Instelling- Algemene ziekenhuizen- incl balans","zvsx06k","c611","sz","TY1V01"]
[null,null,null,null,"zvsx06k_a611_sz_TY1V01","*='Specifieke informatie C'!$J$110","","C611 Naar Instelling- Algemene ziekenhuizen- geaccepteerd","zvsx06k","a611","sz","TY1V01"]
[null,null,null,null,"zvsx06k_c611_sz_TY2V01","*='Specifieke informatie C'!$K$110","","C611 Naar Instelling- Algemene ziekenhuizen- incl balans","zvsx06k","c611","sz","TY2V01"]
[null,null,null,null,"zvsx06k_a611_sz_TY2V01","*='Specifieke informatie C'!$L$110","","C611 Naar Instelling- Algemene ziekenhuizen- geaccepteerd","zvsx06k","a611","sz","TY2V01"]
[null,null,null,null,"zvsx06k_c611_zb_TY0V01","*='Specifieke informatie C'!$G$111","","C611 Naar Instelling- Zelfstandige behandelcentra- incl balans","zvsx06k","c611","zb","TY0V01"]
[null,null,null,null,"zvsx06k_a611_zb_TY0V01","*='Specifieke informatie C'!$H$111","","C611 Naar Instelling- Zelfstandige behandelcentra- geaccepteerd","zvsx06k","a611","zb","TY0V01"]
[null,null,null,null,"zvsx06k_c611_zb_TY1V01","*='Specifieke informatie C'!$I$111","","C611 Naar Instelling- Zelfstandige behandelcentra- incl balans","zvsx06k","c611","zb","TY1V01"]
[null,null,null,null,"zvsx06k_a611_zb_TY1V01","*='Specifieke informatie C'!$J$111","","C611 Naar Instelling- Zelfstandige behandelcentra- geaccepteerd","zvsx06k","a611","zb","TY1V01"]
[null,null,null,null,"zvsx06k_c611_zb_TY2V01","*='Specifieke informatie C'!$K$111","","C611 Naar Instelling- Zelfstandige behandelcentra- incl balans","zvsx06k","c611","zb","TY2V01"]
[null,null,null,null,"zvsx06k_a611_zb_TY2V01","*='Specifieke informatie C'!$L$111","","C611 Naar Instelling- Zelfstandige behandelcentra- geaccepteerd","zvsx06k","a611","zb","TY2V01"]
[null,null,null,null,"zvsx06k_c611_ov_TY0V01","*='Specifieke informatie C'!$G$112","","C611 Naar Instelling- Overige zorgaanbieders- incl balans","zvsx06k","c611","ov","TY0V01"]
[null,null,null,null,"zvsx06k_a611_ov_TY0V01","*='Specifieke informatie C'!$H$112","","C611 Naar Instelling- Overige zorgaanbieders- geaccepteerd","zvsx06k","a611","ov","TY0V01"]
[null,null,null,null,"zvsx06k_c611_ov_TY1V01","*='Specifieke informatie C'!$I$112","","C611 Naar Instelling- Overige zorgaanbieders- incl balans","zvsx06k","c611","ov","TY1V01"]
[null,null,null,null,"zvsx06k_a611_ov_TY1V01","*='Specifieke informatie C'!$J$112","","C611 Naar Instelling- Overige zorgaanbieders- geaccepteerd","zvsx06k","a611","ov","TY1V01"]
[null,null,null,null,"zvsx06k_c611_ov_TY2V01","*='Specifieke informatie C'!$K$112","","C611 Naar Instelling- Overige zorgaanbieders- incl balans","zvsx06k","c611","ov","TY2V01"]
[null,null,null,null,"zvsx06k_a611_ov_TY2V01","*='Specifieke informatie C'!$L$112","","C611 Naar Instelling- Overige zorgaanbieders- geaccepteerd","zvsx06k","a611","ov","TY2V01"]
[null,null,null,null,"zvsx06k_c6121_az_TY0V01","*='Specifieke informatie C'!$G$118","","C612.1 Kosten add-ons dure geneesmiddelen naar instelling- Academische ziekenhuizen- incl balans","zvsx06k","c6121","az","TY0V01"]
[null,null,null,null,"zvsx06k_a6121_az_TY0V01","*='Specifieke informatie C'!$H$118","","C612.1 Kosten add-ons dure geneesmiddelen naar instelling- Academische ziekenhuizen- geaccepteerd","zvsx06k","a6121","az","TY0V01"]
[null,null,null,null,"zvsx06k_c6121_az_TY1V01","*='Specifieke informatie C'!$I$118","","C612.1 Kosten add-ons dure geneesmiddelen naar instelling- Academische ziekenhuizen- incl balans","zvsx06k","c6121","az","TY1V01"]
[null,null,null,null,"zvsx06k_a6121_az_TY1V01","*='Specifieke informatie C'!$J$118","","C612.1 Kosten add-ons dure geneesmiddelen naar instelling- Academische ziekenhuizen- geaccepteerd","zvsx06k","a6121","az","TY1V01"]
[null,null,null,null,"zvsx06k_c6121_az_TY2V01","*='Specifieke informatie C'!$K$118","","C612.1 Kosten add-ons dure geneesmiddelen naar instelling- Academische ziekenhuizen- incl balans","zvsx06k","c6121","az","TY2V01"]
[null,null,null,null,"zvsx06k_a6121_az_TY2V01","*='Specifieke informatie C'!$L$118","","C612.1 Kosten add-ons dure geneesmiddelen naar instelling- Academische ziekenhuizen- geaccepteerd","zvsx06k","a6121","az","TY2V01"]
[null,null,null,null,"zvsx06k_c6121_sz_TY0V01","*='Specifieke informatie C'!$G$119","","C612.1 Kosten add-ons dure geneesmiddelen naar instelling- Algemene ziekenhuizen- incl balans","zvsx06k","c6121","sz","TY0V01"]
[null,null,null,null,"zvsx06k_a6121_sz_TY0V01","*='Specifieke informatie C'!$H$119","","C612.1 Kosten add-ons dure geneesmiddelen naar instelling- Algemene ziekenhuizen- geaccepteerd","zvsx06k","a6121","sz","TY0V01"]
[null,null,null,null,"zvsx06k_c6121_sz_TY1V01","*='Specifieke informatie C'!$I$119","","C612.1 Kosten add-ons dure geneesmiddelen naar instelling- Algemene ziekenhuizen- incl balans","zvsx06k","c6121","sz","TY1V01"]
[null,null,null,null,"zvsx06k_a6121_sz_TY1V01","*='Specifieke informatie C'!$J$119","","C612.1 Kosten add-ons dure geneesmiddelen naar instelling- Algemene ziekenhuizen- geaccepteerd","zvsx06k","a6121","sz","TY1V01"]
[null,null,null,null,"zvsx06k_c6121_sz_TY2V01","*='Specifieke informatie C'!$K$119","","C612.1 Kosten add-ons dure geneesmiddelen naar instelling- Algemene ziekenhuizen- incl balans","zvsx06k","c6121","sz","TY2V01"]
[null,null,null,null,"zvsx06k_a6121_sz_TY2V01","*='Specifieke informatie C'!$L$119","","C612.1 Kosten add-ons dure geneesmiddelen naar instelling- Algemene ziekenhuizen- geaccepteerd","zvsx06k","a6121","sz","TY2V01"]
[null,null,null,null,"zvsx06k_c6121_zb_TY0V01","*='Specifieke informatie C'!$G$120","","C612.1 Kosten add-ons dure geneesmiddelen naar instelling- Zelfstandige behandelcentra- incl balans","zvsx06k","c6121","zb","TY0V01"]
[null,null,null,null,"zvsx06k_a6121_zb_TY0V01","*='Specifieke informatie C'!$H$120","","C612.1 Kosten add-ons dure geneesmiddelen naar instelling- Zelfstandige behandelcentra- geaccepteerd","zvsx06k","a6121","zb","TY0V01"]
[null,null,null,null,"zvsx06k_c6121_zb_TY1V01","*='Specifieke informatie C'!$I$120","","C612.1 Kosten add-ons dure geneesmiddelen naar instelling- Zelfstandige behandelcentra- incl balans","zvsx06k","c6121","zb","TY1V01"]
[null,null,null,null,"zvsx06k_a6121_zb_TY1V01","*='Specifieke informatie C'!$J$120","","C612.1 Kosten add-ons dure geneesmiddelen naar instelling- Zelfstandige behandelcentra- geaccepteerd","zvsx06k","a6121","zb","TY1V01"]
[null,null,null,null,"zvsx06k_c6121_zb_TY2V01","*='Specifieke informatie C'!$K$120","","C612.1 Kosten add-ons dure geneesmiddelen naar instelling- Zelfstandige behandelcentra- incl balans","zvsx06k","c6121","zb","TY2V01"]
[null,null,null,null,"zvsx06k_a6121_zb_TY2V01","*='Specifieke informatie C'!$L$120","","C612.1 Kosten add-ons dure geneesmiddelen naar instelling- Zelfstandige behandelcentra- geaccepteerd","zvsx06k","a6121","zb","TY2V01"]
[null,null,null,null,"zvsx06k_c6121_ov_TY0V01","*='Specifieke informatie C'!$G$121","","C612.1 Kosten add-ons dure geneesmiddelen naar instelling- Overige zorgaanbieders- incl balans","zvsx06k","c6121","ov","TY0V01"]
[null,null,null,null,"zvsx06k_a6121_ov_TY0V01","*='Specifieke informatie C'!$H$121","","C612.1 Kosten add-ons dure geneesmiddelen naar instelling- Overige zorgaanbieders- geaccepteerd","zvsx06k","a6121","ov","TY0V01"]
[null,null,null,null,"zvsx06k_c6121_ov_TY1V01","*='Specifieke informatie C'!$I$121","","C612.1 Kosten add-ons dure geneesmiddelen naar instelling- Overige zorgaanbieders- incl balans","zvsx06k","c6121","ov","TY1V01"]
[null,null,null,null,"zvsx06k_a6121_ov_TY1V01","*='Specifieke informatie C'!$J$121","","C612.1 Kosten add-ons dure geneesmiddelen naar instelling- Overige zorgaanbieders- geaccepteerd","zvsx06k","a6121","ov","TY1V01"]
[null,null,null,null,"zvsx06k_c6121_ov_TY2V01","*='Specifieke informatie C'!$K$121","","C612.1 Kosten add-ons dure geneesmiddelen naar instelling- Overige zorgaanbieders- incl balans","zvsx06k","c6121","ov","TY2V01"]
[null,null,null,null,"zvsx06k_a6121_ov_TY2V01","*='Specifieke informatie C'!$L$121","","C612.1 Kosten add-ons dure geneesmiddelen naar instelling- Overige zorgaanbieders- geaccepteerd","zvsx06k","a6121","ov","TY2V01"]
[null,null,null,null,"zvsx06k_c6122_az_TY0V01","*='Specifieke informatie C'!$G$127","","C612.2 Kosten add-ons IC naar instelling- Academische ziekenhuizen- incl balans","zvsx06k","c6122","az","TY0V01"]
[null,null,null,null,"zvsx06k_a6122_az_TY0V01","*='Specifieke informatie C'!$H$127","","C612.2 Kosten add-ons IC naar instelling- Academische ziekenhuizen- geaccepteerd","zvsx06k","a6122","az","TY0V01"]
[null,null,null,null,"zvsx06k_c6122_az_TY1V01","*='Specifieke informatie C'!$I$127","","C612.2 Kosten add-ons IC naar instelling- Academische ziekenhuizen- incl balans","zvsx06k","c6122","az","TY1V01"]
[null,null,null,null,"zvsx06k_a6122_az_TY1V01","*='Specifieke informatie C'!$J$127","","C612.2 Kosten add-ons IC naar instelling- Academische ziekenhuizen- geaccepteerd","zvsx06k","a6122","az","TY1V01"]
[null,null,null,null,"zvsx06k_c6122_az_TY2V01","*='Specifieke informatie C'!$K$127","","C612.2 Kosten add-ons IC naar instelling- Academische ziekenhuizen- incl balans","zvsx06k","c6122","az","TY2V01"]
[null,null,null,null,"zvsx06k_a6122_az_TY2V01","*='Specifieke informatie C'!$L$127","","C612.2 Kosten add-ons IC naar instelling- Academische ziekenhuizen- geaccepteerd","zvsx06k","a6122","az","TY2V01"]
[null,null,null,null,"zvsx06k_c6122_sz_TY0V01","*='Specifieke informatie C'!$G$128","","C612.2 Kosten add-ons IC naar instelling- Algemene ziekenhuizen- incl balans","zvsx06k","c6122","sz","TY0V01"]
[null,null,null,null,"zvsx06k_a6122_sz_TY0V01","*='Specifieke informatie C'!$H$128","","C612.2 Kosten add-ons IC naar instelling- Algemene ziekenhuizen- geaccepteerd","zvsx06k","a6122","sz","TY0V01"]
[null,null,null,null,"zvsx06k_c6122_sz_TY1V01","*='Specifieke informatie C'!$I$128","","C612.2 Kosten add-ons IC naar instelling- Algemene ziekenhuizen- incl balans","zvsx06k","c6122","sz","TY1V01"]
[null,null,null,null,"zvsx06k_a6122_sz_TY1V01","*='Specifieke informatie C'!$J$128","","C612.2 Kosten add-ons IC naar instelling- Algemene ziekenhuizen- geaccepteerd","zvsx06k","a6122","sz","TY1V01"]
[null,null,null,null,"zvsx06k_c6122_sz_TY2V01","*='Specifieke informatie C'!$K$128","","C612.2 Kosten add-ons IC naar instelling- Algemene ziekenhuizen- incl balans","zvsx06k","c6122","sz","TY2V01"]
[null,null,null,null,"zvsx06k_a6122_sz_TY2V01","*='Specifieke informatie C'!$L$128","","C612.2 Kosten add-ons IC naar instelling- Algemene ziekenhuizen- geaccepteerd","zvsx06k","a6122","sz","TY2V01"]
[null,null,null,null,"zvsx06k_c6122_zb_TY0V01","*='Specifieke informatie C'!$G$129","","C612.2 Kosten add-ons IC naar instelling- Zelfstandige behandelcentra- incl balans","zvsx06k","c6122","zb","TY0V01"]
[null,null,null,null,"zvsx06k_a6122_zb_TY0V01","*='Specifieke informatie C'!$H$129","","C612.2 Kosten add-ons IC naar instelling- Zelfstandige behandelcentra- geaccepteerd","zvsx06k","a6122","zb","TY0V01"]
[null,null,null,null,"zvsx06k_c6122_zb_TY1V01","*='Specifieke informatie C'!$I$129","","C612.2 Kosten add-ons IC naar instelling- Zelfstandige behandelcentra- incl balans","zvsx06k","c6122","zb","TY1V01"]
[null,null,null,null,"zvsx06k_a6122_zb_TY1V01","*='Specifieke informatie C'!$J$129","","C612.2 Kosten add-ons IC naar instelling- Zelfstandige behandelcentra- geaccepteerd","zvsx06k","a6122","zb","TY1V01"]
[null,null,null,null,"zvsx06k_c6122_zb_TY2V01","*='Specifieke informatie C'!$K$129","","C612.2 Kosten add-ons IC naar instelling- Zelfstandige behandelcentra- incl balans","zvsx06k","c6122","zb","TY2V01"]
[null,null,null,null,"zvsx06k_a6122_zb_TY2V01","*='Specifieke informatie C'!$L$129","","C612.2 Kosten add-ons IC naar instelling- Zelfstandige behandelcentra- geaccepteerd","zvsx06k","a6122","zb","TY2V01"]
[null,null,null,null,"zvsx06k_c6122_ov_TY0V01","*='Specifieke informatie C'!$G$130","","C612.2 Kosten add-ons IC naar instelling- Overige zorgaanbieders- incl balans","zvsx06k","c6122","ov","TY0V01"]
[null,null,null,null,"zvsx06k_a6122_ov_TY0V01","*='Specifieke informatie C'!$H$130","","C612.2 Kosten add-ons IC naar instelling- Overige zorgaanbieders- geaccepteerd","zvsx06k","a6122","ov","TY0V01"]
[null,null,null,null,"zvsx06k_c6122_ov_TY1V01","*='Specifieke informatie C'!$I$130","","C612.2 Kosten add-ons IC naar instelling- Overige zorgaanbieders- incl balans","zvsx06k","c6122","ov","TY1V01"]
[null,null,null,null,"zvsx06k_a6122_ov_TY1V01","*='Specifieke informatie C'!$J$130","","C612.2 Kosten add-ons IC naar instelling- Overige zorgaanbieders- geaccepteerd","zvsx06k","a6122","ov","TY1V01"]
[null,null,null,null,"zvsx06k_c6122_ov_TY2V01","*='Specifieke informatie C'!$K$130","","C612.2 Kosten add-ons IC naar instelling- Overige zorgaanbieders- incl balans","zvsx06k","c6122","ov","TY2V01"]
[null,null,null,null,"zvsx06k_a6122_ov_TY2V01","*='Specifieke informatie C'!$L$130","","C612.2 Kosten add-ons IC naar instelling- Overige zorgaanbieders- geaccepteerd","zvsx06k","a6122","ov","TY2V01"]
[null,null,null,null,"zvsx06k_c6131_az_TY0V01","*='Specifieke informatie C'!$G$143","","C613.1 Integrale kosten DBC-zorgproducten gereguleerde segment- Academische ziekenhuizen- incl balans","zvsx06k","c6131","az","TY0V01"]
[null,null,null,null,"zvsx06k_a6131_az_TY0V01","*='Specifieke informatie C'!$H$143","","C613.1 Integrale kosten DBC-zorgproducten gereguleerde segment- Academische ziekenhuizen- geaccepteerd","zvsx06k","a6131","az","TY0V01"]
[null,null,null,null,"zvsx06k_c6131_az_TY1V01","*='Specifieke informatie C'!$I$143","","C613.1 Integrale kosten DBC-zorgproducten gereguleerde segment- Academische ziekenhuizen- incl balans","zvsx06k","c6131","az","TY1V01"]
[null,null,null,null,"zvsx06k_a6131_az_TY1V01","*='Specifieke informatie C'!$J$143","","C613.1 Integrale kosten DBC-zorgproducten gereguleerde segment- Academische ziekenhuizen- geaccepteerd","zvsx06k","a6131","az","TY1V01"]
[null,null,null,null,"zvsx06k_c6131_az_TY2V01","*='Specifieke informatie C'!$K$143","","C613.1 Integrale kosten DBC-zorgproducten gereguleerde segment- Academische ziekenhuizen- incl balans","zvsx06k","c6131","az","TY2V01"]
[null,null,null,null,"zvsx06k_a6131_az_TY2V01","*='Specifieke informatie C'!$L$143","","C613.1 Integrale kosten DBC-zorgproducten gereguleerde segment- Academische ziekenhuizen- geaccepteerd","zvsx06k","a6131","az","TY2V01"]
[null,null,null,null,"zvsx06k_c6131_sz_TY0V01","*='Specifieke informatie C'!$G$144","","C613.1 Integrale kosten DBC-zorgproducten gereguleerde segment- Algemene ziekenhuizen- incl balans","zvsx06k","c6131","sz","TY0V01"]
[null,null,null,null,"zvsx06k_a6131_sz_TY0V01","*='Specifieke informatie C'!$H$144","","C613.1 Integrale kosten DBC-zorgproducten gereguleerde segment- Algemene ziekenhuizen- geaccepteerd","zvsx06k","a6131","sz","TY0V01"]
[null,null,null,null,"zvsx06k_c6131_sz_TY1V01","*='Specifieke informatie C'!$I$144","","C613.1 Integrale kosten DBC-zorgproducten gereguleerde segment- Algemene ziekenhuizen- incl balans","zvsx06k","c6131","sz","TY1V01"]
[null,null,null,null,"zvsx06k_a6131_sz_TY1V01","*='Specifieke informatie C'!$J$144","","C613.1 Integrale kosten DBC-zorgproducten gereguleerde segment- Algemene ziekenhuizen- geaccepteerd","zvsx06k","a6131","sz","TY1V01"]
[null,null,null,null,"zvsx06k_c6131_sz_TY2V01","*='Specifieke informatie C'!$K$144","","C613.1 Integrale kosten DBC-zorgproducten gereguleerde segment- Algemene ziekenhuizen- incl balans","zvsx06k","c6131","sz","TY2V01"]
[null,null,null,null,"zvsx06k_a6131_sz_TY2V01","*='Specifieke informatie C'!$L$144","","C613.1 Integrale kosten DBC-zorgproducten gereguleerde segment- Algemene ziekenhuizen- geaccepteerd","zvsx06k","a6131","sz","TY2V01"]
[null,null,null,null,"zvsx06k_c6131_zb_TY0V01","*='Specifieke informatie C'!$G$145","","C613.1 Integrale kosten DBC-zorgproducten gereguleerde segment- Zelfstandige behandelcentra- incl balans","zvsx06k","c6131","zb","TY0V01"]
[null,null,null,null,"zvsx06k_a6131_zb_TY0V01","*='Specifieke informatie C'!$H$145","","C613.1 Integrale kosten DBC-zorgproducten gereguleerde segment- Zelfstandige behandelcentra- geaccepteerd","zvsx06k","a6131","zb","TY0V01"]
[null,null,null,null,"zvsx06k_c6131_zb_TY1V01","*='Specifieke informatie C'!$I$145","","C613.1 Integrale kosten DBC-zorgproducten gereguleerde segment- Zelfstandige behandelcentra- incl balans","zvsx06k","c6131","zb","TY1V01"]
[null,null,null,null,"zvsx06k_a6131_zb_TY1V01","*='Specifieke informatie C'!$J$145","","C613.1 Integrale kosten DBC-zorgproducten gereguleerde segment- Zelfstandige behandelcentra- geaccepteerd","zvsx06k","a6131","zb","TY1V01"]
[null,null,null,null,"zvsx06k_c6131_zb_TY2V01","*='Specifieke informatie C'!$K$145","","C613.1 Integrale kosten DBC-zorgproducten gereguleerde segment- Zelfstandige behandelcentra- incl balans","zvsx06k","c6131","zb","TY2V01"]
[null,null,null,null,"zvsx06k_a6131_zb_TY2V01","*='Specifieke informatie C'!$L$145","","C613.1 Integrale kosten DBC-zorgproducten gereguleerde segment- Zelfstandige behandelcentra- geaccepteerd","zvsx06k","a6131","zb","TY2V01"]
[null,null,null,null,"zvsx06k_c6131_ov_TY0V01","*='Specifieke informatie C'!$G$146","","C613.1 Integrale kosten DBC-zorgproducten gereguleerde segment- Overige zorgaanbieders- incl balans","zvsx06k","c6131","ov","TY0V01"]
[null,null,null,null,"zvsx06k_a6131_ov_TY0V01","*='Specifieke informatie C'!$H$146","","C613.1 Integrale kosten DBC-zorgproducten gereguleerde segment- Overige zorgaanbieders- geaccepteerd","zvsx06k","a6131","ov","TY0V01"]
[null,null,null,null,"zvsx06k_c6131_ov_TY1V01","*='Specifieke informatie C'!$I$146","","C613.1 Integrale kosten DBC-zorgproducten gereguleerde segment- Overige zorgaanbieders- incl balans","zvsx06k","c6131","ov","TY1V01"]
[null,null,null,null,"zvsx06k_a6131_ov_TY1V01","*='Specifieke informatie C'!$J$146","","C613.1 Integrale kosten DBC-zorgproducten gereguleerde segment- Overige zorgaanbieders- geaccepteerd","zvsx06k","a6131","ov","TY1V01"]
[null,null,null,null,"zvsx06k_c6131_ov_TY2V01","*='Specifieke informatie C'!$K$146","","C613.1 Integrale kosten DBC-zorgproducten gereguleerde segment- Overige zorgaanbieders- incl balans","zvsx06k","c6131","ov","TY2V01"]
[null,null,null,null,"zvsx06k_a6131_ov_TY2V01","*='Specifieke informatie C'!$L$146","","C613.1 Integrale kosten DBC-zorgproducten gereguleerde segment- Overige zorgaanbieders- geaccepteerd","zvsx06k","a6131","ov","TY2V01"]
[null,null,null,null,"zvsx06k_c6151_az_TY0V01","*='Specifieke informatie C'!$G$152","","C615.1 Integrale kosten DBC-zorgproduct vrije segment- Academische ziekenhuizen- incl balans","zvsx06k","c6151","az","TY0V01"]
[null,null,null,null,"zvsx06k_a6151_az_TY0V01","*='Specifieke informatie C'!$H$152","","C615.1 Integrale kosten DBC-zorgproduct vrije segment- Academische ziekenhuizen- geaccepteerd","zvsx06k","a6151","az","TY0V01"]
[null,null,null,null,"zvsx06k_c6151_az_TY1V01","*='Specifieke informatie C'!$I$152","","C615.1 Integrale kosten DBC-zorgproduct vrije segment- Academische ziekenhuizen- incl balans","zvsx06k","c6151","az","TY1V01"]
[null,null,null,null,"zvsx06k_a6151_az_TY1V01","*='Specifieke informatie C'!$J$152","","C615.1 Integrale kosten DBC-zorgproduct vrije segment- Academische ziekenhuizen- geaccepteerd","zvsx06k","a6151","az","TY1V01"]
[null,null,null,null,"zvsx06k_c6151_az_TY2V01","*='Specifieke informatie C'!$K$152","","C615.1 Integrale kosten DBC-zorgproduct vrije segment- Academische ziekenhuizen- incl balans","zvsx06k","c6151","az","TY2V01"]
[null,null,null,null,"zvsx06k_a6151_az_TY2V01","*='Specifieke informatie C'!$L$152","","C615.1 Integrale kosten DBC-zorgproduct vrije segment- Academische ziekenhuizen- geaccepteerd","zvsx06k","a6151","az","TY2V01"]
[null,null,null,null,"zvsx06k_c6151_sz_TY0V01","*='Specifieke informatie C'!$G$153","","C615.1 Integrale kosten DBC-zorgproduct vrije segment- Algemene ziekenhuizen- incl balans","zvsx06k","c6151","sz","TY0V01"]
[null,null,null,null,"zvsx06k_a6151_sz_TY0V01","*='Specifieke informatie C'!$H$153","","C615.1 Integrale kosten DBC-zorgproduct vrije segment- Algemene ziekenhuizen- geaccepteerd","zvsx06k","a6151","sz","TY0V01"]
[null,null,null,null,"zvsx06k_c6151_sz_TY1V01","*='Specifieke informatie C'!$I$153","","C615.1 Integrale kosten DBC-zorgproduct vrije segment- Algemene ziekenhuizen- incl balans","zvsx06k","c6151","sz","TY1V01"]
[null,null,null,null,"zvsx06k_a6151_sz_TY1V01","*='Specifieke informatie C'!$J$153","","C615.1 Integrale kosten DBC-zorgproduct vrije segment- Algemene ziekenhuizen- geaccepteerd","zvsx06k","a6151","sz","TY1V01"]
[null,null,null,null,"zvsx06k_c6151_sz_TY2V01","*='Specifieke informatie C'!$K$153","","C615.1 Integrale kosten DBC-zorgproduct vrije segment- Algemene ziekenhuizen- incl balans","zvsx06k","c6151","sz","TY2V01"]
[null,null,null,null,"zvsx06k_a6151_sz_TY2V01","*='Specifieke informatie C'!$L$153","","C615.1 Integrale kosten DBC-zorgproduct vrije segment- Algemene ziekenhuizen- geaccepteerd","zvsx06k","a6151","sz","TY2V01"]
[null,null,null,null,"zvsx06k_a6151_zb_TY0V01","*='Specifieke informatie C'!$H$154","","C615.1 Integrale kosten DBC-zorgproduct vrije segment- Zelfstandige behandelcentra- geaccepteerd","zvsx06k","a6151","zb","TY0V01"]
[null,null,null,null,"zvsx06k_c6151_zb_TY0V01","*='Specifieke informatie C'!$G$154","","C615.1 Integrale kosten DBC-zorgproduct vrije segment- Zelfstandige behandelcentra- incl balans","zvsx06k","c6151","zb","TY0V01"]
[null,null,null,null,"zvsx06k_c6151_zb_TY1V01","*='Specifieke informatie C'!$I$154","","C615.1 Integrale kosten DBC-zorgproduct vrije segment- Zelfstandige behandelcentra- incl balans","zvsx06k","c6151","zb","TY1V01"]
[null,null,null,null,"zvsx06k_a6151_zb_TY1V01","*='Specifieke informatie C'!$J$154","","C615.1 Integrale kosten DBC-zorgproduct vrije segment- Zelfstandige behandelcentra- geaccepteerd","zvsx06k","a6151","zb","TY1V01"]
[null,null,null,null,"zvsx06k_c6151_zb_TY2V01","*='Specifieke informatie C'!$K$154","","C615.1 Integrale kosten DBC-zorgproduct vrije segment- Zelfstandige behandelcentra- incl balans","zvsx06k","c6151","zb","TY2V01"]
[null,null,null,null,"zvsx06k_a6151_zb_TY2V01","*='Specifieke informatie C'!$L$154","","C615.1 Integrale kosten DBC-zorgproduct vrije segment- Zelfstandige behandelcentra- geaccepteerd","zvsx06k","a6151","zb","TY2V01"]
[null,null,null,null,"zvsx06k_c6151_ov_TY0V01","*='Specifieke informatie C'!$G$155","","C615.1 Integrale kosten DBC-zorgproduct vrije segment- Overige zorgaanbieders- incl balans","zvsx06k","c6151","ov","TY0V01"]
[null,null,null,null,"zvsx06k_a6151_ov_TY0V01","*='Specifieke informatie C'!$H$155","","C615.1 Integrale kosten DBC-zorgproduct vrije segment- Overige zorgaanbieders- geaccepteerd","zvsx06k","a6151","ov","TY0V01"]
[null,null,null,null,"zvsx06k_c6151_ov_TY1V01","*='Specifieke informatie C'!$I$155","","C615.1 Integrale kosten DBC-zorgproduct vrije segment- Overige zorgaanbieders- incl balans","zvsx06k","c6151","ov","TY1V01"]
[null,null,null,null,"zvsx06k_a6151_ov_TY1V01","*='Specifieke informatie C'!$J$155","","C615.1 Integrale kosten DBC-zorgproduct vrije segment- Overige zorgaanbieders- geaccepteerd","zvsx06k","a6151","ov","TY1V01"]
[null,null,null,null,"zvsx06k_c6151_ov_TY2V01","*='Specifieke informatie C'!$K$155","","C615.1 Integrale kosten DBC-zorgproduct vrije segment- Overige zorgaanbieders- incl balans","zvsx06k","c6151","ov","TY2V01"]
[null,null,null,null,"zvsx06k_a6151_ov_TY2V01","*='Specifieke informatie C'!$L$155","","C615.1 Integrale kosten DBC-zorgproduct vrije segment- Overige zorgaanbieders- geaccepteerd","zvsx06k","a6151","ov","TY2V01"]

{"sheet":"Parameters","index":13,"n_rows":38,"n_cols":7,"rows_kept":38,"cut":false,"hidden":true,"merged":[[1,4,1,5]]}
[]
[null,"Kwartaal:",3,null,"HASHTOTALEN"]
[null,"Jaar:",2021,null,"Alle waarden tabblad specifieke informatie A",{"$f":"ROUND(SUM(alle_cellen_info_a),0)","v":{"$error":"#REF!"}},"Opm: kolom I..L"]
[null,"Wet:","ZVW",null,"Alle waarden tabblad specifieke informatie B",{"$f":"ROUND(SUM(alle_cellen_info_c),0)","v":222333},"Opm: kolom I..L"]
[null,"Document:",{"$f":"CONCATENATE(\"KS\",jaar_id,wet_id,\".\",kwartaal_id)","v":"KS2021ZVW.3"},null,"Alle waarden tabbladen specifieke informatie A en C",{"$f":"SUM(F3:F4)","v":{"$error":"#REF!"}},"Opm: kolom I..L"]
[null,"Revisie:","A"]
[null,"Revisiedatum:","2021-09-01"]
[null,"Versie:",{"$f":"CONCATENATE(document_id,revisie_id)","v":"KS2021ZVW.3A"}]
[]
[]
[]
[null,"NUMMER_UO","NAAM_UO","FORMAT_UO1"]
[null,"0000","KIES UW UZOVI-NUMMER",{"$f":"CONCATENATE(B13,\" \",C13)","v":"0000 KIES UW UZOVI-NUMMER"}]
[null,"0101","UNIVÉ ZORG","0101 UNIVÉ ZORG"]
[null,"0104","CENTRALE ZORGVERZEKERINGEN NZV N.V.","0104 CENTRALE ZORGVERZEKERINGEN NZV N.V."]
[null,"0201","OHRA ZORGVERZEKERINGEN N.V.","0201 OHRA ZORGVERZEKERINGEN N.V."]
[null,"0403","ASR ","0403 ASR "]
[null,"0699","IZA","0699 IZA"]
[null,"0736","UMC","0736 UMC"]
[null,"3311","ZILVEREN KRUIS","3311 ZILVEREN KRUIS"]
[null,"3313","INTERPOLIS","3313 INTERPOLIS"]
[null,"3329","AVERO",{"$f":"CONCATENATE(B22,\" \",C22)","v":"3329 AVERO"}]
[null,"3332","MENZIS","3332 MENZIS"]
[null,"3333","ANDERZORG","3333 ANDERZORG"]
[null,"3343","ONVZ",{"$f":"CONCATENATE(B25,\" \",C25)","v":"3343 ONVZ"}]
[null,"3347","ENO",{"$f":"CONCATENATE(B26,\" \",C26)","v":"3347 ENO"}]
[null,"3351","FBTO",{"$f":"CONCATENATE(B27,\" \",C27)","v":"3351 FBTO"}]
[null,"3352","IPTIQ",{"$f":"CONCATENATE(B28,\" \",C28)","v":"3352 IPTIQ"}]
[null,"3358","DE FRIESLAND",{"$f":"CONCATENATE(B29,\" \",C29)","v":"3358 DE FRIESLAND"}]
[null,"3359","EUCARE INSURANCE PCC LTD",{"$f":"CONCATENATE(B30,\" \",C30)","v":"3359 EUCARE INSURANCE PCC LTD"}]
[null,"7029","DSW","7029 DSW"]
[null,"7032","ENO","7032 ENO"]
[null,"7037","STAD HOLLAND","7037 STAD HOLLAND"]
[null,"7053","OHRA ZORGVERZEKERINGEN N.V.","7053 OHRA ZORGVERZEKERINGEN N.V."]
[null,"7085","ZORG EN ZEKERHEID","7085 ZORG EN ZEKERHEID"]
[null,"7095","VGZ ZORGVERZEKERAAR","7095 VGZ ZORGVERZEKERAAR"]
[null,"7119","CZ ZORGVERZEKERINGEN N.V.","7119 CZ ZORGVERZEKERINGEN N.V."]
[null,"9015","VGZ VOOR DE ZORG","9015 VGZ VOOR DE ZORG"]